Workbook

Sheet Inputs
U1: Regions: | V1: Sources: | W1: # | X1: Facility Type: | Y1: Emission # | Z1: Source # | AA1: Odor Control: | AD1: Terrain: | AE1: Scaling | AF1: Percentages: | AG1: Number of Facilities: | AH1: Errors:
B3: NEBRASKA ODOR FOOTPRINT TOOL | U3: Ainsworth, Neb. (North-central Neb.) | V3: Poultry, Broiler | W3: 1 | X3: Floor-raised on litter | Y3: 10 | Z3: 1 | AA3: Biofilter: Receiving 100% from exhaust fans | AB3: 0.1 | AC3: 1 | AD3: Flat terrain | AE3: 1 | AF3: 90 | AG3: 1 | AH3: Update facility!
B4: Inputs for the Calculation of Separation Distances | U4: Alliance, Neb. (Neb. Panhandle) | V4: Poultry, Turkey | W4: 2 | X4: Litter | Y4: 10 | Z4: 2 | AA4: Biofilter: Cool weather ventilation | AB4: 0.4 | AC4: 1 | AD4: Unconfined, low-lying area | AE4: 1 | AF4: 94 | AG4: 2 | AH4: =MATCH(E$13,$V$3:$V$12,0) ->  | AI4: =MATCH(F$13,$V$3:$V$12,0) ->  | AJ4: =MATCH(G$13,$V$3:$V$12,0) ->  | AK4: =MATCH(H$13,$V$3:$V$12,0) -> 
U5: Beatrice, Neb. (Southeast Neb.) | V5: Swine, Farrowing Bldg | W5: 3 | X5: Shallow pit Far (pull plug) | Y5: 70 | Z5: 3 | AA5: Biofilter: Minimum Airflow treated | AB5: 0.7 | AC5: 1 | AD5: Confined air drainage zone | AE5: 1 | AF5: 96 | AG5: 3 | AH5: =VLOOKUP(E$15,$X$2:$Z$24,3,FALSE) ->  | AI5: =VLOOKUP(F$15,$X$2:$Z$24,3,FALSE) ->  | AJ5: =VLOOKUP(G$15,$X$2:$Z$24,3,FALSE) ->  | AK5: =VLOOKUP(H$15,$X$2:$Z$24,3,FALSE) -> 
C6: Project title: | G6: Prepared for: | U6: Grand Island, Neb. (South-central Neb.) | V6: Swine, Nursery Bldg | W6: 4 | X6: Deep pit or Shallow pit | Y6: 205 | Z6: 4 | AA6: Oil sprinkling used to control dust | AB6: 0.8 | AC6: 1 | AD6: Rolling terrain | AE6: 1 | AF6: 98 | AG6: 4 | AH6: Enter only a) Height and Width or b) Diameter
U7: Lincoln, Neb. (Salt flats) | V7: Swine, Gestation Bldg | W7: 5 | X7: Deep pit Ges | Y7: 245 | Z7: 5 | AA7: No supplemental odor control implemented | AB7: 1 | AC7: 1 | AD7: High Relief or intervening terrain | AE7: 1 | AF7: 99 | AG7: 5 | AH7: Not included, see note
C8: Site location: | G8: Prepared by: | U8: Norfolk, Neb. (Northeast Neb.) | V8: Swine, Finishing Bldg | W8: 6 | X8: Shallow pit Ges (pull plug) | Y8: 145 | Z8: 5 | AG8: 6 | AH8: Update odor control!
U9: North Platte, Neb. (Southwest Neb.) | V9: Cattle, Beef | W9: 7 | X9: Deep pit Fin | Y9: 165 | Z9: 6 | AA9: Impermeable cover | AB9: 0.1 | AC9: 2 | AG9: 7 | AH9: =IF(MATCH(E$13,$V$3:$V$12,0)<9,1,2) ->  | AI9: =IF(MATCH(F$13,$V$3:$V$12,0)<9,1,2) ->  | AJ9: =IF(MATCH(G$13,$V$3:$V$12,0)<9,1,2) ->  | AK9: =IF(MATCH(H$13,$V$3:$V$12,0)<9,1,2) -> 
C10: Location for weather data: | E10: Ainsworth, Neb. (North-central Neb.) | G10: Date prepared: | U10: Scottsbluff, Neb. (N. Platte River Valley) | V10: Cattle, Dairy | W10: 8 | X10: Shallow pit Fin (pull plug) | Y10: 95 | Z10: 6 | AA10: Straw 8" thick | AB10: 0.3 | AC10: 2 | AG10: 8 | AH10: =IF(ISERROR(VLOOKUP(E$26,$AA$3:$AC$19,3,FALSE)),"",VLOOKUP(E$26,$AA$3:$AC$19,3,FALSE)) ->  | AI10: =IF(ISERROR(VLOOKUP(F$26,$AA$3:$AC$19,3,FALSE)),"",VLOOKUP(F$26,$AA$3:$AC$19,3,FALSE)) ->  | AJ10: =IF(ISERROR(VLOOKUP(G$26,$AA$3:$AC$19,3,FALSE)),"",VLOOKUP(G$26,$AA$3:$AC$19,3,FALSE)) ->  | AK10: =IF(ISERROR(VLOOKUP(H$26,$AA$3:$AC$19,3,FALSE)),"",VLOOKUP(H$26,$AA$3:$AC$19,3,FALSE)) -> 
V11: Manure Storage | W11: 9 | X11: Deep-bedded, scrape | Y11: 20 | Z11: 6 | AA11: Straw 6" thick | AB11: 0.4 | AC11: 2 | AG11: 9 | AH11: =IF(ISERROR(VLOOKUP(E$36,$AA$3:$AC$19,3,FALSE)),"",VLOOKUP(E$36,$AA$3:$AC$19,3,FALSE)) ->  | AI11: =IF(ISERROR(VLOOKUP(F$36,$AA$3:$AC$19,3,FALSE)),"",VLOOKUP(F$36,$AA$3:$AC$19,3,FALSE)) -> 
C12: BASE PLAN | E12: Source Facility 1 | F12: Source Facility 2 | G12: Source Facility 3 | H12: Source Facility 4 | V12: Manure Treatment Facility | W12: 10 | X12: Cargil/Open-front, scrape | Y12: 20 | Z12: 6 | AA12: Geotextile cover (at least 2.4 mm thick) | AB12: 0.5 | AC12: 2 | AG12: 10
C13: Select odor sources: | X13: Loose housing, scrape | Y13: 55 | Z13: 6 | AA13: Straw 4" thick | AB13: 0.5 | AC13: 2
X14: Open concrete lot, scrape | Y14: 55 | Z14: 6 | AA14: Straw 2" thick | AB14: 0.6 | AC14: 2
C15: Select type of facility: | X15: Dirt lot (area is regularly dry) | Y15: Not available | Z15: 7 | AA15: No supplemental odor control implemented | AB15: 1 | AC15: 2
E16: =IF(OR(ISERROR(AH4),ISERROR(AH5)),"",IF(AH4=AH5,"",$AH$3)) ->  | F16: =IF(OR(ISERROR(AI4),ISERROR(AI5)),"",IF(AI4=AI5,"",$AH$3)) ->  | G16: =IF(OR(ISERROR(AJ4),ISERROR(AJ5)),"",IF(AJ4=AJ5,"",$AH$3)) ->  | H16: =IF(OR(ISERROR(AK4),ISERROR(AK5)),"",IF(AK4=AK5,"",$AH$3)) ->  | X16: Scraped freestall barn | Y16: 30 | Z16: 8
C17: Number of identical facilities: | E17: 1 | F17: 1 | G17: 1 | H17: 1 | X17: Slatted-floor barn over deep pit | Y17: 30 | Z17: 8
E18: =IF(OR(E15=$X$23,E15=$X$24,E15=$X$15),$AH$7,"") ->  | F18: =IF(OR(F15=$X$23,F15=$X$24,F15=$X$15),$AH$7,"") ->  | G18: =IF(OR(G15=$X$23,G15=$X$24,G15=$X$15),$AH$7,"") ->  | H18: =IF(OR(H15=$X$23,H15=$X$24,H15=$X$15),$AH$7,"") ->  | X18: Loose housing, scraped | Y18: 30 | Z18: 8
C19: Number of animals per facility: | X19: Tiestall barn | Y19: 10 | Z19: 8
X20: Earthen basin | Y20: 65 | Z20: 9
C21: Facility plan dimensions: | X21: Steel/concrete tank | Y21: 135 | Z21: 9
C22: a) Length & Width | D22: (ft) | X22: Crusted stockpile | Y22: 10 | Z22: 9
D23: (ft) | X23: Anaerobic lagoon: low solids loading | Y23: To be determined | Z23: 10
C24: OR b) Diameter: | D24: (ft) | X24: Anaerobic lagoon: high solids loading | Y24: To be determined | Z24: 10
E25: =IF(AND(OR(ISBLANK(E24),AND(ISBLANK(E22),ISBLANK(E23))),OR(ISBLANK(F24),AND(ISBLANK(F22),ISBLANK(F23))),OR(ISBLANK(G24),AND(ISBLANK(G22),ISBLANK(G23))),OR(ISBLANK(H24),AND(ISBLANK(H22),ISBLANK(H23)))),"",AH6) -> 
C26: Select odor control used in Base Plan:
E27: =IF(ISERROR(AH9),"",IF(AH9=AH10,"",$AH$8)) ->  | F27: =IF(ISERROR(AI9),"",IF(AI9=AI10,"",$AH$8)) ->  | V27: To determine first four: | X27: =IF(G13=$V7,$X$7:$X$8,IF(OR(G13=$V5,G13=$V6,G13=$V3,G13=$V4),VLOOKUP(G13,$V3:$X6,3,FALSE),IF(G13=$V8,$X$9:$X$14,IF(G13=$V11,$X$20:$X$22,IF(G13=$V12,$X$23:$X24,IF(G13=$V9,$X$15:$X$15,IF(G13=$V10,$X$16:$X$19,$AB2))))))) -> 0 | Y27: =IF(H13=$V7,$X$7:$X$8,IF(OR(H13=$V5,H13=$V6,H13=$V3,H13=$V4),VLOOKUP(H13,$V3:$X6,3,FALSE),IF(H13=$V8,$X$9:$X$14,IF(H13=$V11,$X$20:$X$22,IF(H13=$V12,$X$23:$X24,IF(H13=$V9,$X$15:$X$15,IF(H13=$V10,$X$16:$X$19,$AB2))))))) -> 0
C28: Total plan area: | D28: (sq. ft.) | E28: =IF(OR(ISBLANK(E15),ISBLANK(E13)),"",IF(AND(ISBLANK(E24),ISBLANK(E23)),"",IF(AND(ISBLANK(E22),ISBLANK(E24)),"",IF(AND(ISBLANK(E22),ISBLANK(E23)),E17*PI()*(E24/2)^2,IF(ISBLANK(E24),E17*E22*E23,""))))) ->  | F28: =IF(OR(ISBLANK(F15),ISBLANK(F13)),"",IF(AND(ISBLANK(F24),ISBLANK(F23)),"",IF(AND(ISBLANK(F22),ISBLANK(F24)),"",IF(AND(ISBLANK(F22),ISBLANK(F23)),F17*PI()*(F24/2)^2,IF(ISBLANK(F24),F17*F22*F23,""))))) ->  | G28: =IF(OR(ISBLANK(G15),ISBLANK(G13)),"",IF(AND(ISBLANK(G24),ISBLANK(G23)),"",IF(AND(ISBLANK(G22),ISBLANK(G24)),"",IF(AND(ISBLANK(G22),ISBLANK(G23)),G17*PI()*(G24/2)^2,IF(ISBLANK(G24),G17*G22*G23,""))))) ->  | H28: =IF(OR(ISBLANK(H15),ISBLANK(H13)),"",IF(AND(ISBLANK(H24),ISBLANK(H23)),"",IF(AND(ISBLANK(H22),ISBLANK(H24)),"",IF(AND(ISBLANK(H22),ISBLANK(H23)),H17*PI()*(H24/2)^2,IF(ISBLANK(H24),H17*H22*H23,""))))) ->  | X28: =IF(E13=$V7,$X$7:$X$8,IF(OR(E13=$V5,E13=$V6,E13=$V3,E13=$V4),VLOOKUP(E13,$V3:$X6,3,FALSE),IF(E13=$V8,$X$9:$X$14,IF(E13=$V11,$X$20:$X$22,IF(E13=$V12,$X$23:$X24,IF(E13=$V9,$X$15:$X$15,IF(E13=$V10,$X$16:$X$19,$AB2))))))) -> 0 | Y28: =IF(F13=$V7,$X$7:$X$8,IF(OR(F13=$V5,F13=$V6,F13=$V3,F13=$V4),VLOOKUP(F13,$V3:$X6,3,FALSE),IF(F13=$V8,$X$9:$X$14,IF(F13=$V11,$X$20:$X$22,IF(F13=$V12,$X$23:$X24,IF(F13=$V9,$X$15:$X$15,IF(F13=$V10,$X$16:$X$19,$AB2))))))) -> 0
C29: OFT odor emission number*: | E29: =IF(E28="","",VLOOKUP(E15,$X3:$Y24,2,FALSE)) ->  | F29: =IF(F28="","",VLOOKUP(F15,$X3:$Y24,2,FALSE)) ->  | G29: =IF(G28="","",VLOOKUP(G15,$X3:$Y24,2,FALSE)) ->  | H29: =IF(H28="","",VLOOKUP(H15,$X3:$Y24,2,FALSE)) -> 
C30: Odor control factor: | E30: =IF(ISBLANK(E13),"",IF(ISERROR(VLOOKUP(E26,Inputs!$AA$3:$AB$19,2,FALSE)),"",VLOOKUP(E26,Inputs!$AA$3:$AB$19,2,FALSE))) ->  | F30: =IF(ISBLANK(F13),"",IF(ISERROR(VLOOKUP(F26,Inputs!$AA$3:$AB$19,2,FALSE)),"",VLOOKUP(F26,Inputs!$AA$3:$AB$19,2,FALSE))) ->  | G30: =IF(ISBLANK(G13),"",IF(ISERROR(VLOOKUP(G26,Inputs!$AA$3:$AB$19,2,FALSE)),"",VLOOKUP(G26,Inputs!$AA$3:$AB$19,2,FALSE))) ->  | H30: =IF(ISBLANK(H13),"",IF(ISERROR(VLOOKUP(H26,Inputs!$AA$3:$AB$19,2,FALSE)),"",VLOOKUP(H26,Inputs!$AA$3:$AB$19,2,FALSE))) -> 
C31: Facility odor emission rate*: | D31: (106 OU/s) | E31: =IF(ISERROR(E28*E29*E30),"",E28*E29*E30/10^6) ->  | F31: =IF(ISERROR(F28*F29*F30),"",F28*F29*F30/10^6) ->  | G31: =IF(ISERROR(G28*G29*G30),"",G28*G29*G30/10^6) ->  | H31: =IF(ISERROR(H28*H29*H30),"",H28*H29*H30/10^6) -> 
C32: Percentage of total odor: | E32: =IF(E31="","",E31/(SUM($E$31:$H$31))) ->  | F32: =IF(F31="","",F31/(SUM($E$31:$H$31))) ->  | G32: =IF(G31="","",G31/(SUM($E$31:$H$31))) ->  | H32: =IF(H31="","",H31/(SUM($E$31:$H$31))) -> 
C33: Total odor emission rate*: | E33: =IF(SUM(E31:H31)>0,SUM(E31:H31),"") ->  | F33: x 106 OU/s | G33: * The emission values shown have been scaled up - based upon calibration study results - for use with the Odor Footprint Tool.
C35: ALTERNATE PLAN | E35: Source Facilty 1 | F35: Source Facility 2 | G35: Source Facility 3 | H35: Source Facility 4
C36: Select odor control option being considered:
C38: Odor control factor: | E38: =IF(ISERROR(VLOOKUP(E36,Inputs!$AA$3:$AB$19,2,FALSE)),"",VLOOKUP(E36,Inputs!$AA$3:$AB$19,2,FALSE)) ->  | F38: =IF(ISERROR(VLOOKUP(F36,Inputs!$AA$3:$AB$19,2,FALSE)),"",VLOOKUP(F36,Inputs!$AA$3:$AB$19,2,FALSE)) ->  | G38: =IF(ISERROR(VLOOKUP(G36,Inputs!$AA$3:$AB$19,2,FALSE)),"",VLOOKUP(G36,Inputs!$AA$3:$AB$19,2,FALSE)) ->  | H38: =IF(ISERROR(VLOOKUP(H36,Inputs!$AA$3:$AB$19,2,FALSE)),"",VLOOKUP(H36,Inputs!$AA$3:$AB$19,2,FALSE)) ->  | U38: Refresh facility!
C39: Facility odor emission rate*: | D39: (106 OU/s) | E39: =IF(ISERROR(E31*E38),"",E31*E38) ->  | F39: =IF(ISERROR(F31*F38),"",F31*F38) ->  | G39: =IF(ISERROR(G31*G38),"",G31*G38) ->  | H39: =IF(ISERROR(H31*H38),"",H31*H38) -> 
C40: New Percentage of total odor: | E40: =IF(E39="","",E39/(SUM($E$39:$H$39))) ->  | F40: =IF(F39="","",F39/(SUM($E$39:$H$39))) ->  | G40: =IF(G39="","",G39/(SUM($E$39:$H$39))) ->  | H40: =IF(H39="","",H39/(SUM($E$39:$H$39))) -> 
C42: New total odor emission rate*: | E42: =IF((IF(ISERROR(E31*E38),0,E31*E38)+IF(ISERROR(F31*F38),0,F31*F38)+IF(ISERROR(G31*G38),0,G31*G38)+IF(ISERROR(H31*H38),0,H31*H38)+IF(ISERROR(#REF!*#REF!),0,#REF!*#REF!))>0,IF(ISERROR(E31*E38),0,E31*E38)+IF(ISERROR(F31*F38),0,F31*F38)+IF(ISERROR(G31*G38),0,G31*G38)+IF(ISERROR(H31*H38),0,H31*H38)+IF(ISERROR(#REF!*#REF!),0,#REF!*#REF!),"") ->  | F42: x 106 OU/s
E43: =IF(ISERROR(AH9),"",IF(AH9=AH11,"",$AH$8)) ->  | F43: =IF(ISERROR(AI9),"",IF(AI9=AI11,"",$AH$8)) ->  | X43: =IF(H13=$V7,$X$7:$X$8,IF(OR(H13=$V5,H13=$V6,H13=$V3,H13=$V4),#REF!,IF(H13=$V8,$X$9:$X$14,IF(H13=$V11,$X$20:$X$22,IF(H13=$V12,$X$23:$X$24,IF(H13=$V9,$X$15:$X$15,IF(H13=$V10,$X$16:$X$19,$AB2))))))) -> 0
E44: =IF(OR($E$10=Inputs!$U$4,$E$10=Inputs!$U$5,$E$10=$U$6, $E$10=Inputs!$U$7),"North","Northeast") -> Northeast | F44: =IF(OR($E$10=Inputs!$U$4,$E$10=Inputs!$U$5,$E$10=$U$6, $E$10=Inputs!$U$7),"East","Southeast") -> Southeast | G44: =IF(OR($E$10=Inputs!$U$4,$E$10=Inputs!$U$5,$E$10=$U$6, $E$10=Inputs!$U$7),"South","Southwest") -> Southwest | H44: =IF(OR($E$10=Inputs!$U$4,$E$10=Inputs!$U$5,$E$10=$U$6, $E$10=Inputs!$U$7),"West","Northwest") -> Northwest | U44: =IF(E13=$V7,$X$7:$X$8,IF(OR(E13=$V5,E13=$V6,E13=$V3,E13=$V4),X28,IF(E13=$V8,$X$9:$X$14,IF(E13=$V11,$X$20:$X$22,IF(E13=$V12,$X$23:$X$24,IF(E13=$V9,$X$15:$X$15,IF(E13=$V10,$X$16:$X$19,$AB2))))))) -> 0 | V44: =IF(F13=$V7,$X$7:$X$8,IF(OR(F13=$V5,F13=$V6,F13=$V3,F13=$V4),Y28,IF(F13=$V8,$X$9:$X$14,IF(F13=$V11,$X$20:$X$22,IF(F13=$V12,$X$23:$X$24,IF(F13=$V9,$X$15:$X$15,IF(F13=$V10,$X$16:$X$19,$AB2))))))) -> 0 | W44: =IF(G13=$V7,$X$7:$X$8,IF(OR(G13=$V5,G13=$V6,G13=$V3,G13=$V4),#REF!,IF(G13=$V8,$X$9:$X$14,IF(G13=$V11,$X$20:$X$22,IF(G13=$V12,$X$23:$X$24,IF(G13=$V9,$X$15:$X$15,IF(G13=$V10,$X$16:$X$19,$AB2))))))) -> 0
C45: SELECT TERRAIN | E45: Flat terrain | F45: Flat terrain | G45: Flat terrain | H45: Flat terrain
D47: Funding provided by: The Nebraska Environmental Trust
E48: Pork Checkoff
E49: Separation Distance (miles)
E50: =IF(OR($E$10=Inputs!$U$4,$E$10=Inputs!$U$5,$E$10=$U$6, $E$10=Inputs!$U$7),"North","Northeast") -> Northeast | F50: =IF(OR($E$10=Inputs!$U$4,$E$10=Inputs!$U$5,$E$10=$U$6, $E$10=Inputs!$U$7),"East","Southeast") -> Southeast | G50: =IF(OR($E$10=Inputs!$U$4,$E$10=Inputs!$U$5,$E$10=$U$6, $E$10=Inputs!$U$7),"South","Southwest") -> Southwest | H50: =IF(OR($E$10=Inputs!$U$4,$E$10=Inputs!$U$5,$E$10=$U$6, $E$10=Inputs!$U$7),"West","Northwest") -> Northwest
C51: BASE PLAN | D51: 0.9 | E51: =IF($E$33="","",INDEX('Base Setback'!$B$3:$F$10,MATCH(Inputs!$E$10,'Base Setback'!$A$3:$A$10,0),MATCH(Inputs!D51,'Base Setback'!$B$2:$F$2,0))) ->  | F51: =IF($E$33="","",INDEX('Base Setback'!$B$14:$F$21,MATCH(Inputs!$E$10,'Base Setback'!$A$14:$A$21,0),MATCH(Inputs!D51,'Base Setback'!$B$13:$F$13,0))) ->  | G51: =IF($E$33="","",INDEX('Base Setback'!$B$25:$F$32,MATCH(Inputs!$E$10,'Base Setback'!$A$25:$A$32,0),MATCH(Inputs!D51,'Base Setback'!$B$24:$F$24,0))) ->  | H51: =IF($E$33="","",INDEX('Base Setback'!$B$36:$F$43,MATCH(Inputs!$E$10,'Base Setback'!$A$36:$A$43,0),MATCH(Inputs!D51,'Base Setback'!$B$35:$F$35,0))) -> 
D52: 0.94 | E52: =IF($E$33="","",INDEX('Base Setback'!$B$3:$F$10,MATCH(Inputs!$E$10,'Base Setback'!$A$3:$A$10,0),MATCH(Inputs!D52,'Base Setback'!$B$2:$F$2,0))) ->  | F52: =IF($E$33="","",INDEX('Base Setback'!$B$14:$F$21,MATCH(Inputs!$E$10,'Base Setback'!$A$14:$A$21,0),MATCH(Inputs!D52,'Base Setback'!$B$13:$F$13,0))) ->  | G52: =IF($E$33="","",INDEX('Base Setback'!$B$25:$F$32,MATCH(Inputs!$E$10,'Base Setback'!$A$25:$A$32,0),MATCH(Inputs!D52,'Base Setback'!$B$24:$F$24,0))) ->  | H52: =IF($E$33="","",INDEX('Base Setback'!$B$36:$F$43,MATCH(Inputs!$E$10,'Base Setback'!$A$36:$A$43,0),MATCH(Inputs!D52,'Base Setback'!$B$35:$F$35,0))) -> 
D53: 0.96 | E53: =IF($E$33="","",INDEX('Base Setback'!$B$3:$F$10,MATCH(Inputs!$E$10,'Base Setback'!$A$3:$A$10,0),MATCH(Inputs!D53,'Base Setback'!$B$2:$F$2,0))) ->  | F53: =IF($E$33="","",INDEX('Base Setback'!$B$14:$F$21,MATCH(Inputs!$E$10,'Base Setback'!$A$14:$A$21,0),MATCH(Inputs!D53,'Base Setback'!$B$13:$F$13,0))) ->  | G53: =IF($E$33="","",INDEX('Base Setback'!$B$25:$F$32,MATCH(Inputs!$E$10,'Base Setback'!$A$25:$A$32,0),MATCH(Inputs!D53,'Base Setback'!$B$24:$F$24,0))) ->  | H53: =IF($E$33="","",INDEX('Base Setback'!$B$36:$F$43,MATCH(Inputs!$E$10,'Base Setback'!$A$36:$A$43,0),MATCH(Inputs!D53,'Base Setback'!$B$35:$F$35,0))) -> 
D54: 0.98 | E54: =IF($E$33="","",INDEX('Base Setback'!$B$3:$F$10,MATCH(Inputs!$E$10,'Base Setback'!$A$3:$A$10,0),MATCH(Inputs!D54,'Base Setback'!$B$2:$F$2,0))) ->  | F54: =IF($E$33="","",INDEX('Base Setback'!$B$14:$F$21,MATCH(Inputs!$E$10,'Base Setback'!$A$14:$A$21,0),MATCH(Inputs!D54,'Base Setback'!$B$13:$F$13,0))) ->  | G54: =IF($E$33="","",INDEX('Base Setback'!$B$25:$F$32,MATCH(Inputs!$E$10,'Base Setback'!$A$25:$A$32,0),MATCH(Inputs!D54,'Base Setback'!$B$24:$F$24,0))) ->  | H54: =IF($E$33="","",INDEX('Base Setback'!$B$36:$F$43,MATCH(Inputs!$E$10,'Base Setback'!$A$36:$A$43,0),MATCH(Inputs!D54,'Base Setback'!$B$35:$F$35,0))) -> 
D55: 0.99 | E55: =IF($E$33="","",INDEX('Base Setback'!$B$3:$F$10,MATCH(Inputs!$E$10,'Base Setback'!$A$3:$A$10,0),MATCH(Inputs!D55,'Base Setback'!$B$2:$F$2,0))) ->  | F55: =IF($E$33="","",INDEX('Base Setback'!$B$14:$F$21,MATCH(Inputs!$E$10,'Base Setback'!$A$14:$A$21,0),MATCH(Inputs!D55,'Base Setback'!$B$13:$F$13,0))) ->  | G55: =IF($E$33="","",INDEX('Base Setback'!$B$25:$F$32,MATCH(Inputs!$E$10,'Base Setback'!$A$25:$A$32,0),MATCH(Inputs!D55,'Base Setback'!$B$24:$F$24,0))) ->  | H55: =IF($E$33="","",INDEX('Base Setback'!$B$36:$F$43,MATCH(Inputs!$E$10,'Base Setback'!$A$36:$A$43,0),MATCH(Inputs!D55,'Base Setback'!$B$35:$F$35,0))) -> 
C57: ALTERNATE PLAN | D57: 0.9 | E57: =IF($E$33="","",INDEX('Alt setback'!$B$3:$F$10,MATCH(Inputs!$E$10,'Alt setback'!$A$3:$A$10,0),MATCH(Inputs!D57,'Alt setback'!$B$2:$F$2,0))) ->  | F57: =IF($E$33="","",INDEX('Alt setback'!$B$14:$F$21,MATCH(Inputs!$E$10,'Alt setback'!$A$14:$A$21,0),MATCH(Inputs!D57,'Alt setback'!$B$13:$F$13,0))) ->  | G57: =IF($E$33="","",INDEX('Alt setback'!$B$25:$F$32,MATCH(Inputs!$E$10,'Alt setback'!$A$25:$A$32,0),MATCH(Inputs!D57,'Alt setback'!$B$24:$F$24,0))) ->  | H57: =IF($E$33="","",INDEX('Alt setback'!$B$36:$F$43,MATCH(Inputs!$E$10,'Alt setback'!$A$36:$A$43,0),MATCH(Inputs!D57,'Alt setback'!$B$35:$F$35,0))) -> 
D58: 0.94 | E58: =IF($E$33="","",INDEX('Alt setback'!$B$3:$F$10,MATCH(Inputs!$E$10,'Alt setback'!$A$3:$A$10,0),MATCH(Inputs!D58,'Alt setback'!$B$2:$F$2,0))) ->  | F58: =IF($E$33="","",INDEX('Alt setback'!$B$14:$F$21,MATCH(Inputs!$E$10,'Alt setback'!$A$14:$A$21,0),MATCH(Inputs!D58,'Alt setback'!$B$13:$F$13,0))) ->  | G58: =IF($E$33="","",INDEX('Alt setback'!$B$25:$F$32,MATCH(Inputs!$E$10,'Alt setback'!$A$25:$A$32,0),MATCH(Inputs!D58,'Alt setback'!$B$24:$F$24,0))) ->  | H58: =IF($E$33="","",INDEX('Alt setback'!$B$36:$F$43,MATCH(Inputs!$E$10,'Alt setback'!$A$36:$A$43,0),MATCH(Inputs!D58,'Alt setback'!$B$35:$F$35,0))) -> 
D59: 0.96 | E59: =IF($E$33="","",INDEX('Alt setback'!$B$3:$F$10,MATCH(Inputs!$E$10,'Alt setback'!$A$3:$A$10,0),MATCH(Inputs!D59,'Alt setback'!$B$2:$F$2,0))) ->  | F59: =IF($E$33="","",INDEX('Alt setback'!$B$14:$F$21,MATCH(Inputs!$E$10,'Alt setback'!$A$14:$A$21,0),MATCH(Inputs!D59,'Alt setback'!$B$13:$F$13,0))) ->  | G59: =IF($E$33="","",INDEX('Alt setback'!$B$25:$F$32,MATCH(Inputs!$E$10,'Alt setback'!$A$25:$A$32,0),MATCH(Inputs!D59,'Alt setback'!$B$24:$F$24,0))) ->  | H59: =IF($E$33="","",INDEX('Alt setback'!$B$36:$F$43,MATCH(Inputs!$E$10,'Alt setback'!$A$36:$A$43,0),MATCH(Inputs!D59,'Alt setback'!$B$35:$F$35,0))) -> 
D60: 0.98 | E60: =IF($E$33="","",INDEX('Alt setback'!$B$3:$F$10,MATCH(Inputs!$E$10,'Alt setback'!$A$3:$A$10,0),MATCH(Inputs!D60,'Alt setback'!$B$2:$F$2,0))) ->  | F60: =IF($E$33="","",INDEX('Alt setback'!$B$14:$F$21,MATCH(Inputs!$E$10,'Alt setback'!$A$14:$A$21,0),MATCH(Inputs!D60,'Alt setback'!$B$13:$F$13,0))) ->  | G60: =IF($E$33="","",INDEX('Alt setback'!$B$25:$F$32,MATCH(Inputs!$E$10,'Alt setback'!$A$25:$A$32,0),MATCH(Inputs!D60,'Alt setback'!$B$24:$F$24,0))) ->  | H60: =IF($E$33="","",INDEX('Alt setback'!$B$36:$F$43,MATCH(Inputs!$E$10,'Alt setback'!$A$36:$A$43,0),MATCH(Inputs!D60,'Alt setback'!$B$35:$F$35,0))) -> 
D61: 0.99 | E61: =IF($E$33="","",INDEX('Alt setback'!$B$3:$F$10,MATCH(Inputs!$E$10,'Alt setback'!$A$3:$A$10,0),MATCH(Inputs!D61,'Alt setback'!$B$2:$F$2,0))) ->  | F61: =IF($E$33="","",INDEX('Alt setback'!$B$14:$F$21,MATCH(Inputs!$E$10,'Alt setback'!$A$14:$A$21,0),MATCH(Inputs!D61,'Alt setback'!$B$13:$F$13,0))) ->  | G61: =IF($E$33="","",INDEX('Alt setback'!$B$25:$F$32,MATCH(Inputs!$E$10,'Alt setback'!$A$25:$A$32,0),MATCH(Inputs!D61,'Alt setback'!$B$24:$F$24,0))) ->  | H61: =IF($E$33="","",INDEX('Alt setback'!$B$36:$F$43,MATCH(Inputs!$E$10,'Alt setback'!$A$36:$A$43,0),MATCH(Inputs!D61,'Alt setback'!$B$35:$F$35,0))) -> 
V70: =IF($U47=1,$X$7:$X$8,IF($U47=2,$X$5,IF($U47=3,$X$6,IF($U47=4,$X$9:$X$14,IF($U47=5,$X$20:$X$22,IF($U47=6,$X$23,"")))))) -> 
V71: =IF($V47=1,$X$7:$X$8,IF($V47=2,$X$5,IF($V47=3,$X$6,IF($V47=4,$X$9:$X$14,IF($V47=5,$X$20:$X$22,IF($V47=6,$X$23,"")))))) -> 
V72: =IF($W47=1,$X$7:$X$8,IF($W47=2,$X$5,IF($W47=3,$X$6,IF($W47=4,$X$9:$X$14,IF($W47=5,$X$20:$X$22,IF($W47=6,$X$23,"")))))) -> 
V73: =IF($X45=1,$X$7:$X$8,IF($X45=2,$X$5,IF($X45=3,$X$6,IF($X45=4,$X$9:$X$14,IF($X45=5,$X$20:$X$22,IF($X45=6,$X$23,"")))))) -> 
V74: =IF($Y45=1,$X$7:$X$8,IF($Y45=2,$X$5,IF($Y45=3,$X$6,IF($Y45=4,$X$9:$X$14,IF($Y45=5,$X$20:$X$22,IF($Y45=6,$X$23,"")))))) -> 

Sheet Results
C2: =Inputs!B3 -> NEBRASKA ODOR FOOTPRINT TOOL
C3: Separation Distance Results
C5: =Inputs!C6 -> Project title: | D5: =IF(Inputs!D6="","",Inputs!D6) ->  | G5: =Inputs!G6 -> Prepared for: | H5: =IF(Inputs!H6="","",Inputs!H6) -> 
C7: =Inputs!C8 -> Site location: | D7: =IF(Inputs!D8="","",Inputs!D8) ->  | G7: =Inputs!G8 -> Prepared by: | H7: =IF(Inputs!H8="","",Inputs!H8) -> 
C9: =Inputs!C10 -> Location for weather data: | E9: =Inputs!E10 -> Ainsworth, Neb. (North-central Neb.) | G9: =Inputs!G10 -> Date prepared: | H9: =IF(Inputs!H10="","",Inputs!H10) -> 
E11: =Inputs!E12 -> Source Facility 1 | F11: =Inputs!F12 -> Source Facility 2 | G11: =Inputs!G12 -> Source Facility 3 | H11: =Inputs!H12 -> Source Facility 4
C12: Type of facility: | E12: =IF(Inputs!E13="","",Inputs!E13) ->  | F12: =IF(Inputs!F13="","",Inputs!F13) ->  | G12: =IF(Inputs!G13="","",Inputs!G13) ->  | H12: =IF(Inputs!H13="","",Inputs!H13) -> 
E13: =IF(Inputs!E15="","",Inputs!E15) ->  | F13: =IF(Inputs!F15="","",Inputs!F15) ->  | G13: =IF(Inputs!G15="","",Inputs!G15) ->  | H13: =IF(Inputs!H15="","",Inputs!H15) -> 
E14: =Inputs!E18 ->  | F14: =Inputs!F18 ->  | G14: =Inputs!G18 ->  | H14: =Inputs!H18 -> 
C15: =Inputs!C28 -> Total plan area: | D15: =Inputs!D28 -> (sq. ft.) | E15: =Inputs!E28 ->  | F15: =Inputs!F28 ->  | G15: =Inputs!G28 ->  | H15: =Inputs!H28 -> 
C16: Total number of animals: | E16: =IF(Inputs!E19="","",Inputs!E19*Inputs!E17) ->  | F16: =IF(Inputs!F19="","",Inputs!F19*Inputs!F17) ->  | G16: =IF(Inputs!G19="","",Inputs!G19*Inputs!G17) ->  | H16: =IF(Inputs!H19="","",Inputs!H19*Inputs!H17) -> 
C18: Base odor control: | E18: =IF(Inputs!E26="","",Inputs!E26) ->  | F18: =IF(Inputs!F26="","",Inputs!F26) ->  | G18: =IF(Inputs!G26="","",Inputs!G26) ->  | H18: =IF(Inputs!H26="","",Inputs!H26) -> 
C19: =Inputs!C32 -> Percentage of total odor: | E19: =Inputs!E32 ->  | F19: =Inputs!F32 ->  | G19: =Inputs!G32 ->  | H19: =Inputs!H32 -> 
C20: Alternate odor control: | E20: =IF(Inputs!E36="","",Inputs!E36) ->  | F20: =IF(Inputs!F36="","",Inputs!F36) ->  | G20: =IF(Inputs!G36="","",Inputs!G36) ->  | H20: =IF(Inputs!H36="","",Inputs!H36) -> 
C21: =Inputs!C40 -> New Percentage of total odor: | E21: =Inputs!E40 ->  | F21: =Inputs!F40 ->  | G21: =Inputs!G40 ->  | H21: =Inputs!H40 -> 
E23: =Inputs!E49 -> Separation Distance (miles)
E24: =Inputs!E50 -> Northeast | F24: =Inputs!F50 -> Southeast | G24: =Inputs!G50 -> Southwest | H24: =Inputs!H50 -> Northwest
C25: =Inputs!C51 -> BASE PLAN | D25: =Inputs!D51 -> 0.9 | E25: =Inputs!E51 ->  | F25: =Inputs!F51 ->  | G25: =Inputs!G51 ->  | H25: =Inputs!H51 -> 
D26: =Inputs!D52 -> 0.94 | E26: =Inputs!E52 ->  | F26: =Inputs!F52 ->  | G26: =Inputs!G52 ->  | H26: =Inputs!H52 -> 
C27: Odor Annoyance-Free | D27: =Inputs!D53 -> 0.96 | E27: =Inputs!E53 ->  | F27: =Inputs!F53 ->  | G27: =Inputs!G53 ->  | H27: =Inputs!H53 -> 
C28: Frequency | D28: =Inputs!D54 -> 0.98 | E28: =Inputs!E54 ->  | F28: =Inputs!F54 ->  | G28: =Inputs!G54 ->  | H28: =Inputs!H54 -> 
D29: =Inputs!D55 -> 0.99 | E29: =Inputs!E55 ->  | F29: =Inputs!F55 ->  | G29: =Inputs!G55 ->  | H29: =Inputs!H55 -> 
C31: =Inputs!C57 -> ALTERNATE PLAN | D31: =Inputs!D57 -> 0.9 | E31: =Inputs!E57 ->  | F31: =Inputs!F57 ->  | G31: =Inputs!G57 ->  | H31: =Inputs!H57 -> 
D32: =Inputs!D58 -> 0.94 | E32: =Inputs!E58 ->  | F32: =Inputs!F58 ->  | G32: =Inputs!G58 ->  | H32: =Inputs!H58 -> 
C33: Odor Annoyance-Free | D33: =Inputs!D59 -> 0.96 | E33: =Inputs!E59 ->  | F33: =Inputs!F59 ->  | G33: =Inputs!G59 ->  | H33: =Inputs!H59 -> 
C34: Frequency | D34: =Inputs!D60 -> 0.98 | E34: =Inputs!E60 ->  | F34: =Inputs!F60 ->  | G34: =Inputs!G60 ->  | H34: =Inputs!H60 -> 
D35: =Inputs!D61 -> 0.99 | E35: =Inputs!E61 ->  | F35: =Inputs!F61 ->  | G35: =Inputs!G61 ->  | H35: =Inputs!H61 -> 
E37: =Inputs!E44 -> Northeast | F37: =Inputs!F44 -> Southeast | G37: =Inputs!G44 -> Southwest | H37: =Inputs!H44 -> Northwest
C38: Terrain: (apply on receptor-by-receptor basis) | E38: =Inputs!E45 -> Flat terrain | F38: =Inputs!F45 -> Flat terrain | G38: =Inputs!G45 -> Flat terrain | H38: =Inputs!H45 -> Flat terrain
E41: Funding provided by: The Nebraska Environmental Trust
F42: Pork Checkoff

Sheet Graphs
B2: =Inputs!B3 -> NEBRASKA ODOR FOOTPRINT TOOL
B3: Separation Distance Graphs
C5: =Inputs!C6 -> Project title: | D5: =IF(Inputs!D6="","",Inputs!D6) ->  | G5: =Inputs!G6 -> Prepared for: | H5: =IF(Inputs!H6="","",Inputs!H6) -> 
C6: =Inputs!C8 -> Site location: | D6: =IF(Inputs!D8="","",Inputs!D8) ->  | G6: =Inputs!G8 -> Prepared by: | H6: =IF(Inputs!H8="","",Inputs!H8) -> 
C7: Notes: | D7: =IF(OR(Inputs!E18=Inputs!AH7,Inputs!F18=Inputs!AH7,Inputs!G18=Inputs!AH7,Inputs!H18=Inputs!AH7),"Results do not account for all of the selected odor sources","") ->  | G7: =Inputs!G10 -> Date prepared: | H7: =IF(Inputs!H10="","",Inputs!H10) -> 
E9: Base Plan Separation Distances: | H9: Alternate Odor Control Plan Separation Distances:
E10: Graph radius: 1 mile
C11: Select annoyance-free frequency:
C28: Larger scale graphs below
E30: Graph radius: 3 miles
C34: Funding provided by:
C35: The Nebraska Environmental
C36: Trust
C37: Prok Checkoff
E52: Graph radius: 5 miles

Sheet Calculations
B2: =Inputs!B3 -> NEBRASKA ODOR FOOTPRINT TOOL
B3: Values Used in the Calculation of Separation Distances
C5: =Inputs!C6 -> Project title: | D5: =Inputs!D6 -> 0 | G5: =Inputs!G6 -> Prepared for: | H5: =Inputs!H6 -> 0
C6: =Inputs!C8 -> Site location: | D6: =Inputs!D8 -> 0 | G6: =Inputs!G8 -> Prepared by: | H6: =Inputs!H8 -> 0
C7: =Inputs!C10 -> Location for weather data: | E7: =Inputs!E10 -> Ainsworth, Neb. (North-central Neb.) | G7: =Inputs!G10 -> Date prepared: | H7: =Inputs!H10 -> 00:00:00
C9: =Inputs!C12 -> BASE PLAN | E9: =Inputs!E12 -> Source Facility 1 | F9: =Inputs!F12 -> Source Facility 2 | G9: =Inputs!G12 -> Source Facility 3 | H9: =Inputs!H12 -> Source Facility 4
C10: =Inputs!C13 -> Select odor sources: | E10: =Inputs!E13 -> 0 | F10: =Inputs!F13 -> 0 | G10: =Inputs!G13 -> 0 | H10: =Inputs!H13 -> 0
C11: =Inputs!C15 -> Select type of facility: | E11: =Inputs!E15 -> 0 | F11: =Inputs!F15 -> 0 | G11: =Inputs!G15 -> 0 | H11: =Inputs!H15 -> 0
C12: =Inputs!C19 -> Number of animals per facility: | E12: =Inputs!E19 -> 0 | F12: =Inputs!F19 -> 0 | G12: =Inputs!G19 -> 0 | H12: =Inputs!H19 -> 0
C13: =Inputs!C21 -> Facility plan dimensions:
C14: =Inputs!C22 -> a) Length & Width | D14: =Inputs!D22 -> (ft) | E14: =Inputs!E22 -> 0 | F14: =Inputs!F22 -> 0 | G14: =Inputs!G22 -> 0 | H14: =Inputs!H22 -> 0
D15: =Inputs!D23 -> (ft) | E15: =Inputs!E23 -> 0 | F15: =Inputs!F23 -> 0 | G15: =Inputs!G23 -> 0 | H15: =Inputs!H23 -> 0
C16: =Inputs!C24 -> OR b) Diameter: | D16: =Inputs!D24 -> (ft) | E16: =Inputs!E24 -> 0 | F16: =Inputs!F24 -> 0 | G16: =Inputs!G24 -> 0 | H16: =Inputs!H24 -> 0
C17: =Inputs!C17 -> Number of identical facilities: | E17: =Inputs!E17 -> 1 | F17: =Inputs!F17 -> 1 | G17: =Inputs!G17 -> 1 | H17: =Inputs!H17 -> 1
C18: =Inputs!C26 -> Select odor control used in Base Plan: | E18: =Inputs!E26 -> 0 | F18: =Inputs!F26 -> 0 | G18: =Inputs!G26 -> 0 | H18: =Inputs!H26 -> 0
C19: =Inputs!C28 -> Total plan area: | D19: =Inputs!D28 -> (sq. ft.) | E19: =Inputs!E28 ->  | F19: =Inputs!F28 ->  | G19: =Inputs!G28 ->  | H19: =Inputs!H28 -> 
C20: =Inputs!C29 -> OFT odor emission number*: | E20: =Inputs!E29 ->  | F20: =Inputs!F29 ->  | G20: =Inputs!G29 ->  | H20: =Inputs!H29 -> 
C21: =Inputs!C30 -> Odor control factor: | E21: =Inputs!E30 ->  | F21: =Inputs!F30 ->  | G21: =Inputs!G30 ->  | H21: =Inputs!H30 -> 
C22: =Inputs!C31 -> Facility odor emission rate*: | D22: (106 OU/s) | E22: =Inputs!E31 ->  | F22: =Inputs!F31 ->  | G22: =Inputs!G31 ->  | H22: =Inputs!H31 -> 
C24: =Inputs!C33 -> Total odor emission rate*: | E24: =Inputs!E33 ->  | F24: x 106 OU/s | G24: =Inputs!G33 -> * The emission values shown have been scaled up - based upon calibration study results - for use with the Odor Footprint Tool.
C26: =Inputs!C35 -> ALTERNATE PLAN | E26: =Inputs!E35 -> Source Facilty 1 | F26: =Inputs!F35 -> Source Facility 2 | G26: =Inputs!G35 -> Source Facility 3 | H26: =Inputs!H35 -> Source Facility 4
C27: =Inputs!C36 -> Select odor control option being considered: | E27: =Inputs!E36 -> 0 | F27: =Inputs!F36 -> 0 | G27: =Inputs!G36 -> 0 | H27: =Inputs!H36 -> 0
C28: =Inputs!C38 -> Odor control factor: | E28: =Inputs!E38 ->  | F28: =Inputs!F38 ->  | G28: =Inputs!G38 ->  | H28: =Inputs!H38 -> 
C30: =Inputs!C42 -> New total odor emission rate*: | E30: =Inputs!E42 ->  | F30: x 106 OU/s

Sheet graphing (hidden)
A1: =Results!C25 -> BASE PLAN
B2: Angle | C2: =Results!D25 -> 0.9 | D2: =Results!D26 -> 0.94 | E2: =Results!D27 -> 0.96 | F2: =Results!D28 -> 0.98 | G2: =Results!D29 -> 0.99
A3: =Results!E24 -> Northeast | B3: =IF(A3="North",360,315) -> 315 | C3: =Results!E25 ->  | D3: =Results!E26 ->  | E3: =Results!E27 ->  | F3: =Results!E28 ->  | G3: =Results!E29 -> 
A4: =Results!F24 -> Southeast | B4: =IF(A4="East",270,225) -> 225 | C4: =Results!F25 ->  | D4: =Results!F26 ->  | E4: =Results!F27 ->  | F4: =Results!F28 ->  | G4: =Results!F29 -> 
A5: =Results!G24 -> Southwest | B5: =IF(A5="South",180,135) -> 135 | C5: =Results!G25 ->  | D5: =Results!G26 ->  | E5: =Results!G27 ->  | F5: =Results!G28 ->  | G5: =Results!G29 -> 
A6: =Results!H24 -> Northwest | B6: =IF(A6="West",90,45) -> 45 | C6: =Results!H25 ->  | D6: =Results!H26 ->  | E6: =Results!H27 ->  | F6: =Results!H28 ->  | G6: =Results!H29 -> 
A8: =Results!C31 -> ALTERNATE PLAN
B9: Angle | C9: =Results!D31 -> 0.9 | D9: =Results!D32 -> 0.94 | E9: =Results!D33 -> 0.96 | F9: =Results!D34 -> 0.98 | G9: =Results!D35 -> 0.99
A10: =Results!E24 -> Northeast | B10: =IF(A10="North",360,315) -> 315 | C10: =Results!E31 ->  | D10: =Results!E32 ->  | E10: =Results!E33 ->  | F10: =Results!E34 ->  | G10: =Results!E35 -> 
A11: =Results!F24 -> Southeast | B11: =IF(A11="East",270,225) -> 225 | C11: =Results!F31 ->  | D11: =Results!F32 ->  | E11: =Results!F33 ->  | F11: =Results!F34 ->  | G11: =Results!F35 -> 
A12: =Results!G24 -> Southwest | B12: =IF(A12="South",180,135) -> 135 | C12: =Results!G31 ->  | D12: =Results!G32 ->  | E12: =Results!G33 ->  | F12: =Results!G34 ->  | G12: =Results!G35 -> 
A13: =Results!H24 -> Northwest | B13: =IF(A13="West",90,45) -> 45 | C13: =Results!H31 ->  | D13: =Results!H32 ->  | E13: =Results!H33 ->  | F13: =Results!H34 ->  | G13: =Results!H35 -> 
A17: =A1 -> BASE PLAN | C17: 0.99 | E17: 0.98 | G17: 0.96 | I17: 0.94 | K17: 0.9
C18: TRUE | E18: TRUE | G18: TRUE | I18: TRUE | K18: TRUE
B19: X | C19: Y | D19: X | E19: Y | F19: X | G19: Y | H19: X | I19: Y | J19: X | K19: Y
A20: =A3 -> Northeast | B20: =IF(C$18=TRUE,G3*COS(($B3+90)*PI()/180),10) ->  | C20: =IF(C$18=TRUE,G3*SIN(($B3+90)*PI()/180),10) ->  | D20: =IF(E$18=TRUE,F3*COS(($B3+90)*PI()/180),10) ->  | E20: =IF(E$18=TRUE,F3*SIN(($B3+90)*PI()/180),10) ->  | F20: =IF(G$18=TRUE,E3*COS(($B3+90)*PI()/180),10) ->  | G20: =IF(G$18=TRUE,E3*SIN(($B3+90)*PI()/180),10) ->  | H20: =IF(I$18=TRUE,D3*COS(($B3+90)*PI()/180),10) ->  | I20: =IF(I$18=TRUE,D3*SIN(($B3+90)*PI()/180),10) ->  | J20: =IF(K$18=TRUE,C3*COS(($B3+90)*PI()/180),10) ->  | K20: =IF(K$18=TRUE,C3*SIN(($B3+90)*PI()/180),10) -> 
A21: =A4 -> Southeast | B21: =IF(C$18=TRUE,G4*COS(($B4+90)*PI()/180),10) ->  | C21: =IF(C$18=TRUE,G4*SIN(($B4+90)*PI()/180),10) ->  | D21: =IF(E$18=TRUE,F4*COS(($B4+90)*PI()/180),10) ->  | E21: =IF(E$18=TRUE,F4*SIN(($B4+90)*PI()/180),10) ->  | F21: =IF(G$18=TRUE,E4*COS(($B4+90)*PI()/180),10) ->  | G21: =IF(G$18=TRUE,E4*SIN(($B4+90)*PI()/180),10) ->  | H21: =IF(I$18=TRUE,D4*COS(($B4+90)*PI()/180),10) ->  | I21: =IF(I$18=TRUE,D4*SIN(($B4+90)*PI()/180),10) ->  | J21: =IF(K$18=TRUE,C4*COS(($B4+90)*PI()/180),10) ->  | K21: =IF(K$18=TRUE,C4*SIN(($B4+90)*PI()/180),10) -> 
A22: =A5 -> Southwest | B22: =IF(C$18=TRUE,G5*COS(($B5+90)*PI()/180),10) ->  | C22: =IF(C$18=TRUE,G5*SIN(($B5+90)*PI()/180),10) ->  | D22: =IF(E$18=TRUE,F5*COS(($B5+90)*PI()/180),10) ->  | E22: =IF(E$18=TRUE,F5*SIN(($B5+90)*PI()/180),10) ->  | F22: =IF(G$18=TRUE,E5*COS(($B5+90)*PI()/180),10) ->  | G22: =IF(G$18=TRUE,E5*SIN(($B5+90)*PI()/180),10) ->  | H22: =IF(I$18=TRUE,D5*COS(($B5+90)*PI()/180),10) ->  | I22: =IF(I$18=TRUE,D5*SIN(($B5+90)*PI()/180),10) ->  | J22: =IF(K$18=TRUE,C5*COS(($B5+90)*PI()/180),10) ->  | K22: =IF(K$18=TRUE,C5*SIN(($B5+90)*PI()/180),10) -> 
A23: =A6 -> Northwest | B23: =IF(C$18=TRUE,G6*COS(($B6+90)*PI()/180),10) ->  | C23: =IF(C$18=TRUE,G6*SIN(($B6+90)*PI()/180),10) ->  | D23: =IF(E$18=TRUE,F6*COS(($B6+90)*PI()/180),10) ->  | E23: =IF(E$18=TRUE,F6*SIN(($B6+90)*PI()/180),10) ->  | F23: =IF(G$18=TRUE,E6*COS(($B6+90)*PI()/180),10) ->  | G23: =IF(G$18=TRUE,E6*SIN(($B6+90)*PI()/180),10) ->  | H23: =IF(I$18=TRUE,D6*COS(($B6+90)*PI()/180),10) ->  | I23: =IF(I$18=TRUE,D6*SIN(($B6+90)*PI()/180),10) ->  | J23: =IF(K$18=TRUE,C6*COS(($B6+90)*PI()/180),10) ->  | K23: =IF(K$18=TRUE,C6*SIN(($B6+90)*PI()/180),10) -> 
A25: =A8 -> ALTERNATE PLAN
B26: X | C26: Y | D26: X | E26: Y | F26: X | G26: Y | H26: X | I26: Y | J26: X | K26: Y
A27: =A10 -> Northeast | B27: =IF(C$18=TRUE,G10*COS(($B10+90)*PI()/180),10) ->  | C27: =IF(C$18=TRUE,G10*SIN(($B10+90)*PI()/180),10) ->  | D27: =IF(E$18=TRUE,F10*COS(($B10+90)*PI()/180),10) ->  | E27: =IF(E$18=TRUE,F10*SIN(($B10+90)*PI()/180),10) ->  | F27: =IF(G$18=TRUE,E10*COS(($B10+90)*PI()/180),10) ->  | G27: =IF(G$18=TRUE,E10*SIN(($B10+90)*PI()/180),10) ->  | H27: =IF(I$18=TRUE,D10*COS(($B10+90)*PI()/180),10) ->  | I27: =IF(I$18=TRUE,D10*SIN(($B10+90)*PI()/180),10) ->  | J27: =IF(K$18=TRUE,C10*COS(($B10+90)*PI()/180),10) ->  | K27: =IF(K$18=TRUE,C10*SIN(($B10+90)*PI()/180),10) -> 
A28: =A11 -> Southeast | B28: =IF(C$18=TRUE,G11*COS(($B11+90)*PI()/180),10) ->  | C28: =IF(C$18=TRUE,G11*SIN(($B11+90)*PI()/180),10) ->  | D28: =IF(E$18=TRUE,F11*COS(($B11+90)*PI()/180),10) ->  | E28: =IF(E$18=TRUE,F11*SIN(($B11+90)*PI()/180),10) ->  | F28: =IF(G$18=TRUE,E11*COS(($B11+90)*PI()/180),10) ->  | G28: =IF(G$18=TRUE,E11*SIN(($B11+90)*PI()/180),10) ->  | H28: =IF(I$18=TRUE,D11*COS(($B11+90)*PI()/180),10) ->  | I28: =IF(I$18=TRUE,D11*SIN(($B11+90)*PI()/180),10) ->  | J28: =IF(K$18=TRUE,C11*COS(($B11+90)*PI()/180),10) ->  | K28: =IF(K$18=TRUE,C11*SIN(($B11+90)*PI()/180),10) -> 
A29: =A12 -> Southwest | B29: =IF(C$18=TRUE,G12*COS(($B12+90)*PI()/180),10) ->  | C29: =IF(C$18=TRUE,G12*SIN(($B12+90)*PI()/180),10) ->  | D29: =IF(E$18=TRUE,F12*COS(($B12+90)*PI()/180),10) ->  | E29: =IF(E$18=TRUE,F12*SIN(($B12+90)*PI()/180),10) ->  | F29: =IF(G$18=TRUE,E12*COS(($B12+90)*PI()/180),10) ->  | G29: =IF(G$18=TRUE,E12*SIN(($B12+90)*PI()/180),10) ->  | H29: =IF(I$18=TRUE,D12*COS(($B12+90)*PI()/180),10) ->  | I29: =IF(I$18=TRUE,D12*SIN(($B12+90)*PI()/180),10) ->  | J29: =IF(K$18=TRUE,C12*COS(($B12+90)*PI()/180),10) ->  | K29: =IF(K$18=TRUE,C12*SIN(($B12+90)*PI()/180),10) -> 
A30: =A13 -> Northwest | B30: =IF(C$18=TRUE,G13*COS(($B13+90)*PI()/180),10) ->  | C30: =IF(C$18=TRUE,G13*SIN(($B13+90)*PI()/180),10) ->  | D30: =IF(E$18=TRUE,F13*COS(($B13+90)*PI()/180),10) ->  | E30: =IF(E$18=TRUE,F13*SIN(($B13+90)*PI()/180),10) ->  | F30: =IF(G$18=TRUE,E13*COS(($B13+90)*PI()/180),10) ->  | G30: =IF(G$18=TRUE,E13*SIN(($B13+90)*PI()/180),10) ->  | H30: =IF(I$18=TRUE,D13*COS(($B13+90)*PI()/180),10) ->  | I30: =IF(I$18=TRUE,D13*SIN(($B13+90)*PI()/180),10) ->  | J30: =IF(K$18=TRUE,C13*COS(($B13+90)*PI()/180),10) ->  | K30: =IF(K$18=TRUE,C13*SIN(($B13+90)*PI()/180),10) -> 

Sheet Grand Island (hidden)
A1: Grand Island, NE-AERMOD setback distances (North) as reported in the Odor Footprint Tool | O1: Total Scaled Odor Emission Rate (x10^6) | P1: =Inputs!E33 -> 
O2: New Total Scaled Odor Emission Rate (x10^6) | P2: =Inputs!E42 -> 
A3: Setback Distances (m) for Grand Island, North | H3: Setback Distances (mi) for Grand Island, North
A4: x 104 | B4: Annoyance Free Percentage | H4: x 106 | I4: Annoyance Free Percentage | O4: Annoyance free percentage | P4: 99 | Q4: 98 | R4: 96 | S4: 94 | T4: 90
A5: OU/s | B5: 99 | C5: 98 | D5: 96 | E5: 94 | F5: 90 | H5: OU/s | I5: 99 | J5: 98 | K5: 96 | L5: 94 | M5: 90 | O5: Separation distance | P5: =IF(ISERROR(MATCH($P$1,$H$6:$H$24,0)),VLOOKUP($P$1,$H$6:$M$24,MATCH(P4,$I$5:$M$5,0)+1,TRUE)+($P$1-VLOOKUP($P$1,$H$6:$H$24,1,TRUE))*(INDEX($I$6:$M$24,MATCH($P$1,$H$6:$H$24,1)+1,MATCH(P4,$I$5:$M$5,0))-INDEX($I$6:$M$24,MATCH($P$1,$H$6:$H$24,1),MATCH(P4,$I$5:$M$5,0)))/(INDEX($H$6:$H$24,MATCH($P$1,$H$6:$H$24,1)+1)-INDEX($H$6:$H$24,MATCH($P$1,$H$6:$H$24,1))),INDEX($I$6:$M$24,MATCH($P$1,$H$6:$H$24,0),MATCH(P4,$I$5:$M$5,0))) ->  | Q5: =IF(ISERROR(MATCH($P$1,$H$6:$H$24,0)),VLOOKUP($P$1,$H$6:$M$24,MATCH(Q4,$I$5:$M$5,0)+1,TRUE)+($P$1-VLOOKUP($P$1,$H$6:$H$24,1,TRUE))*(INDEX($I$6:$M$24,MATCH($P$1,$H$6:$H$24,1)+1,MATCH(Q4,$I$5:$M$5,0))-INDEX($I$6:$M$24,MATCH($P$1,$H$6:$H$24,1),MATCH(Q4,$I$5:$M$5,0)))/(INDEX($H$6:$H$24,MATCH($P$1,$H$6:$H$24,1)+1)-INDEX($H$6:$H$24,MATCH($P$1,$H$6:$H$24,1))),INDEX($I$6:$M$24,MATCH($P$1,$H$6:$H$24,0),MATCH(Q4,$I$5:$M$5,0))) ->  | R5: =IF(ISERROR(MATCH($P$1,$H$6:$H$24,0)),VLOOKUP($P$1,$H$6:$M$24,MATCH(R4,$I$5:$M$5,0)+1,TRUE)+($P$1-VLOOKUP($P$1,$H$6:$H$24,1,TRUE))*(INDEX($I$6:$M$24,MATCH($P$1,$H$6:$H$24,1)+1,MATCH(R4,$I$5:$M$5,0))-INDEX($I$6:$M$24,MATCH($P$1,$H$6:$H$24,1),MATCH(R4,$I$5:$M$5,0)))/(INDEX($H$6:$H$24,MATCH($P$1,$H$6:$H$24,1)+1)-INDEX($H$6:$H$24,MATCH($P$1,$H$6:$H$24,1))),INDEX($I$6:$M$24,MATCH($P$1,$H$6:$H$24,0),MATCH(R4,$I$5:$M$5,0))) ->  | S5: =IF(ISERROR(MATCH($P$1,$H$6:$H$24,0)),VLOOKUP($P$1,$H$6:$M$24,MATCH(S4,$I$5:$M$5,0)+1,TRUE)+($P$1-VLOOKUP($P$1,$H$6:$H$24,1,TRUE))*(INDEX($I$6:$M$24,MATCH($P$1,$H$6:$H$24,1)+1,MATCH(S4,$I$5:$M$5,0))-INDEX($I$6:$M$24,MATCH($P$1,$H$6:$H$24,1),MATCH(S4,$I$5:$M$5,0)))/(INDEX($H$6:$H$24,MATCH($P$1,$H$6:$H$24,1)+1)-INDEX($H$6:$H$24,MATCH($P$1,$H$6:$H$24,1))),INDEX($I$6:$M$24,MATCH($P$1,$H$6:$H$24,0),MATCH(S4,$I$5:$M$5,0))) ->  | T5: =IF(ISERROR(MATCH($P$1,$H$6:$H$24,0)),VLOOKUP($P$1,$H$6:$M$24,MATCH(T4,$I$5:$M$5,0)+1,TRUE)+($P$1-VLOOKUP($P$1,$H$6:$H$24,1,TRUE))*(INDEX($I$6:$M$24,MATCH($P$1,$H$6:$H$24,1)+1,MATCH(T4,$I$5:$M$5,0))-INDEX($I$6:$M$24,MATCH($P$1,$H$6:$H$24,1),MATCH(T4,$I$5:$M$5,0)))/(INDEX($H$6:$H$24,MATCH($P$1,$H$6:$H$24,1)+1)-INDEX($H$6:$H$24,MATCH($P$1,$H$6:$H$24,1))),INDEX($I$6:$M$24,MATCH($P$1,$H$6:$H$24,0),MATCH(T4,$I$5:$M$5,0))) ->  | U5: IF(ISERROR(MATCH($N$2,H6:H24,0)),VLOOKUP($N$2,H6:M24,MATCH($N$1,I5:M5,0)+1,TRUE)+($N$2-VLOOKUP($N$2,H6:H24,1,TRUE))*(INDEX(I6:M24,MATCH($N$2,H6:H24,1)+1,MATCH($N$1,I5:M5,0))-INDEX(I6:M24,MATCH($N$2,H6:H24,1),MATCH($N$1,I5:M5,0)))/(INDEX(H6:H24,MATCH($N$2,H6:H24,1)+1)-INDEX(H6:H24,MATCH($N$2,H6:H24,1))),INDEX(I6:M24,MATCH($N$2,H6:H24,0),MATCH(Sheet1!$C$28,Sheet2!I5:M5,0)))
A6: 0 | B6: 0 | C6: 0 | D6: 0 | E6: 0 | F6: 0 | H6: =A6/100 -> 0 | I6: 0 | J6: 0 | K6: 0 | L6: 0 | M6: 0 | O6: New Separation distance | P6: =IF(ISERROR(MATCH($P$2,$H$6:$H$24,0)),VLOOKUP($P$2,$H$6:$M$24,MATCH(P4,$I$5:$M$5,0)+1,TRUE)+($P$2-VLOOKUP($P$2,$H$6:$H$24,1,TRUE))*(INDEX($I$6:$M$24,MATCH($P$2,$H$6:$H$24,1)+1,MATCH(P4,$I$5:$M$5,0))-INDEX($I$6:$M$24,MATCH($P$2,$H$6:$H$24,1),MATCH(P4,$I$5:$M$5,0)))/(INDEX($H$6:$H$24,MATCH($P$2,$H$6:$H$24,1)+1)-INDEX($H$6:$H$24,MATCH($P$2,$H$6:$H$24,1))),INDEX($I$6:$M$24,MATCH($P$2,$H$6:$H$24,0),MATCH(P4,$I$5:$M$5,0))) ->  | Q6: =IF(ISERROR(MATCH($P$2,$H$6:$H$24,0)),VLOOKUP($P$2,$H$6:$M$24,MATCH(Q4,$I$5:$M$5,0)+1,TRUE)+($P$2-VLOOKUP($P$2,$H$6:$H$24,1,TRUE))*(INDEX($I$6:$M$24,MATCH($P$2,$H$6:$H$24,1)+1,MATCH(Q4,$I$5:$M$5,0))-INDEX($I$6:$M$24,MATCH($P$2,$H$6:$H$24,1),MATCH(Q4,$I$5:$M$5,0)))/(INDEX($H$6:$H$24,MATCH($P$2,$H$6:$H$24,1)+1)-INDEX($H$6:$H$24,MATCH($P$2,$H$6:$H$24,1))),INDEX($I$6:$M$24,MATCH($P$2,$H$6:$H$24,0),MATCH(Q4,$I$5:$M$5,0))) ->  | R6: =IF(ISERROR(MATCH($P$2,$H$6:$H$24,0)),VLOOKUP($P$2,$H$6:$M$24,MATCH(R4,$I$5:$M$5,0)+1,TRUE)+($P$2-VLOOKUP($P$2,$H$6:$H$24,1,TRUE))*(INDEX($I$6:$M$24,MATCH($P$2,$H$6:$H$24,1)+1,MATCH(R4,$I$5:$M$5,0))-INDEX($I$6:$M$24,MATCH($P$2,$H$6:$H$24,1),MATCH(R4,$I$5:$M$5,0)))/(INDEX($H$6:$H$24,MATCH($P$2,$H$6:$H$24,1)+1)-INDEX($H$6:$H$24,MATCH($P$2,$H$6:$H$24,1))),INDEX($I$6:$M$24,MATCH($P$2,$H$6:$H$24,0),MATCH(R4,$I$5:$M$5,0))) ->  | S6: =IF(ISERROR(MATCH($P$2,$H$6:$H$24,0)),VLOOKUP($P$2,$H$6:$M$24,MATCH(S4,$I$5:$M$5,0)+1,TRUE)+($P$2-VLOOKUP($P$2,$H$6:$H$24,1,TRUE))*(INDEX($I$6:$M$24,MATCH($P$2,$H$6:$H$24,1)+1,MATCH(S4,$I$5:$M$5,0))-INDEX($I$6:$M$24,MATCH($P$2,$H$6:$H$24,1),MATCH(S4,$I$5:$M$5,0)))/(INDEX($H$6:$H$24,MATCH($P$2,$H$6:$H$24,1)+1)-INDEX($H$6:$H$24,MATCH($P$2,$H$6:$H$24,1))),INDEX($I$6:$M$24,MATCH($P$2,$H$6:$H$24,0),MATCH(S4,$I$5:$M$5,0))) ->  | T6: =IF(ISERROR(MATCH($P$2,$H$6:$H$24,0)),VLOOKUP($P$2,$H$6:$M$24,MATCH(T4,$I$5:$M$5,0)+1,TRUE)+($P$2-VLOOKUP($P$2,$H$6:$H$24,1,TRUE))*(INDEX($I$6:$M$24,MATCH($P$2,$H$6:$H$24,1)+1,MATCH(T4,$I$5:$M$5,0))-INDEX($I$6:$M$24,MATCH($P$2,$H$6:$H$24,1),MATCH(T4,$I$5:$M$5,0)))/(INDEX($H$6:$H$24,MATCH($P$2,$H$6:$H$24,1)+1)-INDEX($H$6:$H$24,MATCH($P$2,$H$6:$H$24,1))),INDEX($I$6:$M$24,MATCH($P$2,$H$6:$H$24,0),MATCH(T4,$I$5:$M$5,0))) ->  | U6: IF(ISERROR(MATCH($N$3,H6:H24,0)),VLOOKUP($N$3,H6:M24,MATCH($N$1,I5:M5,0)+1,TRUE)+($N$3-VLOOKUP($N$3,H6:H24,1,TRUE))*(INDEX(I6:M24,MATCH($N$3,H6:H24,1)+1,MATCH($N$1,I5:M5,0))-INDEX(I6:M24,MATCH($N$3,H6:H24,1),MATCH($N$1,I5:M5,0)))/(INDEX(H6:H24,MATCH($N$3,H6:H24,1)+1)-INDEX(H6:H24,MATCH($N$3,H6:H24,1))),INDEX(I6:M24,MATCH($N$3,H6:H24),MATCH(Sheet1!$C$28,Sheet2!I5:M5)))
A7: 20 | B7: 220 | C7: 155 | D7: 120 | E7: 100 | F7: 85 | H7: =A7/100 -> 0.2 | I7: =+B7/1609.347 -> 0.1367014075 | J7: =+C7/1609.347 -> 0.09631235526 | K7: 0.07456440407 | L7: 0.06213700339 | M7: 0.05281645288
A8: 50 | B8: 375 | C8: 260 | D8: 195 | E8: 165 | F8: 135 | H8: 0.5 | I8: 0.2330137627 | J8: 0.1615562088 | K8: 0.1211671566 | L8: 0.1025260556 | M8: 0.08388495458
A9: 100 | B9: 560 | C9: 385 | D9: 285 | E9: 240 | F9: 190 | H9: 1 | I9: 0.347967219 | J9: 0.2392274631 | K9: 0.1770904597 | L9: 0.1491288081 | M9: 0.1180603064
A10: 200 | B10: 845 | C10: 580 | D10: 420 | E10: 355 | F10: 280 | H10: 2 | I10: 0.5250576787 | J10: 0.3603946197 | K10: 0.2609754143 | L10: 0.220586362 | M10: 0.1739836095
A11: 300 | B11: 1075 | C11: 730 | D11: 530 | E11: 440 | F11: 345 | H11: 3 | I11: 0.6679727865 | J11: 0.4536001248 | K11: 0.329326118 | L11: 0.2734028149 | M11: 0.2143726617
A12: 400 | B12: 1265 | C12: 870 | D12: 620 | E12: 510 | F12: 405 | H12: 4 | I12: 0.7860330929 | J12: 0.5405919295 | K12: 0.385249421 | L12: 0.3168987173 | M12: 0.2516548637
A13: 500 | B13: 1455 | C13: 985 | D13: 705 | E13: 585 | F13: 455 | H13: 5 | I13: 0.9040933994 | J13: 0.6120494834 | K13: 0.4380658739 | L13: 0.3635014699 | M13: 0.2827233654
A14: 600 | B14: 1650 | C14: 1110 | D14: 775 | E14: 640 | F14: 495 | H14: 6 | I14: 1.025260556 | J14: 0.6897207377 | K14: 0.4815617763 | L14: 0.3976768217 | M14: 0.3075781668
A15: 700 | B15: 1800 | C15: 1205 | D15: 850 | E15: 700 | F15: 540 | H15: 7 | I15: 1.118466061 | J15: 0.7487508909 | K15: 0.5281645288 | L15: 0.4349590238 | M15: 0.3355398183
A16: 800 | B16: 1965 | C16: 1315 | D16: 920 | E16: 745 | F16: 580 | H16: 8 | I16: 1.220992117 | J16: 0.8171015946 | K16: 0.5716604312 | L16: 0.4629206753 | M16: 0.3603946197
A17: 900 | B17: 2110 | C17: 1390 | D17: 985 | E17: 800 | F17: 615 | H17: 9 | I17: 1.311090772 | J17: 0.8637043472 | K17: 0.6120494834 | L17: 0.4970960271 | M17: 0.3821425709
A18: 1000 | B18: 2260 | C18: 1485 | D18: 1040 | E18: 845 | F18: 660 | H18: 10 | I18: 1.404296277 | J18: 0.9227345004 | K18: 0.6462248353 | L18: 0.5250576787 | M18: 0.4101042224
A19: 1500 | B19: 2855 | C19: 1910 | D19: 1305 | E19: 1050 | F19: 805 | H19: 15 | I19: 1.774011447 | J19: 1.186816765 | K19: 0.8108878943 | L19: 0.6524385356 | M19: 0.5002028773
A20: 2000 | B20: 3425 | C20: 2245 | D20: 1540 | E20: 1225 | F20: 925 | H20: 20 | I20: 2.128192366 | J20: 1.394975726 | K20: 0.9569098523 | L20: 0.7611782916 | M20: 0.5747672814
A21: 2500 | B21: 3940 | C21: 2605 | D21: 1740 | E21: 1385 | F21: 1040 | H21: 25 | I21: 2.448197934 | J21: 1.618668938 | K21: 1.081183859 | L21: 0.860597497 | M21: 0.6462248353
A22: 3000 | B22: 4415 | C22: 2900 | D22: 1910 | E22: 1515 | F22: 1150 | H22: 30 | I22: 2.7433487 | J22: 1.801973098 | K22: 1.186816765 | L22: 0.9413756014 | M22: 0.714575539
A23: 3500 | B23: 4870 | C23: 3195 | D23: 2100 | E23: 1640 | F23: 1230 | H23: 35 | I23: =+B23/1609.347 -> 3.026072065 | J23: 1.985277258 | K23: 1.304877071 | L23: 1.019046856 | M23: 0.7642851417
A24: 4000 | B24: 5250 | C24: 3460 | D24: 2240 | E24: 1760 | F24: 1315 | H24: =A24/100 -> 40 | I24: 3.262192678 | J24: 2.149940317 | K24: 1.391868876 | L24: 1.09361126 | M24: 0.8171015946
A27: Grand Island, NE-AERMOD setback distances (East) as reported in the Odor Footprint Tool
A29: Setback Distances (m) for Grand Island, East | H29: Setback Distances (mi) for Grand Island, East
A30: x 104 | B30: Annoyance Free Percentage | H30: x 106 | I30: Annoyance Free Percentage
A31: OU/s | B31: 99 | C31: 98 | D31: 96 | E31: 94 | F31: 90 | H31: OU/s | I31: 99 | J31: 98 | K31: 96 | L31: 94 | M31: 90 | O31: Separation distance | P31: =IF(ISERROR(MATCH($P$1,$H$32:$H$50,0)),VLOOKUP($P$1,$H$32:$M$50,MATCH(P$4,$I$31:$M$31,0)+1,TRUE)+($P$1-VLOOKUP($P$1,$H$32:$H$50,1,TRUE))*(INDEX($I$32:$M$50,MATCH($P$1,$H$32:$H$50,1)+1,MATCH(P$4,$I$31:$M$31,0))-INDEX($I$32:$M$50,MATCH($P$1,$H$32:$H$50,1),MATCH(P$4,$I$31:$M$31,0)))/(INDEX($H$32:$H$50,MATCH($P$1,$H$32:$H$50,1)+1)-INDEX($H$32:$H$50,MATCH($P$1,$H$32:$H$50,1))),INDEX($I$32:$M$50,MATCH($P$1,$H$32:$H$50,0),MATCH(P4,$I$31:$M$31,0))) ->  | Q31: =IF(ISERROR(MATCH($P$1,$H$32:$H$50,0)),VLOOKUP($P$1,$H$32:$M$50,MATCH(Q$4,$I$31:$M$31,0)+1,TRUE)+($P$1-VLOOKUP($P$1,$H$32:$H$50,1,TRUE))*(INDEX($I$32:$M$50,MATCH($P$1,$H$32:$H$50,1)+1,MATCH(Q$4,$I$31:$M$31,0))-INDEX($I$32:$M$50,MATCH($P$1,$H$32:$H$50,1),MATCH(Q$4,$I$31:$M$31,0)))/(INDEX($H$32:$H$50,MATCH($P$1,$H$32:$H$50,1)+1)-INDEX($H$32:$H$50,MATCH($P$1,$H$32:$H$50,1))),INDEX($I$32:$M$50,MATCH($P$1,$H$32:$H$50,0),MATCH(Q4,$I$31:$M$31,0))) ->  | R31: =IF(ISERROR(MATCH($P$1,$H$32:$H$50,0)),VLOOKUP($P$1,$H$32:$M$50,MATCH(R$4,$I$31:$M$31,0)+1,TRUE)+($P$1-VLOOKUP($P$1,$H$32:$H$50,1,TRUE))*(INDEX($I$32:$M$50,MATCH($P$1,$H$32:$H$50,1)+1,MATCH(R$4,$I$31:$M$31,0))-INDEX($I$32:$M$50,MATCH($P$1,$H$32:$H$50,1),MATCH(R$4,$I$31:$M$31,0)))/(INDEX($H$32:$H$50,MATCH($P$1,$H$32:$H$50,1)+1)-INDEX($H$32:$H$50,MATCH($P$1,$H$32:$H$50,1))),INDEX($I$32:$M$50,MATCH($P$1,$H$32:$H$50,0),MATCH(R4,$I$31:$M$31,0))) ->  | S31: =IF(ISERROR(MATCH($P$1,$H$32:$H$50,0)),VLOOKUP($P$1,$H$32:$M$50,MATCH(S$4,$I$31:$M$31,0)+1,TRUE)+($P$1-VLOOKUP($P$1,$H$32:$H$50,1,TRUE))*(INDEX($I$32:$M$50,MATCH($P$1,$H$32:$H$50,1)+1,MATCH(S$4,$I$31:$M$31,0))-INDEX($I$32:$M$50,MATCH($P$1,$H$32:$H$50,1),MATCH(S$4,$I$31:$M$31,0)))/(INDEX($H$32:$H$50,MATCH($P$1,$H$32:$H$50,1)+1)-INDEX($H$32:$H$50,MATCH($P$1,$H$32:$H$50,1))),INDEX($I$32:$M$50,MATCH($P$1,$H$32:$H$50,0),MATCH(S4,$I$31:$M$31,0))) ->  | T31: =IF(ISERROR(MATCH($P$1,$H$32:$H$50,0)),VLOOKUP($P$1,$H$32:$M$50,MATCH(T$4,$I$31:$M$31,0)+1,TRUE)+($P$1-VLOOKUP($P$1,$H$32:$H$50,1,TRUE))*(INDEX($I$32:$M$50,MATCH($P$1,$H$32:$H$50,1)+1,MATCH(T$4,$I$31:$M$31,0))-INDEX($I$32:$M$50,MATCH($P$1,$H$32:$H$50,1),MATCH(T$4,$I$31:$M$31,0)))/(INDEX($H$32:$H$50,MATCH($P$1,$H$32:$H$50,1)+1)-INDEX($H$32:$H$50,MATCH($P$1,$H$32:$H$50,1))),INDEX($I$32:$M$50,MATCH($P$1,$H$32:$H$50,0),MATCH(T4,$I$31:$M$31,0))) -> 
A32: 0 | B32: 0 | C32: 0 | D32: 0 | E32: 0 | F32: 0 | H32: =A32/100 -> 0 | I32: 0 | J32: 0 | K32: 0 | L32: 0 | M32: 0 | O32: New Separation distance | P32: =IF(ISERROR(MATCH($P$2,$H$32:$H$50,0)),VLOOKUP($P$2,$H$32:$M$50,MATCH(P$4,$I$31:$M$31,0)+1,TRUE)+($P$2-VLOOKUP($P$2,$H$32:$H$50,1,TRUE))*(INDEX($I$32:$M$50,MATCH($P$2,$H$32:$H$50,1)+1,MATCH(P$4,$I$31:$M$31,0))-INDEX($I$32:$M$50,MATCH($P$2,$H$32:$H$50,1),MATCH(P$4,$I$31:$M$31,0)))/(INDEX($H$32:$H$50,MATCH($P$2,$H$32:$H$50,1)+1)-INDEX($H$32:$H$50,MATCH($P$2,$H$32:$H$50,1))),INDEX($I$32:$M$50,MATCH($P$2,$H$32:$H$50,0),MATCH(P4,$I$31:$M$31,0))) ->  | Q32: =IF(ISERROR(MATCH($P$2,$H$32:$H$50,0)),VLOOKUP($P$2,$H$32:$M$50,MATCH(Q$4,$I$31:$M$31,0)+1,TRUE)+($P$2-VLOOKUP($P$2,$H$32:$H$50,1,TRUE))*(INDEX($I$32:$M$50,MATCH($P$2,$H$32:$H$50,1)+1,MATCH(Q$4,$I$31:$M$31,0))-INDEX($I$32:$M$50,MATCH($P$2,$H$32:$H$50,1),MATCH(Q$4,$I$31:$M$31,0)))/(INDEX($H$32:$H$50,MATCH($P$2,$H$32:$H$50,1)+1)-INDEX($H$32:$H$50,MATCH($P$2,$H$32:$H$50,1))),INDEX($I$32:$M$50,MATCH($P$2,$H$32:$H$50,0),MATCH(Q4,$I$31:$M$31,0))) ->  | R32: =IF(ISERROR(MATCH($P$2,$H$32:$H$50,0)),VLOOKUP($P$2,$H$32:$M$50,MATCH(R$4,$I$31:$M$31,0)+1,TRUE)+($P$2-VLOOKUP($P$2,$H$32:$H$50,1,TRUE))*(INDEX($I$32:$M$50,MATCH($P$2,$H$32:$H$50,1)+1,MATCH(R$4,$I$31:$M$31,0))-INDEX($I$32:$M$50,MATCH($P$2,$H$32:$H$50,1),MATCH(R$4,$I$31:$M$31,0)))/(INDEX($H$32:$H$50,MATCH($P$2,$H$32:$H$50,1)+1)-INDEX($H$32:$H$50,MATCH($P$2,$H$32:$H$50,1))),INDEX($I$32:$M$50,MATCH($P$2,$H$32:$H$50,0),MATCH(R4,$I$31:$M$31,0))) ->  | S32: =IF(ISERROR(MATCH($P$2,$H$32:$H$50,0)),VLOOKUP($P$2,$H$32:$M$50,MATCH(S$4,$I$31:$M$31,0)+1,TRUE)+($P$2-VLOOKUP($P$2,$H$32:$H$50,1,TRUE))*(INDEX($I$32:$M$50,MATCH($P$2,$H$32:$H$50,1)+1,MATCH(S$4,$I$31:$M$31,0))-INDEX($I$32:$M$50,MATCH($P$2,$H$32:$H$50,1),MATCH(S$4,$I$31:$M$31,0)))/(INDEX($H$32:$H$50,MATCH($P$2,$H$32:$H$50,1)+1)-INDEX($H$32:$H$50,MATCH($P$2,$H$32:$H$50,1))),INDEX($I$32:$M$50,MATCH($P$2,$H$32:$H$50,0),MATCH(S4,$I$31:$M$31,0))) ->  | T32: =IF(ISERROR(MATCH($P$2,$H$32:$H$50,0)),VLOOKUP($P$2,$H$32:$M$50,MATCH(T$4,$I$31:$M$31,0)+1,TRUE)+($P$2-VLOOKUP($P$2,$H$32:$H$50,1,TRUE))*(INDEX($I$32:$M$50,MATCH($P$2,$H$32:$H$50,1)+1,MATCH(T$4,$I$31:$M$31,0))-INDEX($I$32:$M$50,MATCH($P$2,$H$32:$H$50,1),MATCH(T$4,$I$31:$M$31,0)))/(INDEX($H$32:$H$50,MATCH($P$2,$H$32:$H$50,1)+1)-INDEX($H$32:$H$50,MATCH($P$2,$H$32:$H$50,1))),INDEX($I$32:$M$50,MATCH($P$2,$H$32:$H$50,0),MATCH(T4,$I$31:$M$31,0))) -> 
A33: 20 | B33: 185 | C33: 120 | D33: 80 | E33: 60 | F33: 35 | H33: =A33/100 -> 0.2 | I33: =+B33/1609.347 -> 0.1149534563 | J33: 0.07456440407 | K33: 0.04970960271 | L33: 0.03728220204 | M33: 0.02174795119
A34: 50 | B34: 300 | C34: 190 | D34: 125 | E34: 90 | F34: 50 | H34: 0.5 | I34: 0.1864110102 | J34: 0.1180603064 | K34: 0.07767125424 | L34: 0.05592330305 | M34: 0.0310685017
A35: 100 | B35: 445 | C35: 275 | D35: 175 | E35: 125 | F35: 55 | H35: 1 | I35: 0.2765096651 | J35: 0.1708767593 | K35: 0.1087397559 | L35: 0.07767125424 | M35: 0.03417535187
A36: 200 | B36: 650 | C36: 385 | D36: 240 | E36: 160 | F36: 60 | H36: 2 | I36: 0.4038905221 | J36: 0.2392274631 | K36: 0.1491288081 | L36: 0.09941920543 | M36: 0.03728220204
A37: 300 | B37: 810 | C37: 465 | D37: 285 | E37: 190 | F37: 75 | H37: 3 | I37: 0.5033097275 | J37: 0.2889370658 | K37: 0.1770904597 | L37: 0.1180603064 | M37: 0.04660275254
A38: 400 | B38: 935 | C38: 550 | D38: 325 | E38: 205 | F38: 80 | H38: 4 | I38: 0.5809809817 | J38: 0.3417535187 | K38: 0.201945261 | L38: 0.127380857 | M38: 0.04970960271
A39: 500 | B39: 1060 | C39: 615 | D39: 355 | E39: 220 | F39: 90 | H39: 5 | I39: 0.658652236 | J39: 0.3821425709 | K39: 0.220586362 | L39: 0.1367014075 | M39: 0.05592330305
A40: 600 | B40: 1180 | C40: 670 | D40: 380 | E40: 225 | F40: 95 | H40: 6 | I40: 0.73321664 | J40: 0.4163179227 | K40: 0.2361206129 | L40: 0.1398082576 | M40: 0.05903015322
A41: 700 | B41: 1280 | C41: 720 | D41: 410 | E41: 239 | F41: 105 | H41: 7 | I41: 0.7953536434 | J41: 0.4473864244 | K41: 0.2547617139 | L41: 0.1485074381 | M41: 0.06524385356
A42: 800 | B42: 1385 | C42: 770 | D42: 430 | E42: 245 | F42: 115 | H42: 8 | I42: 0.860597497 | J42: 0.4784549261 | K42: 0.2671891146 | L42: 0.1522356583 | M42: 0.0714575539
A43: 900 | B43: 1470 | C43: 820 | D43: 450 | E43: 255 | F43: 125 | H43: 9 | I43: 0.9134139499 | J43: 0.5095234278 | K43: 0.2796165153 | L43: 0.1584493587 | M43: 0.07767125424
A44: 1000 | B44: 1550 | C44: 870 | D44: 475 | E44: 270 | F44: 130 | H44: 10 | I44: 0.9631235526 | J44: 0.5405919295 | K44: 0.2951507661 | L44: 0.1677699092 | M44: 0.08077810441
A45: 1500 | B45: 1930 | C45: 1055 | D45: 550 | E45: 285 | F45: 140 | H45: 15 | I45: 1.199244165 | J45: 0.6555453858 | K45: 0.3417535187 | L45: 0.1770904597 | M45: 0.08699180475
A46: 2000 | B46: 2250 | C46: 1215 | D46: 615 | E46: 325 | F46: 150 | H46: 20 | I46: 1.398082576 | J46: 0.7549645912 | K46: 0.3821425709 | L46: 0.201945261 | M46: 0.09320550509
A47: 2500 | B47: 2560 | C47: 1345 | D47: 665 | E47: 355 | F47: 160 | H47: 25 | I47: 1.590707287 | J47: 0.8357426956 | K47: 0.4132110726 | L47: 0.220586362 | M47: 0.09941920543
A48: 3000 | B48: 2810 | C48: 1460 | D48: 695 | E48: 360 | F48: 170 | H48: 30 | I48: 1.746049795 | J48: 0.9072002495 | K48: 0.4318521736 | L48: 0.2236932122 | M48: 0.1056329058
A49: 3500 | B49: 3005 | C49: 1580 | D49: 740 | E49: 375 | F49: 180 | H49: 35 | I49: =+B49/1609.347 -> 1.867216952 | J49: 0.9817646536 | K49: 0.4598138251 | L49: 0.2330137627 | M49: 0.1118466061
A50: 4000 | B50: 3185 | C50: 1655 | D50: 775 | E50: 390 | F50: 190 | H50: 40 | I50: 1.979063558 | J50: 1.028367406 | K50: 0.4815617763 | L50: 0.2423343132 | M50: 0.1180603064
A53: Grand Island, NE-AERMOD setback distances (South) as reported in the Odor Footprint Tool
A55: Setback Distances (m) for Grand Island, South | H55: Setback Distances (mi) for Grand Island, South
A56: x 104 | B56: Annoyance Free Percentage | H56: x 106 | I56: Annoyance Free Percentage
A57: OU/s | B57: 99 | C57: 98 | D57: 96 | E57: 94 | F57: 90 | H57: OU/s | I57: 99 | J57: 98 | K57: 96 | L57: 94 | M57: 90 | O57: Separation distance | P57: =IF(ISERROR(MATCH($P$1,$H$58:$H$76,0)),VLOOKUP($P$1,$H$58:$M$76,MATCH(P$4,$I$57:$M$57,0)+1,TRUE)+($P$1-VLOOKUP($P$1,$H$58:$H$76,1,TRUE))*(INDEX($I$58:$M$76,MATCH($P$1,$H$58:$H$76,1)+1,MATCH(P$4,$I$57:$M$57,0))-INDEX($I$58:$M$76,MATCH($P$1,$H$58:$H$76,1),MATCH(P$4,$I$57:$M$57,0)))/(INDEX($H$58:$H$76,MATCH($P$1,$H$58:$H$76,1)+1)-INDEX($H$58:$H$76,MATCH($P$1,$H$58:$H$76,1))),INDEX($I$58:$M$76,MATCH($P$1,$H$58:$H$76,0),MATCH(P$4,$I$57:$M$57,0))) ->  | Q57: =IF(ISERROR(MATCH($P$1,$H$58:$H$76,0)),VLOOKUP($P$1,$H$58:$M$76,MATCH(Q$4,$I$57:$M$57,0)+1,TRUE)+($P$1-VLOOKUP($P$1,$H$58:$H$76,1,TRUE))*(INDEX($I$58:$M$76,MATCH($P$1,$H$58:$H$76,1)+1,MATCH(Q$4,$I$57:$M$57,0))-INDEX($I$58:$M$76,MATCH($P$1,$H$58:$H$76,1),MATCH(Q$4,$I$57:$M$57,0)))/(INDEX($H$58:$H$76,MATCH($P$1,$H$58:$H$76,1)+1)-INDEX($H$58:$H$76,MATCH($P$1,$H$58:$H$76,1))),INDEX($I$58:$M$76,MATCH($P$1,$H$58:$H$76,0),MATCH(Q$4,$I$57:$M$57,0))) ->  | R57: =IF(ISERROR(MATCH($P$1,$H$58:$H$76,0)),VLOOKUP($P$1,$H$58:$M$76,MATCH(R$4,$I$57:$M$57,0)+1,TRUE)+($P$1-VLOOKUP($P$1,$H$58:$H$76,1,TRUE))*(INDEX($I$58:$M$76,MATCH($P$1,$H$58:$H$76,1)+1,MATCH(R$4,$I$57:$M$57,0))-INDEX($I$58:$M$76,MATCH($P$1,$H$58:$H$76,1),MATCH(R$4,$I$57:$M$57,0)))/(INDEX($H$58:$H$76,MATCH($P$1,$H$58:$H$76,1)+1)-INDEX($H$58:$H$76,MATCH($P$1,$H$58:$H$76,1))),INDEX($I$58:$M$76,MATCH($P$1,$H$58:$H$76,0),MATCH(R$4,$I$57:$M$57,0))) ->  | S57: =IF(ISERROR(MATCH($P$1,$H$58:$H$76,0)),VLOOKUP($P$1,$H$58:$M$76,MATCH(S$4,$I$57:$M$57,0)+1,TRUE)+($P$1-VLOOKUP($P$1,$H$58:$H$76,1,TRUE))*(INDEX($I$58:$M$76,MATCH($P$1,$H$58:$H$76,1)+1,MATCH(S$4,$I$57:$M$57,0))-INDEX($I$58:$M$76,MATCH($P$1,$H$58:$H$76,1),MATCH(S$4,$I$57:$M$57,0)))/(INDEX($H$58:$H$76,MATCH($P$1,$H$58:$H$76,1)+1)-INDEX($H$58:$H$76,MATCH($P$1,$H$58:$H$76,1))),INDEX($I$58:$M$76,MATCH($P$1,$H$58:$H$76,0),MATCH(S$4,$I$57:$M$57,0))) ->  | T57: =IF(ISERROR(MATCH($P$1,$H$58:$H$76,0)),VLOOKUP($P$1,$H$58:$M$76,MATCH(T$4,$I$57:$M$57,0)+1,TRUE)+($P$1-VLOOKUP($P$1,$H$58:$H$76,1,TRUE))*(INDEX($I$58:$M$76,MATCH($P$1,$H$58:$H$76,1)+1,MATCH(T$4,$I$57:$M$57,0))-INDEX($I$58:$M$76,MATCH($P$1,$H$58:$H$76,1),MATCH(T$4,$I$57:$M$57,0)))/(INDEX($H$58:$H$76,MATCH($P$1,$H$58:$H$76,1)+1)-INDEX($H$58:$H$76,MATCH($P$1,$H$58:$H$76,1))),INDEX($I$58:$M$76,MATCH($P$1,$H$58:$H$76,0),MATCH(T$4,$I$57:$M$57,0))) -> 
A58: 0 | B58: 0 | C58: 0 | D58: 0 | E58: 0 | F58: 0 | H58: =A58/100 -> 0 | I58: 0 | J58: 0 | K58: 0 | L58: 0 | M58: 0 | O58: New Separation distance | P58: =IF(ISERROR(MATCH($P$2,$H$58:$H$76,0)),VLOOKUP($P$2,$H$58:$M$76,MATCH(P$4,$I$57:$M$57,0)+1,TRUE)+($P$2-VLOOKUP($P$2,$H$58:$H$76,1,TRUE))*(INDEX($I$58:$M$76,MATCH($P$2,$H$58:$H$76,1)+1,MATCH(P$4,$I$57:$M$57,0))-INDEX($I$58:$M$76,MATCH($P$2,$H$58:$H$76,1),MATCH(P$4,$I$57:$M$57,0)))/(INDEX($H$58:$H$76,MATCH($P$2,$H$58:$H$76,1)+1)-INDEX($H$58:$H$76,MATCH($P$2,$H$58:$H$76,1))),INDEX($I$58:$M$76,MATCH($P$2,$H$58:$H$76,0),MATCH(P4,$I$57:$M$57,0))) ->  | Q58: =IF(ISERROR(MATCH($P$2,$H$58:$H$76,0)),VLOOKUP($P$2,$H$58:$M$76,MATCH(Q$4,$I$57:$M$57,0)+1,TRUE)+($P$2-VLOOKUP($P$2,$H$58:$H$76,1,TRUE))*(INDEX($I$58:$M$76,MATCH($P$2,$H$58:$H$76,1)+1,MATCH(Q$4,$I$57:$M$57,0))-INDEX($I$58:$M$76,MATCH($P$2,$H$58:$H$76,1),MATCH(Q$4,$I$57:$M$57,0)))/(INDEX($H$58:$H$76,MATCH($P$2,$H$58:$H$76,1)+1)-INDEX($H$58:$H$76,MATCH($P$2,$H$58:$H$76,1))),INDEX($I$58:$M$76,MATCH($P$2,$H$58:$H$76,0),MATCH(Q4,$I$57:$M$57,0))) ->  | R58: =IF(ISERROR(MATCH($P$2,$H$58:$H$76,0)),VLOOKUP($P$2,$H$58:$M$76,MATCH(R$4,$I$57:$M$57,0)+1,TRUE)+($P$2-VLOOKUP($P$2,$H$58:$H$76,1,TRUE))*(INDEX($I$58:$M$76,MATCH($P$2,$H$58:$H$76,1)+1,MATCH(R$4,$I$57:$M$57,0))-INDEX($I$58:$M$76,MATCH($P$2,$H$58:$H$76,1),MATCH(R$4,$I$57:$M$57,0)))/(INDEX($H$58:$H$76,MATCH($P$2,$H$58:$H$76,1)+1)-INDEX($H$58:$H$76,MATCH($P$2,$H$58:$H$76,1))),INDEX($I$58:$M$76,MATCH($P$2,$H$58:$H$76,0),MATCH(R4,$I$57:$M$57,0))) ->  | S58: =IF(ISERROR(MATCH($P$2,$H$58:$H$76,0)),VLOOKUP($P$2,$H$58:$M$76,MATCH(S$4,$I$57:$M$57,0)+1,TRUE)+($P$2-VLOOKUP($P$2,$H$58:$H$76,1,TRUE))*(INDEX($I$58:$M$76,MATCH($P$2,$H$58:$H$76,1)+1,MATCH(S$4,$I$57:$M$57,0))-INDEX($I$58:$M$76,MATCH($P$2,$H$58:$H$76,1),MATCH(S$4,$I$57:$M$57,0)))/(INDEX($H$58:$H$76,MATCH($P$2,$H$58:$H$76,1)+1)-INDEX($H$58:$H$76,MATCH($P$2,$H$58:$H$76,1))),INDEX($I$58:$M$76,MATCH($P$2,$H$58:$H$76,0),MATCH(S4,$I$57:$M$57,0))) ->  | T58: =IF(ISERROR(MATCH($P$2,$H$58:$H$76,0)),VLOOKUP($P$2,$H$58:$M$76,MATCH(T$4,$I$57:$M$57,0)+1,TRUE)+($P$2-VLOOKUP($P$2,$H$58:$H$76,1,TRUE))*(INDEX($I$58:$M$76,MATCH($P$2,$H$58:$H$76,1)+1,MATCH(T$4,$I$57:$M$57,0))-INDEX($I$58:$M$76,MATCH($P$2,$H$58:$H$76,1),MATCH(T$4,$I$57:$M$57,0)))/(INDEX($H$58:$H$76,MATCH($P$2,$H$58:$H$76,1)+1)-INDEX($H$58:$H$76,MATCH($P$2,$H$58:$H$76,1))),INDEX($I$58:$M$76,MATCH($P$2,$H$58:$H$76,0),MATCH(T4,$I$57:$M$57,0))) -> 
A59: 20 | B59: 170 | C59: 125 | D59: 95 | E59: 80 | F59: 55 | H59: =A59/100 -> 0.2 | I59: =+B59/1609.347 -> 0.1056329058 | J59: 0.07767125424 | K59: 0.05903015322 | L59: 0.04970960271 | M59: 0.03417535187
A60: 50 | B60: 290 | C60: 205 | D60: 155 | E60: 125 | F60: 90 | H60: 0.5 | I60: 0.1801973098 | J60: 0.127380857 | K60: 0.09631235526 | L60: 0.07767125424 | M60: 0.05592330305
A61: 100 | B61: 430 | C61: 300 | D61: 220 | E61: 175 | F61: 115 | H61: 1 | I61: 0.2671891146 | J61: 0.1864110102 | K61: 0.1367014075 | L61: 0.1087397559 | M61: 0.0714575539
A62: 200 | B62: 640 | C62: 435 | D62: 315 | E62: 250 | F62: 160 | H62: 2 | I62: 0.3976768217 | J62: 0.2702959648 | K62: 0.1957315607 | L62: 0.1553425085 | M62: 0.09941920543
A63: 300 | B63: 795 | C63: 540 | D63: 385 | E63: 305 | F63: 185 | H63: 3 | I63: 0.493989177 | J63: 0.3355398183 | K63: 0.2392274631 | L63: 0.1895178603 | M63: 0.1149534563
A64: 400 | B64: 940 | C64: 630 | D64: 445 | E64: 345 | F64: 205 | H64: 4 | I64: 0.5840878319 | J64: 0.3914631214 | K64: 0.2765096651 | L64: 0.2143726617 | M64: 0.127380857
A65: 500 | B65: 1055 | C65: 715 | D65: 500 | E65: 385 | F65: 220 | H65: 5 | I65: 0.6555453858 | J65: 0.4442795743 | K65: 0.310685017 | L65: 0.2392274631 | M65: 0.1367014075
A66: 600 | B66: 1190 | C66: 780 | D66: 555 | E66: 420 | F66: 230 | H66: 6 | I66: 0.7394303404 | J66: 0.4846686265 | K66: 0.3448603688 | L66: 0.2609754143 | M66: 0.1429151078
A67: 700 | B67: 1295 | C67: 850 | D67: 590 | E67: 455 | F67: 245 | H67: 7 | I67: 0.8046741939 | J67: 0.5281645288 | K67: 0.36660832 | L67: 0.2827233654 | M67: 0.1522356583
A68: 800 | B68: 1410 | C68: 910 | D68: 630 | E68: 480 | F68: 250 | H68: 8 | I68: 0.8761317478 | J68: 0.5654467309 | K68: 0.3914631214 | L68: 0.2982576163 | M68: 0.1553425085
A69: 900 | B69: 1505 | C69: 970 | D69: 665 | E69: 500 | F69: 270 | H69: 9 | I69: 0.9351619011 | J69: 0.6027289329 | K69: 0.4132110726 | L69: 0.310685017 | M69: 0.1677699092
A70: 1000 | B70: 1600 | C70: 1030 | D70: 705 | E70: 530 | F70: 285 | H70: 10 | I70: 0.9941920543 | J70: 0.640011135 | K70: 0.4380658739 | L70: 0.329326118 | M70: 0.1770904597
A71: 1500 | B71: 2020 | C71: 1275 | D71: 865 | E71: 630 | F71: 330 | H71: 15 | I71: 1.255167469 | J71: 0.7922467933 | K71: 0.5374850794 | L71: 0.3914631214 | M71: 0.2050521112
A72: 2000 | B72: 2395 | C72: 1485 | D72: 990 | E72: 720 | F72: 340 | H72: 20 | I72: 1.488181231 | J72: 0.9227345004 | K72: 0.6151563336 | L72: 0.4473864244 | M72: 0.2112658115
A73: 2500 | B73: 2725 | C73: 1675 | D73: 1120 | E73: 800 | F73: 365 | H73: 25 | I73: 1.693233342 | J73: 1.040794807 | K73: 0.695934438 | L73: 0.4970960271 | M73: 0.2268000624
A74: 3000 | B74: 3035 | C74: 1830 | D74: 1210 | E74: 840 | F74: 405 | H74: 30 | I74: 1.885858053 | J74: 1.137107162 | K74: 0.7518577411 | L74: 0.5219508285 | M74: 0.2516548637
A75: 3500 | B75: 3325 | C75: 1975 | D75: 1295 | E75: 890 | F75: 415 | H75: 35 | I75: =+B75/1609.347 -> 2.066055363 | J75: 1.227205817 | K75: 0.8046741939 | L75: 0.5530193302 | M75: 0.2578685641
A76: 4000 | B76: 3540 | C76: 2130 | D76: 1385 | E76: 935 | F76: 430 | H76: 40 | I76: 2.19964992 | J76: 1.323518172 | K76: 0.860597497 | L76: 0.5809809817 | M76: 0.2671891146
A79: Grand Island, NE-AERMOD setback distances (West) as reported in the Odor Footprint Tool
A81: Setback Distances (m) for Grand Island, West | H81: Setback Distances (mi) for Grand Island, West
A82: x 104 | B82: Annoyance Free Percentage | H82: x 106 | I82: Annoyance Free Percentage
A83: OU/s | B83: 99 | C83: 98 | D83: 96 | E83: 94 | F83: 90 | H83: OU/s | I83: 99 | J83: 98 | K83: 96 | L83: 94 | M83: 90 | O83: Separation distance | P83: =IF(ISERROR(MATCH($P$1,$H$84:$H$102,0)),VLOOKUP($P$1,$H$84:$M$102,MATCH(P$4,$I$83:$M$83,0)+1,TRUE)+($P$1-VLOOKUP($P$1,$H$84:$H$102,1,TRUE))*(INDEX($I$84:$M$102,MATCH($P$1,$H$84:$H$102,1)+1,MATCH(P$4,$I$83:$M$83,0))-INDEX($I$84:$M$102,MATCH($P$1,$H$84:$H$102,1),MATCH(P$4,$I$83:$M$83,0)))/(INDEX($H$84:$H$102,MATCH($P$1,$H$84:$H$102,1)+1)-INDEX($H$84:$H$102,MATCH($P$1,$H$84:$H$102,1))),INDEX($I$84:$M$102,MATCH($P$1,$H$84:$H$102,0),MATCH(P4,$I$83:$M$83,0))) ->  | Q83: =IF(ISERROR(MATCH($P$1,$H$84:$H$102,0)),VLOOKUP($P$1,$H$84:$M$102,MATCH(Q$4,$I$83:$M$83,0)+1,TRUE)+($P$1-VLOOKUP($P$1,$H$84:$H$102,1,TRUE))*(INDEX($I$84:$M$102,MATCH($P$1,$H$84:$H$102,1)+1,MATCH(Q$4,$I$83:$M$83,0))-INDEX($I$84:$M$102,MATCH($P$1,$H$84:$H$102,1),MATCH(Q$4,$I$83:$M$83,0)))/(INDEX($H$84:$H$102,MATCH($P$1,$H$84:$H$102,1)+1)-INDEX($H$84:$H$102,MATCH($P$1,$H$84:$H$102,1))),INDEX($I$84:$M$102,MATCH($P$1,$H$84:$H$102,0),MATCH(Q4,$I$83:$M$83,0))) ->  | R83: =IF(ISERROR(MATCH($P$1,$H$84:$H$102,0)),VLOOKUP($P$1,$H$84:$M$102,MATCH(R$4,$I$83:$M$83,0)+1,TRUE)+($P$1-VLOOKUP($P$1,$H$84:$H$102,1,TRUE))*(INDEX($I$84:$M$102,MATCH($P$1,$H$84:$H$102,1)+1,MATCH(R$4,$I$83:$M$83,0))-INDEX($I$84:$M$102,MATCH($P$1,$H$84:$H$102,1),MATCH(R$4,$I$83:$M$83,0)))/(INDEX($H$84:$H$102,MATCH($P$1,$H$84:$H$102,1)+1)-INDEX($H$84:$H$102,MATCH($P$1,$H$84:$H$102,1))),INDEX($I$84:$M$102,MATCH($P$1,$H$84:$H$102,0),MATCH(R4,$I$83:$M$83,0))) ->  | S83: =IF(ISERROR(MATCH($P$1,$H$84:$H$102,0)),VLOOKUP($P$1,$H$84:$M$102,MATCH(S$4,$I$83:$M$83,0)+1,TRUE)+($P$1-VLOOKUP($P$1,$H$84:$H$102,1,TRUE))*(INDEX($I$84:$M$102,MATCH($P$1,$H$84:$H$102,1)+1,MATCH(S$4,$I$83:$M$83,0))-INDEX($I$84:$M$102,MATCH($P$1,$H$84:$H$102,1),MATCH(S$4,$I$83:$M$83,0)))/(INDEX($H$84:$H$102,MATCH($P$1,$H$84:$H$102,1)+1)-INDEX($H$84:$H$102,MATCH($P$1,$H$84:$H$102,1))),INDEX($I$84:$M$102,MATCH($P$1,$H$84:$H$102,0),MATCH(S4,$I$83:$M$83,0))) ->  | T83: =IF(ISERROR(MATCH($P$1,$H$84:$H$102,0)),VLOOKUP($P$1,$H$84:$M$102,MATCH(T$4,$I$83:$M$83,0)+1,TRUE)+($P$1-VLOOKUP($P$1,$H$84:$H$102,1,TRUE))*(INDEX($I$84:$M$102,MATCH($P$1,$H$84:$H$102,1)+1,MATCH(T$4,$I$83:$M$83,0))-INDEX($I$84:$M$102,MATCH($P$1,$H$84:$H$102,1),MATCH(T$4,$I$83:$M$83,0)))/(INDEX($H$84:$H$102,MATCH($P$1,$H$84:$H$102,1)+1)-INDEX($H$84:$H$102,MATCH($P$1,$H$84:$H$102,1))),INDEX($I$84:$M$102,MATCH($P$1,$H$84:$H$102,0),MATCH(T4,$I$83:$M$83,0))) -> 
A84: 0 | B84: 0 | C84: 0 | D84: 0 | E84: 0 | F84: 0 | H84: =A84/100 -> 0 | I84: 0 | J84: 0 | K84: 0 | L84: 0 | M84: 0 | O84: New Separation distance | P84: =IF(ISERROR(MATCH($P$2,$H$84:$H$102,0)),VLOOKUP($P$2,$H$84:$M$102,MATCH(P$4,$I$83:$M$83,0)+1,TRUE)+($P$2-VLOOKUP($P$2,$H$84:$H$102,1,TRUE))*(INDEX($I$84:$M$102,MATCH($P$2,$H$84:$H$102,1)+1,MATCH(P$4,$I$83:$M$83,0))-INDEX($I$84:$M$102,MATCH($P$2,$H$84:$H$102,1),MATCH(P$4,$I$83:$M$83,0)))/(INDEX($H$84:$H$102,MATCH($P$2,$H$84:$H$102,1)+1)-INDEX($H$84:$H$102,MATCH($P$2,$H$84:$H$102,1))),INDEX($I$84:$M$102,MATCH($P$2,$H$84:$H$102,0),MATCH(P4,$I$83:$M$83,0))) ->  | Q84: =IF(ISERROR(MATCH($P$2,$H$84:$H$102,0)),VLOOKUP($P$2,$H$84:$M$102,MATCH(Q$4,$I$83:$M$83,0)+1,TRUE)+($P$2-VLOOKUP($P$2,$H$84:$H$102,1,TRUE))*(INDEX($I$84:$M$102,MATCH($P$2,$H$84:$H$102,1)+1,MATCH(Q$4,$I$83:$M$83,0))-INDEX($I$84:$M$102,MATCH($P$2,$H$84:$H$102,1),MATCH(Q$4,$I$83:$M$83,0)))/(INDEX($H$84:$H$102,MATCH($P$2,$H$84:$H$102,1)+1)-INDEX($H$84:$H$102,MATCH($P$2,$H$84:$H$102,1))),INDEX($I$84:$M$102,MATCH($P$2,$H$84:$H$102,0),MATCH(Q4,$I$83:$M$83,0))) ->  | R84: =IF(ISERROR(MATCH($P$2,$H$84:$H$102,0)),VLOOKUP($P$2,$H$84:$M$102,MATCH(R$4,$I$83:$M$83,0)+1,TRUE)+($P$2-VLOOKUP($P$2,$H$84:$H$102,1,TRUE))*(INDEX($I$84:$M$102,MATCH($P$2,$H$84:$H$102,1)+1,MATCH(R$4,$I$83:$M$83,0))-INDEX($I$84:$M$102,MATCH($P$2,$H$84:$H$102,1),MATCH(R$4,$I$83:$M$83,0)))/(INDEX($H$84:$H$102,MATCH($P$2,$H$84:$H$102,1)+1)-INDEX($H$84:$H$102,MATCH($P$2,$H$84:$H$102,1))),INDEX($I$84:$M$102,MATCH($P$2,$H$84:$H$102,0),MATCH(R4,$I$83:$M$83,0))) ->  | S84: =IF(ISERROR(MATCH($P$2,$H$84:$H$102,0)),VLOOKUP($P$2,$H$84:$M$102,MATCH(S$4,$I$83:$M$83,0)+1,TRUE)+($P$2-VLOOKUP($P$2,$H$84:$H$102,1,TRUE))*(INDEX($I$84:$M$102,MATCH($P$2,$H$84:$H$102,1)+1,MATCH(S$4,$I$83:$M$83,0))-INDEX($I$84:$M$102,MATCH($P$2,$H$84:$H$102,1),MATCH(S$4,$I$83:$M$83,0)))/(INDEX($H$84:$H$102,MATCH($P$2,$H$84:$H$102,1)+1)-INDEX($H$84:$H$102,MATCH($P$2,$H$84:$H$102,1))),INDEX($I$84:$M$102,MATCH($P$2,$H$84:$H$102,0),MATCH(S4,$I$83:$M$83,0))) ->  | T84: =IF(ISERROR(MATCH($P$2,$H$84:$H$102,0)),VLOOKUP($P$2,$H$84:$M$102,MATCH(T$4,$I$83:$M$83,0)+1,TRUE)+($P$2-VLOOKUP($P$2,$H$84:$H$102,1,TRUE))*(INDEX($I$84:$M$102,MATCH($P$2,$H$84:$H$102,1)+1,MATCH(T$4,$I$83:$M$83,0))-INDEX($I$84:$M$102,MATCH($P$2,$H$84:$H$102,1),MATCH(T$4,$I$83:$M$83,0)))/(INDEX($H$84:$H$102,MATCH($P$2,$H$84:$H$102,1)+1)-INDEX($H$84:$H$102,MATCH($P$2,$H$84:$H$102,1))),INDEX($I$84:$M$102,MATCH($P$2,$H$84:$H$102,0),MATCH(T4,$I$83:$M$83,0))) -> 
A85: 20 | B85: 175 | C85: 125 | D85: 95 | E85: 80 | F85: 60 | H85: =A85/100 -> 0.2 | I85: =+B85/1609.347 -> 0.1087397559 | J85: 0.07767125424 | K85: 0.05903015322 | L85: 0.04970960271 | M85: 0.03728220204
A86: 50 | B86: 290 | C86: 205 | D86: 150 | E86: 125 | F86: 90 | H86: 0.5 | I86: 0.1801973098 | J86: 0.127380857 | K86: 0.09320550509 | L86: 0.07767125424 | M86: 0.05592330305
A87: 100 | B87: 435 | C87: 305 | D87: 215 | E87: 175 | F87: 130 | H87: 1 | I87: 0.2702959648 | J87: 0.1895178603 | K87: 0.1335945573 | L87: 0.1087397559 | M87: 0.08077810441
A88: 200 | B88: 650 | C88: 450 | D88: 315 | E88: 255 | F88: 165 | H88: 2 | I88: 0.4038905221 | J88: 0.2796165153 | K88: 0.1957315607 | L88: 0.1584493587 | M88: 0.1025260556
A89: 300 | B89: 825 | C89: 555 | D89: 370 | E89: 290 | F89: 200 | H89: 3 | I89: 0.512630278 | J89: 0.3448603688 | K89: 0.2299069126 | L89: 0.1801973098 | M89: 0.1242740068
A90: 400 | B90: 970 | C90: 655 | D90: 440 | E90: 335 | F90: 220 | H90: 4 | I90: 0.6027289329 | J90: 0.4069973722 | K90: 0.2734028149 | L90: 0.2081589614 | M90: 0.1367014075
A91: 500 | B91: 1090 | C91: 735 | D91: 490 | E91: 380 | F91: 240 | H91: 5 | I91: 0.677293337 | J91: 0.4567069749 | K91: 0.3044713166 | L91: 0.2361206129 | M91: 0.1491288081
A92: 600 | B92: 1210 | C92: 810 | D92: 540 | E92: 410 | F92: 255 | H92: 6 | I92: 0.7518577411 | J92: 0.5033097275 | K92: 0.3355398183 | L92: 0.2547617139 | M92: 0.1584493587
A93: 700 | B93: 1310 | C93: 880 | D93: 590 | E93: 440 | F93: 270 | H93: 7 | I93: 0.8139947445 | J93: 0.5468056299 | K93: 0.36660832 | L93: 0.2734028149 | M93: 0.1677699092
A94: 800 | B94: 1400 | C94: 940 | D94: 630 | E94: 465 | F94: 300 | H94: 8 | I94: 0.8699180475 | J94: 0.5840878319 | K94: 0.3914631214 | L94: 0.2889370658 | M94: 0.1864110102
A95: 900 | B95: 1510 | C95: 995 | D95: 665 | E95: 495 | F95: 320 | H95: 9 | I95: 0.9382687512 | J95: 0.6182631838 | K95: 0.4132110726 | L95: 0.3075781668 | M95: 0.1988384109
A96: 1000 | B96: 1595 | C96: 1050 | D96: 710 | E96: 520 | F96: 330 | H96: 10 | I96: 0.9910852041 | J96: 0.6524385356 | K96: 0.4411727241 | L96: 0.3231124176 | M96: 0.2050521112
A97: 1500 | B97: 2015 | C97: 1295 | D97: 845 | E97: 635 | F97: 390 | H97: 15 | I97: 1.252060618 | J97: 0.8046741939 | K97: 0.5250576787 | L97: 0.3945699715 | M97: 0.2423343132
A98: 2000 | B98: 2360 | C98: 1520 | D98: 980 | E98: 725 | F98: 420 | H98: 20 | I98: 1.46643328 | J98: 0.9444824516 | K98: 0.6089426333 | L98: 0.4504932746 | M98: 0.2609754143
A99: 2500 | B99: 2700 | C99: 1725 | D99: 1090 | E99: 790 | F99: 440 | H99: 25 | I99: 1.677699092 | J99: 1.071863309 | K99: 0.677293337 | L99: 0.4908823268 | M99: 0.2734028149
A100: 3000 | B100: 2995 | C100: 1900 | D100: 1230 | E100: 880 | F100: 465 | H100: 30 | I100: 1.861003252 | J100: 1.180603064 | K100: 0.7642851417 | L100: 0.5468056299 | M100: 0.2889370658
A101: 3500 | B101: 3260 | C101: 2080 | D101: 1340 | E101: 950 | F101: 485 | H101: 35 | I101: =+B101/1609.347 -> 2.025666311 | J101: 1.292449671 | K101: 0.8326358455 | L101: 0.5903015322 | M101: 0.3013644665
A102: 4000 | B102: 3570 | C102: 2250 | D102: 1465 | E102: 1020 | F102: 530 | H102: 40 | I102: 2.218291021 | J102: 1.398082576 | K102: 0.9103070997 | L102: 0.6337974346 | M102: 0.329326118

Sheet Ainsworth (hidden)
A1: Ainsworth, NE-AERMOD setback distances (NE) as reported in the Odor Footprint Tool | O1: Total Scaled Odor Emission Rate (x10^6) | P1: =Inputs!E33 -> 
O2: New Total Scaled Odor Emission Rate (x10^6) | P2: =Inputs!E42 -> 
A3: Setback Distances (m) for Ainsworth, NE | H3: Setback Distances (mi) for Ainsworth, NE
A4: x 104 | B4: Annoyance Free Percentage | H4: x 106 | I4: Annoyance Free Percentage | O4: Annoyance free percentage | P4: 99 | Q4: 98 | R4: 96 | S4: 94 | T4: 90
A5: OU/s | B5: 99 | C5: 98 | D5: 96 | E5: 94 | F5: 90 | H5: OU/s | I5: 99 | J5: 98 | K5: 96 | L5: 94 | M5: 90 | O5: Separation distance | P5: =IF(ISERROR(MATCH($P$1,$H$6:$H$23,0)),VLOOKUP($P$1,$H$6:$M$23,MATCH(P4,$I$5:$M$5,0)+1,TRUE)+($P$1-VLOOKUP($P$1,$H$6:$H$23,1,TRUE))*(INDEX($I$6:$M$23,MATCH($P$1,$H$6:$H$23,1)+1,MATCH(P4,$I$5:$M$5,0))-INDEX($I$6:$M$23,MATCH($P$1,$H$6:$H$23,1),MATCH(P4,$I$5:$M$5,0)))/(INDEX($H$6:$H$23,MATCH($P$1,$H$6:$H$23,1)+1)-INDEX($H$6:$H$23,MATCH($P$1,$H$6:$H$23,1))),INDEX($I$6:$M$23,MATCH($P$1,$H$6:$H$23,0),MATCH(P4,$I$5:$M$5,0))) ->  | Q5: =IF(ISERROR(MATCH($P$1,$H$6:$H$23,0)),VLOOKUP($P$1,$H$6:$M$23,MATCH(Q4,$I$5:$M$5,0)+1,TRUE)+($P$1-VLOOKUP($P$1,$H$6:$H$23,1,TRUE))*(INDEX($I$6:$M$23,MATCH($P$1,$H$6:$H$23,1)+1,MATCH(Q4,$I$5:$M$5,0))-INDEX($I$6:$M$23,MATCH($P$1,$H$6:$H$23,1),MATCH(Q4,$I$5:$M$5,0)))/(INDEX($H$6:$H$23,MATCH($P$1,$H$6:$H$23,1)+1)-INDEX($H$6:$H$23,MATCH($P$1,$H$6:$H$23,1))),INDEX($I$6:$M$23,MATCH($P$1,$H$6:$H$23,0),MATCH(Q4,$I$5:$M$5,0))) ->  | R5: =IF(ISERROR(MATCH($P$1,$H$6:$H$23,0)),VLOOKUP($P$1,$H$6:$M$23,MATCH(R4,$I$5:$M$5,0)+1,TRUE)+($P$1-VLOOKUP($P$1,$H$6:$H$23,1,TRUE))*(INDEX($I$6:$M$23,MATCH($P$1,$H$6:$H$23,1)+1,MATCH(R4,$I$5:$M$5,0))-INDEX($I$6:$M$23,MATCH($P$1,$H$6:$H$23,1),MATCH(R4,$I$5:$M$5,0)))/(INDEX($H$6:$H$23,MATCH($P$1,$H$6:$H$23,1)+1)-INDEX($H$6:$H$23,MATCH($P$1,$H$6:$H$23,1))),INDEX($I$6:$M$23,MATCH($P$1,$H$6:$H$23,0),MATCH(R4,$I$5:$M$5,0))) ->  | S5: =IF(ISERROR(MATCH($P$1,$H$6:$H$23,0)),VLOOKUP($P$1,$H$6:$M$23,MATCH(S4,$I$5:$M$5,0)+1,TRUE)+($P$1-VLOOKUP($P$1,$H$6:$H$23,1,TRUE))*(INDEX($I$6:$M$23,MATCH($P$1,$H$6:$H$23,1)+1,MATCH(S4,$I$5:$M$5,0))-INDEX($I$6:$M$23,MATCH($P$1,$H$6:$H$23,1),MATCH(S4,$I$5:$M$5,0)))/(INDEX($H$6:$H$23,MATCH($P$1,$H$6:$H$23,1)+1)-INDEX($H$6:$H$23,MATCH($P$1,$H$6:$H$23,1))),INDEX($I$6:$M$23,MATCH($P$1,$H$6:$H$23,0),MATCH(S4,$I$5:$M$5,0))) ->  | T5: =IF(ISERROR(MATCH($P$1,$H$6:$H$23,0)),VLOOKUP($P$1,$H$6:$M$23,MATCH(T4,$I$5:$M$5,0)+1,TRUE)+($P$1-VLOOKUP($P$1,$H$6:$H$23,1,TRUE))*(INDEX($I$6:$M$23,MATCH($P$1,$H$6:$H$23,1)+1,MATCH(T4,$I$5:$M$5,0))-INDEX($I$6:$M$23,MATCH($P$1,$H$6:$H$23,1),MATCH(T4,$I$5:$M$5,0)))/(INDEX($H$6:$H$23,MATCH($P$1,$H$6:$H$23,1)+1)-INDEX($H$6:$H$23,MATCH($P$1,$H$6:$H$23,1))),INDEX($I$6:$M$23,MATCH($P$1,$H$6:$H$23,0),MATCH(T4,$I$5:$M$5,0))) -> 
A6: 0 | B6: 0 | C6: 0 | D6: 0 | E6: 0 | F6: 0 | H6: =A6/100 -> 0 | I6: 0 | J6: 0 | K6: 0 | L6: 0 | M6: 0 | O6: New Separation distance | P6: =IF(ISERROR(MATCH($P$2,$H$6:$H$23,0)),VLOOKUP($P$2,$H$6:$M$23,MATCH(P4,$I$5:$M$5,0)+1,TRUE)+($P$2-VLOOKUP($P$2,$H$6:$H$23,1,TRUE))*(INDEX($I$6:$M$23,MATCH($P$2,$H$6:$H$23,1)+1,MATCH(P4,$I$5:$M$5,0))-INDEX($I$6:$M$23,MATCH($P$2,$H$6:$H$23,1),MATCH(P4,$I$5:$M$5,0)))/(INDEX($H$6:$H$23,MATCH($P$2,$H$6:$H$23,1)+1)-INDEX($H$6:$H$23,MATCH($P$2,$H$6:$H$23,1))),INDEX($I$6:$M$23,MATCH($P$2,$H$6:$H$23,0),MATCH(P4,$I$5:$M$5,0))) ->  | Q6: =IF(ISERROR(MATCH($P$2,$H$6:$H$23,0)),VLOOKUP($P$2,$H$6:$M$23,MATCH(Q4,$I$5:$M$5,0)+1,TRUE)+($P$2-VLOOKUP($P$2,$H$6:$H$23,1,TRUE))*(INDEX($I$6:$M$23,MATCH($P$2,$H$6:$H$23,1)+1,MATCH(Q4,$I$5:$M$5,0))-INDEX($I$6:$M$23,MATCH($P$2,$H$6:$H$23,1),MATCH(Q4,$I$5:$M$5,0)))/(INDEX($H$6:$H$23,MATCH($P$2,$H$6:$H$23,1)+1)-INDEX($H$6:$H$23,MATCH($P$2,$H$6:$H$23,1))),INDEX($I$6:$M$23,MATCH($P$2,$H$6:$H$23,0),MATCH(Q4,$I$5:$M$5,0))) ->  | R6: =IF(ISERROR(MATCH($P$2,$H$6:$H$23,0)),VLOOKUP($P$2,$H$6:$M$23,MATCH(R4,$I$5:$M$5,0)+1,TRUE)+($P$2-VLOOKUP($P$2,$H$6:$H$23,1,TRUE))*(INDEX($I$6:$M$23,MATCH($P$2,$H$6:$H$23,1)+1,MATCH(R4,$I$5:$M$5,0))-INDEX($I$6:$M$23,MATCH($P$2,$H$6:$H$23,1),MATCH(R4,$I$5:$M$5,0)))/(INDEX($H$6:$H$23,MATCH($P$2,$H$6:$H$23,1)+1)-INDEX($H$6:$H$23,MATCH($P$2,$H$6:$H$23,1))),INDEX($I$6:$M$23,MATCH($P$2,$H$6:$H$23,0),MATCH(R4,$I$5:$M$5,0))) ->  | S6: =IF(ISERROR(MATCH($P$2,$H$6:$H$23,0)),VLOOKUP($P$2,$H$6:$M$23,MATCH(S4,$I$5:$M$5,0)+1,TRUE)+($P$2-VLOOKUP($P$2,$H$6:$H$23,1,TRUE))*(INDEX($I$6:$M$23,MATCH($P$2,$H$6:$H$23,1)+1,MATCH(S4,$I$5:$M$5,0))-INDEX($I$6:$M$23,MATCH($P$2,$H$6:$H$23,1),MATCH(S4,$I$5:$M$5,0)))/(INDEX($H$6:$H$23,MATCH($P$2,$H$6:$H$23,1)+1)-INDEX($H$6:$H$23,MATCH($P$2,$H$6:$H$23,1))),INDEX($I$6:$M$23,MATCH($P$2,$H$6:$H$23,0),MATCH(S4,$I$5:$M$5,0))) ->  | T6: =IF(ISERROR(MATCH($P$2,$H$6:$H$23,0)),VLOOKUP($P$2,$H$6:$M$23,MATCH(T4,$I$5:$M$5,0)+1,TRUE)+($P$2-VLOOKUP($P$2,$H$6:$H$23,1,TRUE))*(INDEX($I$6:$M$23,MATCH($P$2,$H$6:$H$23,1)+1,MATCH(T4,$I$5:$M$5,0))-INDEX($I$6:$M$23,MATCH($P$2,$H$6:$H$23,1),MATCH(T4,$I$5:$M$5,0)))/(INDEX($H$6:$H$23,MATCH($P$2,$H$6:$H$23,1)+1)-INDEX($H$6:$H$23,MATCH($P$2,$H$6:$H$23,1))),INDEX($I$6:$M$23,MATCH($P$2,$H$6:$H$23,0),MATCH(T4,$I$5:$M$5,0))) -> 
A7: 50 | B7: 907.8 | C7: 514 | D7: 287.1 | E7: 202.8 | F7: 135.6 | H7: =A7/100 -> 0.5 | I7: =+B7/1609.347 -> 0.5640797168 | J7: =+C7/1609.347 -> 0.3193841974 | K7: =+D7/1609.347 -> 0.1783953367 | L7: =+E7/1609.347 -> 0.1260138429 | M7: =+F7/1609.347 -> 0.0842577766
A8: 100 | B8: 1351.8 | C8: 761.6 | D8: 413 | E8: 289 | F8: 191.4 | H8: 1 | I8: =+B8/1609.347 -> 0.8399680119 | J8: =+C8/1609.347 -> 0.4732354178 | K8: =+D8/1609.347 -> 0.256625824 | L8: =+E8/1609.347 -> 0.1795759398 | M8: =+F8/1609.347 -> 0.1189302245
A9: 200 | B9: 1978.2 | C9: 1118.2 | D9: 592.5 | E9: 403.2 | F9: 266.2 | H9: 2 | I9: =+B9/1609.347 -> 1.229194201 | J9: 0.6948159719 | K9: 0.3681617451 | L9: 0.2505363977 | M9: 0.165408703
A10: 300 | B10: 2497.1 | C10: 1401.3 | D10: 727.7 | E10: 488.4 | F10: 315 | H10: 3 | I10: 1.551623112 | J10: 0.8707258286 | K10: 0.4521709737 | L10: 0.3034771246 | M10: 0.1957315607
A11: 400 | B11: 2977.7 | C11: 1626 | D11: 841.7 | E11: 567.3 | F11: 362.8 | H11: 4 | I11: 1.85025355 | J11: 1.010347675 | K11: 0.5230071576 | L11: 0.3525032203 | M11: 0.2254330483
A12: 500 | B12: 3356.9 | C12: 1878.6 | D12: 932.9 | E12: 622.3 | F12: 397.1 | H12: 5 | I12: 2.085877067 | J12: 1.167305746 | K12: 0.5796761047 | L12: 0.3866785721 | M12: 0.2467460405
A13: 600 | B13: 3732.8 | C13: 2040.8 | D13: 1032.4 | E13: 681.2 | F13: 436 | H13: 6 | I13: 2.319450063 | J13: 1.268091965 | K13: 0.641502423 | L13: 0.4232772671 | M13: 0.2709173348
A14: 700 | B14: 4045.3 | C14: 2229.6 | D14: 1115.7 | E14: 733.5 | F14: 458.5 | H14: 7 | I14: 2.513628198 | J14: 1.385406628 | K14: 0.6932625469 | L14: 0.4557749199 | M14: 0.2848981606
A15: 800 | B15: 4340.7 | C15: 2392.2 | D15: 1190 | E15: 783.5 | F15: 488.9 | H15: 8 | I15: 2.697180906 | J15: 1.486441395 | K15: 0.7394303404 | L15: 0.4868434216 | M15: 0.3037878096
A16: 900 | B16: 4616.6 | C16: 2543.1 | D16: 1249.1 | E16: 831.2 | F16: 508.9 | H16: 9 | I16: 2.868616899 | J16: 1.580206133 | K16: 0.7761533094 | L16: 0.5164827722 | M16: 0.3162152103
A17: 1000 | B17: 4860.7 | C17: 2687.3 | D17: 1324.5 | E17: 870.3 | F17: 539.3 | H17: 10 | I17: 3.020293324 | J17: 1.669807692 | K17: 0.8230046099 | L17: 0.5407783405 | M17: 0.3351048593
A18: 1500 | B18: 6076.5 | C18: 3363.1 | D18: 1615.8 | E18: 1037.5 | F18: 607.2 | H18: 15 | I18: 3.775755011 | J18: 2.089729561 | K18: 1.004009701 | L18: 0.6446714102 | M18: 0.3772958846
A19: 2000 | B19: 7200 | C19: 3943.6 | D19: 1847.9 | E19: 1199.3 | F19: 708.8 | H19: 20 | I19: 4.473864244 | J19: 2.450434866 | K19: 1.148229686 | L19: 0.7452090817 | M19: 0.4404270801
A20: 2500 | B20: 8220.6 | C20: 4411.8 | D20: 2046 | E20: 1275.5 | F20: 754.1 | H20: 25 | I20: 5.108034501 | J20: 2.741360316 | K20: 1.271323089 | L20: 0.7925574783 | M20: 0.4685751426
A21: 3000 | B21: 9100 | C21: 4851.3 | D21: 2265.5 | E21: 1392.1 | F21: 808.9 | H21: 30 | I21: 5.654467309 | J21: 3.014452446 | K21: 1.407713812 | L21: 0.8650092242 | M21: 0.5026262204
A22: 3500 | B22: 9800 | C22: 5234.3 | D22: 2457.3 | E22: 1490.1 | F22: 845.3 | H22: 35 | I22: 6.089426333 | J22: 3.252437169 | K22: 1.526892584 | L22: 0.9259034876 | M22: 0.5252440897
A23: 4000 | B23: 10633.4 | C23: 5580.7 | D23: 2555 | E23: 1621.3 | F23: 857.7 | H23: 40 | I23: =+B23/1609.347 -> 6.607276119 | J23: 3.467679748 | K23: 1.587600437 | L23: 1.007427236 | M23: 0.5329490781
A26: Ainsworth, NE-AERMOD setback distances (SE) as reported in the Odor Footprint Tool
A28: Setback Distances (m) for Ainsworth, SE | H28: Setback Distances (mi) for Ainsworth, SE
A29: x 104 | B29: Annoyance Free Percentage | H29: x 106 | I29: Annoyance Free Percentage
A30: OU/s | B30: 99 | C30: 98 | D30: 96 | E30: 94 | F30: 90 | H30: OU/s | I30: 99 | J30: 98 | K30: 96 | L30: 94 | M30: 90 | O30: Separation distance | P30: =IF(ISERROR(MATCH($P$1,$H$31:$H$48,0)),VLOOKUP($P$1,$H$31:$M$48,MATCH(P$4,$I$30:$M$30,0)+1,TRUE)+($P$1-VLOOKUP($P$1,$H$31:$H$48,1,TRUE))*(INDEX($I$31:$M$48,MATCH($P$1,$H$31:$H$48,1)+1,MATCH(P$4,$I$30:$M$30,0))-INDEX($I$31:$M$48,MATCH($P$1,$H$31:$H$48,1),MATCH(P$4,$I$30:$M$30,0)))/(INDEX($H$31:$H$48,MATCH($P$1,$H$31:$H$48,1)+1)-INDEX($H$31:$H$48,MATCH($P$1,$H$31:$H$48,1))),INDEX($I$31:$M$48,MATCH($P$1,$H$31:$H$48,0),MATCH(P4,$I$30:$M$30,0))) ->  | Q30: =IF(ISERROR(MATCH($P$1,$H$31:$H$48,0)),VLOOKUP($P$1,$H$31:$M$48,MATCH(Q$4,$I$30:$M$30,0)+1,TRUE)+($P$1-VLOOKUP($P$1,$H$31:$H$48,1,TRUE))*(INDEX($I$31:$M$48,MATCH($P$1,$H$31:$H$48,1)+1,MATCH(Q$4,$I$30:$M$30,0))-INDEX($I$31:$M$48,MATCH($P$1,$H$31:$H$48,1),MATCH(Q$4,$I$30:$M$30,0)))/(INDEX($H$31:$H$48,MATCH($P$1,$H$31:$H$48,1)+1)-INDEX($H$31:$H$48,MATCH($P$1,$H$31:$H$48,1))),INDEX($I$31:$M$48,MATCH($P$1,$H$31:$H$48,0),MATCH(Q4,$I$30:$M$30,0))) ->  | R30: =IF(ISERROR(MATCH($P$1,$H$31:$H$48,0)),VLOOKUP($P$1,$H$31:$M$48,MATCH(R$4,$I$30:$M$30,0)+1,TRUE)+($P$1-VLOOKUP($P$1,$H$31:$H$48,1,TRUE))*(INDEX($I$31:$M$48,MATCH($P$1,$H$31:$H$48,1)+1,MATCH(R$4,$I$30:$M$30,0))-INDEX($I$31:$M$48,MATCH($P$1,$H$31:$H$48,1),MATCH(R$4,$I$30:$M$30,0)))/(INDEX($H$31:$H$48,MATCH($P$1,$H$31:$H$48,1)+1)-INDEX($H$31:$H$48,MATCH($P$1,$H$31:$H$48,1))),INDEX($I$31:$M$48,MATCH($P$1,$H$31:$H$48,0),MATCH(R4,$I$30:$M$30,0))) ->  | S30: =IF(ISERROR(MATCH($P$1,$H$31:$H$48,0)),VLOOKUP($P$1,$H$31:$M$48,MATCH(S$4,$I$30:$M$30,0)+1,TRUE)+($P$1-VLOOKUP($P$1,$H$31:$H$48,1,TRUE))*(INDEX($I$31:$M$48,MATCH($P$1,$H$31:$H$48,1)+1,MATCH(S$4,$I$30:$M$30,0))-INDEX($I$31:$M$48,MATCH($P$1,$H$31:$H$48,1),MATCH(S$4,$I$30:$M$30,0)))/(INDEX($H$31:$H$48,MATCH($P$1,$H$31:$H$48,1)+1)-INDEX($H$31:$H$48,MATCH($P$1,$H$31:$H$48,1))),INDEX($I$31:$M$48,MATCH($P$1,$H$31:$H$48,0),MATCH(S4,$I$30:$M$30,0))) ->  | T30: =IF(ISERROR(MATCH($P$1,$H$31:$H$48,0)),VLOOKUP($P$1,$H$31:$M$48,MATCH(T$4,$I$30:$M$30,0)+1,TRUE)+($P$1-VLOOKUP($P$1,$H$31:$H$48,1,TRUE))*(INDEX($I$31:$M$48,MATCH($P$1,$H$31:$H$48,1)+1,MATCH(T$4,$I$30:$M$30,0))-INDEX($I$31:$M$48,MATCH($P$1,$H$31:$H$48,1),MATCH(T$4,$I$30:$M$30,0)))/(INDEX($H$31:$H$48,MATCH($P$1,$H$31:$H$48,1)+1)-INDEX($H$31:$H$48,MATCH($P$1,$H$31:$H$48,1))),INDEX($I$31:$M$48,MATCH($P$1,$H$31:$H$48,0),MATCH(T4,$I$30:$M$30,0))) -> 
A31: 0 | B31: 0 | C31: 0 | D31: 0 | E31: 0 | F31: 0 | H31: =A31/100 -> 0 | I31: 0 | J31: 0 | K31: 0 | L31: 0 | M31: 0 | O31: New Separation distance | P31: =IF(ISERROR(MATCH($P$2,$H$31:$H$48,0)),VLOOKUP($P$2,$H$31:$M$48,MATCH(P$4,$I$30:$M$30,0)+1,TRUE)+($P$2-VLOOKUP($P$2,$H$31:$H$48,1,TRUE))*(INDEX($I$31:$M$48,MATCH($P$2,$H$31:$H$48,1)+1,MATCH(P$4,$I$30:$M$30,0))-INDEX($I$31:$M$48,MATCH($P$2,$H$31:$H$48,1),MATCH(P$4,$I$30:$M$30,0)))/(INDEX($H$31:$H$48,MATCH($P$2,$H$31:$H$48,1)+1)-INDEX($H$31:$H$48,MATCH($P$2,$H$31:$H$48,1))),INDEX($I$31:$M$48,MATCH($P$2,$H$31:$H$48,0),MATCH(P4,$I$30:$M$30,0))) ->  | Q31: =IF(ISERROR(MATCH($P$2,$H$31:$H$48,0)),VLOOKUP($P$2,$H$31:$M$48,MATCH(Q$4,$I$30:$M$30,0)+1,TRUE)+($P$2-VLOOKUP($P$2,$H$31:$H$48,1,TRUE))*(INDEX($I$31:$M$48,MATCH($P$2,$H$31:$H$48,1)+1,MATCH(Q$4,$I$30:$M$30,0))-INDEX($I$31:$M$48,MATCH($P$2,$H$31:$H$48,1),MATCH(Q$4,$I$30:$M$30,0)))/(INDEX($H$31:$H$48,MATCH($P$2,$H$31:$H$48,1)+1)-INDEX($H$31:$H$48,MATCH($P$2,$H$31:$H$48,1))),INDEX($I$31:$M$48,MATCH($P$2,$H$31:$H$48,0),MATCH(Q4,$I$30:$M$30,0))) ->  | R31: =IF(ISERROR(MATCH($P$2,$H$31:$H$48,0)),VLOOKUP($P$2,$H$31:$M$48,MATCH(R$4,$I$30:$M$30,0)+1,TRUE)+($P$2-VLOOKUP($P$2,$H$31:$H$48,1,TRUE))*(INDEX($I$31:$M$48,MATCH($P$2,$H$31:$H$48,1)+1,MATCH(R$4,$I$30:$M$30,0))-INDEX($I$31:$M$48,MATCH($P$2,$H$31:$H$48,1),MATCH(R$4,$I$30:$M$30,0)))/(INDEX($H$31:$H$48,MATCH($P$2,$H$31:$H$48,1)+1)-INDEX($H$31:$H$48,MATCH($P$2,$H$31:$H$48,1))),INDEX($I$31:$M$48,MATCH($P$2,$H$31:$H$48,0),MATCH(R4,$I$30:$M$30,0))) ->  | S31: =IF(ISERROR(MATCH($P$2,$H$31:$H$48,0)),VLOOKUP($P$2,$H$31:$M$48,MATCH(S$4,$I$30:$M$30,0)+1,TRUE)+($P$2-VLOOKUP($P$2,$H$31:$H$48,1,TRUE))*(INDEX($I$31:$M$48,MATCH($P$2,$H$31:$H$48,1)+1,MATCH(S$4,$I$30:$M$30,0))-INDEX($I$31:$M$48,MATCH($P$2,$H$31:$H$48,1),MATCH(S$4,$I$30:$M$30,0)))/(INDEX($H$31:$H$48,MATCH($P$2,$H$31:$H$48,1)+1)-INDEX($H$31:$H$48,MATCH($P$2,$H$31:$H$48,1))),INDEX($I$31:$M$48,MATCH($P$2,$H$31:$H$48,0),MATCH(S4,$I$30:$M$30,0))) ->  | T31: =IF(ISERROR(MATCH($P$2,$H$31:$H$48,0)),VLOOKUP($P$2,$H$31:$M$48,MATCH(T$4,$I$30:$M$30,0)+1,TRUE)+($P$2-VLOOKUP($P$2,$H$31:$H$48,1,TRUE))*(INDEX($I$31:$M$48,MATCH($P$2,$H$31:$H$48,1)+1,MATCH(T$4,$I$30:$M$30,0))-INDEX($I$31:$M$48,MATCH($P$2,$H$31:$H$48,1),MATCH(T$4,$I$30:$M$30,0)))/(INDEX($H$31:$H$48,MATCH($P$2,$H$31:$H$48,1)+1)-INDEX($H$31:$H$48,MATCH($P$2,$H$31:$H$48,1))),INDEX($I$31:$M$48,MATCH($P$2,$H$31:$H$48,0),MATCH(T4,$I$30:$M$30,0))) -> 
A32: 50 | B32: 551.6 | C32: 321.5 | D32: 184.4 | E32: 150.6 | F32: 114.4 | H32: =A32/100 -> 0.5 | I32: =+B32/1609.347 -> 0.3427477107 | J32: =+C32/1609.347 -> 0.1997704659 | K32: =+D32/1609.347 -> 0.1145806343 | L32: =+E32/1609.347 -> 0.09357832711 | M32: =+F32/1609.347 -> 0.07108473188
A33: 100 | B33: 829.7 | C33: 476.1 | D33: 263.4 | E33: 215.1 | F33: 160.1 | H33: 1 | I33: 0.5155507172 | J33: 0.2958342732 | K33: 0.1636688669 | L33: 0.1336566943 | M33: 0.09948134243
A34: 200 | B34: 1237.5 | C34: 688.4 | D34: 376.9 | E34: 306 | F34: 216.9 | H34: 2 | I34: 0.768945417 | J34: 0.4277511314 | K34: 0.2341943658 | L34: 0.1901392304 | M34: 0.1347751604
A35: 300 | B35: 1570.5 | C35: 856.6 | D35: 460.8 | E35: 374.7 | F35: 256.7 | H35: 3 | I35: 0.9758616383 | J35: 0.5322655711 | K35: 0.2863273116 | L35: 0.2328273517 | M35: 0.1595056877
A36: 400 | B36: 1839.2 | C36: 995.2 | D36: 531 | E36: 431.1 | F36: 286.5 | H36: 4 | I36: 1.142823766 | J36: 0.6183874578 | K36: 0.329947488 | L36: 0.2678726216 | M36: 0.1780225147
A37: 500 | B37: 2066.4 | C37: 1122.4 | D37: 594.5 | E37: 480.6 | F37: 310.9 | H37: 5 | I37: 1.283999038 | J37: 0.6974257261 | K37: 0.3694044852 | L37: 0.2986304383 | M37: 0.1931839435
A38: 600 | B38: 2304.1 | C38: 1241.4 | D38: 648.4 | E38: 523.3 | F38: 335.6 | H38: 6 | I38: 1.431698695 | J38: 0.7713687601 | K38: 0.40289633 | L38: 0.3251629388 | M38: 0.2085317834
A39: 700 | B39: 2514.6 | C39: 1343.1 | D39: 698.8 | E39: 566.7 | F39: 355.8 | H39: 7 | I39: 1.562497087 | J39: 0.8345620926 | K39: 0.4342133797 | L39: 0.3521303982 | M39: 0.2210834581
A40: 800 | B40: 2722.3 | C40: 1445.6 | D40: 746.5 | E40: 602.4 | F40: 374.2 | H40: 8 | I40: 1.691555643 | J40: 0.8982525211 | K40: 0.4638527303 | L40: 0.3743133084 | M40: 0.2325166667
A41: 900 | B41: 2950 | C41: 1535.2 | D41: 788.5 | E41: 633 | F41: 390.4 | H41: 9 | I41: 1.8330416 | J41: 0.9539272761 | K41: 0.4899502718 | L41: 0.3933272315 | M41: 0.2425828612
A42: 1000 | B42: 3132.6 | C42: 1617.8 | D42: 832.3 | E42: 668.1 | F42: 405.3 | H42: 10 | I42: 1.946503768 | J42: 1.005252441 | K42: 0.5171662792 | L42: 0.4151373197 | M42: 0.2518412748
A43: 1500 | B43: 3813.7 | C43: 1985.7 | D43: 1013.4 | E43: 806.5 | F43: 469.1 | H43: 15 | I43: 2.369718898 | J43: 1.233854476 | K43: 0.6296963924 | L43: 0.5011349324 | M43: 0.2914846829
A44: 2000 | B44: 4530.2 | C44: 2274.7 | D44: 1164 | E44: 924.6 | F44: 517.8 | H44: 20 | I44: 2.814930528 | J44: 1.413430416 | K44: 0.7232747195 | L44: 0.5745187334 | M44: 0.3217454036
A45: 2500 | B45: 5156.1 | C45: 2524.2 | D45: 1295 | E45: 1019.5 | F45: 555.4 | H45: 25 | I45: 3.203846032 | J45: 1.56846224 | K45: 0.8046741939 | L45: 0.6334867496 | M45: 0.3451089168
A46: 3000 | B46: 5722.2 | C46: 2782.1 | D46: 1415.7 | E46: 1104 | F46: 590.6 | H46: 30 | I46: 3.555603608 | J46: 1.728713571 | K46: 0.879673557 | L46: 0.6859925175 | M46: 0.366981142
A47: 3500 | B47: 6244.7 | C47: 3001.7 | D47: 1523.1 | E47: 1180.8 | F47: 622.9 | H47: 35 | I47: 3.880269451 | J47: 1.865166431 | K47: 0.9464086987 | L47: 0.7337137361 | M47: 0.3870513941
A48: 4000 | B48: 6689.5 | C48: 3205.1 | D48: 1629.6 | E48: 1247.1 | F48: 650.2 | H48: 40 | I48: 4.156654842 | J48: 1.991553096 | K48: 1.012584607 | L48: 0.7749105693 | M48: 0.4040147961
A51: Ainsworth, NE-AERMOD setback distances (SW) as reported in the Odor Footprint Tool
A53: Setback Distances (m) for Ainsworth, SW | H53: Setback Distances (mi) for Ainsworth, SW
A54: x 104 | B54: Annoyance Free Percentage | H54: x 106 | I54: Annoyance Free Percentage
A55: OU/s | B55: 99 | C55: 98 | D55: 96 | E55: 94 | F55: 90 | H55: OU/s | I55: 99 | J55: 98 | K55: 96 | L55: 94 | M55: 90 | O55: Separation distance | P55: =IF(ISERROR(MATCH($P$1,$H$56:$H$73,0)),VLOOKUP($P$1,$H$56:$M$73,MATCH(P$4,$I$55:$M$55,0)+1,TRUE)+($P$1-VLOOKUP($P$1,$H$56:$H$73,1,TRUE))*(INDEX($I$56:$M$73,MATCH($P$1,$H$56:$H$73,1)+1,MATCH(P$4,$I$55:$M$55,0))-INDEX($I$56:$M$73,MATCH($P$1,$H$56:$H$73,1),MATCH(P$4,$I$55:$M$55,0)))/(INDEX($H$56:$H$73,MATCH($P$1,$H$56:$H$73,1)+1)-INDEX($H$56:$H$73,MATCH($P$1,$H$56:$H$73,1))),INDEX($I$56:$M$73,MATCH($P$1,$H$56:$H$73,0),MATCH(P$4,$I$55:$M$55,0))) ->  | Q55: =IF(ISERROR(MATCH($P$1,$H$56:$H$73,0)),VLOOKUP($P$1,$H$56:$M$73,MATCH(Q$4,$I$55:$M$55,0)+1,TRUE)+($P$1-VLOOKUP($P$1,$H$56:$H$73,1,TRUE))*(INDEX($I$56:$M$73,MATCH($P$1,$H$56:$H$73,1)+1,MATCH(Q$4,$I$55:$M$55,0))-INDEX($I$56:$M$73,MATCH($P$1,$H$56:$H$73,1),MATCH(Q$4,$I$55:$M$55,0)))/(INDEX($H$56:$H$73,MATCH($P$1,$H$56:$H$73,1)+1)-INDEX($H$56:$H$73,MATCH($P$1,$H$56:$H$73,1))),INDEX($I$56:$M$73,MATCH($P$1,$H$56:$H$73,0),MATCH(Q$4,$I$55:$M$55,0))) ->  | R55: =IF(ISERROR(MATCH($P$1,$H$56:$H$73,0)),VLOOKUP($P$1,$H$56:$M$73,MATCH(R$4,$I$55:$M$55,0)+1,TRUE)+($P$1-VLOOKUP($P$1,$H$56:$H$73,1,TRUE))*(INDEX($I$56:$M$73,MATCH($P$1,$H$56:$H$73,1)+1,MATCH(R$4,$I$55:$M$55,0))-INDEX($I$56:$M$73,MATCH($P$1,$H$56:$H$73,1),MATCH(R$4,$I$55:$M$55,0)))/(INDEX($H$56:$H$73,MATCH($P$1,$H$56:$H$73,1)+1)-INDEX($H$56:$H$73,MATCH($P$1,$H$56:$H$73,1))),INDEX($I$56:$M$73,MATCH($P$1,$H$56:$H$73,0),MATCH(R$4,$I$55:$M$55,0))) ->  | S55: =IF(ISERROR(MATCH($P$1,$H$56:$H$73,0)),VLOOKUP($P$1,$H$56:$M$73,MATCH(S$4,$I$55:$M$55,0)+1,TRUE)+($P$1-VLOOKUP($P$1,$H$56:$H$73,1,TRUE))*(INDEX($I$56:$M$73,MATCH($P$1,$H$56:$H$73,1)+1,MATCH(S$4,$I$55:$M$55,0))-INDEX($I$56:$M$73,MATCH($P$1,$H$56:$H$73,1),MATCH(S$4,$I$55:$M$55,0)))/(INDEX($H$56:$H$73,MATCH($P$1,$H$56:$H$73,1)+1)-INDEX($H$56:$H$73,MATCH($P$1,$H$56:$H$73,1))),INDEX($I$56:$M$73,MATCH($P$1,$H$56:$H$73,0),MATCH(S$4,$I$55:$M$55,0))) ->  | T55: =IF(ISERROR(MATCH($P$1,$H$56:$H$73,0)),VLOOKUP($P$1,$H$56:$M$73,MATCH(T$4,$I$55:$M$55,0)+1,TRUE)+($P$1-VLOOKUP($P$1,$H$56:$H$73,1,TRUE))*(INDEX($I$56:$M$73,MATCH($P$1,$H$56:$H$73,1)+1,MATCH(T$4,$I$55:$M$55,0))-INDEX($I$56:$M$73,MATCH($P$1,$H$56:$H$73,1),MATCH(T$4,$I$55:$M$55,0)))/(INDEX($H$56:$H$73,MATCH($P$1,$H$56:$H$73,1)+1)-INDEX($H$56:$H$73,MATCH($P$1,$H$56:$H$73,1))),INDEX($I$56:$M$73,MATCH($P$1,$H$56:$H$73,0),MATCH(T$4,$I$55:$M$55,0))) -> 
A56: 0 | B56: 0 | C56: 0 | D56: 0 | E56: 0 | F56: 0 | H56: =A56/100 -> 0 | I56: 0 | J56: 0 | K56: 0 | L56: 0 | M56: 0 | O56: New Separation distance | P56: =IF(ISERROR(MATCH($P$2,$H$56:$H$73,0)),VLOOKUP($P$2,$H$56:$M$73,MATCH(P$4,$I$55:$M$55,0)+1,TRUE)+($P$2-VLOOKUP($P$2,$H$56:$H$73,1,TRUE))*(INDEX($I$56:$M$73,MATCH($P$2,$H$56:$H$73,1)+1,MATCH(P$4,$I$55:$M$55,0))-INDEX($I$56:$M$73,MATCH($P$2,$H$56:$H$73,1),MATCH(P$4,$I$55:$M$55,0)))/(INDEX($H$56:$H$73,MATCH($P$2,$H$56:$H$73,1)+1)-INDEX($H$56:$H$73,MATCH($P$2,$H$56:$H$73,1))),INDEX($I$56:$M$73,MATCH($P$2,$H$56:$H$73,0),MATCH(P4,$I$55:$M$55,0))) ->  | Q56: =IF(ISERROR(MATCH($P$2,$H$56:$H$73,0)),VLOOKUP($P$2,$H$56:$M$73,MATCH(Q$4,$I$55:$M$55,0)+1,TRUE)+($P$2-VLOOKUP($P$2,$H$56:$H$73,1,TRUE))*(INDEX($I$56:$M$73,MATCH($P$2,$H$56:$H$73,1)+1,MATCH(Q$4,$I$55:$M$55,0))-INDEX($I$56:$M$73,MATCH($P$2,$H$56:$H$73,1),MATCH(Q$4,$I$55:$M$55,0)))/(INDEX($H$56:$H$73,MATCH($P$2,$H$56:$H$73,1)+1)-INDEX($H$56:$H$73,MATCH($P$2,$H$56:$H$73,1))),INDEX($I$56:$M$73,MATCH($P$2,$H$56:$H$73,0),MATCH(Q4,$I$55:$M$55,0))) ->  | R56: =IF(ISERROR(MATCH($P$2,$H$56:$H$73,0)),VLOOKUP($P$2,$H$56:$M$73,MATCH(R$4,$I$55:$M$55,0)+1,TRUE)+($P$2-VLOOKUP($P$2,$H$56:$H$73,1,TRUE))*(INDEX($I$56:$M$73,MATCH($P$2,$H$56:$H$73,1)+1,MATCH(R$4,$I$55:$M$55,0))-INDEX($I$56:$M$73,MATCH($P$2,$H$56:$H$73,1),MATCH(R$4,$I$55:$M$55,0)))/(INDEX($H$56:$H$73,MATCH($P$2,$H$56:$H$73,1)+1)-INDEX($H$56:$H$73,MATCH($P$2,$H$56:$H$73,1))),INDEX($I$56:$M$73,MATCH($P$2,$H$56:$H$73,0),MATCH(R4,$I$55:$M$55,0))) ->  | S56: =IF(ISERROR(MATCH($P$2,$H$56:$H$73,0)),VLOOKUP($P$2,$H$56:$M$73,MATCH(S$4,$I$55:$M$55,0)+1,TRUE)+($P$2-VLOOKUP($P$2,$H$56:$H$73,1,TRUE))*(INDEX($I$56:$M$73,MATCH($P$2,$H$56:$H$73,1)+1,MATCH(S$4,$I$55:$M$55,0))-INDEX($I$56:$M$73,MATCH($P$2,$H$56:$H$73,1),MATCH(S$4,$I$55:$M$55,0)))/(INDEX($H$56:$H$73,MATCH($P$2,$H$56:$H$73,1)+1)-INDEX($H$56:$H$73,MATCH($P$2,$H$56:$H$73,1))),INDEX($I$56:$M$73,MATCH($P$2,$H$56:$H$73,0),MATCH(S4,$I$55:$M$55,0))) ->  | T56: =IF(ISERROR(MATCH($P$2,$H$56:$H$73,0)),VLOOKUP($P$2,$H$56:$M$73,MATCH(T$4,$I$55:$M$55,0)+1,TRUE)+($P$2-VLOOKUP($P$2,$H$56:$H$73,1,TRUE))*(INDEX($I$56:$M$73,MATCH($P$2,$H$56:$H$73,1)+1,MATCH(T$4,$I$55:$M$55,0))-INDEX($I$56:$M$73,MATCH($P$2,$H$56:$H$73,1),MATCH(T$4,$I$55:$M$55,0)))/(INDEX($H$56:$H$73,MATCH($P$2,$H$56:$H$73,1)+1)-INDEX($H$56:$H$73,MATCH($P$2,$H$56:$H$73,1))),INDEX($I$56:$M$73,MATCH($P$2,$H$56:$H$73,0),MATCH(T4,$I$55:$M$55,0))) -> 
A57: 50 | B57: 424.8 | C57: 267.5 | D57: 181 | E57: 150.6 | F57: 114.4 | H57: =A57/100 -> 0.5 | I57: =+B57/1609.347 -> 0.2639579904 | J57: =+C57/1609.347 -> 0.1662164841 | K57: =+D57/1609.347 -> 0.1124679761 | L57: =+E57/1609.347 -> 0.09357832711 | M57: =+F57/1609.347 -> 0.07108473188
A58: 100 | B58: 623.9 | C58: 386.9 | D58: 258.6 | E58: 213.3 | F58: 157.6 | H58: 1 | I58: =+B58/1609.347 -> 0.3876727642 | J58: =+C58/1609.347 -> 0.2404080661 | K58: =+D58/1609.347 -> 0.1606862908 | L58: =+E58/1609.347 -> 0.1325382282 | M58: =+F58/1609.347 -> 0.09792791735
A59: 200 | B59: 936 | C59: 556.5 | D59: 367.5 | E59: 301.8 | F59: 214.1 | H59: 2 | I59: 0.5816023518 | J59: 0.3457924239 | K59: 0.2283534875 | L59: 0.1875294762 | M59: 0.1330353243
A60: 300 | B60: 1172.9 | C60: 695.2 | D60: 449.6 | E60: 368.2 | F60: 254.6 | H60: 3 | I60: 0.7288049128 | J60: 0.4319764476 | K60: 0.2793679673 | L60: 0.2287884465 | M60: 0.1582008106
A61: 400 | B61: 1377.2 | C61: 801.7 | D61: 519 | E61: 423.1 | F61: 286.5 | H61: 4 | I61: 0.8557508107 | J61: 0.4981523562 | K61: 0.3224910476 | L61: 0.2629016614 | M61: 0.1780225147
A62: 500 | B62: 1563.7 | C62: 907.7 | D62: 579 | E62: 469.9 | F62: 310.7 | H62: 5 | I62: 0.9716363221 | J62: 0.5640175798 | K62: 0.3597732496 | L62: 0.2919817789 | M62: 0.1930596695
A63: 600 | B63: 1725.9 | C63: 993.6 | D63: 633.1 | E63: 511.8 | F63: 335.6 | H63: 6 | I63: 1.072422542 | J63: 0.6173932657 | K63: 0.3933893685 | L63: 0.3180171834 | M63: 0.2085317834
A64: 700 | B64: 1883.1 | C64: 1078.3 | D64: 683.4 | E64: 549.9 | F64: 355.8 | H64: 7 | I64: 1.170101911 | J64: 0.6700233076 | K64: 0.4246442812 | L64: 0.3416913817 | M64: 0.2210834581
A65: 800 | B65: 2049.4 | C65: 1157 | D65: 729.6 | E65: 587.4 | F65: 374.2 | H65: 8 | I65: 1.273435748 | J65: 0.7189251293 | K65: 0.4533515768 | L65: 0.3649927579 | M65: 0.2325166667
A66: 900 | B66: 2184.6 | C66: 1229.6 | D66: 775 | E66: 620.1 | F66: 390.4 | H66: 9 | I66: 1.357444976 | J66: 0.7640365937 | K66: 0.4815617763 | L66: 0.385311558 | M66: 0.2425828612
A67: 1000 | B67: 2297.8 | C67: 1290.9 | D67: 815.7 | E67: 650.2 | F67: 405.3 | H67: 10 | I67: 1.427784064 | J67: 0.8021265768 | K67: 0.5068515367 | L67: 0.4040147961 | M67: 0.2518412748
A68: 1500 | B68: 2957.4 | C68: 1587.7 | D68: 986.9 | E68: 778.2 | F68: 469.1 | H68: 15 | I68: 1.837639738 | J68: 0.9865492029 | K68: 0.6132300865 | L68: 0.4835501604 | M68: 0.2914846829
A69: 2000 | B69: 3482.4 | C69: 1832.1 | D69: 1139.1 | E69: 886.2 | F69: 517.8 | H69: 20 | I69: 2.163859006 | J69: 1.138412039 | K69: 0.7078026057 | L69: 0.5506581241 | M69: 0.3217454036
A70: 2500 | B70: 3929.8 | C70: 2050.8 | D70: 1259.8 | E70: 972.3 | F70: 555.4 | H70: 25 | I70: 2.441859959 | J70: 1.274305666 | K70: 0.7828019687 | L70: 0.604158084 | M70: 0.3451089168
A71: 3000 | B71: 4367.8 | C71: 2258.2 | D71: 1379.5 | E71: 1051.7 | F71: 590.6 | H71: 30 | I71: 2.714020034 | J71: 1.403177811 | K71: 0.8571799618 | L71: 0.6534948647 | M71: 0.366981142
A72: 3500 | B72: 4806.7 | C72: 2444.3 | D72: 1481.5 | E72: 1124.7 | F72: 622.9 | H72: 35 | I72: 2.986739342 | J72: 1.518814774 | K72: 0.9205597053 | L72: 0.6988548772 | M72: 0.3870513941
A73: 4000 | B73: 5109.9 | C73: 2619.7 | D73: 1580.2 | E73: 1186.4 | F73: 650.2 | H73: 40 | I73: 3.175138736 | J73: 1.627803078 | K73: 0.9818889276 | L73: 0.7371934083 | M73: 0.4040147961
A76: Ainsworth, NE-AERMOD setback distances (NW) as reported in the Odor Footprint Tool
A78: Setback Distances (m) for Ainsworth, NW | H78: Setback Distances (mi) for Ainsworth, NW
A79: x 104 | B79: Annoyance Free Percentage | H79: x 106 | I79: Annoyance Free Percentage
A80: OU/s | B80: 99 | C80: 98 | D80: 96 | E80: 94 | F80: 90 | H80: OU/s | I80: 99 | J80: 98 | K80: 96 | L80: 94 | M80: 90 | O80: Separation distance | P80: =IF(ISERROR(MATCH($P$1,$H$81:$H$98,0)),VLOOKUP($P$1,$H$81:$M$98,MATCH(P$4,$I$80:$M$80,0)+1,TRUE)+($P$1-VLOOKUP($P$1,$H$81:$H$98,1,TRUE))*(INDEX($I$81:$M$98,MATCH($P$1,$H$81:$H$98,1)+1,MATCH(P$4,$I$80:$M$80,0))-INDEX($I$81:$M$98,MATCH($P$1,$H$81:$H$98,1),MATCH(P$4,$I$80:$M$80,0)))/(INDEX($H$81:$H$98,MATCH($P$1,$H$81:$H$98,1)+1)-INDEX($H$81:$H$98,MATCH($P$1,$H$81:$H$98,1))),INDEX($I$81:$M$98,MATCH($P$1,$H$81:$H$98,0),MATCH(P4,$I$80:$M$80,0))) ->  | Q80: =IF(ISERROR(MATCH($P$1,$H$81:$H$98,0)),VLOOKUP($P$1,$H$81:$M$98,MATCH(Q$4,$I$80:$M$80,0)+1,TRUE)+($P$1-VLOOKUP($P$1,$H$81:$H$98,1,TRUE))*(INDEX($I$81:$M$98,MATCH($P$1,$H$81:$H$98,1)+1,MATCH(Q$4,$I$80:$M$80,0))-INDEX($I$81:$M$98,MATCH($P$1,$H$81:$H$98,1),MATCH(Q$4,$I$80:$M$80,0)))/(INDEX($H$81:$H$98,MATCH($P$1,$H$81:$H$98,1)+1)-INDEX($H$81:$H$98,MATCH($P$1,$H$81:$H$98,1))),INDEX($I$81:$M$98,MATCH($P$1,$H$81:$H$98,0),MATCH(Q4,$I$80:$M$80,0))) ->  | R80: =IF(ISERROR(MATCH($P$1,$H$81:$H$98,0)),VLOOKUP($P$1,$H$81:$M$98,MATCH(R$4,$I$80:$M$80,0)+1,TRUE)+($P$1-VLOOKUP($P$1,$H$81:$H$98,1,TRUE))*(INDEX($I$81:$M$98,MATCH($P$1,$H$81:$H$98,1)+1,MATCH(R$4,$I$80:$M$80,0))-INDEX($I$81:$M$98,MATCH($P$1,$H$81:$H$98,1),MATCH(R$4,$I$80:$M$80,0)))/(INDEX($H$81:$H$98,MATCH($P$1,$H$81:$H$98,1)+1)-INDEX($H$81:$H$98,MATCH($P$1,$H$81:$H$98,1))),INDEX($I$81:$M$98,MATCH($P$1,$H$81:$H$98,0),MATCH(R4,$I$80:$M$80,0))) ->  | S80: =IF(ISERROR(MATCH($P$1,$H$81:$H$98,0)),VLOOKUP($P$1,$H$81:$M$98,MATCH(S$4,$I$80:$M$80,0)+1,TRUE)+($P$1-VLOOKUP($P$1,$H$81:$H$98,1,TRUE))*(INDEX($I$81:$M$98,MATCH($P$1,$H$81:$H$98,1)+1,MATCH(S$4,$I$80:$M$80,0))-INDEX($I$81:$M$98,MATCH($P$1,$H$81:$H$98,1),MATCH(S$4,$I$80:$M$80,0)))/(INDEX($H$81:$H$98,MATCH($P$1,$H$81:$H$98,1)+1)-INDEX($H$81:$H$98,MATCH($P$1,$H$81:$H$98,1))),INDEX($I$81:$M$98,MATCH($P$1,$H$81:$H$98,0),MATCH(S4,$I$80:$M$80,0))) ->  | T80: =IF(ISERROR(MATCH($P$1,$H$81:$H$98,0)),VLOOKUP($P$1,$H$81:$M$98,MATCH(T$4,$I$80:$M$80,0)+1,TRUE)+($P$1-VLOOKUP($P$1,$H$81:$H$98,1,TRUE))*(INDEX($I$81:$M$98,MATCH($P$1,$H$81:$H$98,1)+1,MATCH(T$4,$I$80:$M$80,0))-INDEX($I$81:$M$98,MATCH($P$1,$H$81:$H$98,1),MATCH(T$4,$I$80:$M$80,0)))/(INDEX($H$81:$H$98,MATCH($P$1,$H$81:$H$98,1)+1)-INDEX($H$81:$H$98,MATCH($P$1,$H$81:$H$98,1))),INDEX($I$81:$M$98,MATCH($P$1,$H$81:$H$98,0),MATCH(T4,$I$80:$M$80,0))) -> 
A81: 0 | B81: 0 | C81: 0 | D81: 0 | E81: 0 | F81: 0 | H81: =A81/100 -> 0 | I81: 0 | J81: 0 | K81: 0 | L81: 0 | M81: 0 | O81: New Separation distance | P81: =IF(ISERROR(MATCH($P$2,$H$81:$H$98,0)),VLOOKUP($P$2,$H$81:$M$98,MATCH(P$4,$I$80:$M$80,0)+1,TRUE)+($P$2-VLOOKUP($P$2,$H$81:$H$98,1,TRUE))*(INDEX($I$81:$M$98,MATCH($P$2,$H$81:$H$98,1)+1,MATCH(P$4,$I$80:$M$80,0))-INDEX($I$81:$M$98,MATCH($P$2,$H$81:$H$98,1),MATCH(P$4,$I$80:$M$80,0)))/(INDEX($H$81:$H$98,MATCH($P$2,$H$81:$H$98,1)+1)-INDEX($H$81:$H$98,MATCH($P$2,$H$81:$H$98,1))),INDEX($I$81:$M$98,MATCH($P$2,$H$81:$H$98,0),MATCH(P4,$I$80:$M$80,0))) ->  | Q81: =IF(ISERROR(MATCH($P$2,$H$81:$H$98,0)),VLOOKUP($P$2,$H$81:$M$98,MATCH(Q$4,$I$80:$M$80,0)+1,TRUE)+($P$2-VLOOKUP($P$2,$H$81:$H$98,1,TRUE))*(INDEX($I$81:$M$98,MATCH($P$2,$H$81:$H$98,1)+1,MATCH(Q$4,$I$80:$M$80,0))-INDEX($I$81:$M$98,MATCH($P$2,$H$81:$H$98,1),MATCH(Q$4,$I$80:$M$80,0)))/(INDEX($H$81:$H$98,MATCH($P$2,$H$81:$H$98,1)+1)-INDEX($H$81:$H$98,MATCH($P$2,$H$81:$H$98,1))),INDEX($I$81:$M$98,MATCH($P$2,$H$81:$H$98,0),MATCH(Q4,$I$80:$M$80,0))) ->  | R81: =IF(ISERROR(MATCH($P$2,$H$81:$H$98,0)),VLOOKUP($P$2,$H$81:$M$98,MATCH(R$4,$I$80:$M$80,0)+1,TRUE)+($P$2-VLOOKUP($P$2,$H$81:$H$98,1,TRUE))*(INDEX($I$81:$M$98,MATCH($P$2,$H$81:$H$98,1)+1,MATCH(R$4,$I$80:$M$80,0))-INDEX($I$81:$M$98,MATCH($P$2,$H$81:$H$98,1),MATCH(R$4,$I$80:$M$80,0)))/(INDEX($H$81:$H$98,MATCH($P$2,$H$81:$H$98,1)+1)-INDEX($H$81:$H$98,MATCH($P$2,$H$81:$H$98,1))),INDEX($I$81:$M$98,MATCH($P$2,$H$81:$H$98,0),MATCH(R4,$I$80:$M$80,0))) ->  | S81: =IF(ISERROR(MATCH($P$2,$H$81:$H$98,0)),VLOOKUP($P$2,$H$81:$M$98,MATCH(S$4,$I$80:$M$80,0)+1,TRUE)+($P$2-VLOOKUP($P$2,$H$81:$H$98,1,TRUE))*(INDEX($I$81:$M$98,MATCH($P$2,$H$81:$H$98,1)+1,MATCH(S$4,$I$80:$M$80,0))-INDEX($I$81:$M$98,MATCH($P$2,$H$81:$H$98,1),MATCH(S$4,$I$80:$M$80,0)))/(INDEX($H$81:$H$98,MATCH($P$2,$H$81:$H$98,1)+1)-INDEX($H$81:$H$98,MATCH($P$2,$H$81:$H$98,1))),INDEX($I$81:$M$98,MATCH($P$2,$H$81:$H$98,0),MATCH(S4,$I$80:$M$80,0))) ->  | T81: =IF(ISERROR(MATCH($P$2,$H$81:$H$98,0)),VLOOKUP($P$2,$H$81:$M$98,MATCH(T$4,$I$80:$M$80,0)+1,TRUE)+($P$2-VLOOKUP($P$2,$H$81:$H$98,1,TRUE))*(INDEX($I$81:$M$98,MATCH($P$2,$H$81:$H$98,1)+1,MATCH(T$4,$I$80:$M$80,0))-INDEX($I$81:$M$98,MATCH($P$2,$H$81:$H$98,1),MATCH(T$4,$I$80:$M$80,0)))/(INDEX($H$81:$H$98,MATCH($P$2,$H$81:$H$98,1)+1)-INDEX($H$81:$H$98,MATCH($P$2,$H$81:$H$98,1))),INDEX($I$81:$M$98,MATCH($P$2,$H$81:$H$98,0),MATCH(T4,$I$80:$M$80,0))) -> 
A82: 50 | B82: 708.3 | C82: 402.2 | D82: 234.3 | E82: 178.2 | F82: 137.8 | H82: =A82/100 -> 0.5 | I82: =+B82/1609.347 -> 0.440116395 | J82: =+C82/1609.347 -> 0.2499150276 | K82: =+D82/1609.347 -> 0.145586999 | L82: =+E82/1609.347 -> 0.11072814 | M82: =+F82/1609.347 -> 0.08562479068
A83: 100 | B83: 1046 | C83: 608.2 | D83: 343.5 | E83: 255.7 | F83: 194.4 | H83: 1 | I83: 0.6499530555 | J83: 0.3779172546 | K83: 0.2134406067 | L83: 0.1588843177 | M83: 0.1207943346
A84: 200 | B84: 1570.6 | C84: 898.9 | D84: 501.5 | E84: 365.6 | F84: 272.6 | H84: 2 | I84: 0.9759237753 | J84: 0.5585495235 | K84: 0.311617072 | L84: 0.2271728844 | M84: 0.1693854713
A85: 300 | B85: 1966.6 | C85: 1124.8 | D85: 621.1 | E85: 447.3 | F85: 331.5 | H85: 3 | I85: 1.221986309 | J85: 0.6989170142 | K85: 0.3859329281 | L85: 0.2779388162 | M85: 0.2059841662
A86: 400 | B86: 2369.7 | C86: 1329.6 | D86: 725.5 | E86: 520.4 | F86: 380.4 | H86: 4 | I86: 1.472460569 | J86: 0.8261735971 | K86: 0.4508039596 | L86: 0.3233609657 | M86: 0.2363691609
A87: 500 | B87: 2630 | C87: 1523.4 | D87: 812.8 | E87: 580 | F87: 422.3 | H87: 5 | I87: 1.634203189 | J87: 0.9465951097 | K87: 0.5050495636 | L87: 0.3603946197 | M87: 0.2624045653
A88: 600 | B88: 2852.9 | C88: 1692.4 | D88: 892.9 | E88: 635 | F88: 459.4 | H88: 6 | I88: 1.77270657 | J88: 1.051606645 | K88: 0.5548213033 | L88: 0.3945699715 | M88: 0.2854573936
A89: 700 | B89: 3100 | C89: 1845.9 | D89: 967.1 | E89: 682.1 | F89: 492.2 | H89: 7 | I89: 1.926247105 | J89: 1.146986946 | K89: 0.6009269598 | L89: 0.4238365001 | M89: 0.3058383307
A90: 800 | B90: 3343.9 | C90: 1969.1 | D90: 1034.7 | E90: 728.8 | F90: 523.6 | H90: 8 | I90: 2.077799256 | J90: 1.223539734 | K90: 0.6429315741 | L90: 0.4528544807 | M90: 0.3253493498
A91: 900 | B91: 3576 | C91: 2100.3 | D91: 1096.5 | E91: 771.4 | F91: 552 | H91: 9 | I91: 2.222019241 | J91: 1.305063482 | K91: 0.6813322422 | L91: 0.4793248442 | M91: 0.3429962587
A92: 1000 | B92: 3775 | C92: 2232.8 | D92: 1161.4 | E92: 810.3 | F92: 578.7 | H92: 10 | I92: 2.345671878 | J92: 1.387395012 | K92: 0.7216591574 | L92: 0.5034961385 | M92: 0.3595868386
A93: 1500 | B93: 4800 | C93: 2777.8 | D93: 1431.6 | E93: 985.4 | F93: 693.5 | H93: 15 | I93: 2.982576163 | J93: 1.72604168 | K93: 0.8895533406 | L93: 0.6122980314 | M93: 0.4309201185
A94: 2000 | B94: 5803.6 | C94: 3271.9 | D94: 1658.4 | E94: 1131.9 | F94: 784.8 | H94: 20 | I94: 3.606183129 | J94: 2.033060614 | K94: 1.030480064 | L94: 0.7033287414 | M94: 0.4876512026
A95: 2500 | B95: 6478.5 | C95: 3699 | D95: 1860.2 | E95: 1251.5 | F95: 865.4 | H95: 25 | I95: 4.025545765 | J95: 2.298447756 | K95: 1.155872537 | L95: 0.7776445975 | M95: 0.5377336274
A96: 3000 | B96: 7182.8 | C96: 4111.2 | D96: 2048.7 | E96: 1370.4 | F96: 935.9 | H96: 30 | I96: 4.46317668 | J96: 2.554576484 | K96: 1.273000789 | L96: 0.8515254945 | M96: 0.5815402148
A97: 3500 | B97: 7767.7 | C97: 4465.8 | D97: 2214.2 | E97: 1473.2 | F97: 996.5 | H97: 35 | I97: 4.826616013 | J97: 2.774914298 | K97: 1.375837529 | L97: 0.915402334 | M97: 0.6191952388
A98: 4000 | B98: 8366.7 | C98: 4833.3 | D98: 2356.8 | E98: 1572.5 | F98: 1051.9 | H98: 40 | I98: 5.198816663 | J98: 3.003267785 | K98: 1.464444896 | L98: 0.9771043784 | M98: 0.6536191387

Sheet Lincoln (hidden)
A1: Lincoln, NE-AERMOD setback distances (North) as reported in the Odor Footprint Tool | O1: Total Scaled Odor Emission Rate (x10^6) | P1: =Inputs!E33 -> 
O2: New Total Scaled Odor Emission Rate (x10^6) | P2: =Inputs!E42 -> 
A3: Setback Distances (m) for Lincoln, North | H3: Setback Distances (mi) for Lincoln, North
A4: x 104 | B4: Annoyance Free Percentage | H4: x 106 | I4: Annoyance Free Percentage | O4: Annoyance free percentage | P4: 99 | Q4: 98 | R4: 96 | S4: 94 | T4: 90
A5: OU/s | B5: 99 | C5: 98 | D5: 96 | E5: 94 | F5: 90 | H5: OU/s | I5: =B5 -> 99 | J5: =C5 -> 98 | K5: =D5 -> 96 | L5: =E5 -> 94 | M5: =F5 -> 90 | O5: Separation distance | P5: =IF(ISERROR(MATCH($P$1,$H$6:$H$24,0)),VLOOKUP($P$1,$H$6:$M$24,MATCH(P4,$I$5:$M$5,0)+1,TRUE)+($P$1-VLOOKUP($P$1,$H$6:$H$24,1,TRUE))*(INDEX($I$6:$M$24,MATCH($P$1,$H$6:$H$24,1)+1,MATCH(P4,$I$5:$M$5,0))-INDEX($I$6:$M$24,MATCH($P$1,$H$6:$H$24,1),MATCH(P4,$I$5:$M$5,0)))/(INDEX($H$6:$H$24,MATCH($P$1,$H$6:$H$24,1)+1)-INDEX($H$6:$H$24,MATCH($P$1,$H$6:$H$24,1))),INDEX($I$6:$M$24,MATCH($P$1,$H$6:$H$24,0),MATCH(P4,$I$5:$M$5,0))) ->  | Q5: =IF(ISERROR(MATCH($P$1,$H$6:$H$24,0)),VLOOKUP($P$1,$H$6:$M$24,MATCH(Q4,$I$5:$M$5,0)+1,TRUE)+($P$1-VLOOKUP($P$1,$H$6:$H$24,1,TRUE))*(INDEX($I$6:$M$24,MATCH($P$1,$H$6:$H$24,1)+1,MATCH(Q4,$I$5:$M$5,0))-INDEX($I$6:$M$24,MATCH($P$1,$H$6:$H$24,1),MATCH(Q4,$I$5:$M$5,0)))/(INDEX($H$6:$H$24,MATCH($P$1,$H$6:$H$24,1)+1)-INDEX($H$6:$H$24,MATCH($P$1,$H$6:$H$24,1))),INDEX($I$6:$M$24,MATCH($P$1,$H$6:$H$24,0),MATCH(Q4,$I$5:$M$5,0))) ->  | R5: =IF(ISERROR(MATCH($P$1,$H$6:$H$24,0)),VLOOKUP($P$1,$H$6:$M$24,MATCH(R4,$I$5:$M$5,0)+1,TRUE)+($P$1-VLOOKUP($P$1,$H$6:$H$24,1,TRUE))*(INDEX($I$6:$M$24,MATCH($P$1,$H$6:$H$24,1)+1,MATCH(R4,$I$5:$M$5,0))-INDEX($I$6:$M$24,MATCH($P$1,$H$6:$H$24,1),MATCH(R4,$I$5:$M$5,0)))/(INDEX($H$6:$H$24,MATCH($P$1,$H$6:$H$24,1)+1)-INDEX($H$6:$H$24,MATCH($P$1,$H$6:$H$24,1))),INDEX($I$6:$M$24,MATCH($P$1,$H$6:$H$24,0),MATCH(R4,$I$5:$M$5,0))) ->  | S5: =IF(ISERROR(MATCH($P$1,$H$6:$H$24,0)),VLOOKUP($P$1,$H$6:$M$24,MATCH(S4,$I$5:$M$5,0)+1,TRUE)+($P$1-VLOOKUP($P$1,$H$6:$H$24,1,TRUE))*(INDEX($I$6:$M$24,MATCH($P$1,$H$6:$H$24,1)+1,MATCH(S4,$I$5:$M$5,0))-INDEX($I$6:$M$24,MATCH($P$1,$H$6:$H$24,1),MATCH(S4,$I$5:$M$5,0)))/(INDEX($H$6:$H$24,MATCH($P$1,$H$6:$H$24,1)+1)-INDEX($H$6:$H$24,MATCH($P$1,$H$6:$H$24,1))),INDEX($I$6:$M$24,MATCH($P$1,$H$6:$H$24,0),MATCH(S4,$I$5:$M$5,0))) ->  | T5: =IF(ISERROR(MATCH($P$1,$H$6:$H$24,0)),VLOOKUP($P$1,$H$6:$M$24,MATCH(T4,$I$5:$M$5,0)+1,TRUE)+($P$1-VLOOKUP($P$1,$H$6:$H$24,1,TRUE))*(INDEX($I$6:$M$24,MATCH($P$1,$H$6:$H$24,1)+1,MATCH(T4,$I$5:$M$5,0))-INDEX($I$6:$M$24,MATCH($P$1,$H$6:$H$24,1),MATCH(T4,$I$5:$M$5,0)))/(INDEX($H$6:$H$24,MATCH($P$1,$H$6:$H$24,1)+1)-INDEX($H$6:$H$24,MATCH($P$1,$H$6:$H$24,1))),INDEX($I$6:$M$24,MATCH($P$1,$H$6:$H$24,0),MATCH(T4,$I$5:$M$5,0))) -> 
A6: 0 | B6: 0 | C6: 0 | D6: 0 | E6: 0 | F6: 0 | H6: =A6/100 -> 0 | I6: 0 | J6: 0 | K6: 0 | L6: 0 | M6: 0 | O6: New Separation distance | P6: =IF(ISERROR(MATCH($P$2,$H$6:$H$24,0)),VLOOKUP($P$2,$H$6:$M$24,MATCH(P4,$I$5:$M$5,0)+1,TRUE)+($P$2-VLOOKUP($P$2,$H$6:$H$24,1,TRUE))*(INDEX($I$6:$M$24,MATCH($P$2,$H$6:$H$24,1)+1,MATCH(P4,$I$5:$M$5,0))-INDEX($I$6:$M$24,MATCH($P$2,$H$6:$H$24,1),MATCH(P4,$I$5:$M$5,0)))/(INDEX($H$6:$H$24,MATCH($P$2,$H$6:$H$24,1)+1)-INDEX($H$6:$H$24,MATCH($P$2,$H$6:$H$24,1))),INDEX($I$6:$M$24,MATCH($P$2,$H$6:$H$24,0),MATCH(P4,$I$5:$M$5,0))) ->  | Q6: =IF(ISERROR(MATCH($P$2,$H$6:$H$24,0)),VLOOKUP($P$2,$H$6:$M$24,MATCH(Q4,$I$5:$M$5,0)+1,TRUE)+($P$2-VLOOKUP($P$2,$H$6:$H$24,1,TRUE))*(INDEX($I$6:$M$24,MATCH($P$2,$H$6:$H$24,1)+1,MATCH(Q4,$I$5:$M$5,0))-INDEX($I$6:$M$24,MATCH($P$2,$H$6:$H$24,1),MATCH(Q4,$I$5:$M$5,0)))/(INDEX($H$6:$H$24,MATCH($P$2,$H$6:$H$24,1)+1)-INDEX($H$6:$H$24,MATCH($P$2,$H$6:$H$24,1))),INDEX($I$6:$M$24,MATCH($P$2,$H$6:$H$24,0),MATCH(Q4,$I$5:$M$5,0))) ->  | R6: =IF(ISERROR(MATCH($P$2,$H$6:$H$24,0)),VLOOKUP($P$2,$H$6:$M$24,MATCH(R4,$I$5:$M$5,0)+1,TRUE)+($P$2-VLOOKUP($P$2,$H$6:$H$24,1,TRUE))*(INDEX($I$6:$M$24,MATCH($P$2,$H$6:$H$24,1)+1,MATCH(R4,$I$5:$M$5,0))-INDEX($I$6:$M$24,MATCH($P$2,$H$6:$H$24,1),MATCH(R4,$I$5:$M$5,0)))/(INDEX($H$6:$H$24,MATCH($P$2,$H$6:$H$24,1)+1)-INDEX($H$6:$H$24,MATCH($P$2,$H$6:$H$24,1))),INDEX($I$6:$M$24,MATCH($P$2,$H$6:$H$24,0),MATCH(R4,$I$5:$M$5,0))) ->  | S6: =IF(ISERROR(MATCH($P$2,$H$6:$H$24,0)),VLOOKUP($P$2,$H$6:$M$24,MATCH(S4,$I$5:$M$5,0)+1,TRUE)+($P$2-VLOOKUP($P$2,$H$6:$H$24,1,TRUE))*(INDEX($I$6:$M$24,MATCH($P$2,$H$6:$H$24,1)+1,MATCH(S4,$I$5:$M$5,0))-INDEX($I$6:$M$24,MATCH($P$2,$H$6:$H$24,1),MATCH(S4,$I$5:$M$5,0)))/(INDEX($H$6:$H$24,MATCH($P$2,$H$6:$H$24,1)+1)-INDEX($H$6:$H$24,MATCH($P$2,$H$6:$H$24,1))),INDEX($I$6:$M$24,MATCH($P$2,$H$6:$H$24,0),MATCH(S4,$I$5:$M$5,0))) ->  | T6: =IF(ISERROR(MATCH($P$2,$H$6:$H$24,0)),VLOOKUP($P$2,$H$6:$M$24,MATCH(T4,$I$5:$M$5,0)+1,TRUE)+($P$2-VLOOKUP($P$2,$H$6:$H$24,1,TRUE))*(INDEX($I$6:$M$24,MATCH($P$2,$H$6:$H$24,1)+1,MATCH(T4,$I$5:$M$5,0))-INDEX($I$6:$M$24,MATCH($P$2,$H$6:$H$24,1),MATCH(T4,$I$5:$M$5,0)))/(INDEX($H$6:$H$24,MATCH($P$2,$H$6:$H$24,1)+1)-INDEX($H$6:$H$24,MATCH($P$2,$H$6:$H$24,1))),INDEX($I$6:$M$24,MATCH($P$2,$H$6:$H$24,0),MATCH(T4,$I$5:$M$5,0))) -> 
A7: 20 | B7: 450 | C7: 255 | D7: 155 | E7: 120 | F7: 90 | H7: =A7/100 -> 0.2 | I7: =+B7/1609.347 -> 0.2796165153 | J7: 0.1584493587 | K7: 0.09631235526 | L7: 0.07456440407 | M7: 0.05592330305
A8: 50 | B8: 770 | C8: 440 | D8: 255 | E8: 195 | F8: 145 | H8: 0.5 | I8: 0.4784549261 | J8: 0.2734028149 | K8: 0.1584493587 | L8: 0.1211671566 | M8: 0.09009865492
A9: 100 | B9: 1140 | C9: 650 | D9: 370 | E9: 275 | F9: 205 | H9: 1 | I9: 0.7083618387 | J9: 0.4038905221 | K9: 0.2299069126 | L9: 0.1708767593 | M9: 0.127380857
A10: 200 | B10: 1610 | C10: 955 | D10: 535 | E10: 395 | F10: 295 | H10: 2 | I10: 1.000405755 | J10: 0.5934083824 | K10: 0.3324329682 | L10: 0.2454411634 | M10: 0.18330416
A11: 300 | B11: 2020 | C11: 1180 | D11: 660 | E11: 480 | F11: 350 | H11: 3 | I11: 1.255167469 | J11: 0.73321664 | K11: 0.4101042224 | L11: 0.2982576163 | M11: 0.2174795119
A12: 400 | B12: 2400 | C12: 1400 | D12: 770 | E12: 570 | F12: 410 | H12: 4 | I12: 1.491288081 | J12: 0.8699180475 | K12: 0.4784549261 | L12: 0.3541809193 | M12: 0.2547617139
A13: 500 | B13: 2695 | C13: 1565 | D13: 860 | E13: 635 | F13: 470 | H13: 5 | I13: 1.674592241 | J13: 0.9724441031 | K13: 0.5343782292 | L13: 0.3945699715 | M13: 0.2920439159
A14: 600 | B14: 2985 | C14: 1700 | D14: 955 | E14: 690 | F14: 500 | H14: 6 | I14: 1.854789551 | J14: 1.056329058 | K14: 0.5934083824 | L14: 0.4287453234 | M14: 0.310685017
A15: 700 | B15: 3290 | C15: 1875 | D15: 1035 | E15: 750 | F15: 540 | H15: 7 | I15: 2.044307412 | J15: 1.165068814 | K15: 0.6431179851 | L15: 0.4660275254 | M15: 0.3355398183
A16: 800 | B16: 3500 | C16: 2000 | D16: 1100 | E16: 805 | F16: 575 | H16: 8 | I16: 2.174795119 | J16: 1.242740068 | K16: 0.6835070373 | L16: 0.5002028773 | M16: 0.3572877695
A17: 900 | B17: 3730 | C17: 2165 | D17: 1175 | E17: 845 | F17: 610 | H17: 9 | I17: 2.317710227 | J17: 1.345266123 | K17: 0.7301097899 | L17: 0.5250576787 | M17: 0.3790357207
A18: 1000 | B18: 3985 | C18: 2300 | D18: 1225 | E18: 910 | F18: 640 | H18: 10 | I18: 2.476159585 | J18: 1.429151078 | K18: 0.7611782916 | L18: 0.5654467309 | M18: 0.3976768217
A19: 1500 | B19: 5085 | C19: 2900 | D19: 1525 | E19: 1105 | F19: 780 | H19: 15 | I19: 3.159666623 | J19: 1.801973098 | K19: 0.9475893017 | L19: 0.6866138875 | M19: 0.4846686265
A20: 2000 | B20: 5910 | C20: 3360 | D20: 1765 | E20: 1275 | F20: 875 | H20: 20 | I20: 3.672296901 | J20: 2.087803314 | K20: 1.09671811 | L20: 0.7922467933 | M20: 0.5436987797
A21: 2500 | B21: 6705 | C21: 3760 | D21: 1985 | E21: 1405 | F21: 970 | H21: 25 | I21: 4.166286078 | J21: 2.336351328 | K21: 1.233419517 | L21: 0.8730248977 | M21: 0.6027289329
A22: 3000 | B22: 7410 | C22: 4140 | D22: 2170 | E22: 1555 | F22: 1085 | H22: 30 | I22: 4.604351951 | J22: 2.57247194 | K22: 1.348372974 | L22: 0.9662304028 | M22: 0.6741864868
A23: 3500 | B23: 7945 | C23: 4500 | D23: 2345 | E23: 1700 | F23: 1150 | H23: 35 | I23: =+B23/1609.347 -> 4.93678492 | J23: 2.796165153 | K23: 1.45711273 | L23: 1.056329058 | M23: 0.714575539
A24: 4000 | B24: 8470 | C24: 4850 | D24: 2515 | E24: 1800 | F24: 1215 | H24: 40 | I24: 5.263004187 | J24: 3.013644665 | K24: 1.562745635 | L24: 1.118466061 | M24: 0.7549645912
A27: Lincoln, NE-AERMOD setback distances (East) as reported in the Odor Footprint Tool
A29: Setback Distances (m) for Lincoln, East | H29: Setback Distances (mi) for Lincoln, East
A30: x 104 | B30: Annoyance Free Percentage | H30: x 106 | I30: Annoyance Free Percentage
A31: OU/s | B31: 99 | C31: 98 | D31: 96 | E31: 94 | F31: 90 | H31: OU/s | I31: 99 | J31: 98 | K31: 96 | L31: 94 | M31: 90 | O31: Separation distance | P31: =IF(ISERROR(MATCH($P$1,$H$32:$H$50,0)),VLOOKUP($P$1,$H$32:$M$50,MATCH(P$4,$I$31:$M$31,0)+1,TRUE)+($P$1-VLOOKUP($P$1,$H$32:$H$50,1,TRUE))*(INDEX($I$32:$M$50,MATCH($P$1,$H$32:$H$50,1)+1,MATCH(P$4,$I$31:$M$31,0))-INDEX($I$32:$M$50,MATCH($P$1,$H$32:$H$50,1),MATCH(P$4,$I$31:$M$31,0)))/(INDEX($H$32:$H$50,MATCH($P$1,$H$32:$H$50,1)+1)-INDEX($H$32:$H$50,MATCH($P$1,$H$32:$H$50,1))),INDEX($I$32:$M$50,MATCH($P$1,$H$32:$H$50,0),MATCH(P4,$I$31:$M$31,0))) ->  | Q31: =IF(ISERROR(MATCH($P$1,$H$32:$H$50,0)),VLOOKUP($P$1,$H$32:$M$50,MATCH(Q$4,$I$31:$M$31,0)+1,TRUE)+($P$1-VLOOKUP($P$1,$H$32:$H$50,1,TRUE))*(INDEX($I$32:$M$50,MATCH($P$1,$H$32:$H$50,1)+1,MATCH(Q$4,$I$31:$M$31,0))-INDEX($I$32:$M$50,MATCH($P$1,$H$32:$H$50,1),MATCH(Q$4,$I$31:$M$31,0)))/(INDEX($H$32:$H$50,MATCH($P$1,$H$32:$H$50,1)+1)-INDEX($H$32:$H$50,MATCH($P$1,$H$32:$H$50,1))),INDEX($I$32:$M$50,MATCH($P$1,$H$32:$H$50,0),MATCH(Q4,$I$31:$M$31,0))) ->  | R31: =IF(ISERROR(MATCH($P$1,$H$32:$H$50,0)),VLOOKUP($P$1,$H$32:$M$50,MATCH(R$4,$I$31:$M$31,0)+1,TRUE)+($P$1-VLOOKUP($P$1,$H$32:$H$50,1,TRUE))*(INDEX($I$32:$M$50,MATCH($P$1,$H$32:$H$50,1)+1,MATCH(R$4,$I$31:$M$31,0))-INDEX($I$32:$M$50,MATCH($P$1,$H$32:$H$50,1),MATCH(R$4,$I$31:$M$31,0)))/(INDEX($H$32:$H$50,MATCH($P$1,$H$32:$H$50,1)+1)-INDEX($H$32:$H$50,MATCH($P$1,$H$32:$H$50,1))),INDEX($I$32:$M$50,MATCH($P$1,$H$32:$H$50,0),MATCH(R4,$I$31:$M$31,0))) ->  | S31: =IF(ISERROR(MATCH($P$1,$H$32:$H$50,0)),VLOOKUP($P$1,$H$32:$M$50,MATCH(S$4,$I$31:$M$31,0)+1,TRUE)+($P$1-VLOOKUP($P$1,$H$32:$H$50,1,TRUE))*(INDEX($I$32:$M$50,MATCH($P$1,$H$32:$H$50,1)+1,MATCH(S$4,$I$31:$M$31,0))-INDEX($I$32:$M$50,MATCH($P$1,$H$32:$H$50,1),MATCH(S$4,$I$31:$M$31,0)))/(INDEX($H$32:$H$50,MATCH($P$1,$H$32:$H$50,1)+1)-INDEX($H$32:$H$50,MATCH($P$1,$H$32:$H$50,1))),INDEX($I$32:$M$50,MATCH($P$1,$H$32:$H$50,0),MATCH(S4,$I$31:$M$31,0))) ->  | T31: =IF(ISERROR(MATCH($P$1,$H$32:$H$50,0)),VLOOKUP($P$1,$H$32:$M$50,MATCH(T$4,$I$31:$M$31,0)+1,TRUE)+($P$1-VLOOKUP($P$1,$H$32:$H$50,1,TRUE))*(INDEX($I$32:$M$50,MATCH($P$1,$H$32:$H$50,1)+1,MATCH(T$4,$I$31:$M$31,0))-INDEX($I$32:$M$50,MATCH($P$1,$H$32:$H$50,1),MATCH(T$4,$I$31:$M$31,0)))/(INDEX($H$32:$H$50,MATCH($P$1,$H$32:$H$50,1)+1)-INDEX($H$32:$H$50,MATCH($P$1,$H$32:$H$50,1))),INDEX($I$32:$M$50,MATCH($P$1,$H$32:$H$50,0),MATCH(T4,$I$31:$M$31,0))) -> 
A32: 0 | B32: 0 | C32: 0 | D32: 0 | E32: 0 | F32: 0 | H32: =A32/100 -> 0 | I32: 0 | J32: 0 | K32: 0 | L32: 0 | M32: 0 | O32: New Separation distance | P32: =IF(ISERROR(MATCH($P$2,$H$32:$H$50,0)),VLOOKUP($P$2,$H$32:$M$50,MATCH(P$4,$I$31:$M$31,0)+1,TRUE)+($P$2-VLOOKUP($P$2,$H$32:$H$50,1,TRUE))*(INDEX($I$32:$M$50,MATCH($P$2,$H$32:$H$50,1)+1,MATCH(P$4,$I$31:$M$31,0))-INDEX($I$32:$M$50,MATCH($P$2,$H$32:$H$50,1),MATCH(P$4,$I$31:$M$31,0)))/(INDEX($H$32:$H$50,MATCH($P$2,$H$32:$H$50,1)+1)-INDEX($H$32:$H$50,MATCH($P$2,$H$32:$H$50,1))),INDEX($I$32:$M$50,MATCH($P$2,$H$32:$H$50,0),MATCH(P4,$I$31:$M$31,0))) ->  | Q32: =IF(ISERROR(MATCH($P$2,$H$32:$H$50,0)),VLOOKUP($P$2,$H$32:$M$50,MATCH(Q$4,$I$31:$M$31,0)+1,TRUE)+($P$2-VLOOKUP($P$2,$H$32:$H$50,1,TRUE))*(INDEX($I$32:$M$50,MATCH($P$2,$H$32:$H$50,1)+1,MATCH(Q$4,$I$31:$M$31,0))-INDEX($I$32:$M$50,MATCH($P$2,$H$32:$H$50,1),MATCH(Q$4,$I$31:$M$31,0)))/(INDEX($H$32:$H$50,MATCH($P$2,$H$32:$H$50,1)+1)-INDEX($H$32:$H$50,MATCH($P$2,$H$32:$H$50,1))),INDEX($I$32:$M$50,MATCH($P$2,$H$32:$H$50,0),MATCH(Q4,$I$31:$M$31,0))) ->  | R32: =IF(ISERROR(MATCH($P$2,$H$32:$H$50,0)),VLOOKUP($P$2,$H$32:$M$50,MATCH(R$4,$I$31:$M$31,0)+1,TRUE)+($P$2-VLOOKUP($P$2,$H$32:$H$50,1,TRUE))*(INDEX($I$32:$M$50,MATCH($P$2,$H$32:$H$50,1)+1,MATCH(R$4,$I$31:$M$31,0))-INDEX($I$32:$M$50,MATCH($P$2,$H$32:$H$50,1),MATCH(R$4,$I$31:$M$31,0)))/(INDEX($H$32:$H$50,MATCH($P$2,$H$32:$H$50,1)+1)-INDEX($H$32:$H$50,MATCH($P$2,$H$32:$H$50,1))),INDEX($I$32:$M$50,MATCH($P$2,$H$32:$H$50,0),MATCH(R4,$I$31:$M$31,0))) ->  | S32: =IF(ISERROR(MATCH($P$2,$H$32:$H$50,0)),VLOOKUP($P$2,$H$32:$M$50,MATCH(S$4,$I$31:$M$31,0)+1,TRUE)+($P$2-VLOOKUP($P$2,$H$32:$H$50,1,TRUE))*(INDEX($I$32:$M$50,MATCH($P$2,$H$32:$H$50,1)+1,MATCH(S$4,$I$31:$M$31,0))-INDEX($I$32:$M$50,MATCH($P$2,$H$32:$H$50,1),MATCH(S$4,$I$31:$M$31,0)))/(INDEX($H$32:$H$50,MATCH($P$2,$H$32:$H$50,1)+1)-INDEX($H$32:$H$50,MATCH($P$2,$H$32:$H$50,1))),INDEX($I$32:$M$50,MATCH($P$2,$H$32:$H$50,0),MATCH(S4,$I$31:$M$31,0))) ->  | T32: =IF(ISERROR(MATCH($P$2,$H$32:$H$50,0)),VLOOKUP($P$2,$H$32:$M$50,MATCH(T$4,$I$31:$M$31,0)+1,TRUE)+($P$2-VLOOKUP($P$2,$H$32:$H$50,1,TRUE))*(INDEX($I$32:$M$50,MATCH($P$2,$H$32:$H$50,1)+1,MATCH(T$4,$I$31:$M$31,0))-INDEX($I$32:$M$50,MATCH($P$2,$H$32:$H$50,1),MATCH(T$4,$I$31:$M$31,0)))/(INDEX($H$32:$H$50,MATCH($P$2,$H$32:$H$50,1)+1)-INDEX($H$32:$H$50,MATCH($P$2,$H$32:$H$50,1))),INDEX($I$32:$M$50,MATCH($P$2,$H$32:$H$50,0),MATCH(T4,$I$31:$M$31,0))) -> 
A33: 20 | B33: 180 | C33: 110 | D33: 85 | E33: 60 | F33: 40 | H33: =A33/100 -> 0.2 | I33: =+B33/1609.347 -> 0.1118466061 | J33: 0.06835070373 | K33: 0.05281645288 | L33: 0.03728220204 | M33: 0.02485480136
A34: 50 | B34: 290 | C34: 185 | D34: 130 | E34: 90 | F34: 50 | H34: 0.5 | I34: 0.1801973098 | J34: 0.1149534563 | K34: 0.08077810441 | L34: 0.05592330305 | M34: 0.0310685017
A35: 100 | B35: 415 | C35: 255 | D35: 170 | E35: 135 | F35: 58 | H35: 1 | I35: 0.2578685641 | J35: 0.1584493587 | K35: 0.1056329058 | L35: 0.08388495458 | M35: 0.03603946197
A36: 200 | B36: 610 | C36: 375 | D36: 255 | E36: 165 | F36: 68 | H36: 2 | I36: 0.3790357207 | J36: 0.2330137627 | K36: 0.1584493587 | L36: 0.1025260556 | M36: 0.04225316231
A37: 300 | B37: 745 | C37: 460 | D37: 305 | E37: 175 | F37: 80 | H37: 3 | I37: 0.4629206753 | J37: 0.2858302156 | K37: 0.1895178603 | L37: 0.1087397559 | M37: 0.04970960271
A38: 400 | B38: 860 | C38: 535 | D38: 340 | E38: 190 | F38: 90 | H38: 4 | I38: 0.5343782292 | J38: 0.3324329682 | K38: 0.2112658115 | L38: 0.1180603064 | M38: 0.05592330305
A39: 500 | B39: 960 | C39: 585 | D39: 380 | E39: 200 | F39: 100 | H39: 5 | I39: 0.5965152326 | J39: 0.3635014699 | K39: 0.2361206129 | L39: 0.1242740068 | M39: 0.06213700339
A40: 600 | B40: 1065 | C40: 640 | D40: 400 | E40: 215 | F40: 110 | H40: 6 | I40: 0.6617590861 | J40: 0.3976768217 | K40: 0.2485480136 | L40: 0.1335945573 | M40: 0.06835070373
A41: 700 | B41: 1140 | C41: 680 | D41: 430 | E41: 235 | F41: 120 | H41: 7 | I41: 0.7083618387 | J41: 0.4225316231 | K41: 0.2671891146 | L41: 0.146021958 | M41: 0.07456440407
A42: 800 | B42: 1215 | C42: 730 | D42: 450 | E42: 250 | F42: 130 | H42: 8 | I42: 0.7549645912 | J42: 0.4536001248 | K42: 0.2796165153 | L42: 0.1553425085 | M42: 0.08077810441
A43: 900 | B43: 1295 | C43: 770 | D43: 460 | E43: 260 | F43: 135 | H43: 9 | I43: 0.8046741939 | J43: 0.4784549261 | K43: 0.2858302156 | L43: 0.1615562088 | M43: 0.08388495458
A44: 1000 | B44: 1380 | C44: 805 | D44: 480 | E44: 270 | F44: 145 | H44: 10 | I44: 0.8574906468 | J44: 0.5002028773 | K44: 0.2982576163 | L44: 0.1677699092 | M44: 0.09009865492
A45: 1500 | B45: 1675 | C45: 985 | D45: 540 | E45: 340 | F45: 150 | H45: 15 | I45: 1.040794807 | J45: 0.6120494834 | K45: 0.3355398183 | L45: 0.2112658115 | M45: 0.09320550509
A46: 2000 | B46: 1970 | C46: 1135 | D46: 595 | E46: 415 | F46: 155 | H46: 20 | I46: 1.224098967 | J46: 0.7052549885 | K46: 0.3697151702 | L46: 0.2578685641 | M46: 0.09631235526
A47: 2500 | B47: 2190 | C47: 1265 | D47: 670 | E47: 455 | F47: 160 | H47: 25 | I47: 1.360800374 | J47: 0.7860330929 | K47: 0.4163179227 | L47: 0.2827233654 | M47: 0.09941920543
A48: 3000 | B48: 2380 | C48: 1385 | D48: 740 | E48: 505 | F48: 165 | H48: 30 | I48: 1.478860681 | J48: 0.860597497 | K48: 0.4598138251 | L48: 0.3137918671 | M48: 0.1025260556
A49: 3500 | B49: 2580 | C49: 1515 | D49: 810 | E49: 520 | F49: 170 | H49: 35 | I49: =+B49/1609.347 -> 1.603134688 | J49: 0.9413756014 | K49: 0.5033097275 | L49: 0.3231124176 | M49: 0.1056329058
A50: 4000 | B50: 2760 | C50: 1605 | D50: 900 | E50: 565 | F50: 180 | H50: 40 | I50: 1.714981294 | J50: 0.9972989045 | K50: 0.5592330305 | L50: 0.3510740692 | M50: 0.1118466061
A53: Lincoln, NE-AERMOD setback distances (South) as reported in the Odor Footprint Tool
A55: Setback Distances (m) for Lincoln, South | H55: Setback Distances (mi) for Lincoln, South
A56: x 104 | B56: Annoyance Free Percentage | H56: x 106 | I56: Annoyance Free Percentage
A57: OU/s | B57: 99 | C57: 98 | D57: 96 | E57: 94 | F57: 90 | H57: OU/s | I57: 99 | J57: 98 | K57: 96 | L57: 94 | M57: 90 | O57: Separation distance | P57: =IF(ISERROR(MATCH($P$1,$H$58:$H$76,0)),VLOOKUP($P$1,$H$58:$M$76,MATCH(P$4,$I$57:$M$57,0)+1,TRUE)+($P$1-VLOOKUP($P$1,$H$58:$H$76,1,TRUE))*(INDEX($I$58:$M$76,MATCH($P$1,$H$58:$H$76,1)+1,MATCH(P$4,$I$57:$M$57,0))-INDEX($I$58:$M$76,MATCH($P$1,$H$58:$H$76,1),MATCH(P$4,$I$57:$M$57,0)))/(INDEX($H$58:$H$76,MATCH($P$1,$H$58:$H$76,1)+1)-INDEX($H$58:$H$76,MATCH($P$1,$H$58:$H$76,1))),INDEX($I$58:$M$76,MATCH($P$1,$H$58:$H$76,0),MATCH(P$4,$I$57:$M$57,0))) ->  | Q57: =IF(ISERROR(MATCH($P$1,$H$58:$H$76,0)),VLOOKUP($P$1,$H$58:$M$76,MATCH(Q$4,$I$57:$M$57,0)+1,TRUE)+($P$1-VLOOKUP($P$1,$H$58:$H$76,1,TRUE))*(INDEX($I$58:$M$76,MATCH($P$1,$H$58:$H$76,1)+1,MATCH(Q$4,$I$57:$M$57,0))-INDEX($I$58:$M$76,MATCH($P$1,$H$58:$H$76,1),MATCH(Q$4,$I$57:$M$57,0)))/(INDEX($H$58:$H$76,MATCH($P$1,$H$58:$H$76,1)+1)-INDEX($H$58:$H$76,MATCH($P$1,$H$58:$H$76,1))),INDEX($I$58:$M$76,MATCH($P$1,$H$58:$H$76,0),MATCH(Q$4,$I$57:$M$57,0))) ->  | R57: =IF(ISERROR(MATCH($P$1,$H$58:$H$76,0)),VLOOKUP($P$1,$H$58:$M$76,MATCH(R$4,$I$57:$M$57,0)+1,TRUE)+($P$1-VLOOKUP($P$1,$H$58:$H$76,1,TRUE))*(INDEX($I$58:$M$76,MATCH($P$1,$H$58:$H$76,1)+1,MATCH(R$4,$I$57:$M$57,0))-INDEX($I$58:$M$76,MATCH($P$1,$H$58:$H$76,1),MATCH(R$4,$I$57:$M$57,0)))/(INDEX($H$58:$H$76,MATCH($P$1,$H$58:$H$76,1)+1)-INDEX($H$58:$H$76,MATCH($P$1,$H$58:$H$76,1))),INDEX($I$58:$M$76,MATCH($P$1,$H$58:$H$76,0),MATCH(R$4,$I$57:$M$57,0))) ->  | S57: =IF(ISERROR(MATCH($P$1,$H$58:$H$76,0)),VLOOKUP($P$1,$H$58:$M$76,MATCH(S$4,$I$57:$M$57,0)+1,TRUE)+($P$1-VLOOKUP($P$1,$H$58:$H$76,1,TRUE))*(INDEX($I$58:$M$76,MATCH($P$1,$H$58:$H$76,1)+1,MATCH(S$4,$I$57:$M$57,0))-INDEX($I$58:$M$76,MATCH($P$1,$H$58:$H$76,1),MATCH(S$4,$I$57:$M$57,0)))/(INDEX($H$58:$H$76,MATCH($P$1,$H$58:$H$76,1)+1)-INDEX($H$58:$H$76,MATCH($P$1,$H$58:$H$76,1))),INDEX($I$58:$M$76,MATCH($P$1,$H$58:$H$76,0),MATCH(S$4,$I$57:$M$57,0))) ->  | T57: =IF(ISERROR(MATCH($P$1,$H$58:$H$76,0)),VLOOKUP($P$1,$H$58:$M$76,MATCH(T$4,$I$57:$M$57,0)+1,TRUE)+($P$1-VLOOKUP($P$1,$H$58:$H$76,1,TRUE))*(INDEX($I$58:$M$76,MATCH($P$1,$H$58:$H$76,1)+1,MATCH(T$4,$I$57:$M$57,0))-INDEX($I$58:$M$76,MATCH($P$1,$H$58:$H$76,1),MATCH(T$4,$I$57:$M$57,0)))/(INDEX($H$58:$H$76,MATCH($P$1,$H$58:$H$76,1)+1)-INDEX($H$58:$H$76,MATCH($P$1,$H$58:$H$76,1))),INDEX($I$58:$M$76,MATCH($P$1,$H$58:$H$76,0),MATCH(T$4,$I$57:$M$57,0))) -> 
A58: 0 | B58: 0 | C58: 0 | D58: 0 | E58: 0 | F58: 0 | H58: =A58/100 -> 0 | I58: 0 | J58: 0 | K58: 0 | L58: 0 | M58: 0 | O58: New Separation distance | P58: =IF(ISERROR(MATCH($P$2,$H$58:$H$76,0)),VLOOKUP($P$2,$H$58:$M$76,MATCH(P$4,$I$57:$M$57,0)+1,TRUE)+($P$2-VLOOKUP($P$2,$H$58:$H$76,1,TRUE))*(INDEX($I$58:$M$76,MATCH($P$2,$H$58:$H$76,1)+1,MATCH(P$4,$I$57:$M$57,0))-INDEX($I$58:$M$76,MATCH($P$2,$H$58:$H$76,1),MATCH(P$4,$I$57:$M$57,0)))/(INDEX($H$58:$H$76,MATCH($P$2,$H$58:$H$76,1)+1)-INDEX($H$58:$H$76,MATCH($P$2,$H$58:$H$76,1))),INDEX($I$58:$M$76,MATCH($P$2,$H$58:$H$76,0),MATCH(P4,$I$57:$M$57,0))) ->  | Q58: =IF(ISERROR(MATCH($P$2,$H$58:$H$76,0)),VLOOKUP($P$2,$H$58:$M$76,MATCH(Q$4,$I$57:$M$57,0)+1,TRUE)+($P$2-VLOOKUP($P$2,$H$58:$H$76,1,TRUE))*(INDEX($I$58:$M$76,MATCH($P$2,$H$58:$H$76,1)+1,MATCH(Q$4,$I$57:$M$57,0))-INDEX($I$58:$M$76,MATCH($P$2,$H$58:$H$76,1),MATCH(Q$4,$I$57:$M$57,0)))/(INDEX($H$58:$H$76,MATCH($P$2,$H$58:$H$76,1)+1)-INDEX($H$58:$H$76,MATCH($P$2,$H$58:$H$76,1))),INDEX($I$58:$M$76,MATCH($P$2,$H$58:$H$76,0),MATCH(Q4,$I$57:$M$57,0))) ->  | R58: =IF(ISERROR(MATCH($P$2,$H$58:$H$76,0)),VLOOKUP($P$2,$H$58:$M$76,MATCH(R$4,$I$57:$M$57,0)+1,TRUE)+($P$2-VLOOKUP($P$2,$H$58:$H$76,1,TRUE))*(INDEX($I$58:$M$76,MATCH($P$2,$H$58:$H$76,1)+1,MATCH(R$4,$I$57:$M$57,0))-INDEX($I$58:$M$76,MATCH($P$2,$H$58:$H$76,1),MATCH(R$4,$I$57:$M$57,0)))/(INDEX($H$58:$H$76,MATCH($P$2,$H$58:$H$76,1)+1)-INDEX($H$58:$H$76,MATCH($P$2,$H$58:$H$76,1))),INDEX($I$58:$M$76,MATCH($P$2,$H$58:$H$76,0),MATCH(R4,$I$57:$M$57,0))) ->  | S58: =IF(ISERROR(MATCH($P$2,$H$58:$H$76,0)),VLOOKUP($P$2,$H$58:$M$76,MATCH(S$4,$I$57:$M$57,0)+1,TRUE)+($P$2-VLOOKUP($P$2,$H$58:$H$76,1,TRUE))*(INDEX($I$58:$M$76,MATCH($P$2,$H$58:$H$76,1)+1,MATCH(S$4,$I$57:$M$57,0))-INDEX($I$58:$M$76,MATCH($P$2,$H$58:$H$76,1),MATCH(S$4,$I$57:$M$57,0)))/(INDEX($H$58:$H$76,MATCH($P$2,$H$58:$H$76,1)+1)-INDEX($H$58:$H$76,MATCH($P$2,$H$58:$H$76,1))),INDEX($I$58:$M$76,MATCH($P$2,$H$58:$H$76,0),MATCH(S4,$I$57:$M$57,0))) ->  | T58: =IF(ISERROR(MATCH($P$2,$H$58:$H$76,0)),VLOOKUP($P$2,$H$58:$M$76,MATCH(T$4,$I$57:$M$57,0)+1,TRUE)+($P$2-VLOOKUP($P$2,$H$58:$H$76,1,TRUE))*(INDEX($I$58:$M$76,MATCH($P$2,$H$58:$H$76,1)+1,MATCH(T$4,$I$57:$M$57,0))-INDEX($I$58:$M$76,MATCH($P$2,$H$58:$H$76,1),MATCH(T$4,$I$57:$M$57,0)))/(INDEX($H$58:$H$76,MATCH($P$2,$H$58:$H$76,1)+1)-INDEX($H$58:$H$76,MATCH($P$2,$H$58:$H$76,1))),INDEX($I$58:$M$76,MATCH($P$2,$H$58:$H$76,0),MATCH(T4,$I$57:$M$57,0))) -> 
A59: 20 | B59: 410 | C59: 230 | D59: 135 | E59: 105 | F59: 75 | H59: =A59/100 -> 0.2 | I59: =+B59/1609.347 -> 0.2547617139 | J59: 0.1429151078 | K59: 0.08388495458 | L59: 0.06524385356 | M59: 0.04660275254
A60: 50 | B60: 710 | C60: 380 | D60: 220 | E60: 170 | F60: 120 | H60: 0.5 | I60: 0.4411727241 | J60: 0.2361206129 | K60: 0.1367014075 | L60: 0.1056329058 | M60: 0.07456440407
A61: 100 | B61: 1030 | C61: 550 | D61: 315 | E61: 240 | F61: 165 | H61: 1 | I61: 0.640011135 | J61: 0.3417535187 | K61: 0.1957315607 | L61: 0.1491288081 | M61: 0.1025260556
A62: 200 | B62: 1480 | C62: 805 | D62: 455 | E62: 340 | F62: 230 | H62: 2 | I62: 0.9196276502 | J62: 0.5002028773 | K62: 0.2827233654 | L62: 0.2112658115 | M62: 0.1429151078
A63: 300 | B63: 1870 | C63: 1030 | D63: 555 | E63: 415 | F63: 275 | H63: 3 | I63: 1.161961963 | J63: 0.640011135 | K63: 0.3448603688 | L63: 0.2578685641 | M63: 0.1708767593
A64: 400 | B64: 2210 | C64: 1195 | D64: 645 | E64: 485 | F64: 320 | H64: 4 | I64: 1.373227775 | J64: 0.7425371905 | K64: 0.4007836719 | L64: 0.3013644665 | M64: 0.1988384109
A65: 500 | B65: 2535 | C65: 1355 | D65: 740 | E65: 540 | F65: 340 | H65: 5 | I65: 1.575173036 | J65: 0.841956396 | K65: 0.4598138251 | L65: 0.3355398183 | M65: 0.2112658115
A66: 600 | B66: 2810 | C66: 1505 | D66: 790 | E66: 595 | F66: 380 | H66: 6 | I66: 1.746049795 | J66: 0.9351619011 | K66: 0.4908823268 | L66: 0.3697151702 | M66: 0.2361206129
A67: 700 | B67: 3070 | C67: 1635 | D67: 870 | E67: 640 | F67: 400 | H67: 7 | I67: 1.907606004 | J67: 1.015940005 | K67: 0.5405919295 | L67: 0.3976768217 | M67: 0.2485480136
A68: 800 | B68: 3290 | C68: 1750 | D68: 930 | E68: 675 | F68: 405 | H68: 8 | I68: 2.044307412 | J68: 1.087397559 | K68: 0.5778741316 | L68: 0.4194247729 | M68: 0.2516548637
A69: 900 | B69: 3565 | C69: 1890 | D69: 990 | E69: 710 | F69: 450 | H69: 9 | I69: 2.215184171 | J69: 1.174389364 | K69: 0.6151563336 | L69: 0.4411727241 | M69: 0.2796165153
A70: 1000 | B70: 3800 | C70: 1945 | D70: 1040 | E70: 750 | F70: 455 | H70: 10 | I70: 2.361206129 | J70: 1.208564716 | K70: 0.6462248353 | L70: 0.4660275254 | M70: 0.2827233654
A71: 1500 | B71: 4720 | C71: 2485 | D71: 1280 | E71: 915 | F71: 545 | H71: 15 | I71: 2.93286656 | J71: 1.544104534 | K71: 0.7953536434 | L71: 0.568553581 | M71: 0.3386466685
A72: 2000 | B72: 5540 | C72: 2920 | D72: 1480 | E72: 1065 | F72: 605 | H72: 20 | I72: 3.442389988 | J72: 1.814400499 | K72: 0.9196276502 | L72: 0.6617590861 | M72: 0.3759288705
A73: 2500 | B73: 6300 | C73: 3230 | D73: 1640 | E73: 1160 | F73: 665 | H73: 25 | I73: 3.914631214 | J73: 2.00702521 | K73: 1.019046856 | L73: 0.7207892394 | M73: 0.4132110726
A74: 3000 | B74: 6900 | C74: 3585 | D74: 1835 | E74: 1285 | F74: 715 | H74: 30 | I74: 4.287453234 | J74: 2.227611572 | K74: 1.140214012 | L74: 0.7984604936 | M74: 0.4442795743
A75: 3500 | B75: 7595 | C75: 3940 | D75: 1980 | E75: 1375 | F75: 745 | H75: 35 | I75: =+B75/1609.347 -> 4.719305408 | J75: 2.448197934 | K75: 1.230312667 | L75: 0.8543837967 | M75: 0.4629206753
A76: 4000 | B76: 8170 | C76: 4220 | D76: 2110 | E76: 1415 | F76: 770 | H76: 40 | I76: 5.076593177 | J76: 2.622181543 | K76: 1.311090772 | L76: 0.879238598 | M76: 0.4784549261
A79: Lincoln, NE-AERMOD setback distances (West) as reported in the Odor Footprint Tool
A81: Setback Distances (m) for Lincoln, West | H81: Setback Distances (m) for Lincoln, West
A82: x 104 | B82: Annoyance Free Percentage | H82: x 106 | I82: Annoyance Free Percentage
A83: OU/s | B83: 99 | C83: 98 | D83: 96 | E83: 94 | F83: 90 | H83: OU/s | I83: 99 | J83: 98 | K83: 96 | L83: 94 | M83: 90 | O83: Separation distance | P83: =IF(ISERROR(MATCH($P$1,$H$84:$H$102,0)),VLOOKUP($P$1,$H$84:$M$102,MATCH(P$4,$I$83:$M$83,0)+1,TRUE)+($P$1-VLOOKUP($P$1,$H$84:$H$102,1,TRUE))*(INDEX($I$84:$M$102,MATCH($P$1,$H$84:$H$102,1)+1,MATCH(P$4,$I$83:$M$83,0))-INDEX($I$84:$M$102,MATCH($P$1,$H$84:$H$102,1),MATCH(P$4,$I$83:$M$83,0)))/(INDEX($H$84:$H$102,MATCH($P$1,$H$84:$H$102,1)+1)-INDEX($H$84:$H$102,MATCH($P$1,$H$84:$H$102,1))),INDEX($I$84:$M$102,MATCH($P$1,$H$84:$H$102,0),MATCH(P4,$I$83:$M$83,0))) ->  | Q83: =IF(ISERROR(MATCH($P$1,$H$84:$H$102,0)),VLOOKUP($P$1,$H$84:$M$102,MATCH(Q$4,$I$83:$M$83,0)+1,TRUE)+($P$1-VLOOKUP($P$1,$H$84:$H$102,1,TRUE))*(INDEX($I$84:$M$102,MATCH($P$1,$H$84:$H$102,1)+1,MATCH(Q$4,$I$83:$M$83,0))-INDEX($I$84:$M$102,MATCH($P$1,$H$84:$H$102,1),MATCH(Q$4,$I$83:$M$83,0)))/(INDEX($H$84:$H$102,MATCH($P$1,$H$84:$H$102,1)+1)-INDEX($H$84:$H$102,MATCH($P$1,$H$84:$H$102,1))),INDEX($I$84:$M$102,MATCH($P$1,$H$84:$H$102,0),MATCH(Q4,$I$83:$M$83,0))) ->  | R83: =IF(ISERROR(MATCH($P$1,$H$84:$H$102,0)),VLOOKUP($P$1,$H$84:$M$102,MATCH(R$4,$I$83:$M$83,0)+1,TRUE)+($P$1-VLOOKUP($P$1,$H$84:$H$102,1,TRUE))*(INDEX($I$84:$M$102,MATCH($P$1,$H$84:$H$102,1)+1,MATCH(R$4,$I$83:$M$83,0))-INDEX($I$84:$M$102,MATCH($P$1,$H$84:$H$102,1),MATCH(R$4,$I$83:$M$83,0)))/(INDEX($H$84:$H$102,MATCH($P$1,$H$84:$H$102,1)+1)-INDEX($H$84:$H$102,MATCH($P$1,$H$84:$H$102,1))),INDEX($I$84:$M$102,MATCH($P$1,$H$84:$H$102,0),MATCH(R4,$I$83:$M$83,0))) ->  | S83: =IF(ISERROR(MATCH($P$1,$H$84:$H$102,0)),VLOOKUP($P$1,$H$84:$M$102,MATCH(S$4,$I$83:$M$83,0)+1,TRUE)+($P$1-VLOOKUP($P$1,$H$84:$H$102,1,TRUE))*(INDEX($I$84:$M$102,MATCH($P$1,$H$84:$H$102,1)+1,MATCH(S$4,$I$83:$M$83,0))-INDEX($I$84:$M$102,MATCH($P$1,$H$84:$H$102,1),MATCH(S$4,$I$83:$M$83,0)))/(INDEX($H$84:$H$102,MATCH($P$1,$H$84:$H$102,1)+1)-INDEX($H$84:$H$102,MATCH($P$1,$H$84:$H$102,1))),INDEX($I$84:$M$102,MATCH($P$1,$H$84:$H$102,0),MATCH(S4,$I$83:$M$83,0))) ->  | T83: =IF(ISERROR(MATCH($P$1,$H$84:$H$102,0)),VLOOKUP($P$1,$H$84:$M$102,MATCH(T$4,$I$83:$M$83,0)+1,TRUE)+($P$1-VLOOKUP($P$1,$H$84:$H$102,1,TRUE))*(INDEX($I$84:$M$102,MATCH($P$1,$H$84:$H$102,1)+1,MATCH(T$4,$I$83:$M$83,0))-INDEX($I$84:$M$102,MATCH($P$1,$H$84:$H$102,1),MATCH(T$4,$I$83:$M$83,0)))/(INDEX($H$84:$H$102,MATCH($P$1,$H$84:$H$102,1)+1)-INDEX($H$84:$H$102,MATCH($P$1,$H$84:$H$102,1))),INDEX($I$84:$M$102,MATCH($P$1,$H$84:$H$102,0),MATCH(T4,$I$83:$M$83,0))) -> 
A84: 0 | B84: 0 | C84: 0 | D84: 0 | E84: 0 | F84: 0 | H84: =A84/100 -> 0 | I84: 0 | J84: 0 | K84: 0 | L84: 0 | M84: 0 | O84: New Separation distance | P84: =IF(ISERROR(MATCH($P$2,$H$84:$H$102,0)),VLOOKUP($P$2,$H$84:$M$102,MATCH(P$4,$I$83:$M$83,0)+1,TRUE)+($P$2-VLOOKUP($P$2,$H$84:$H$102,1,TRUE))*(INDEX($I$84:$M$102,MATCH($P$2,$H$84:$H$102,1)+1,MATCH(P$4,$I$83:$M$83,0))-INDEX($I$84:$M$102,MATCH($P$2,$H$84:$H$102,1),MATCH(P$4,$I$83:$M$83,0)))/(INDEX($H$84:$H$102,MATCH($P$2,$H$84:$H$102,1)+1)-INDEX($H$84:$H$102,MATCH($P$2,$H$84:$H$102,1))),INDEX($I$84:$M$102,MATCH($P$2,$H$84:$H$102,0),MATCH(P4,$I$83:$M$83,0))) ->  | Q84: =IF(ISERROR(MATCH($P$2,$H$84:$H$102,0)),VLOOKUP($P$2,$H$84:$M$102,MATCH(Q$4,$I$83:$M$83,0)+1,TRUE)+($P$2-VLOOKUP($P$2,$H$84:$H$102,1,TRUE))*(INDEX($I$84:$M$102,MATCH($P$2,$H$84:$H$102,1)+1,MATCH(Q$4,$I$83:$M$83,0))-INDEX($I$84:$M$102,MATCH($P$2,$H$84:$H$102,1),MATCH(Q$4,$I$83:$M$83,0)))/(INDEX($H$84:$H$102,MATCH($P$2,$H$84:$H$102,1)+1)-INDEX($H$84:$H$102,MATCH($P$2,$H$84:$H$102,1))),INDEX($I$84:$M$102,MATCH($P$2,$H$84:$H$102,0),MATCH(Q4,$I$83:$M$83,0))) ->  | R84: =IF(ISERROR(MATCH($P$2,$H$84:$H$102,0)),VLOOKUP($P$2,$H$84:$M$102,MATCH(R$4,$I$83:$M$83,0)+1,TRUE)+($P$2-VLOOKUP($P$2,$H$84:$H$102,1,TRUE))*(INDEX($I$84:$M$102,MATCH($P$2,$H$84:$H$102,1)+1,MATCH(R$4,$I$83:$M$83,0))-INDEX($I$84:$M$102,MATCH($P$2,$H$84:$H$102,1),MATCH(R$4,$I$83:$M$83,0)))/(INDEX($H$84:$H$102,MATCH($P$2,$H$84:$H$102,1)+1)-INDEX($H$84:$H$102,MATCH($P$2,$H$84:$H$102,1))),INDEX($I$84:$M$102,MATCH($P$2,$H$84:$H$102,0),MATCH(R4,$I$83:$M$83,0))) ->  | S84: =IF(ISERROR(MATCH($P$2,$H$84:$H$102,0)),VLOOKUP($P$2,$H$84:$M$102,MATCH(S$4,$I$83:$M$83,0)+1,TRUE)+($P$2-VLOOKUP($P$2,$H$84:$H$102,1,TRUE))*(INDEX($I$84:$M$102,MATCH($P$2,$H$84:$H$102,1)+1,MATCH(S$4,$I$83:$M$83,0))-INDEX($I$84:$M$102,MATCH($P$2,$H$84:$H$102,1),MATCH(S$4,$I$83:$M$83,0)))/(INDEX($H$84:$H$102,MATCH($P$2,$H$84:$H$102,1)+1)-INDEX($H$84:$H$102,MATCH($P$2,$H$84:$H$102,1))),INDEX($I$84:$M$102,MATCH($P$2,$H$84:$H$102,0),MATCH(S4,$I$83:$M$83,0))) ->  | T84: =IF(ISERROR(MATCH($P$2,$H$84:$H$102,0)),VLOOKUP($P$2,$H$84:$M$102,MATCH(T$4,$I$83:$M$83,0)+1,TRUE)+($P$2-VLOOKUP($P$2,$H$84:$H$102,1,TRUE))*(INDEX($I$84:$M$102,MATCH($P$2,$H$84:$H$102,1)+1,MATCH(T$4,$I$83:$M$83,0))-INDEX($I$84:$M$102,MATCH($P$2,$H$84:$H$102,1),MATCH(T$4,$I$83:$M$83,0)))/(INDEX($H$84:$H$102,MATCH($P$2,$H$84:$H$102,1)+1)-INDEX($H$84:$H$102,MATCH($P$2,$H$84:$H$102,1))),INDEX($I$84:$M$102,MATCH($P$2,$H$84:$H$102,0),MATCH(T4,$I$83:$M$83,0))) -> 
A85: 20 | B85: 195 | C85: 130 | D85: 95 | E85: 80 | F85: 60 | H85: =A85/100 -> 0.2 | I85: =+B85/1609.347 -> 0.1211671566 | J85: 0.08077810441 | K85: 0.05903015322 | L85: 0.04970960271 | M85: 0.03728220204
A86: 50 | B86: 315 | C86: 215 | D86: 155 | E86: 125 | F86: 90 | H86: 0.5 | I86: 0.1957315607 | J86: 0.1335945573 | K86: 0.09631235526 | L86: 0.07767125424 | M86: 0.05592330305
A87: 100 | B87: 475 | C87: 310 | D87: 220 | E87: 160 | F87: 135 | H87: 1 | I87: 0.2951507661 | J87: 0.1926247105 | K87: 0.1367014075 | L87: 0.09941920543 | M87: 0.08388495458
A88: 200 | B88: 695 | C88: 450 | D88: 285 | E88: 200 | F88: 150 | H88: 2 | I88: 0.4318521736 | J88: 0.2796165153 | K88: 0.1770904597 | L88: 0.1242740068 | M88: 0.09320550509
A89: 300 | B89: 850 | C89: 530 | D89: 350 | E89: 235 | F89: 165 | H89: 3 | I89: 0.5281645288 | J89: 0.329326118 | K89: 0.2174795119 | L89: 0.146021958 | M89: 0.1025260556
A90: 400 | B90: 1000 | C90: 610 | D90: 400 | E90: 285 | F90: 175 | H90: 4 | I90: 0.6213700339 | J90: 0.3790357207 | K90: 0.2485480136 | L90: 0.1770904597 | M90: 0.1087397559
A91: 500 | B91: 1155 | C91: 665 | D91: 460 | E91: 325 | F91: 195 | H91: 5 | I91: 0.7176823892 | J91: 0.4132110726 | K91: 0.2858302156 | L91: 0.201945261 | M91: 0.1211671566
A92: 600 | B92: 1275 | C92: 755 | D92: 500 | E92: 370 | F92: 220 | H92: 6 | I92: 0.7922467933 | J92: 0.4691343756 | K92: 0.310685017 | L92: 0.2299069126 | M92: 0.1367014075
A93: 700 | B93: 1400 | C93: 820 | D93: 550 | E93: 400 | F93: 230 | H93: 7 | I93: 0.8699180475 | J93: 0.5095234278 | K93: 0.3417535187 | L93: 0.2485480136 | M93: 0.1429151078
A94: 800 | B94: 1510 | C94: 880 | D94: 590 | E94: 435 | F94: 240 | H94: 8 | I94: 0.9382687512 | J94: 0.5468056299 | K94: 0.36660832 | L94: 0.2702959648 | M94: 0.1491288081
A95: 900 | B95: 1610 | C95: 940 | D95: 640 | E95: 470 | F95: 250 | H95: 9 | I95: 1.000405755 | J95: 0.5840878319 | K95: 0.3976768217 | L95: 0.2920439159 | M95: 0.1553425085
A96: 1000 | B96: 1710 | C96: 990 | D96: 680 | E96: 500 | F96: 260 | H96: 10 | I96: 1.062542758 | J96: 0.6151563336 | K96: 0.4225316231 | L96: 0.310685017 | M96: 0.1615562088
A97: 1500 | B97: 2070 | C97: 1210 | D97: 830 | E97: 595 | F97: 295 | H97: 15 | I97: 1.28623597 | J97: 0.7518577411 | K97: 0.5157371282 | L97: 0.3697151702 | M97: 0.18330416
A98: 2000 | B98: 2400 | C98: 1460 | D98: 975 | E98: 655 | F98: 340 | H98: 20 | I98: 1.491288081 | J98: 0.9072002495 | K98: 0.6058357831 | L98: 0.4069973722 | M98: 0.2112658115
A99: 2500 | B99: 2740 | C99: 1640 | D99: 1080 | E99: 710 | F99: 370 | H99: 25 | I99: 1.702553893 | J99: 1.019046856 | K99: 0.6710796366 | L99: 0.4411727241 | M99: 0.2299069126
A100: 3000 | B100: 3060 | C100: 1815 | D100: 1160 | E100: 765 | F100: 410 | H100: 30 | I100: 1.901392304 | J100: 1.127786612 | K100: 0.7207892394 | L100: 0.475348076 | M100: 0.2547617139
A101: 3500 | B101: 3400 | C101: 1930 | D101: 1255 | E101: 785 | F101: 460 | H101: 35 | I101: =+B101/1609.347 -> 2.112658115 | J101: 1.199244165 | K101: 0.7798193926 | L101: 0.4877754766 | M101: 0.2858302156
A102: 4000 | B102: 3695 | C102: 2050 | D102: 1310 | E102: 830 | F102: 515 | H102: 40 | I102: 2.295962275 | J102: 1.27380857 | K102: 0.8139947445 | L102: 0.5157371282 | M102: 0.3200055675

Sheet Norfolk (hidden)
A1: Norfolk, NE-AERMOD setback distances (NE) as reported in the Odor Footprint Tool | O1: Total Scaled Odor Emission Rate (x10^6) | P1: =Inputs!E33 -> 
O2: New Total Scaled Odor Emission Rate (x10^6) | P2: =Inputs!E42 -> 
A3: Setback Distances (m) for Norfolk, NE Direction | H3: Setback Distances (mi) for Norfolk, NE Direction
A4: x 104 | B4: Annoyance Free Percentage | H4: x 106 | I4: Annoyance Free Percentage | O4: Annoyance free percentage | P4: 99 | Q4: 98 | R4: 96 | S4: 94 | T4: 90
A5: OU/s | B5: 99 | C5: 98 | D5: 96 | E5: 94 | F5: 90 | H5: OU/s | I5: 99 | J5: 98 | K5: 96 | L5: 94 | M5: 90 | O5: Separation distance | P5: =IF(ISERROR(MATCH($P$1,$H$6:$H$24,0)),VLOOKUP($P$1,$H$6:$M$24,MATCH(P4,$I$5:$M$5,0)+1,TRUE)+($P$1-VLOOKUP($P$1,$H$6:$H$24,1,TRUE))*(INDEX($I$6:$M$24,MATCH($P$1,$H$6:$H$24,1)+1,MATCH(P4,$I$5:$M$5,0))-INDEX($I$6:$M$24,MATCH($P$1,$H$6:$H$24,1),MATCH(P4,$I$5:$M$5,0)))/(INDEX($H$6:$H$24,MATCH($P$1,$H$6:$H$24,1)+1)-INDEX($H$6:$H$24,MATCH($P$1,$H$6:$H$24,1))),INDEX($I$6:$M$24,MATCH($P$1,$H$6:$H$24,0),MATCH(P4,$I$5:$M$5,0))) ->  | Q5: =IF(ISERROR(MATCH($P$1,$H$6:$H$24,0)),VLOOKUP($P$1,$H$6:$M$24,MATCH(Q4,$I$5:$M$5,0)+1,TRUE)+($P$1-VLOOKUP($P$1,$H$6:$H$24,1,TRUE))*(INDEX($I$6:$M$24,MATCH($P$1,$H$6:$H$24,1)+1,MATCH(Q4,$I$5:$M$5,0))-INDEX($I$6:$M$24,MATCH($P$1,$H$6:$H$24,1),MATCH(Q4,$I$5:$M$5,0)))/(INDEX($H$6:$H$24,MATCH($P$1,$H$6:$H$24,1)+1)-INDEX($H$6:$H$24,MATCH($P$1,$H$6:$H$24,1))),INDEX($I$6:$M$24,MATCH($P$1,$H$6:$H$24,0),MATCH(Q4,$I$5:$M$5,0))) ->  | R5: =IF(ISERROR(MATCH($P$1,$H$6:$H$24,0)),VLOOKUP($P$1,$H$6:$M$24,MATCH(R4,$I$5:$M$5,0)+1,TRUE)+($P$1-VLOOKUP($P$1,$H$6:$H$24,1,TRUE))*(INDEX($I$6:$M$24,MATCH($P$1,$H$6:$H$24,1)+1,MATCH(R4,$I$5:$M$5,0))-INDEX($I$6:$M$24,MATCH($P$1,$H$6:$H$24,1),MATCH(R4,$I$5:$M$5,0)))/(INDEX($H$6:$H$24,MATCH($P$1,$H$6:$H$24,1)+1)-INDEX($H$6:$H$24,MATCH($P$1,$H$6:$H$24,1))),INDEX($I$6:$M$24,MATCH($P$1,$H$6:$H$24,0),MATCH(R4,$I$5:$M$5,0))) ->  | S5: =IF(ISERROR(MATCH($P$1,$H$6:$H$24,0)),VLOOKUP($P$1,$H$6:$M$24,MATCH(S4,$I$5:$M$5,0)+1,TRUE)+($P$1-VLOOKUP($P$1,$H$6:$H$24,1,TRUE))*(INDEX($I$6:$M$24,MATCH($P$1,$H$6:$H$24,1)+1,MATCH(S4,$I$5:$M$5,0))-INDEX($I$6:$M$24,MATCH($P$1,$H$6:$H$24,1),MATCH(S4,$I$5:$M$5,0)))/(INDEX($H$6:$H$24,MATCH($P$1,$H$6:$H$24,1)+1)-INDEX($H$6:$H$24,MATCH($P$1,$H$6:$H$24,1))),INDEX($I$6:$M$24,MATCH($P$1,$H$6:$H$24,0),MATCH(S4,$I$5:$M$5,0))) ->  | T5: =IF(ISERROR(MATCH($P$1,$H$6:$H$24,0)),VLOOKUP($P$1,$H$6:$M$24,MATCH(T4,$I$5:$M$5,0)+1,TRUE)+($P$1-VLOOKUP($P$1,$H$6:$H$24,1,TRUE))*(INDEX($I$6:$M$24,MATCH($P$1,$H$6:$H$24,1)+1,MATCH(T4,$I$5:$M$5,0))-INDEX($I$6:$M$24,MATCH($P$1,$H$6:$H$24,1),MATCH(T4,$I$5:$M$5,0)))/(INDEX($H$6:$H$24,MATCH($P$1,$H$6:$H$24,1)+1)-INDEX($H$6:$H$24,MATCH($P$1,$H$6:$H$24,1))),INDEX($I$6:$M$24,MATCH($P$1,$H$6:$H$24,0),MATCH(T4,$I$5:$M$5,0))) -> 
A6: 0 | B6: 0 | C6: 0 | D6: 0 | E6: 0 | F6: 0 | H6: =A6/100 -> 0 | I6: 0 | J6: 0 | K6: 0 | L6: 0 | M6: 0 | O6: New Separation distance | P6: =IF(ISERROR(MATCH($P$2,$H$6:$H$24,0)),VLOOKUP($P$2,$H$6:$M$24,MATCH(P4,$I$5:$M$5,0)+1,TRUE)+($P$2-VLOOKUP($P$2,$H$6:$H$24,1,TRUE))*(INDEX($I$6:$M$24,MATCH($P$2,$H$6:$H$24,1)+1,MATCH(P4,$I$5:$M$5,0))-INDEX($I$6:$M$24,MATCH($P$2,$H$6:$H$24,1),MATCH(P4,$I$5:$M$5,0)))/(INDEX($H$6:$H$24,MATCH($P$2,$H$6:$H$24,1)+1)-INDEX($H$6:$H$24,MATCH($P$2,$H$6:$H$24,1))),INDEX($I$6:$M$24,MATCH($P$2,$H$6:$H$24,0),MATCH(P4,$I$5:$M$5,0))) ->  | Q6: =IF(ISERROR(MATCH($P$2,$H$6:$H$24,0)),VLOOKUP($P$2,$H$6:$M$24,MATCH(Q4,$I$5:$M$5,0)+1,TRUE)+($P$2-VLOOKUP($P$2,$H$6:$H$24,1,TRUE))*(INDEX($I$6:$M$24,MATCH($P$2,$H$6:$H$24,1)+1,MATCH(Q4,$I$5:$M$5,0))-INDEX($I$6:$M$24,MATCH($P$2,$H$6:$H$24,1),MATCH(Q4,$I$5:$M$5,0)))/(INDEX($H$6:$H$24,MATCH($P$2,$H$6:$H$24,1)+1)-INDEX($H$6:$H$24,MATCH($P$2,$H$6:$H$24,1))),INDEX($I$6:$M$24,MATCH($P$2,$H$6:$H$24,0),MATCH(Q4,$I$5:$M$5,0))) ->  | R6: =IF(ISERROR(MATCH($P$2,$H$6:$H$24,0)),VLOOKUP($P$2,$H$6:$M$24,MATCH(R4,$I$5:$M$5,0)+1,TRUE)+($P$2-VLOOKUP($P$2,$H$6:$H$24,1,TRUE))*(INDEX($I$6:$M$24,MATCH($P$2,$H$6:$H$24,1)+1,MATCH(R4,$I$5:$M$5,0))-INDEX($I$6:$M$24,MATCH($P$2,$H$6:$H$24,1),MATCH(R4,$I$5:$M$5,0)))/(INDEX($H$6:$H$24,MATCH($P$2,$H$6:$H$24,1)+1)-INDEX($H$6:$H$24,MATCH($P$2,$H$6:$H$24,1))),INDEX($I$6:$M$24,MATCH($P$2,$H$6:$H$24,0),MATCH(R4,$I$5:$M$5,0))) ->  | S6: =IF(ISERROR(MATCH($P$2,$H$6:$H$24,0)),VLOOKUP($P$2,$H$6:$M$24,MATCH(S4,$I$5:$M$5,0)+1,TRUE)+($P$2-VLOOKUP($P$2,$H$6:$H$24,1,TRUE))*(INDEX($I$6:$M$24,MATCH($P$2,$H$6:$H$24,1)+1,MATCH(S4,$I$5:$M$5,0))-INDEX($I$6:$M$24,MATCH($P$2,$H$6:$H$24,1),MATCH(S4,$I$5:$M$5,0)))/(INDEX($H$6:$H$24,MATCH($P$2,$H$6:$H$24,1)+1)-INDEX($H$6:$H$24,MATCH($P$2,$H$6:$H$24,1))),INDEX($I$6:$M$24,MATCH($P$2,$H$6:$H$24,0),MATCH(S4,$I$5:$M$5,0))) ->  | T6: =IF(ISERROR(MATCH($P$2,$H$6:$H$24,0)),VLOOKUP($P$2,$H$6:$M$24,MATCH(T4,$I$5:$M$5,0)+1,TRUE)+($P$2-VLOOKUP($P$2,$H$6:$H$24,1,TRUE))*(INDEX($I$6:$M$24,MATCH($P$2,$H$6:$H$24,1)+1,MATCH(T4,$I$5:$M$5,0))-INDEX($I$6:$M$24,MATCH($P$2,$H$6:$H$24,1),MATCH(T4,$I$5:$M$5,0)))/(INDEX($H$6:$H$24,MATCH($P$2,$H$6:$H$24,1)+1)-INDEX($H$6:$H$24,MATCH($P$2,$H$6:$H$24,1))),INDEX($I$6:$M$24,MATCH($P$2,$H$6:$H$24,0),MATCH(T4,$I$5:$M$5,0))) -> 
A7: 20 | B7: 275 | C7: 165 | D7: 115 | E7: 95 | F7: 80 | H7: =A7/100 -> 0.2 | I7: =+B7/1609.347 -> 0.1708767593 | J7: 0.1025260556 | K7: 0.0714575539 | L7: 0.05903015322 | M7: 0.04970960271
A8: 50 | B8: 460 | C8: 280 | D8: 190 | E8: 160 | F8: 130 | H8: 0.5 | I8: 0.2858302156 | J8: 0.1739836095 | K8: 0.1180603064 | L8: 0.09941920543 | M8: 0.08077810441
A9: 100 | B9: 685 | C9: 425 | D9: 285 | E9: 235 | F9: 185 | H9: 1 | I9: 0.4256384732 | J9: 0.2640822644 | K9: 0.1770904597 | L9: 0.146021958 | M9: 0.1149534563
A10: 200 | B10: 970 | C10: 625 | D10: 375 | E10: 330 | F10: 245 | H10: 2 | I10: 0.6027289329 | J10: 0.3883562712 | K10: 0.2330137627 | L10: 0.2050521112 | M10: 0.1522356583
A11: 300 | B11: 1240 | C11: 785 | D11: 495 | E11: 420 | F11: 325 | H11: 3 | I11: 0.7704988421 | J11: 0.4877754766 | K11: 0.3075781668 | L11: 0.2609754143 | M11: 0.201945261
A12: 400 | B12: 1485 | C12: 920 | D12: 575 | E12: 480 | F12: 380 | H12: 4 | I12: 0.9227345004 | J12: 0.5716604312 | K12: 0.3572877695 | L12: 0.2982576163 | M12: 0.2361206129
A13: 500 | B13: 1675 | C13: 1065 | D13: 670 | E13: 525 | F13: 415 | H13: 5 | I13: 1.040794807 | J13: 0.6617590861 | K13: 0.4163179227 | L13: 0.3262192678 | M13: 0.2578685641
A14: 600 | B14: 1880 | C14: 1200 | D14: 730 | E14: 590 | F14: 445 | H14: 6 | I14: 1.168175664 | J14: 0.7456440407 | K14: 0.4536001248 | L14: 0.36660832 | M14: 0.2765096651
A15: 700 | B15: 2055 | C15: 1285 | D15: 820 | E15: 650 | F15: 490 | H15: 7 | I15: 1.27691542 | J15: 0.7984604936 | K15: 0.5095234278 | L15: 0.4038905221 | M15: 0.3044713166
A16: 800 | B16: 2270 | C16: 1420 | D16: 870 | E16: 715 | F16: 530 | H16: 8 | I16: 1.410509977 | J16: 0.8823454482 | K16: 0.5405919295 | L16: 0.4442795743 | M16: 0.329326118
A17: 900 | B17: 2430 | C17: 1510 | D17: 925 | E17: 750 | F17: 560 | H17: 9 | I17: 1.509929182 | J17: 0.9382687512 | K17: 0.5747672814 | L17: 0.4660275254 | M17: 0.347967219
A18: 1000 | B18: 2575 | C18: 1600 | D18: 975 | E18: 785 | F18: 590 | H18: 10 | I18: 1.600027837 | J18: 0.9941920543 | K18: 0.6058357831 | L18: 0.4877754766 | M18: 0.36660832
A19: 1500 | B19: 3250 | C19: 1950 | D19: 1175 | E19: 950 | F19: 710 | H19: 15 | I19: 2.01945261 | J19: 1.211671566 | K19: 0.7301097899 | L19: 0.5903015322 | M19: 0.4411727241
A20: 2000 | B20: 3850 | C20: 2290 | D20: 1410 | E20: 1110 | F20: 800 | H20: 20 | I20: 2.392274631 | J20: 1.422937378 | K20: 0.8761317478 | L20: 0.6897207377 | M20: 0.4970960271
A21: 2500 | B21: 4465 | C21: 2675 | D21: 1615 | E21: 1270 | F21: 930 | H21: 25 | I21: 2.774417202 | J21: 1.662164841 | K21: 1.003512605 | L21: 0.7891399431 | M21: 0.5778741316
A22: 3000 | B22: 4965 | C22: 3050 | D22: 1800 | E22: 1420 | F22: 1025 | H22: 30 | I22: 3.085102218 | J22: 1.895178603 | K22: 1.118466061 | L22: 0.8823454482 | M22: 0.6369042848
A23: 3500 | B23: 5375 | C23: 3340 | D23: 1965 | E23: 1555 | F23: 1120 | H23: 35 | I23: =+B23/1609.347 -> 3.339863932 | J23: 2.075375913 | K23: 1.220992117 | L23: 0.9662304028 | M23: 0.695934438
A24: 4000 | B24: 5790 | C24: 3600 | D24: 2075 | E24: 1650 | F24: 1150 | H24: 40 | I24: 3.597732496 | J24: 2.236932122 | K24: 1.28934282 | L24: 1.025260556 | M24: 0.714575539
A27: Norfolk, NE-AERMOD setback distances (SE) as reported in the Odor Footprint Tool
A29: Setback Distances (m) for Norfolk, SE Direction | H29: Setback Distances (mi) for Norfolk, SE Direction
A30: x 104 | B30: Annoyance Free Percentage | H30: x 106 | I30: Annoyance Free Percentage
A31: OU/s | B31: 99 | C31: 98 | D31: 96 | E31: 94 | F31: 90 | H31: OU/s | I31: 99 | J31: 98 | K31: 96 | L31: 94 | M31: 90 | O31: Separation distance | P31: =IF(ISERROR(MATCH($P$1,$H$32:$H$50,0)),VLOOKUP($P$1,$H$32:$M$50,MATCH(P$4,$I$31:$M$31,0)+1,TRUE)+($P$1-VLOOKUP($P$1,$H$32:$H$50,1,TRUE))*(INDEX($I$32:$M$50,MATCH($P$1,$H$32:$H$50,1)+1,MATCH(P$4,$I$31:$M$31,0))-INDEX($I$32:$M$50,MATCH($P$1,$H$32:$H$50,1),MATCH(P$4,$I$31:$M$31,0)))/(INDEX($H$32:$H$50,MATCH($P$1,$H$32:$H$50,1)+1)-INDEX($H$32:$H$50,MATCH($P$1,$H$32:$H$50,1))),INDEX($I$32:$M$50,MATCH($P$1,$H$32:$H$50,0),MATCH(P4,$I$31:$M$31,0))) ->  | Q31: =IF(ISERROR(MATCH($P$1,$H$32:$H$50,0)),VLOOKUP($P$1,$H$32:$M$50,MATCH(Q$4,$I$31:$M$31,0)+1,TRUE)+($P$1-VLOOKUP($P$1,$H$32:$H$50,1,TRUE))*(INDEX($I$32:$M$50,MATCH($P$1,$H$32:$H$50,1)+1,MATCH(Q$4,$I$31:$M$31,0))-INDEX($I$32:$M$50,MATCH($P$1,$H$32:$H$50,1),MATCH(Q$4,$I$31:$M$31,0)))/(INDEX($H$32:$H$50,MATCH($P$1,$H$32:$H$50,1)+1)-INDEX($H$32:$H$50,MATCH($P$1,$H$32:$H$50,1))),INDEX($I$32:$M$50,MATCH($P$1,$H$32:$H$50,0),MATCH(Q4,$I$31:$M$31,0))) ->  | R31: =IF(ISERROR(MATCH($P$1,$H$32:$H$50,0)),VLOOKUP($P$1,$H$32:$M$50,MATCH(R$4,$I$31:$M$31,0)+1,TRUE)+($P$1-VLOOKUP($P$1,$H$32:$H$50,1,TRUE))*(INDEX($I$32:$M$50,MATCH($P$1,$H$32:$H$50,1)+1,MATCH(R$4,$I$31:$M$31,0))-INDEX($I$32:$M$50,MATCH($P$1,$H$32:$H$50,1),MATCH(R$4,$I$31:$M$31,0)))/(INDEX($H$32:$H$50,MATCH($P$1,$H$32:$H$50,1)+1)-INDEX($H$32:$H$50,MATCH($P$1,$H$32:$H$50,1))),INDEX($I$32:$M$50,MATCH($P$1,$H$32:$H$50,0),MATCH(R4,$I$31:$M$31,0))) ->  | S31: =IF(ISERROR(MATCH($P$1,$H$32:$H$50,0)),VLOOKUP($P$1,$H$32:$M$50,MATCH(S$4,$I$31:$M$31,0)+1,TRUE)+($P$1-VLOOKUP($P$1,$H$32:$H$50,1,TRUE))*(INDEX($I$32:$M$50,MATCH($P$1,$H$32:$H$50,1)+1,MATCH(S$4,$I$31:$M$31,0))-INDEX($I$32:$M$50,MATCH($P$1,$H$32:$H$50,1),MATCH(S$4,$I$31:$M$31,0)))/(INDEX($H$32:$H$50,MATCH($P$1,$H$32:$H$50,1)+1)-INDEX($H$32:$H$50,MATCH($P$1,$H$32:$H$50,1))),INDEX($I$32:$M$50,MATCH($P$1,$H$32:$H$50,0),MATCH(S4,$I$31:$M$31,0))) ->  | T31: =IF(ISERROR(MATCH($P$1,$H$32:$H$50,0)),VLOOKUP($P$1,$H$32:$M$50,MATCH(T$4,$I$31:$M$31,0)+1,TRUE)+($P$1-VLOOKUP($P$1,$H$32:$H$50,1,TRUE))*(INDEX($I$32:$M$50,MATCH($P$1,$H$32:$H$50,1)+1,MATCH(T$4,$I$31:$M$31,0))-INDEX($I$32:$M$50,MATCH($P$1,$H$32:$H$50,1),MATCH(T$4,$I$31:$M$31,0)))/(INDEX($H$32:$H$50,MATCH($P$1,$H$32:$H$50,1)+1)-INDEX($H$32:$H$50,MATCH($P$1,$H$32:$H$50,1))),INDEX($I$32:$M$50,MATCH($P$1,$H$32:$H$50,0),MATCH(T4,$I$31:$M$31,0))) -> 
A32: 0 | B32: 0 | C32: 0 | D32: 0 | E32: 0 | F32: 0 | H32: =A32/100 -> 0 | I32: 0 | J32: 0 | K32: 0 | L32: 0 | M32: 0 | O32: New Separation distance | P32: =IF(ISERROR(MATCH($P$2,$H$32:$H$50,0)),VLOOKUP($P$2,$H$32:$M$50,MATCH(P$4,$I$31:$M$31,0)+1,TRUE)+($P$2-VLOOKUP($P$2,$H$32:$H$50,1,TRUE))*(INDEX($I$32:$M$50,MATCH($P$2,$H$32:$H$50,1)+1,MATCH(P$4,$I$31:$M$31,0))-INDEX($I$32:$M$50,MATCH($P$2,$H$32:$H$50,1),MATCH(P$4,$I$31:$M$31,0)))/(INDEX($H$32:$H$50,MATCH($P$2,$H$32:$H$50,1)+1)-INDEX($H$32:$H$50,MATCH($P$2,$H$32:$H$50,1))),INDEX($I$32:$M$50,MATCH($P$2,$H$32:$H$50,0),MATCH(P4,$I$31:$M$31,0))) ->  | Q32: =IF(ISERROR(MATCH($P$2,$H$32:$H$50,0)),VLOOKUP($P$2,$H$32:$M$50,MATCH(Q$4,$I$31:$M$31,0)+1,TRUE)+($P$2-VLOOKUP($P$2,$H$32:$H$50,1,TRUE))*(INDEX($I$32:$M$50,MATCH($P$2,$H$32:$H$50,1)+1,MATCH(Q$4,$I$31:$M$31,0))-INDEX($I$32:$M$50,MATCH($P$2,$H$32:$H$50,1),MATCH(Q$4,$I$31:$M$31,0)))/(INDEX($H$32:$H$50,MATCH($P$2,$H$32:$H$50,1)+1)-INDEX($H$32:$H$50,MATCH($P$2,$H$32:$H$50,1))),INDEX($I$32:$M$50,MATCH($P$2,$H$32:$H$50,0),MATCH(Q4,$I$31:$M$31,0))) ->  | R32: =IF(ISERROR(MATCH($P$2,$H$32:$H$50,0)),VLOOKUP($P$2,$H$32:$M$50,MATCH(R$4,$I$31:$M$31,0)+1,TRUE)+($P$2-VLOOKUP($P$2,$H$32:$H$50,1,TRUE))*(INDEX($I$32:$M$50,MATCH($P$2,$H$32:$H$50,1)+1,MATCH(R$4,$I$31:$M$31,0))-INDEX($I$32:$M$50,MATCH($P$2,$H$32:$H$50,1),MATCH(R$4,$I$31:$M$31,0)))/(INDEX($H$32:$H$50,MATCH($P$2,$H$32:$H$50,1)+1)-INDEX($H$32:$H$50,MATCH($P$2,$H$32:$H$50,1))),INDEX($I$32:$M$50,MATCH($P$2,$H$32:$H$50,0),MATCH(R4,$I$31:$M$31,0))) ->  | S32: =IF(ISERROR(MATCH($P$2,$H$32:$H$50,0)),VLOOKUP($P$2,$H$32:$M$50,MATCH(S$4,$I$31:$M$31,0)+1,TRUE)+($P$2-VLOOKUP($P$2,$H$32:$H$50,1,TRUE))*(INDEX($I$32:$M$50,MATCH($P$2,$H$32:$H$50,1)+1,MATCH(S$4,$I$31:$M$31,0))-INDEX($I$32:$M$50,MATCH($P$2,$H$32:$H$50,1),MATCH(S$4,$I$31:$M$31,0)))/(INDEX($H$32:$H$50,MATCH($P$2,$H$32:$H$50,1)+1)-INDEX($H$32:$H$50,MATCH($P$2,$H$32:$H$50,1))),INDEX($I$32:$M$50,MATCH($P$2,$H$32:$H$50,0),MATCH(S4,$I$31:$M$31,0))) ->  | T32: =IF(ISERROR(MATCH($P$2,$H$32:$H$50,0)),VLOOKUP($P$2,$H$32:$M$50,MATCH(T$4,$I$31:$M$31,0)+1,TRUE)+($P$2-VLOOKUP($P$2,$H$32:$H$50,1,TRUE))*(INDEX($I$32:$M$50,MATCH($P$2,$H$32:$H$50,1)+1,MATCH(T$4,$I$31:$M$31,0))-INDEX($I$32:$M$50,MATCH($P$2,$H$32:$H$50,1),MATCH(T$4,$I$31:$M$31,0)))/(INDEX($H$32:$H$50,MATCH($P$2,$H$32:$H$50,1)+1)-INDEX($H$32:$H$50,MATCH($P$2,$H$32:$H$50,1))),INDEX($I$32:$M$50,MATCH($P$2,$H$32:$H$50,0),MATCH(T4,$I$31:$M$31,0))) -> 
A33: 20 | B33: 300 | C33: 165 | D33: 100 | E33: 80 | F33: 60 | H33: =A33/100 -> 0.2 | I33: =+B33/1609.347 -> 0.1864110102 | J33: =+C33/1609.347 -> 0.1025260556 | K33: =+D33/1609.347 -> 0.06213700339 | L33: =+E33/1609.347 -> 0.04970960271 | M33: =+F33/1609.347 -> 0.03728220204
A34: 50 | B34: 510 | C34: 270 | D34: 160 | E34: 125 | F34: 90 | H34: 0.5 | I34: =+B34/1609.347 -> 0.3168987173 | J34: 0.1677699092 | K34: 0.09941920543 | L34: 0.07767125424 | M34: 0.05592330305
A35: 100 | B35: 745 | C35: 385 | D35: 225 | E35: 180 | F35: 120 | H35: 1 | I35: 0.4629206753 | J35: 0.2392274631 | K35: 0.1398082576 | L35: 0.1118466061 | M35: 0.07456440407
A36: 200 | B36: 1095 | C36: 555 | D36: 315 | E36: 250 | F36: 165 | H36: 2 | I36: 0.6804001872 | J36: 0.3448603688 | K36: 0.1957315607 | L36: 0.1553425085 | M36: 0.1025260556
A37: 300 | B37: 1365 | C37: 670 | D37: 385 | E37: 300 | F37: 190 | H37: 3 | I37: 0.8481700963 | J37: 0.4163179227 | K37: 0.2392274631 | L37: 0.1864110102 | M37: 0.1180603064
A38: 400 | B38: 1560 | C38: 785 | D38: 445 | E38: 345 | F38: 210 | H38: 4 | I38: 0.9693372529 | J38: 0.4877754766 | K38: 0.2765096651 | L38: 0.2143726617 | M38: 0.1304877071
A39: 500 | B39: 1790 | C39: 860 | D39: 485 | E39: 385 | F39: 230 | H39: 5 | I39: 1.112252361 | J39: 0.5343782292 | K39: 0.3013644665 | L39: 0.2392274631 | M39: 0.1429151078
A40: 600 | B40: 1970 | C40: 935 | D40: 530 | E40: 415 | F40: 245 | H40: 6 | I40: 1.224098967 | J40: 0.5809809817 | K40: 0.329326118 | L40: 0.2578685641 | M40: 0.1522356583
A41: 700 | B41: 2155 | C41: 1020 | D41: 585 | E41: 445 | F41: 260 | H41: 7 | I41: 1.339052423 | J41: 0.6337974346 | K41: 0.3635014699 | L41: 0.2765096651 | M41: 0.1615562088
A42: 800 | B42: 2320 | C42: 1085 | D42: 615 | E42: 470 | F42: 270 | H42: 8 | I42: 1.441578479 | J42: 0.6741864868 | K42: 0.3821425709 | L42: 0.2920439159 | M42: 0.1677699092
A43: 900 | B43: 2490 | C43: 1160 | D43: 655 | E43: 505 | F43: 290 | H43: 9 | I43: 1.547211384 | J43: 0.7207892394 | K43: 0.4069973722 | L43: 0.3137918671 | M43: 0.1801973098
A44: 1000 | B44: 2650 | C44: 1230 | D44: 695 | E44: 525 | F44: 300 | H44: 10 | I44: 1.64663059 | J44: 0.7642851417 | K44: 0.4318521736 | L44: 0.3262192678 | M44: 0.1864110102
A45: 1500 | B45: 3300 | C45: 1510 | D45: 825 | E45: 620 | F45: 325 | H45: 15 | I45: 2.050521112 | J45: 0.9382687512 | K45: 0.512630278 | L45: 0.385249421 | M45: 0.201945261
A46: 2000 | B46: 3880 | C46: 1725 | D46: 975 | E46: 695 | F46: 360 | H46: 20 | I46: 2.410915732 | J46: 1.071863309 | K46: 0.6058357831 | L46: 0.4318521736 | M46: 0.2236932122
A47: 2500 | B47: 4350 | C47: 1955 | D47: 1085 | E47: 755 | F47: 395 | H47: 25 | I47: 2.702959648 | J47: 1.214778416 | K47: 0.6741864868 | L47: 0.4691343756 | M47: 0.2454411634
A48: 3000 | B48: 4800 | C48: 2130 | D48: 1175 | E48: 830 | F48: 450 | H48: 30 | I48: 2.982576163 | J48: 1.323518172 | K48: 0.7301097899 | L48: 0.5157371282 | M48: 0.2796165153
A49: 3500 | B49: 5240 | C49: 2265 | D49: 1280 | E49: 885 | F49: 435 | H49: 35 | I49: 3.255978978 | J49: 1.407403127 | K49: 0.7953536434 | L49: 0.54991248 | M49: 0.2702959648
A50: 4000 | B50: 5615 | C50: 2405 | D50: 1355 | E50: 875 | F50: 465 | H50: 40 | I50: 3.488992741 | J50: 1.494394932 | K50: 0.841956396 | L50: 0.5436987797 | M50: 0.2889370658
A53: Norfolk, NE - AERMOD setback distances (SW) as reported in the Odor Footprint Tool
A55: Setback Distances (m) for Norfolk, SW Direction | H55: Setback Distances (mi) for Norfolk, SW Direction
A56: x 104 | B56: Annoyance Free Percentage | H56: x 106 | I56: Annoyance Free Percentage
A57: OU/s | B57: 99 | C57: 98 | D57: 96 | E57: 94 | F57: 90 | H57: OU/s | I57: 99 | J57: 98 | K57: 96 | L57: 94 | M57: 90 | O57: Separation distance | P57: =IF(ISERROR(MATCH($P$1,$H$58:$H$76,0)),VLOOKUP($P$1,$H$58:$M$76,MATCH(P$4,$I$57:$M$57,0)+1,TRUE)+($P$1-VLOOKUP($P$1,$H$58:$H$76,1,TRUE))*(INDEX($I$58:$M$76,MATCH($P$1,$H$58:$H$76,1)+1,MATCH(P$4,$I$57:$M$57,0))-INDEX($I$58:$M$76,MATCH($P$1,$H$58:$H$76,1),MATCH(P$4,$I$57:$M$57,0)))/(INDEX($H$58:$H$76,MATCH($P$1,$H$58:$H$76,1)+1)-INDEX($H$58:$H$76,MATCH($P$1,$H$58:$H$76,1))),INDEX($I$58:$M$76,MATCH($P$1,$H$58:$H$76,0),MATCH(P$4,$I$57:$M$57,0))) ->  | Q57: =IF(ISERROR(MATCH($P$1,$H$58:$H$76,0)),VLOOKUP($P$1,$H$58:$M$76,MATCH(Q$4,$I$57:$M$57,0)+1,TRUE)+($P$1-VLOOKUP($P$1,$H$58:$H$76,1,TRUE))*(INDEX($I$58:$M$76,MATCH($P$1,$H$58:$H$76,1)+1,MATCH(Q$4,$I$57:$M$57,0))-INDEX($I$58:$M$76,MATCH($P$1,$H$58:$H$76,1),MATCH(Q$4,$I$57:$M$57,0)))/(INDEX($H$58:$H$76,MATCH($P$1,$H$58:$H$76,1)+1)-INDEX($H$58:$H$76,MATCH($P$1,$H$58:$H$76,1))),INDEX($I$58:$M$76,MATCH($P$1,$H$58:$H$76,0),MATCH(Q$4,$I$57:$M$57,0))) ->  | R57: =IF(ISERROR(MATCH($P$1,$H$58:$H$76,0)),VLOOKUP($P$1,$H$58:$M$76,MATCH(R$4,$I$57:$M$57,0)+1,TRUE)+($P$1-VLOOKUP($P$1,$H$58:$H$76,1,TRUE))*(INDEX($I$58:$M$76,MATCH($P$1,$H$58:$H$76,1)+1,MATCH(R$4,$I$57:$M$57,0))-INDEX($I$58:$M$76,MATCH($P$1,$H$58:$H$76,1),MATCH(R$4,$I$57:$M$57,0)))/(INDEX($H$58:$H$76,MATCH($P$1,$H$58:$H$76,1)+1)-INDEX($H$58:$H$76,MATCH($P$1,$H$58:$H$76,1))),INDEX($I$58:$M$76,MATCH($P$1,$H$58:$H$76,0),MATCH(R$4,$I$57:$M$57,0))) ->  | S57: =IF(ISERROR(MATCH($P$1,$H$58:$H$76,0)),VLOOKUP($P$1,$H$58:$M$76,MATCH(S$4,$I$57:$M$57,0)+1,TRUE)+($P$1-VLOOKUP($P$1,$H$58:$H$76,1,TRUE))*(INDEX($I$58:$M$76,MATCH($P$1,$H$58:$H$76,1)+1,MATCH(S$4,$I$57:$M$57,0))-INDEX($I$58:$M$76,MATCH($P$1,$H$58:$H$76,1),MATCH(S$4,$I$57:$M$57,0)))/(INDEX($H$58:$H$76,MATCH($P$1,$H$58:$H$76,1)+1)-INDEX($H$58:$H$76,MATCH($P$1,$H$58:$H$76,1))),INDEX($I$58:$M$76,MATCH($P$1,$H$58:$H$76,0),MATCH(S$4,$I$57:$M$57,0))) ->  | T57: =IF(ISERROR(MATCH($P$1,$H$58:$H$76,0)),VLOOKUP($P$1,$H$58:$M$76,MATCH(T$4,$I$57:$M$57,0)+1,TRUE)+($P$1-VLOOKUP($P$1,$H$58:$H$76,1,TRUE))*(INDEX($I$58:$M$76,MATCH($P$1,$H$58:$H$76,1)+1,MATCH(T$4,$I$57:$M$57,0))-INDEX($I$58:$M$76,MATCH($P$1,$H$58:$H$76,1),MATCH(T$4,$I$57:$M$57,0)))/(INDEX($H$58:$H$76,MATCH($P$1,$H$58:$H$76,1)+1)-INDEX($H$58:$H$76,MATCH($P$1,$H$58:$H$76,1))),INDEX($I$58:$M$76,MATCH($P$1,$H$58:$H$76,0),MATCH(T$4,$I$57:$M$57,0))) -> 
A58: 0 | B58: 0 | C58: 0 | D58: 0 | E58: 0 | F58: 0 | H58: =A58/100 -> 0 | I58: 0 | J58: 0 | K58: 0 | L58: 0 | M58: 0 | O58: New Separation distance | P58: =IF(ISERROR(MATCH($P$2,$H$58:$H$76,0)),VLOOKUP($P$2,$H$58:$M$76,MATCH(P$4,$I$57:$M$57,0)+1,TRUE)+($P$2-VLOOKUP($P$2,$H$58:$H$76,1,TRUE))*(INDEX($I$58:$M$76,MATCH($P$2,$H$58:$H$76,1)+1,MATCH(P$4,$I$57:$M$57,0))-INDEX($I$58:$M$76,MATCH($P$2,$H$58:$H$76,1),MATCH(P$4,$I$57:$M$57,0)))/(INDEX($H$58:$H$76,MATCH($P$2,$H$58:$H$76,1)+1)-INDEX($H$58:$H$76,MATCH($P$2,$H$58:$H$76,1))),INDEX($I$58:$M$76,MATCH($P$2,$H$58:$H$76,0),MATCH(P4,$I$57:$M$57,0))) ->  | Q58: =IF(ISERROR(MATCH($P$2,$H$58:$H$76,0)),VLOOKUP($P$2,$H$58:$M$76,MATCH(Q$4,$I$57:$M$57,0)+1,TRUE)+($P$2-VLOOKUP($P$2,$H$58:$H$76,1,TRUE))*(INDEX($I$58:$M$76,MATCH($P$2,$H$58:$H$76,1)+1,MATCH(Q$4,$I$57:$M$57,0))-INDEX($I$58:$M$76,MATCH($P$2,$H$58:$H$76,1),MATCH(Q$4,$I$57:$M$57,0)))/(INDEX($H$58:$H$76,MATCH($P$2,$H$58:$H$76,1)+1)-INDEX($H$58:$H$76,MATCH($P$2,$H$58:$H$76,1))),INDEX($I$58:$M$76,MATCH($P$2,$H$58:$H$76,0),MATCH(Q4,$I$57:$M$57,0))) ->  | R58: =IF(ISERROR(MATCH($P$2,$H$58:$H$76,0)),VLOOKUP($P$2,$H$58:$M$76,MATCH(R$4,$I$57:$M$57,0)+1,TRUE)+($P$2-VLOOKUP($P$2,$H$58:$H$76,1,TRUE))*(INDEX($I$58:$M$76,MATCH($P$2,$H$58:$H$76,1)+1,MATCH(R$4,$I$57:$M$57,0))-INDEX($I$58:$M$76,MATCH($P$2,$H$58:$H$76,1),MATCH(R$4,$I$57:$M$57,0)))/(INDEX($H$58:$H$76,MATCH($P$2,$H$58:$H$76,1)+1)-INDEX($H$58:$H$76,MATCH($P$2,$H$58:$H$76,1))),INDEX($I$58:$M$76,MATCH($P$2,$H$58:$H$76,0),MATCH(R4,$I$57:$M$57,0))) ->  | S58: =IF(ISERROR(MATCH($P$2,$H$58:$H$76,0)),VLOOKUP($P$2,$H$58:$M$76,MATCH(S$4,$I$57:$M$57,0)+1,TRUE)+($P$2-VLOOKUP($P$2,$H$58:$H$76,1,TRUE))*(INDEX($I$58:$M$76,MATCH($P$2,$H$58:$H$76,1)+1,MATCH(S$4,$I$57:$M$57,0))-INDEX($I$58:$M$76,MATCH($P$2,$H$58:$H$76,1),MATCH(S$4,$I$57:$M$57,0)))/(INDEX($H$58:$H$76,MATCH($P$2,$H$58:$H$76,1)+1)-INDEX($H$58:$H$76,MATCH($P$2,$H$58:$H$76,1))),INDEX($I$58:$M$76,MATCH($P$2,$H$58:$H$76,0),MATCH(S4,$I$57:$M$57,0))) ->  | T58: =IF(ISERROR(MATCH($P$2,$H$58:$H$76,0)),VLOOKUP($P$2,$H$58:$M$76,MATCH(T$4,$I$57:$M$57,0)+1,TRUE)+($P$2-VLOOKUP($P$2,$H$58:$H$76,1,TRUE))*(INDEX($I$58:$M$76,MATCH($P$2,$H$58:$H$76,1)+1,MATCH(T$4,$I$57:$M$57,0))-INDEX($I$58:$M$76,MATCH($P$2,$H$58:$H$76,1),MATCH(T$4,$I$57:$M$57,0)))/(INDEX($H$58:$H$76,MATCH($P$2,$H$58:$H$76,1)+1)-INDEX($H$58:$H$76,MATCH($P$2,$H$58:$H$76,1))),INDEX($I$58:$M$76,MATCH($P$2,$H$58:$H$76,0),MATCH(T4,$I$57:$M$57,0))) -> 
A59: 20 | B59: 185 | C59: 120 | D59: 90 | E59: 75 | F59: 55 | H59: =A59/100 -> 0.2 | I59: =+B59/1609.347 -> 0.1149534563 | J59: 0.07456440407 | K59: 0.05592330305 | L59: 0.04660275254 | M59: 0.03417535187
A60: 50 | B60: 300 | C60: 190 | D60: 135 | E60: 105 | F60: 65 | H60: 0.5 | I60: 0.1864110102 | J60: 0.1180603064 | K60: 0.08388495458 | L60: 0.06524385356 | M60: 0.04038905221
A61: 100 | B61: 435 | C61: 270 | D61: 185 | E61: 150 | F61: 90 | H61: 1 | I61: 0.2702959648 | J61: 0.1677699092 | K61: 0.1149534563 | L61: 0.09320550509 | M61: 0.05592330305
A62: 200 | B62: 610 | C62: 400 | D62: 290 | E62: 225 | F62: 130 | H62: 2 | I62: 0.3790357207 | J62: 0.2485480136 | K62: 0.1801973098 | L62: 0.1398082576 | M62: 0.08077810441
A63: 300 | B63: 745 | C63: 490 | D63: 360 | E63: 260 | F63: 145 | H63: 3 | I63: 0.4629206753 | J63: 0.3044713166 | K63: 0.2236932122 | L63: 0.1615562088 | M63: 0.09009865492
A64: 400 | B64: 880 | C64: 580 | D64: 430 | E64: 295 | F64: 175 | H64: 4 | I64: 0.5468056299 | J64: 0.3603946197 | K64: 0.2671891146 | L64: 0.18330416 | M64: 0.1087397559
A65: 500 | B65: 975 | C65: 645 | D65: 475 | E65: 325 | F65: 175 | H65: 5 | I65: 0.6058357831 | J65: 0.4007836719 | K65: 0.2951507661 | L65: 0.201945261 | M65: 0.1087397559
A66: 600 | B66: 1080 | C66: 710 | D66: 510 | E66: 350 | F66: 195 | H66: 6 | I66: 0.6710796366 | J66: 0.4411727241 | K66: 0.3168987173 | L66: 0.2174795119 | M66: 0.1211671566
A67: 700 | B67: 1165 | C67: 760 | D67: 530 | E67: 370 | F67: 200 | H67: 7 | I67: 0.7238960895 | J67: 0.4722412258 | K67: 0.329326118 | L67: 0.2299069126 | M67: 0.1242740068
A68: 800 | B68: 1235 | C68: 805 | D68: 555 | E68: 390 | F68: 205 | H68: 8 | I68: 0.7673919919 | J68: 0.5002028773 | K68: 0.3448603688 | L68: 0.2423343132 | M68: 0.127380857
A69: 900 | B69: 1340 | C69: 845 | D69: 580 | E69: 420 | F69: 210 | H69: 9 | I69: 0.8326358455 | J69: 0.5250576787 | K69: 0.3603946197 | L69: 0.2609754143 | M69: 0.1304877071
A70: 1000 | B70: 1425 | C70: 895 | D70: 600 | E70: 440 | F70: 215 | H70: 10 | I70: 0.8854522984 | J70: 0.5561261804 | K70: 0.3728220204 | L70: 0.2734028149 | M70: 0.1335945573
A71: 1500 | B71: 1790 | C71: 1130 | D71: 710 | E71: 475 | F71: 215 | H71: 15 | I71: 1.112252361 | J71: 0.7021481383 | K71: 0.4411727241 | L71: 0.2951507661 | M71: 0.1335945573
A72: 2000 | B72: 2085 | C72: 1320 | D72: 785 | E72: 510 | F72: 220 | H72: 20 | I72: 1.295556521 | J72: 0.8202084448 | K72: 0.4877754766 | L72: 0.3168987173 | M72: 0.1367014075
A73: 2500 | B73: 2300 | C73: 1450 | D73: 870 | E73: 575 | F73: 230 | H73: 25 | I73: 1.429151078 | J73: 0.9009865492 | K73: 0.5405919295 | L73: 0.3572877695 | M73: 0.1429151078
A74: 3000 | B74: 2530 | C74: 1575 | D74: 975 | E74: 615 | F74: 240 | H74: 30 | I74: 1.572066186 | J74: 0.9786578034 | K74: 0.6058357831 | L74: 0.3821425709 | M74: 0.1491288081
A75: 3500 | B75: 2750 | C75: 1695 | D75: 1055 | E75: 650 | F75: 255 | H75: 35 | I75: 1.708767593 | J75: 1.053222208 | K75: 0.6555453858 | L75: 0.4038905221 | M75: 0.1584493587
A76: 4000 | B76: 3015 | C76: 1780 | D76: 1110 | E76: 680 | F76: 265 | H76: 40 | I76: 1.873430652 | J76: 1.10603866 | K76: 0.6897207377 | L76: 0.4225316231 | M76: 0.164663059
A79: Norfolk, NE - AERMOD setback distances (NW) as reported in the Odor Footprint Tool
A81: Setback Distances (m) for Norfolk, NW Direction | H81: Setback Distances (mi) for Norfolk, NW Direction
A82: x 104 | B82: Annoyance Free Percentage | H82: x 106 | I82: Annoyance Free Percentage
A83: OU/s | B83: 99 | C83: 98 | D83: 96 | E83: 94 | F83: 90 | H83: OU/s | I83: 99 | J83: 98 | K83: 96 | L83: 94 | M83: 90 | O83: Separation distance | P83: =IF(ISERROR(MATCH($P$1,$H$84:$H$102,0)),VLOOKUP($P$1,$H$84:$M$102,MATCH(P$4,$I$83:$M$83,0)+1,TRUE)+($P$1-VLOOKUP($P$1,$H$84:$H$102,1,TRUE))*(INDEX($I$84:$M$102,MATCH($P$1,$H$84:$H$102,1)+1,MATCH(P$4,$I$83:$M$83,0))-INDEX($I$84:$M$102,MATCH($P$1,$H$84:$H$102,1),MATCH(P$4,$I$83:$M$83,0)))/(INDEX($H$84:$H$102,MATCH($P$1,$H$84:$H$102,1)+1)-INDEX($H$84:$H$102,MATCH($P$1,$H$84:$H$102,1))),INDEX($I$84:$M$102,MATCH($P$1,$H$84:$H$102,0),MATCH(P4,$I$83:$M$83,0))) ->  | Q83: =IF(ISERROR(MATCH($P$1,$H$84:$H$102,0)),VLOOKUP($P$1,$H$84:$M$102,MATCH(Q$4,$I$83:$M$83,0)+1,TRUE)+($P$1-VLOOKUP($P$1,$H$84:$H$102,1,TRUE))*(INDEX($I$84:$M$102,MATCH($P$1,$H$84:$H$102,1)+1,MATCH(Q$4,$I$83:$M$83,0))-INDEX($I$84:$M$102,MATCH($P$1,$H$84:$H$102,1),MATCH(Q$4,$I$83:$M$83,0)))/(INDEX($H$84:$H$102,MATCH($P$1,$H$84:$H$102,1)+1)-INDEX($H$84:$H$102,MATCH($P$1,$H$84:$H$102,1))),INDEX($I$84:$M$102,MATCH($P$1,$H$84:$H$102,0),MATCH(Q4,$I$83:$M$83,0))) ->  | R83: =IF(ISERROR(MATCH($P$1,$H$84:$H$102,0)),VLOOKUP($P$1,$H$84:$M$102,MATCH(R$4,$I$83:$M$83,0)+1,TRUE)+($P$1-VLOOKUP($P$1,$H$84:$H$102,1,TRUE))*(INDEX($I$84:$M$102,MATCH($P$1,$H$84:$H$102,1)+1,MATCH(R$4,$I$83:$M$83,0))-INDEX($I$84:$M$102,MATCH($P$1,$H$84:$H$102,1),MATCH(R$4,$I$83:$M$83,0)))/(INDEX($H$84:$H$102,MATCH($P$1,$H$84:$H$102,1)+1)-INDEX($H$84:$H$102,MATCH($P$1,$H$84:$H$102,1))),INDEX($I$84:$M$102,MATCH($P$1,$H$84:$H$102,0),MATCH(R4,$I$83:$M$83,0))) ->  | S83: =IF(ISERROR(MATCH($P$1,$H$84:$H$102,0)),VLOOKUP($P$1,$H$84:$M$102,MATCH(S$4,$I$83:$M$83,0)+1,TRUE)+($P$1-VLOOKUP($P$1,$H$84:$H$102,1,TRUE))*(INDEX($I$84:$M$102,MATCH($P$1,$H$84:$H$102,1)+1,MATCH(S$4,$I$83:$M$83,0))-INDEX($I$84:$M$102,MATCH($P$1,$H$84:$H$102,1),MATCH(S$4,$I$83:$M$83,0)))/(INDEX($H$84:$H$102,MATCH($P$1,$H$84:$H$102,1)+1)-INDEX($H$84:$H$102,MATCH($P$1,$H$84:$H$102,1))),INDEX($I$84:$M$102,MATCH($P$1,$H$84:$H$102,0),MATCH(S4,$I$83:$M$83,0))) ->  | T83: =IF(ISERROR(MATCH($P$1,$H$84:$H$102,0)),VLOOKUP($P$1,$H$84:$M$102,MATCH(T$4,$I$83:$M$83,0)+1,TRUE)+($P$1-VLOOKUP($P$1,$H$84:$H$102,1,TRUE))*(INDEX($I$84:$M$102,MATCH($P$1,$H$84:$H$102,1)+1,MATCH(T$4,$I$83:$M$83,0))-INDEX($I$84:$M$102,MATCH($P$1,$H$84:$H$102,1),MATCH(T$4,$I$83:$M$83,0)))/(INDEX($H$84:$H$102,MATCH($P$1,$H$84:$H$102,1)+1)-INDEX($H$84:$H$102,MATCH($P$1,$H$84:$H$102,1))),INDEX($I$84:$M$102,MATCH($P$1,$H$84:$H$102,0),MATCH(T4,$I$83:$M$83,0))) -> 
A84: 0 | B84: 0 | C84: 0 | D84: 0 | E84: 0 | F84: 0 | H84: =A84/100 -> 0 | I84: 0 | J84: 0 | K84: 0 | L84: 0 | M84: 0 | O84: New Separation distance | P84: =IF(ISERROR(MATCH($P$2,$H$84:$H$102,0)),VLOOKUP($P$2,$H$84:$M$102,MATCH(P$4,$I$83:$M$83,0)+1,TRUE)+($P$2-VLOOKUP($P$2,$H$84:$H$102,1,TRUE))*(INDEX($I$84:$M$102,MATCH($P$2,$H$84:$H$102,1)+1,MATCH(P$4,$I$83:$M$83,0))-INDEX($I$84:$M$102,MATCH($P$2,$H$84:$H$102,1),MATCH(P$4,$I$83:$M$83,0)))/(INDEX($H$84:$H$102,MATCH($P$2,$H$84:$H$102,1)+1)-INDEX($H$84:$H$102,MATCH($P$2,$H$84:$H$102,1))),INDEX($I$84:$M$102,MATCH($P$2,$H$84:$H$102,0),MATCH(P4,$I$83:$M$83,0))) ->  | Q84: =IF(ISERROR(MATCH($P$2,$H$84:$H$102,0)),VLOOKUP($P$2,$H$84:$M$102,MATCH(Q$4,$I$83:$M$83,0)+1,TRUE)+($P$2-VLOOKUP($P$2,$H$84:$H$102,1,TRUE))*(INDEX($I$84:$M$102,MATCH($P$2,$H$84:$H$102,1)+1,MATCH(Q$4,$I$83:$M$83,0))-INDEX($I$84:$M$102,MATCH($P$2,$H$84:$H$102,1),MATCH(Q$4,$I$83:$M$83,0)))/(INDEX($H$84:$H$102,MATCH($P$2,$H$84:$H$102,1)+1)-INDEX($H$84:$H$102,MATCH($P$2,$H$84:$H$102,1))),INDEX($I$84:$M$102,MATCH($P$2,$H$84:$H$102,0),MATCH(Q4,$I$83:$M$83,0))) ->  | R84: =IF(ISERROR(MATCH($P$2,$H$84:$H$102,0)),VLOOKUP($P$2,$H$84:$M$102,MATCH(R$4,$I$83:$M$83,0)+1,TRUE)+($P$2-VLOOKUP($P$2,$H$84:$H$102,1,TRUE))*(INDEX($I$84:$M$102,MATCH($P$2,$H$84:$H$102,1)+1,MATCH(R$4,$I$83:$M$83,0))-INDEX($I$84:$M$102,MATCH($P$2,$H$84:$H$102,1),MATCH(R$4,$I$83:$M$83,0)))/(INDEX($H$84:$H$102,MATCH($P$2,$H$84:$H$102,1)+1)-INDEX($H$84:$H$102,MATCH($P$2,$H$84:$H$102,1))),INDEX($I$84:$M$102,MATCH($P$2,$H$84:$H$102,0),MATCH(R4,$I$83:$M$83,0))) ->  | S84: =IF(ISERROR(MATCH($P$2,$H$84:$H$102,0)),VLOOKUP($P$2,$H$84:$M$102,MATCH(S$4,$I$83:$M$83,0)+1,TRUE)+($P$2-VLOOKUP($P$2,$H$84:$H$102,1,TRUE))*(INDEX($I$84:$M$102,MATCH($P$2,$H$84:$H$102,1)+1,MATCH(S$4,$I$83:$M$83,0))-INDEX($I$84:$M$102,MATCH($P$2,$H$84:$H$102,1),MATCH(S$4,$I$83:$M$83,0)))/(INDEX($H$84:$H$102,MATCH($P$2,$H$84:$H$102,1)+1)-INDEX($H$84:$H$102,MATCH($P$2,$H$84:$H$102,1))),INDEX($I$84:$M$102,MATCH($P$2,$H$84:$H$102,0),MATCH(S4,$I$83:$M$83,0))) ->  | T84: =IF(ISERROR(MATCH($P$2,$H$84:$H$102,0)),VLOOKUP($P$2,$H$84:$M$102,MATCH(T$4,$I$83:$M$83,0)+1,TRUE)+($P$2-VLOOKUP($P$2,$H$84:$H$102,1,TRUE))*(INDEX($I$84:$M$102,MATCH($P$2,$H$84:$H$102,1)+1,MATCH(T$4,$I$83:$M$83,0))-INDEX($I$84:$M$102,MATCH($P$2,$H$84:$H$102,1),MATCH(T$4,$I$83:$M$83,0)))/(INDEX($H$84:$H$102,MATCH($P$2,$H$84:$H$102,1)+1)-INDEX($H$84:$H$102,MATCH($P$2,$H$84:$H$102,1))),INDEX($I$84:$M$102,MATCH($P$2,$H$84:$H$102,0),MATCH(T4,$I$83:$M$83,0))) -> 
A85: 20 | B85: 330 | C85: 195 | D85: 120 | E85: 100 | F85: 80 | H85: =A85/100 -> 0.2 | I85: =+B85/1609.347 -> 0.2050521112 | J85: 0.1211671566 | K85: 0.07456440407 | L85: 0.06213700339 | M85: 0.04970960271
A86: 50 | B86: 555 | C86: 310 | D86: 195 | E86: 160 | F86: 130 | H86: 0.5 | I86: 0.3448603688 | J86: 0.1926247105 | K86: 0.1211671566 | L86: 0.09941920543 | M86: 0.08077810441
A87: 100 | B87: 860 | C87: 455 | D87: 285 | E87: 235 | F87: 180 | H87: 1 | I87: 0.5343782292 | J87: 0.2827233654 | K87: 0.1770904597 | L87: 0.146021958 | M87: 0.1118466061
A88: 200 | B88: 1300 | C88: 660 | D88: 415 | E88: 340 | F88: 270 | H88: 2 | I88: 0.8077810441 | J88: 0.4101042224 | K88: 0.2578685641 | L88: 0.2112658115 | M88: 0.1677699092
A89: 300 | B89: 1625 | C89: 830 | D89: 515 | E89: 420 | F89: 320 | H89: 3 | I89: 1.009726305 | J89: 0.5157371282 | K89: 0.3200055675 | L89: 0.2609754143 | M89: 0.1988384109
A90: 400 | B90: 1905 | C90: 955 | D90: 605 | E90: 495 | F90: 385 | H90: 4 | I90: 1.183709915 | J90: 0.5934083824 | K90: 0.3759288705 | L90: 0.3075781668 | M90: 0.2392274631
A91: 500 | B91: 2175 | C91: 1085 | D91: 680 | E91: 540 | F91: 405 | H91: 5 | I91: 1.351479824 | J91: 0.6741864868 | K91: 0.4225316231 | L91: 0.3355398183 | M91: 0.2516548637
A92: 600 | B92: 2470 | C92: 1210 | D92: 760 | E92: 605 | F92: 465 | H92: 6 | I92: 1.534783984 | J92: 0.7518577411 | K92: 0.4722412258 | L92: 0.3759288705 | M92: 0.2889370658
A93: 700 | B93: 2660 | C93: 1320 | D93: 815 | E93: 660 | F93: 485 | H93: 7 | I93: 1.65284429 | J93: 0.8202084448 | K93: 0.5064165777 | L93: 0.4101042224 | M93: 0.3013644665
A94: 800 | B94: 2860 | C94: 1405 | D94: 855 | E94: 695 | F94: 515 | H94: 8 | I94: 1.777118297 | J94: 0.8730248977 | K94: 0.531271379 | L94: 0.4318521736 | M94: 0.3200055675
A95: 900 | B95: 3035 | C95: 1490 | D95: 935 | E95: 740 | F95: 550 | H95: 9 | I95: 1.885858053 | J95: 0.9258413506 | K95: 0.5809809817 | L95: 0.4598138251 | M95: 0.3417535187
A96: 1000 | B96: 3195 | C96: 1595 | D96: 995 | E96: 780 | F96: 580 | H96: 10 | I96: 1.985277258 | J96: 0.9910852041 | K96: 0.6182631838 | L96: 0.4846686265 | M96: 0.3603946197
A97: 1500 | B97: 3955 | C97: 2060 | D97: 1235 | E97: 980 | F97: 725 | H97: 15 | I97: 2.457518484 | J97: 1.28002227 | K97: 0.7673919919 | L97: 0.6089426333 | M97: 0.4504932746
A98: 2000 | B98: 4640 | C98: 2420 | D98: 1440 | E98: 1135 | F98: 835 | H98: 20 | I98: 2.883156957 | J98: 1.503715482 | K98: 0.8947728489 | L98: 0.7052549885 | M98: 0.5188439783
A99: 2500 | B99: 5175 | C99: 2710 | D99: 1605 | E99: 1240 | F99: 870 | H99: 25 | I99: 3.215589926 | J99: 1.683912792 | K99: 0.9972989045 | L99: 0.7704988421 | M99: 0.5405919295
A100: 3000 | B100: 5690 | C100: 2985 | D100: 1750 | E100: 1360 | F100: 950 | H100: 30 | I100: 3.535595493 | J100: 1.854789551 | K100: 1.087397559 | L100: 0.8450632461 | M100: 0.5903015322
A101: 3500 | B101: 6205 | C101: 3275 | D101: 1915 | E101: 1455 | F101: 975 | H101: 35 | I101: =+B101/1609.347 -> 3.855601061 | J101: 2.034986861 | K101: 1.189923615 | L101: 0.9040933994 | M101: 0.6058357831
A102: 4000 | B102: 6610 | C102: 3620 | D102: 2045 | E102: 1565 | F102: 1060 | H102: 40 | I102: 4.107255924 | J102: 2.249359523 | K102: 1.270701719 | L102: 0.9724441031 | M102: 0.658652236

Sheet North Platte (hidden)
A1: North Platte, NE-AERMOD setback distances (NE) as reported in the Odor Footprint Tool | O1: Total Scaled Odor Emission Rate (x10^6) | P1: =Inputs!E33 -> 
O2: New Total Scaled Odor Emission Rate (x10^6) | P2: =Inputs!E42 -> 
A3: Setback Distances (m) for N. Platte, NE Direction | H3: Setback Distances (mi) for N. Platte, NE Direction
A4: x 104 | B4: Annoyance Free Percentage | H4: x 106 | I4: Annoyance Free Percentage | O4: Annoyance free percentage | P4: 99 | Q4: 98 | R4: 96 | S4: 94 | T4: 90
A5: OU/s | B5: 99 | C5: 98 | D5: 96 | E5: 94 | F5: 90 | H5: OU/s | I5: 99 | J5: 98 | K5: 96 | L5: 94 | M5: 90 | O5: Separation distance | P5: =IF(ISERROR(MATCH($P$1,$H$6:$H$24,0)),VLOOKUP($P$1,$H$6:$M$24,MATCH(P4,$I$5:$M$5,0)+1,TRUE)+($P$1-VLOOKUP($P$1,$H$6:$H$24,1,TRUE))*(INDEX($I$6:$M$24,MATCH($P$1,$H$6:$H$24,1)+1,MATCH(P4,$I$5:$M$5,0))-INDEX($I$6:$M$24,MATCH($P$1,$H$6:$H$24,1),MATCH(P4,$I$5:$M$5,0)))/(INDEX($H$6:$H$24,MATCH($P$1,$H$6:$H$24,1)+1)-INDEX($H$6:$H$24,MATCH($P$1,$H$6:$H$24,1))),INDEX($I$6:$M$24,MATCH($P$1,$H$6:$H$24,0),MATCH(P4,$I$5:$M$5,0))) ->  | Q5: =IF(ISERROR(MATCH($P$1,$H$6:$H$24,0)),VLOOKUP($P$1,$H$6:$M$24,MATCH(Q4,$I$5:$M$5,0)+1,TRUE)+($P$1-VLOOKUP($P$1,$H$6:$H$24,1,TRUE))*(INDEX($I$6:$M$24,MATCH($P$1,$H$6:$H$24,1)+1,MATCH(Q4,$I$5:$M$5,0))-INDEX($I$6:$M$24,MATCH($P$1,$H$6:$H$24,1),MATCH(Q4,$I$5:$M$5,0)))/(INDEX($H$6:$H$24,MATCH($P$1,$H$6:$H$24,1)+1)-INDEX($H$6:$H$24,MATCH($P$1,$H$6:$H$24,1))),INDEX($I$6:$M$24,MATCH($P$1,$H$6:$H$24,0),MATCH(Q4,$I$5:$M$5,0))) ->  | R5: =IF(ISERROR(MATCH($P$1,$H$6:$H$24,0)),VLOOKUP($P$1,$H$6:$M$24,MATCH(R4,$I$5:$M$5,0)+1,TRUE)+($P$1-VLOOKUP($P$1,$H$6:$H$24,1,TRUE))*(INDEX($I$6:$M$24,MATCH($P$1,$H$6:$H$24,1)+1,MATCH(R4,$I$5:$M$5,0))-INDEX($I$6:$M$24,MATCH($P$1,$H$6:$H$24,1),MATCH(R4,$I$5:$M$5,0)))/(INDEX($H$6:$H$24,MATCH($P$1,$H$6:$H$24,1)+1)-INDEX($H$6:$H$24,MATCH($P$1,$H$6:$H$24,1))),INDEX($I$6:$M$24,MATCH($P$1,$H$6:$H$24,0),MATCH(R4,$I$5:$M$5,0))) ->  | S5: =IF(ISERROR(MATCH($P$1,$H$6:$H$24,0)),VLOOKUP($P$1,$H$6:$M$24,MATCH(S4,$I$5:$M$5,0)+1,TRUE)+($P$1-VLOOKUP($P$1,$H$6:$H$24,1,TRUE))*(INDEX($I$6:$M$24,MATCH($P$1,$H$6:$H$24,1)+1,MATCH(S4,$I$5:$M$5,0))-INDEX($I$6:$M$24,MATCH($P$1,$H$6:$H$24,1),MATCH(S4,$I$5:$M$5,0)))/(INDEX($H$6:$H$24,MATCH($P$1,$H$6:$H$24,1)+1)-INDEX($H$6:$H$24,MATCH($P$1,$H$6:$H$24,1))),INDEX($I$6:$M$24,MATCH($P$1,$H$6:$H$24,0),MATCH(S4,$I$5:$M$5,0))) ->  | T5: =IF(ISERROR(MATCH($P$1,$H$6:$H$24,0)),VLOOKUP($P$1,$H$6:$M$24,MATCH(T4,$I$5:$M$5,0)+1,TRUE)+($P$1-VLOOKUP($P$1,$H$6:$H$24,1,TRUE))*(INDEX($I$6:$M$24,MATCH($P$1,$H$6:$H$24,1)+1,MATCH(T4,$I$5:$M$5,0))-INDEX($I$6:$M$24,MATCH($P$1,$H$6:$H$24,1),MATCH(T4,$I$5:$M$5,0)))/(INDEX($H$6:$H$24,MATCH($P$1,$H$6:$H$24,1)+1)-INDEX($H$6:$H$24,MATCH($P$1,$H$6:$H$24,1))),INDEX($I$6:$M$24,MATCH($P$1,$H$6:$H$24,0),MATCH(T4,$I$5:$M$5,0))) -> 
A6: 0 | B6: 0 | C6: 0 | D6: 0 | E6: 0 | F6: 0 | H6: =A6/100 -> 0 | I6: 0 | J6: 0 | K6: 0 | L6: 0 | M6: 0 | O6: New Separation distance | P6: =IF(ISERROR(MATCH($P$2,$H$6:$H$24,0)),VLOOKUP($P$2,$H$6:$M$24,MATCH(P4,$I$5:$M$5,0)+1,TRUE)+($P$2-VLOOKUP($P$2,$H$6:$H$24,1,TRUE))*(INDEX($I$6:$M$24,MATCH($P$2,$H$6:$H$24,1)+1,MATCH(P4,$I$5:$M$5,0))-INDEX($I$6:$M$24,MATCH($P$2,$H$6:$H$24,1),MATCH(P4,$I$5:$M$5,0)))/(INDEX($H$6:$H$24,MATCH($P$2,$H$6:$H$24,1)+1)-INDEX($H$6:$H$24,MATCH($P$2,$H$6:$H$24,1))),INDEX($I$6:$M$24,MATCH($P$2,$H$6:$H$24,0),MATCH(P4,$I$5:$M$5,0))) ->  | Q6: =IF(ISERROR(MATCH($P$2,$H$6:$H$24,0)),VLOOKUP($P$2,$H$6:$M$24,MATCH(Q4,$I$5:$M$5,0)+1,TRUE)+($P$2-VLOOKUP($P$2,$H$6:$H$24,1,TRUE))*(INDEX($I$6:$M$24,MATCH($P$2,$H$6:$H$24,1)+1,MATCH(Q4,$I$5:$M$5,0))-INDEX($I$6:$M$24,MATCH($P$2,$H$6:$H$24,1),MATCH(Q4,$I$5:$M$5,0)))/(INDEX($H$6:$H$24,MATCH($P$2,$H$6:$H$24,1)+1)-INDEX($H$6:$H$24,MATCH($P$2,$H$6:$H$24,1))),INDEX($I$6:$M$24,MATCH($P$2,$H$6:$H$24,0),MATCH(Q4,$I$5:$M$5,0))) ->  | R6: =IF(ISERROR(MATCH($P$2,$H$6:$H$24,0)),VLOOKUP($P$2,$H$6:$M$24,MATCH(R4,$I$5:$M$5,0)+1,TRUE)+($P$2-VLOOKUP($P$2,$H$6:$H$24,1,TRUE))*(INDEX($I$6:$M$24,MATCH($P$2,$H$6:$H$24,1)+1,MATCH(R4,$I$5:$M$5,0))-INDEX($I$6:$M$24,MATCH($P$2,$H$6:$H$24,1),MATCH(R4,$I$5:$M$5,0)))/(INDEX($H$6:$H$24,MATCH($P$2,$H$6:$H$24,1)+1)-INDEX($H$6:$H$24,MATCH($P$2,$H$6:$H$24,1))),INDEX($I$6:$M$24,MATCH($P$2,$H$6:$H$24,0),MATCH(R4,$I$5:$M$5,0))) ->  | S6: =IF(ISERROR(MATCH($P$2,$H$6:$H$24,0)),VLOOKUP($P$2,$H$6:$M$24,MATCH(S4,$I$5:$M$5,0)+1,TRUE)+($P$2-VLOOKUP($P$2,$H$6:$H$24,1,TRUE))*(INDEX($I$6:$M$24,MATCH($P$2,$H$6:$H$24,1)+1,MATCH(S4,$I$5:$M$5,0))-INDEX($I$6:$M$24,MATCH($P$2,$H$6:$H$24,1),MATCH(S4,$I$5:$M$5,0)))/(INDEX($H$6:$H$24,MATCH($P$2,$H$6:$H$24,1)+1)-INDEX($H$6:$H$24,MATCH($P$2,$H$6:$H$24,1))),INDEX($I$6:$M$24,MATCH($P$2,$H$6:$H$24,0),MATCH(S4,$I$5:$M$5,0))) ->  | T6: =IF(ISERROR(MATCH($P$2,$H$6:$H$24,0)),VLOOKUP($P$2,$H$6:$M$24,MATCH(T4,$I$5:$M$5,0)+1,TRUE)+($P$2-VLOOKUP($P$2,$H$6:$H$24,1,TRUE))*(INDEX($I$6:$M$24,MATCH($P$2,$H$6:$H$24,1)+1,MATCH(T4,$I$5:$M$5,0))-INDEX($I$6:$M$24,MATCH($P$2,$H$6:$H$24,1),MATCH(T4,$I$5:$M$5,0)))/(INDEX($H$6:$H$24,MATCH($P$2,$H$6:$H$24,1)+1)-INDEX($H$6:$H$24,MATCH($P$2,$H$6:$H$24,1))),INDEX($I$6:$M$24,MATCH($P$2,$H$6:$H$24,0),MATCH(T4,$I$5:$M$5,0))) -> 
A7: 100 | B7: 406.2 | C7: 291 | D7: 211 | E7: 178.8 | F7: 147.8 | H7: =A7/100 -> 1 | I7: =+B7/1609.347 -> 0.2524005078 | J7: 0.1808186799 | K7: 0.1311090772 | L7: 0.1111009621 | M7: 0.09183849102
A8: 200 | B8: 638.6 | C8: 435.1 | D8: 333.2 | E8: 285.2 | F8: 223.2 | H8: 2 | I8: 0.3968069037 | J8: 0.2703581018 | K8: 0.2070404953 | L8: 0.1772147337 | M8: 0.1386897916
A9: 300 | B9: 789.1 | C9: 520.3 | D9: 380 | E9: 330 | F9: 260 | H9: 3 | I9: 0.4903230938 | J9: 0.3232988287 | K9: 0.2361206129 | L9: 0.2050521112 | M9: 0.1615562088
A10: 400 | B10: 940 | C10: 600 | D10: 449.7 | E10: 385.5 | F10: 300 | H10: 4 | I10: 0.5840878319 | J10: 0.3728220204 | K10: 0.2794301043 | L10: 0.2395381481 | M10: 0.1864110102
A11: 500 | B11: 1060 | C11: 697.6 | D11: 482.2 | E11: 420 | F11: 335.3 | H11: 5 | I11: 0.658652236 | J11: 0.4334677357 | K11: 0.2996246304 | L11: 0.2609754143 | M11: 0.2083453724
A12: 1000 | B12: 1650 | C12: 1023 | D12: 736.1 | E12: 632.6 | F12: 438.3 | H12: 10 | I12: 1.025260556 | J12: 0.6356615447 | K12: 0.457390482 | L12: 0.3930786835 | M12: 0.2723464859
A13: 2000 | B13: 2518.7 | C13: 1570.7 | D13: 1132.8 | E13: 958.4 | F13: 690 | H13: 20 | I13: 1.565044704 | J13: 0.9759859123 | K13: 0.7038879744 | L13: 0.5955210405 | M13: 0.4287453234
A14: 3000 | B14: 3130 | C14: 1940 | D14: 1261.9 | E14: 1090.9 | F14: 750.8 | H14: 30 | I14: 1.944888206 | J14: 1.205457866 | K14: 0.7841068458 | L14: 0.67785257 | M14: 0.4665246215
A15: 4000 | B15: 3680 | C15: 2210.1 | D15: 1379.5 | E15: 1161.9 | F15: 751 | H15: 40 | I15: 2.286641725 | J15: 1.373289912 | K15: 0.8571799618 | L15: 0.7219698424 | M15: 0.4666488955
A27: North Platte, NE-AERMOD setback distances (SE) as reported in the Odor Footprint Tool
A29: Setback Distances (m) for N. Platte, SE Direction | H29: Setback Distances (mi) for N. Platte, SE Direction
A30: x 104 | B30: Annoyance Free Percentage | H30: x 106 | I30: Annoyance Free Percentage
A31: OU/s | B31: 99 | C31: 98 | D31: 96 | E31: 94 | F31: 90 | H31: OU/s | I31: 99 | J31: 98 | K31: 96 | L31: 94 | M31: 90 | O31: Separation distance | P31: =IF(ISERROR(MATCH($P$1,$H$32:$H$50,0)),VLOOKUP($P$1,$H$32:$M$50,MATCH(P$4,$I$31:$M$31,0)+1,TRUE)+($P$1-VLOOKUP($P$1,$H$32:$H$50,1,TRUE))*(INDEX($I$32:$M$50,MATCH($P$1,$H$32:$H$50,1)+1,MATCH(P$4,$I$31:$M$31,0))-INDEX($I$32:$M$50,MATCH($P$1,$H$32:$H$50,1),MATCH(P$4,$I$31:$M$31,0)))/(INDEX($H$32:$H$50,MATCH($P$1,$H$32:$H$50,1)+1)-INDEX($H$32:$H$50,MATCH($P$1,$H$32:$H$50,1))),INDEX($I$32:$M$50,MATCH($P$1,$H$32:$H$50,0),MATCH(P4,$I$31:$M$31,0))) ->  | Q31: =IF(ISERROR(MATCH($P$1,$H$32:$H$50,0)),VLOOKUP($P$1,$H$32:$M$50,MATCH(Q$4,$I$31:$M$31,0)+1,TRUE)+($P$1-VLOOKUP($P$1,$H$32:$H$50,1,TRUE))*(INDEX($I$32:$M$50,MATCH($P$1,$H$32:$H$50,1)+1,MATCH(Q$4,$I$31:$M$31,0))-INDEX($I$32:$M$50,MATCH($P$1,$H$32:$H$50,1),MATCH(Q$4,$I$31:$M$31,0)))/(INDEX($H$32:$H$50,MATCH($P$1,$H$32:$H$50,1)+1)-INDEX($H$32:$H$50,MATCH($P$1,$H$32:$H$50,1))),INDEX($I$32:$M$50,MATCH($P$1,$H$32:$H$50,0),MATCH(Q4,$I$31:$M$31,0))) ->  | R31: =IF(ISERROR(MATCH($P$1,$H$32:$H$50,0)),VLOOKUP($P$1,$H$32:$M$50,MATCH(R$4,$I$31:$M$31,0)+1,TRUE)+($P$1-VLOOKUP($P$1,$H$32:$H$50,1,TRUE))*(INDEX($I$32:$M$50,MATCH($P$1,$H$32:$H$50,1)+1,MATCH(R$4,$I$31:$M$31,0))-INDEX($I$32:$M$50,MATCH($P$1,$H$32:$H$50,1),MATCH(R$4,$I$31:$M$31,0)))/(INDEX($H$32:$H$50,MATCH($P$1,$H$32:$H$50,1)+1)-INDEX($H$32:$H$50,MATCH($P$1,$H$32:$H$50,1))),INDEX($I$32:$M$50,MATCH($P$1,$H$32:$H$50,0),MATCH(R4,$I$31:$M$31,0))) ->  | S31: =IF(ISERROR(MATCH($P$1,$H$32:$H$50,0)),VLOOKUP($P$1,$H$32:$M$50,MATCH(S$4,$I$31:$M$31,0)+1,TRUE)+($P$1-VLOOKUP($P$1,$H$32:$H$50,1,TRUE))*(INDEX($I$32:$M$50,MATCH($P$1,$H$32:$H$50,1)+1,MATCH(S$4,$I$31:$M$31,0))-INDEX($I$32:$M$50,MATCH($P$1,$H$32:$H$50,1),MATCH(S$4,$I$31:$M$31,0)))/(INDEX($H$32:$H$50,MATCH($P$1,$H$32:$H$50,1)+1)-INDEX($H$32:$H$50,MATCH($P$1,$H$32:$H$50,1))),INDEX($I$32:$M$50,MATCH($P$1,$H$32:$H$50,0),MATCH(S4,$I$31:$M$31,0))) ->  | T31: =IF(ISERROR(MATCH($P$1,$H$32:$H$50,0)),VLOOKUP($P$1,$H$32:$M$50,MATCH(T$4,$I$31:$M$31,0)+1,TRUE)+($P$1-VLOOKUP($P$1,$H$32:$H$50,1,TRUE))*(INDEX($I$32:$M$50,MATCH($P$1,$H$32:$H$50,1)+1,MATCH(T$4,$I$31:$M$31,0))-INDEX($I$32:$M$50,MATCH($P$1,$H$32:$H$50,1),MATCH(T$4,$I$31:$M$31,0)))/(INDEX($H$32:$H$50,MATCH($P$1,$H$32:$H$50,1)+1)-INDEX($H$32:$H$50,MATCH($P$1,$H$32:$H$50,1))),INDEX($I$32:$M$50,MATCH($P$1,$H$32:$H$50,0),MATCH(T4,$I$31:$M$31,0))) -> 
A32: 0 | B32: 0 | C32: 0 | D32: 0 | E32: 0 | F32: 0 | H32: =A32/100 -> 0 | I32: 0 | J32: 0 | K32: 0 | L32: 0 | M32: 0 | O32: New Separation distance | P32: =IF(ISERROR(MATCH($P$2,$H$32:$H$50,0)),VLOOKUP($P$2,$H$32:$M$50,MATCH(P$4,$I$31:$M$31,0)+1,TRUE)+($P$2-VLOOKUP($P$2,$H$32:$H$50,1,TRUE))*(INDEX($I$32:$M$50,MATCH($P$2,$H$32:$H$50,1)+1,MATCH(P$4,$I$31:$M$31,0))-INDEX($I$32:$M$50,MATCH($P$2,$H$32:$H$50,1),MATCH(P$4,$I$31:$M$31,0)))/(INDEX($H$32:$H$50,MATCH($P$2,$H$32:$H$50,1)+1)-INDEX($H$32:$H$50,MATCH($P$2,$H$32:$H$50,1))),INDEX($I$32:$M$50,MATCH($P$2,$H$32:$H$50,0),MATCH(P4,$I$31:$M$31,0))) ->  | Q32: =IF(ISERROR(MATCH($P$2,$H$32:$H$50,0)),VLOOKUP($P$2,$H$32:$M$50,MATCH(Q$4,$I$31:$M$31,0)+1,TRUE)+($P$2-VLOOKUP($P$2,$H$32:$H$50,1,TRUE))*(INDEX($I$32:$M$50,MATCH($P$2,$H$32:$H$50,1)+1,MATCH(Q$4,$I$31:$M$31,0))-INDEX($I$32:$M$50,MATCH($P$2,$H$32:$H$50,1),MATCH(Q$4,$I$31:$M$31,0)))/(INDEX($H$32:$H$50,MATCH($P$2,$H$32:$H$50,1)+1)-INDEX($H$32:$H$50,MATCH($P$2,$H$32:$H$50,1))),INDEX($I$32:$M$50,MATCH($P$2,$H$32:$H$50,0),MATCH(Q4,$I$31:$M$31,0))) ->  | R32: =IF(ISERROR(MATCH($P$2,$H$32:$H$50,0)),VLOOKUP($P$2,$H$32:$M$50,MATCH(R$4,$I$31:$M$31,0)+1,TRUE)+($P$2-VLOOKUP($P$2,$H$32:$H$50,1,TRUE))*(INDEX($I$32:$M$50,MATCH($P$2,$H$32:$H$50,1)+1,MATCH(R$4,$I$31:$M$31,0))-INDEX($I$32:$M$50,MATCH($P$2,$H$32:$H$50,1),MATCH(R$4,$I$31:$M$31,0)))/(INDEX($H$32:$H$50,MATCH($P$2,$H$32:$H$50,1)+1)-INDEX($H$32:$H$50,MATCH($P$2,$H$32:$H$50,1))),INDEX($I$32:$M$50,MATCH($P$2,$H$32:$H$50,0),MATCH(R4,$I$31:$M$31,0))) ->  | S32: =IF(ISERROR(MATCH($P$2,$H$32:$H$50,0)),VLOOKUP($P$2,$H$32:$M$50,MATCH(S$4,$I$31:$M$31,0)+1,TRUE)+($P$2-VLOOKUP($P$2,$H$32:$H$50,1,TRUE))*(INDEX($I$32:$M$50,MATCH($P$2,$H$32:$H$50,1)+1,MATCH(S$4,$I$31:$M$31,0))-INDEX($I$32:$M$50,MATCH($P$2,$H$32:$H$50,1),MATCH(S$4,$I$31:$M$31,0)))/(INDEX($H$32:$H$50,MATCH($P$2,$H$32:$H$50,1)+1)-INDEX($H$32:$H$50,MATCH($P$2,$H$32:$H$50,1))),INDEX($I$32:$M$50,MATCH($P$2,$H$32:$H$50,0),MATCH(S4,$I$31:$M$31,0))) ->  | T32: =IF(ISERROR(MATCH($P$2,$H$32:$H$50,0)),VLOOKUP($P$2,$H$32:$M$50,MATCH(T$4,$I$31:$M$31,0)+1,TRUE)+($P$2-VLOOKUP($P$2,$H$32:$H$50,1,TRUE))*(INDEX($I$32:$M$50,MATCH($P$2,$H$32:$H$50,1)+1,MATCH(T$4,$I$31:$M$31,0))-INDEX($I$32:$M$50,MATCH($P$2,$H$32:$H$50,1),MATCH(T$4,$I$31:$M$31,0)))/(INDEX($H$32:$H$50,MATCH($P$2,$H$32:$H$50,1)+1)-INDEX($H$32:$H$50,MATCH($P$2,$H$32:$H$50,1))),INDEX($I$32:$M$50,MATCH($P$2,$H$32:$H$50,0),MATCH(T4,$I$31:$M$31,0))) -> 
A33: 100 | B33: 723.9 | C33: 394.6 | D33: 239.4 | E33: 184.2 | F33: 102.5 | H33: =A33/100 -> 1 | I33: =+B33/1609.347 -> 0.4498097676 | J33: 0.2451926154 | K33: 0.1487559861 | L33: 0.1144563603 | M33: 0.06369042848
A34: 200 | B34: 1058.6 | C34: 557.2 | D34: 338.8 | E34: 252.3 | F34: 134.5 | H34: 2 | I34: 0.6577823179 | J34: 0.3462273829 | K34: 0.2105201675 | L34: 0.1567716596 | M34: 0.08357426956
A35: 300 | B35: 1335.4 | C35: 689.1 | D35: 411.5 | E35: 303 | F35: 142.3 | H35: 3 | I35: 0.8297775433 | J35: 0.4281860904 | K35: 0.255693769 | L35: 0.1882751203 | M35: 0.08842095583
A36: 400 | B36: 1552.8 | C36: 793.7 | D36: 466.1 | E36: 343.4 | F36: 165 | H36: 4 | I36: 0.9648633887 | J36: 0.4931813959 | K36: 0.2896205728 | L36: 0.2133784697 | M36: 0.1025260556
A37: 500 | B37: 1716.3 | C37: 895.9 | D37: 525.5 | E37: 384.8 | F37: 175.5 | H37: 5 | I37: 1.066457389 | J37: 0.5566854134 | K37: 0.3265299528 | L37: 0.2391031891 | M37: 0.109050441
A38: 1000 | B38: 2523 | C38: 1256.2 | D38: 720.1 | E38: 489.6 | F38: 185 | H38: 10 | I38: 1.567716596 | J38: 0.7805650366 | K38: 0.4474485614 | L38: 0.3042227686 | M38: 0.1149534563
A39: 2000 | B39: 3707.1 | C39: 1773.4 | D39: 994.2 | E39: 644.2 | F39: 199.9 | H39: 20 | I39: 2.303480853 | J39: 1.101937618 | K39: 0.6177660877 | L39: 0.4002865759 | M39: 0.1242118698
A40: 3000 | B40: 4578.1 | C40: 2198 | D40: 1183.2 | E40: 759.2 | F40: 233.9 | H40: 30 | I40: 2.844694152 | J40: 1.365771335 | K40: 0.7352050241 | L40: 0.4717441298 | M40: 0.1453384509
A41: 4000 | B41: 5341.8 | C41: 2539.1 | D41: 1369.5 | E41: 847.5 | F41: 275.7 | H41: 40 | I41: 3.319234447 | J41: 1.577720653 | K41: 0.8509662615 | L41: 0.5266111038 | M41: 0.1713117184
A53: N. Platte, NE - AERMOD setback distances (SW) as reported in the Odor Footprint Tool
A55: Setback Distances (m) for N. Platte, SW Direction | H55: Setback Distances (mi) for N. Platte, SW Direction
A56: x 104 | B56: Annoyance Free Percentage | H56: x 106 | I56: Annoyance Free Percentage
A57: OU/s | B57: 99 | C57: 98 | D57: 96 | E57: 94 | F57: 90 | H57: OU/s | I57: 99 | J57: 98 | K57: 96 | L57: 94 | M57: 90 | O57: Separation distance | P57: =IF(ISERROR(MATCH($P$1,$H$58:$H$76,0)),VLOOKUP($P$1,$H$58:$M$76,MATCH(P$4,$I$57:$M$57,0)+1,TRUE)+($P$1-VLOOKUP($P$1,$H$58:$H$76,1,TRUE))*(INDEX($I$58:$M$76,MATCH($P$1,$H$58:$H$76,1)+1,MATCH(P$4,$I$57:$M$57,0))-INDEX($I$58:$M$76,MATCH($P$1,$H$58:$H$76,1),MATCH(P$4,$I$57:$M$57,0)))/(INDEX($H$58:$H$76,MATCH($P$1,$H$58:$H$76,1)+1)-INDEX($H$58:$H$76,MATCH($P$1,$H$58:$H$76,1))),INDEX($I$58:$M$76,MATCH($P$1,$H$58:$H$76,0),MATCH(P$4,$I$57:$M$57,0))) ->  | Q57: =IF(ISERROR(MATCH($P$1,$H$58:$H$76,0)),VLOOKUP($P$1,$H$58:$M$76,MATCH(Q$4,$I$57:$M$57,0)+1,TRUE)+($P$1-VLOOKUP($P$1,$H$58:$H$76,1,TRUE))*(INDEX($I$58:$M$76,MATCH($P$1,$H$58:$H$76,1)+1,MATCH(Q$4,$I$57:$M$57,0))-INDEX($I$58:$M$76,MATCH($P$1,$H$58:$H$76,1),MATCH(Q$4,$I$57:$M$57,0)))/(INDEX($H$58:$H$76,MATCH($P$1,$H$58:$H$76,1)+1)-INDEX($H$58:$H$76,MATCH($P$1,$H$58:$H$76,1))),INDEX($I$58:$M$76,MATCH($P$1,$H$58:$H$76,0),MATCH(Q$4,$I$57:$M$57,0))) ->  | R57: =IF(ISERROR(MATCH($P$1,$H$58:$H$76,0)),VLOOKUP($P$1,$H$58:$M$76,MATCH(R$4,$I$57:$M$57,0)+1,TRUE)+($P$1-VLOOKUP($P$1,$H$58:$H$76,1,TRUE))*(INDEX($I$58:$M$76,MATCH($P$1,$H$58:$H$76,1)+1,MATCH(R$4,$I$57:$M$57,0))-INDEX($I$58:$M$76,MATCH($P$1,$H$58:$H$76,1),MATCH(R$4,$I$57:$M$57,0)))/(INDEX($H$58:$H$76,MATCH($P$1,$H$58:$H$76,1)+1)-INDEX($H$58:$H$76,MATCH($P$1,$H$58:$H$76,1))),INDEX($I$58:$M$76,MATCH($P$1,$H$58:$H$76,0),MATCH(R$4,$I$57:$M$57,0))) ->  | S57: =IF(ISERROR(MATCH($P$1,$H$58:$H$76,0)),VLOOKUP($P$1,$H$58:$M$76,MATCH(S$4,$I$57:$M$57,0)+1,TRUE)+($P$1-VLOOKUP($P$1,$H$58:$H$76,1,TRUE))*(INDEX($I$58:$M$76,MATCH($P$1,$H$58:$H$76,1)+1,MATCH(S$4,$I$57:$M$57,0))-INDEX($I$58:$M$76,MATCH($P$1,$H$58:$H$76,1),MATCH(S$4,$I$57:$M$57,0)))/(INDEX($H$58:$H$76,MATCH($P$1,$H$58:$H$76,1)+1)-INDEX($H$58:$H$76,MATCH($P$1,$H$58:$H$76,1))),INDEX($I$58:$M$76,MATCH($P$1,$H$58:$H$76,0),MATCH(S$4,$I$57:$M$57,0))) ->  | T57: =IF(ISERROR(MATCH($P$1,$H$58:$H$76,0)),VLOOKUP($P$1,$H$58:$M$76,MATCH(T$4,$I$57:$M$57,0)+1,TRUE)+($P$1-VLOOKUP($P$1,$H$58:$H$76,1,TRUE))*(INDEX($I$58:$M$76,MATCH($P$1,$H$58:$H$76,1)+1,MATCH(T$4,$I$57:$M$57,0))-INDEX($I$58:$M$76,MATCH($P$1,$H$58:$H$76,1),MATCH(T$4,$I$57:$M$57,0)))/(INDEX($H$58:$H$76,MATCH($P$1,$H$58:$H$76,1)+1)-INDEX($H$58:$H$76,MATCH($P$1,$H$58:$H$76,1))),INDEX($I$58:$M$76,MATCH($P$1,$H$58:$H$76,0),MATCH(T$4,$I$57:$M$57,0))) -> 
A58: 0 | B58: 0 | C58: 0 | D58: 0 | E58: 0 | F58: 0 | H58: =A58/100 -> 0 | I58: 0 | J58: 0 | K58: 0 | L58: 0 | M58: 0 | O58: New Separation distance | P58: =IF(ISERROR(MATCH($P$2,$H$58:$H$76,0)),VLOOKUP($P$2,$H$58:$M$76,MATCH(P$4,$I$57:$M$57,0)+1,TRUE)+($P$2-VLOOKUP($P$2,$H$58:$H$76,1,TRUE))*(INDEX($I$58:$M$76,MATCH($P$2,$H$58:$H$76,1)+1,MATCH(P$4,$I$57:$M$57,0))-INDEX($I$58:$M$76,MATCH($P$2,$H$58:$H$76,1),MATCH(P$4,$I$57:$M$57,0)))/(INDEX($H$58:$H$76,MATCH($P$2,$H$58:$H$76,1)+1)-INDEX($H$58:$H$76,MATCH($P$2,$H$58:$H$76,1))),INDEX($I$58:$M$76,MATCH($P$2,$H$58:$H$76,0),MATCH(P4,$I$57:$M$57,0))) ->  | Q58: =IF(ISERROR(MATCH($P$2,$H$58:$H$76,0)),VLOOKUP($P$2,$H$58:$M$76,MATCH(Q$4,$I$57:$M$57,0)+1,TRUE)+($P$2-VLOOKUP($P$2,$H$58:$H$76,1,TRUE))*(INDEX($I$58:$M$76,MATCH($P$2,$H$58:$H$76,1)+1,MATCH(Q$4,$I$57:$M$57,0))-INDEX($I$58:$M$76,MATCH($P$2,$H$58:$H$76,1),MATCH(Q$4,$I$57:$M$57,0)))/(INDEX($H$58:$H$76,MATCH($P$2,$H$58:$H$76,1)+1)-INDEX($H$58:$H$76,MATCH($P$2,$H$58:$H$76,1))),INDEX($I$58:$M$76,MATCH($P$2,$H$58:$H$76,0),MATCH(Q4,$I$57:$M$57,0))) ->  | R58: =IF(ISERROR(MATCH($P$2,$H$58:$H$76,0)),VLOOKUP($P$2,$H$58:$M$76,MATCH(R$4,$I$57:$M$57,0)+1,TRUE)+($P$2-VLOOKUP($P$2,$H$58:$H$76,1,TRUE))*(INDEX($I$58:$M$76,MATCH($P$2,$H$58:$H$76,1)+1,MATCH(R$4,$I$57:$M$57,0))-INDEX($I$58:$M$76,MATCH($P$2,$H$58:$H$76,1),MATCH(R$4,$I$57:$M$57,0)))/(INDEX($H$58:$H$76,MATCH($P$2,$H$58:$H$76,1)+1)-INDEX($H$58:$H$76,MATCH($P$2,$H$58:$H$76,1))),INDEX($I$58:$M$76,MATCH($P$2,$H$58:$H$76,0),MATCH(R4,$I$57:$M$57,0))) ->  | S58: =IF(ISERROR(MATCH($P$2,$H$58:$H$76,0)),VLOOKUP($P$2,$H$58:$M$76,MATCH(S$4,$I$57:$M$57,0)+1,TRUE)+($P$2-VLOOKUP($P$2,$H$58:$H$76,1,TRUE))*(INDEX($I$58:$M$76,MATCH($P$2,$H$58:$H$76,1)+1,MATCH(S$4,$I$57:$M$57,0))-INDEX($I$58:$M$76,MATCH($P$2,$H$58:$H$76,1),MATCH(S$4,$I$57:$M$57,0)))/(INDEX($H$58:$H$76,MATCH($P$2,$H$58:$H$76,1)+1)-INDEX($H$58:$H$76,MATCH($P$2,$H$58:$H$76,1))),INDEX($I$58:$M$76,MATCH($P$2,$H$58:$H$76,0),MATCH(S4,$I$57:$M$57,0))) ->  | T58: =IF(ISERROR(MATCH($P$2,$H$58:$H$76,0)),VLOOKUP($P$2,$H$58:$M$76,MATCH(T$4,$I$57:$M$57,0)+1,TRUE)+($P$2-VLOOKUP($P$2,$H$58:$H$76,1,TRUE))*(INDEX($I$58:$M$76,MATCH($P$2,$H$58:$H$76,1)+1,MATCH(T$4,$I$57:$M$57,0))-INDEX($I$58:$M$76,MATCH($P$2,$H$58:$H$76,1),MATCH(T$4,$I$57:$M$57,0)))/(INDEX($H$58:$H$76,MATCH($P$2,$H$58:$H$76,1)+1)-INDEX($H$58:$H$76,MATCH($P$2,$H$58:$H$76,1))),INDEX($I$58:$M$76,MATCH($P$2,$H$58:$H$76,0),MATCH(T4,$I$57:$M$57,0))) -> 
A59: 100 | B59: 612.6 | C59: 387.5 | D59: 238 | E59: 200 | F59: 125.4 | H59: =A59/100 -> 1 | I59: =+B59/1609.347 -> 0.3806512828 | J59: 0.2407808881 | K59: 0.1478860681 | L59: 0.1242740068 | M59: 0.07791980226
A60: 200 | B60: 880.8 | C60: 540.3 | D60: 321.4 | E60: 265.3 | F60: 156.3 | H60: 2 | I60: 0.5473027259 | J60: 0.3357262293 | K60: 0.1997083289 | L60: 0.16484947 | M60: 0.0971201363
A61: 300 | B61: 1134.2 | C61: 669.8 | D61: 420 | E61: 322.1 | F61: 194.8 | H61: 3 | I61: 0.7047578925 | J61: 0.4161936487 | K61: 0.2609754143 | L61: 0.2001432879 | M61: 0.1210428826
A62: 400 | B62: 1350 | C62: 760 | D62: 471.3 | E62: 380.3 | F62: 202.3 | H62: 4 | I62: 0.8388495458 | J62: 0.4722412258 | K62: 0.292851697 | L62: 0.2363070239 | M62: 0.1257031579
A63: 500 | B63: 1517.3 | C63: 871 | D63: 536.8 | E63: 432.5 | F63: 226 | H63: 5 | I63: 0.9428047525 | J63: 0.5412132996 | K63: 0.3335514342 | L63: 0.2687425397 | M63: 0.1404296277
A64: 1000 | B64: 2304.1 | C64: 1355 | D64: 840 | E64: 582.6 | F64: 325 | H64: 10 | I64: 1.431698695 | J64: 0.841956396 | K64: 0.5219508285 | L64: 0.3620101818 | M64: 0.201945261
A65: 2000 | B65: 3520.2 | C65: 1898.2 | D65: 1127.8 | E65: 743.2 | F65: 359.4 | H65: 20 | I65: 2.187346793 | J65: 1.179484598 | K65: 0.7007811243 | L65: 0.4618022092 | M65: 0.2233203902
A66: 3000 | B66: 4467.3 | C66: 2331.2 | D66: 1311 | E66: 802.7 | F66: 400 | H66: 30 | I66: 2.775846353 | J66: 1.448537823 | K66: 0.8146161145 | L66: 0.4987737262 | M66: 0.2485480136
A67: 4000 | B67: 5306.1 | C67: 2867.7 | D67: 1657.5 | E67: 1052.6 | F67: 449.4 | H67: 40 | I67: 3.297051537 | J67: 1.781902846 | K67: 1.029920831 | L67: 0.6540540977 | M67: 0.2792436932
A79: North Platte, NE - AERMOD setback distances (NW) as reported in the Odor Footprint Tool
A81: Setback Distances (m) for N. Platte, NW Direction | H81: Setback Distances (mi) for N. Platte, NW Direction
A82: x 104 | B82: Annoyance Free Percentage | H82: x 106 | I82: Annoyance Free Percentage
A83: OU/s | B83: 99 | C83: 98 | D83: 96 | E83: 94 | F83: 90 | H83: OU/s | I83: 99 | J83: 98 | K83: 96 | L83: 94 | M83: 90 | O83: Separation distance | P83: =IF(ISERROR(MATCH($P$1,$H$84:$H$102,0)),VLOOKUP($P$1,$H$84:$M$102,MATCH(P$4,$I$83:$M$83,0)+1,TRUE)+($P$1-VLOOKUP($P$1,$H$84:$H$102,1,TRUE))*(INDEX($I$84:$M$102,MATCH($P$1,$H$84:$H$102,1)+1,MATCH(P$4,$I$83:$M$83,0))-INDEX($I$84:$M$102,MATCH($P$1,$H$84:$H$102,1),MATCH(P$4,$I$83:$M$83,0)))/(INDEX($H$84:$H$102,MATCH($P$1,$H$84:$H$102,1)+1)-INDEX($H$84:$H$102,MATCH($P$1,$H$84:$H$102,1))),INDEX($I$84:$M$102,MATCH($P$1,$H$84:$H$102,0),MATCH(P4,$I$83:$M$83,0))) ->  | Q83: =IF(ISERROR(MATCH($P$1,$H$84:$H$102,0)),VLOOKUP($P$1,$H$84:$M$102,MATCH(Q$4,$I$83:$M$83,0)+1,TRUE)+($P$1-VLOOKUP($P$1,$H$84:$H$102,1,TRUE))*(INDEX($I$84:$M$102,MATCH($P$1,$H$84:$H$102,1)+1,MATCH(Q$4,$I$83:$M$83,0))-INDEX($I$84:$M$102,MATCH($P$1,$H$84:$H$102,1),MATCH(Q$4,$I$83:$M$83,0)))/(INDEX($H$84:$H$102,MATCH($P$1,$H$84:$H$102,1)+1)-INDEX($H$84:$H$102,MATCH($P$1,$H$84:$H$102,1))),INDEX($I$84:$M$102,MATCH($P$1,$H$84:$H$102,0),MATCH(Q4,$I$83:$M$83,0))) ->  | R83: =IF(ISERROR(MATCH($P$1,$H$84:$H$102,0)),VLOOKUP($P$1,$H$84:$M$102,MATCH(R$4,$I$83:$M$83,0)+1,TRUE)+($P$1-VLOOKUP($P$1,$H$84:$H$102,1,TRUE))*(INDEX($I$84:$M$102,MATCH($P$1,$H$84:$H$102,1)+1,MATCH(R$4,$I$83:$M$83,0))-INDEX($I$84:$M$102,MATCH($P$1,$H$84:$H$102,1),MATCH(R$4,$I$83:$M$83,0)))/(INDEX($H$84:$H$102,MATCH($P$1,$H$84:$H$102,1)+1)-INDEX($H$84:$H$102,MATCH($P$1,$H$84:$H$102,1))),INDEX($I$84:$M$102,MATCH($P$1,$H$84:$H$102,0),MATCH(R4,$I$83:$M$83,0))) ->  | S83: =IF(ISERROR(MATCH($P$1,$H$84:$H$102,0)),VLOOKUP($P$1,$H$84:$M$102,MATCH(S$4,$I$83:$M$83,0)+1,TRUE)+($P$1-VLOOKUP($P$1,$H$84:$H$102,1,TRUE))*(INDEX($I$84:$M$102,MATCH($P$1,$H$84:$H$102,1)+1,MATCH(S$4,$I$83:$M$83,0))-INDEX($I$84:$M$102,MATCH($P$1,$H$84:$H$102,1),MATCH(S$4,$I$83:$M$83,0)))/(INDEX($H$84:$H$102,MATCH($P$1,$H$84:$H$102,1)+1)-INDEX($H$84:$H$102,MATCH($P$1,$H$84:$H$102,1))),INDEX($I$84:$M$102,MATCH($P$1,$H$84:$H$102,0),MATCH(S4,$I$83:$M$83,0))) ->  | T83: =IF(ISERROR(MATCH($P$1,$H$84:$H$102,0)),VLOOKUP($P$1,$H$84:$M$102,MATCH(T$4,$I$83:$M$83,0)+1,TRUE)+($P$1-VLOOKUP($P$1,$H$84:$H$102,1,TRUE))*(INDEX($I$84:$M$102,MATCH($P$1,$H$84:$H$102,1)+1,MATCH(T$4,$I$83:$M$83,0))-INDEX($I$84:$M$102,MATCH($P$1,$H$84:$H$102,1),MATCH(T$4,$I$83:$M$83,0)))/(INDEX($H$84:$H$102,MATCH($P$1,$H$84:$H$102,1)+1)-INDEX($H$84:$H$102,MATCH($P$1,$H$84:$H$102,1))),INDEX($I$84:$M$102,MATCH($P$1,$H$84:$H$102,0),MATCH(T4,$I$83:$M$83,0))) -> 
A84: 0 | B84: 0 | C84: 0 | D84: 0 | E84: 0 | F84: 0 | H84: =A84/100 -> 0 | I84: 0 | J84: 0 | K84: 0 | L84: 0 | M84: 0 | O84: New Separation distance | P84: =IF(ISERROR(MATCH($P$2,$H$84:$H$102,0)),VLOOKUP($P$2,$H$84:$M$102,MATCH(P$4,$I$83:$M$83,0)+1,TRUE)+($P$2-VLOOKUP($P$2,$H$84:$H$102,1,TRUE))*(INDEX($I$84:$M$102,MATCH($P$2,$H$84:$H$102,1)+1,MATCH(P$4,$I$83:$M$83,0))-INDEX($I$84:$M$102,MATCH($P$2,$H$84:$H$102,1),MATCH(P$4,$I$83:$M$83,0)))/(INDEX($H$84:$H$102,MATCH($P$2,$H$84:$H$102,1)+1)-INDEX($H$84:$H$102,MATCH($P$2,$H$84:$H$102,1))),INDEX($I$84:$M$102,MATCH($P$2,$H$84:$H$102,0),MATCH(P4,$I$83:$M$83,0))) ->  | Q84: =IF(ISERROR(MATCH($P$2,$H$84:$H$102,0)),VLOOKUP($P$2,$H$84:$M$102,MATCH(Q$4,$I$83:$M$83,0)+1,TRUE)+($P$2-VLOOKUP($P$2,$H$84:$H$102,1,TRUE))*(INDEX($I$84:$M$102,MATCH($P$2,$H$84:$H$102,1)+1,MATCH(Q$4,$I$83:$M$83,0))-INDEX($I$84:$M$102,MATCH($P$2,$H$84:$H$102,1),MATCH(Q$4,$I$83:$M$83,0)))/(INDEX($H$84:$H$102,MATCH($P$2,$H$84:$H$102,1)+1)-INDEX($H$84:$H$102,MATCH($P$2,$H$84:$H$102,1))),INDEX($I$84:$M$102,MATCH($P$2,$H$84:$H$102,0),MATCH(Q4,$I$83:$M$83,0))) ->  | R84: =IF(ISERROR(MATCH($P$2,$H$84:$H$102,0)),VLOOKUP($P$2,$H$84:$M$102,MATCH(R$4,$I$83:$M$83,0)+1,TRUE)+($P$2-VLOOKUP($P$2,$H$84:$H$102,1,TRUE))*(INDEX($I$84:$M$102,MATCH($P$2,$H$84:$H$102,1)+1,MATCH(R$4,$I$83:$M$83,0))-INDEX($I$84:$M$102,MATCH($P$2,$H$84:$H$102,1),MATCH(R$4,$I$83:$M$83,0)))/(INDEX($H$84:$H$102,MATCH($P$2,$H$84:$H$102,1)+1)-INDEX($H$84:$H$102,MATCH($P$2,$H$84:$H$102,1))),INDEX($I$84:$M$102,MATCH($P$2,$H$84:$H$102,0),MATCH(R4,$I$83:$M$83,0))) ->  | S84: =IF(ISERROR(MATCH($P$2,$H$84:$H$102,0)),VLOOKUP($P$2,$H$84:$M$102,MATCH(S$4,$I$83:$M$83,0)+1,TRUE)+($P$2-VLOOKUP($P$2,$H$84:$H$102,1,TRUE))*(INDEX($I$84:$M$102,MATCH($P$2,$H$84:$H$102,1)+1,MATCH(S$4,$I$83:$M$83,0))-INDEX($I$84:$M$102,MATCH($P$2,$H$84:$H$102,1),MATCH(S$4,$I$83:$M$83,0)))/(INDEX($H$84:$H$102,MATCH($P$2,$H$84:$H$102,1)+1)-INDEX($H$84:$H$102,MATCH($P$2,$H$84:$H$102,1))),INDEX($I$84:$M$102,MATCH($P$2,$H$84:$H$102,0),MATCH(S4,$I$83:$M$83,0))) ->  | T84: =IF(ISERROR(MATCH($P$2,$H$84:$H$102,0)),VLOOKUP($P$2,$H$84:$M$102,MATCH(T$4,$I$83:$M$83,0)+1,TRUE)+($P$2-VLOOKUP($P$2,$H$84:$H$102,1,TRUE))*(INDEX($I$84:$M$102,MATCH($P$2,$H$84:$H$102,1)+1,MATCH(T$4,$I$83:$M$83,0))-INDEX($I$84:$M$102,MATCH($P$2,$H$84:$H$102,1),MATCH(T$4,$I$83:$M$83,0)))/(INDEX($H$84:$H$102,MATCH($P$2,$H$84:$H$102,1)+1)-INDEX($H$84:$H$102,MATCH($P$2,$H$84:$H$102,1))),INDEX($I$84:$M$102,MATCH($P$2,$H$84:$H$102,0),MATCH(T4,$I$83:$M$83,0))) -> 
A85: 100 | B85: 716.4 | C85: 461.1 | D85: 301 | E85: 236.7 | F85: 167.7 | H85: =A85/100 -> 1 | I85: =+B85/1609.347 -> 0.4451494923 | J85: 0.2865137226 | K85: 0.1870323802 | L85: 0.147078287 | M85: 0.1042037547
A86: 200 | B86: 1099.6 | C86: 717.3 | D86: 437.5 | E86: 341.8 | F86: 234.1 | H86: 2 | I86: 0.6832584893 | J86: 0.4457087253 | K86: 0.2718493898 | L86: 0.2123842776 | M86: 0.1454627249
A87: 300 | B87: 1379.3 | C87: 885.9 | D87: 547.5 | E87: 424.5 | F87: 291 | H87: 3 | I87: 0.8570556878 | J87: 0.5504717131 | K87: 0.3402000936 | L87: 0.2637715794 | M87: 0.1808186799
A88: 400 | B88: 1646.3 | C88: 1063.9 | D88: 650.3 | E88: 486.5 | F88: 340.6 | H88: 4 | I88: 1.022961487 | J88: 0.6610755791 | K88: 0.4040769331 | L88: 0.3022965215 | M88: 0.2116386336
A89: 500 | B89: 1848.2 | C89: 1161.2 | D89: 728.5 | E89: 545 | F89: 381.4 | H89: 5 | I89: 1.148416097 | J89: 0.7215348834 | K89: 0.4526680697 | L89: 0.3386466685 | M89: 0.2369905309
A90: 1000 | B90: 2806.9 | C90: 1750.2 | D90: 1057.8 | E90: 775.7 | F90: 524.4 | H90: 10 | I90: 1.744123548 | J90: 1.087521833 | K90: 0.6572852219 | L90: 0.4819967353 | M90: 0.3258464458
A91: 2000 | B91: 4281 | C91: 2655.1 | D91: 1573.2 | E91: 1087.6 | F91: 668.7 | H91: 20 | I91: 2.660085115 | J91: 1.649799577 | K91: 0.9775393374 | L91: 0.6758020489 | M91: 0.4155101417
A92: 3000 | B92: 5419.9 | C92: 3398.5 | D92: 1951.4 | E92: 1310.1 | F92: 913.7 | H92: 30 | I92: 3.367763447 | J92: 2.11172606 | K92: 1.212541484 | L92: 0.8140568815 | M92: 0.5677458
A93: 4000 | B93: 6466.8 | C93: 3934.5 | D93: 2162.8 | E93: 1514.2 | F93: 989.7 | H93: 40 | I93: 4.018275735 | J93: 2.444780399 | K93: 1.343899109 | L93: 0.9408785054 | M93: 0.6149699226

Sheet Alliance (hidden)
A1: Alliance, NE-AERMOD setback distances (N) as reported in the Odor Footprint Tool | O1: Total Scaled Odor Emission Rate (x10^6) | P1: =Inputs!E33 -> 
O2: New Total Scaled Odor Emission Rate (x10^6) | P2: =Inputs!E42 -> 
A3: Setback Distances (m) N Direction | H3: Setback Distances (mi) N Direction
A4: x 104 | B4: Annoyance Free Percentage | H4: x 106 | I4: Annoyance Free Percentage | O4: Annoyance free percentage | P4: 99 | Q4: 98 | R4: 96 | S4: 94 | T4: 90
A5: OU/s | B5: 99 | C5: 98 | D5: 96 | E5: 94 | F5: 90 | H5: OU/s | I5: 99 | J5: 98 | K5: 96 | L5: 94 | M5: 90 | O5: Separation distance | P5: =IF(ISERROR(MATCH($P$1,$H$6:$H$24,0)),VLOOKUP($P$1,$H$6:$M$24,MATCH(P4,$I$5:$M$5,0)+1,TRUE)+($P$1-VLOOKUP($P$1,$H$6:$H$24,1,TRUE))*(INDEX($I$6:$M$24,MATCH($P$1,$H$6:$H$24,1)+1,MATCH(P4,$I$5:$M$5,0))-INDEX($I$6:$M$24,MATCH($P$1,$H$6:$H$24,1),MATCH(P4,$I$5:$M$5,0)))/(INDEX($H$6:$H$24,MATCH($P$1,$H$6:$H$24,1)+1)-INDEX($H$6:$H$24,MATCH($P$1,$H$6:$H$24,1))),INDEX($I$6:$M$24,MATCH($P$1,$H$6:$H$24,0),MATCH(P4,$I$5:$M$5,0))) ->  | Q5: =IF(ISERROR(MATCH($P$1,$H$6:$H$24,0)),VLOOKUP($P$1,$H$6:$M$24,MATCH(Q4,$I$5:$M$5,0)+1,TRUE)+($P$1-VLOOKUP($P$1,$H$6:$H$24,1,TRUE))*(INDEX($I$6:$M$24,MATCH($P$1,$H$6:$H$24,1)+1,MATCH(Q4,$I$5:$M$5,0))-INDEX($I$6:$M$24,MATCH($P$1,$H$6:$H$24,1),MATCH(Q4,$I$5:$M$5,0)))/(INDEX($H$6:$H$24,MATCH($P$1,$H$6:$H$24,1)+1)-INDEX($H$6:$H$24,MATCH($P$1,$H$6:$H$24,1))),INDEX($I$6:$M$24,MATCH($P$1,$H$6:$H$24,0),MATCH(Q4,$I$5:$M$5,0))) ->  | R5: =IF(ISERROR(MATCH($P$1,$H$6:$H$24,0)),VLOOKUP($P$1,$H$6:$M$24,MATCH(R4,$I$5:$M$5,0)+1,TRUE)+($P$1-VLOOKUP($P$1,$H$6:$H$24,1,TRUE))*(INDEX($I$6:$M$24,MATCH($P$1,$H$6:$H$24,1)+1,MATCH(R4,$I$5:$M$5,0))-INDEX($I$6:$M$24,MATCH($P$1,$H$6:$H$24,1),MATCH(R4,$I$5:$M$5,0)))/(INDEX($H$6:$H$24,MATCH($P$1,$H$6:$H$24,1)+1)-INDEX($H$6:$H$24,MATCH($P$1,$H$6:$H$24,1))),INDEX($I$6:$M$24,MATCH($P$1,$H$6:$H$24,0),MATCH(R4,$I$5:$M$5,0))) ->  | S5: =IF(ISERROR(MATCH($P$1,$H$6:$H$24,0)),VLOOKUP($P$1,$H$6:$M$24,MATCH(S4,$I$5:$M$5,0)+1,TRUE)+($P$1-VLOOKUP($P$1,$H$6:$H$24,1,TRUE))*(INDEX($I$6:$M$24,MATCH($P$1,$H$6:$H$24,1)+1,MATCH(S4,$I$5:$M$5,0))-INDEX($I$6:$M$24,MATCH($P$1,$H$6:$H$24,1),MATCH(S4,$I$5:$M$5,0)))/(INDEX($H$6:$H$24,MATCH($P$1,$H$6:$H$24,1)+1)-INDEX($H$6:$H$24,MATCH($P$1,$H$6:$H$24,1))),INDEX($I$6:$M$24,MATCH($P$1,$H$6:$H$24,0),MATCH(S4,$I$5:$M$5,0))) ->  | T5: =IF(ISERROR(MATCH($P$1,$H$6:$H$24,0)),VLOOKUP($P$1,$H$6:$M$24,MATCH(T4,$I$5:$M$5,0)+1,TRUE)+($P$1-VLOOKUP($P$1,$H$6:$H$24,1,TRUE))*(INDEX($I$6:$M$24,MATCH($P$1,$H$6:$H$24,1)+1,MATCH(T4,$I$5:$M$5,0))-INDEX($I$6:$M$24,MATCH($P$1,$H$6:$H$24,1),MATCH(T4,$I$5:$M$5,0)))/(INDEX($H$6:$H$24,MATCH($P$1,$H$6:$H$24,1)+1)-INDEX($H$6:$H$24,MATCH($P$1,$H$6:$H$24,1))),INDEX($I$6:$M$24,MATCH($P$1,$H$6:$H$24,0),MATCH(T4,$I$5:$M$5,0))) -> 
A6: 0 | B6: 0 | C6: 0 | D6: 0 | E6: 0 | F6: 0 | H6: =A6/100 -> 0 | I6: 0 | J6: 0 | K6: 0 | L6: 0 | M6: 0 | O6: New Separation distance | P6: =IF(ISERROR(MATCH($P$2,$H$6:$H$24,0)),VLOOKUP($P$2,$H$6:$M$24,MATCH(P4,$I$5:$M$5,0)+1,TRUE)+($P$2-VLOOKUP($P$2,$H$6:$H$24,1,TRUE))*(INDEX($I$6:$M$24,MATCH($P$2,$H$6:$H$24,1)+1,MATCH(P4,$I$5:$M$5,0))-INDEX($I$6:$M$24,MATCH($P$2,$H$6:$H$24,1),MATCH(P4,$I$5:$M$5,0)))/(INDEX($H$6:$H$24,MATCH($P$2,$H$6:$H$24,1)+1)-INDEX($H$6:$H$24,MATCH($P$2,$H$6:$H$24,1))),INDEX($I$6:$M$24,MATCH($P$2,$H$6:$H$24,0),MATCH(P4,$I$5:$M$5,0))) ->  | Q6: =IF(ISERROR(MATCH($P$2,$H$6:$H$24,0)),VLOOKUP($P$2,$H$6:$M$24,MATCH(Q4,$I$5:$M$5,0)+1,TRUE)+($P$2-VLOOKUP($P$2,$H$6:$H$24,1,TRUE))*(INDEX($I$6:$M$24,MATCH($P$2,$H$6:$H$24,1)+1,MATCH(Q4,$I$5:$M$5,0))-INDEX($I$6:$M$24,MATCH($P$2,$H$6:$H$24,1),MATCH(Q4,$I$5:$M$5,0)))/(INDEX($H$6:$H$24,MATCH($P$2,$H$6:$H$24,1)+1)-INDEX($H$6:$H$24,MATCH($P$2,$H$6:$H$24,1))),INDEX($I$6:$M$24,MATCH($P$2,$H$6:$H$24,0),MATCH(Q4,$I$5:$M$5,0))) ->  | R6: =IF(ISERROR(MATCH($P$2,$H$6:$H$24,0)),VLOOKUP($P$2,$H$6:$M$24,MATCH(R4,$I$5:$M$5,0)+1,TRUE)+($P$2-VLOOKUP($P$2,$H$6:$H$24,1,TRUE))*(INDEX($I$6:$M$24,MATCH($P$2,$H$6:$H$24,1)+1,MATCH(R4,$I$5:$M$5,0))-INDEX($I$6:$M$24,MATCH($P$2,$H$6:$H$24,1),MATCH(R4,$I$5:$M$5,0)))/(INDEX($H$6:$H$24,MATCH($P$2,$H$6:$H$24,1)+1)-INDEX($H$6:$H$24,MATCH($P$2,$H$6:$H$24,1))),INDEX($I$6:$M$24,MATCH($P$2,$H$6:$H$24,0),MATCH(R4,$I$5:$M$5,0))) ->  | S6: =IF(ISERROR(MATCH($P$2,$H$6:$H$24,0)),VLOOKUP($P$2,$H$6:$M$24,MATCH(S4,$I$5:$M$5,0)+1,TRUE)+($P$2-VLOOKUP($P$2,$H$6:$H$24,1,TRUE))*(INDEX($I$6:$M$24,MATCH($P$2,$H$6:$H$24,1)+1,MATCH(S4,$I$5:$M$5,0))-INDEX($I$6:$M$24,MATCH($P$2,$H$6:$H$24,1),MATCH(S4,$I$5:$M$5,0)))/(INDEX($H$6:$H$24,MATCH($P$2,$H$6:$H$24,1)+1)-INDEX($H$6:$H$24,MATCH($P$2,$H$6:$H$24,1))),INDEX($I$6:$M$24,MATCH($P$2,$H$6:$H$24,0),MATCH(S4,$I$5:$M$5,0))) ->  | T6: =IF(ISERROR(MATCH($P$2,$H$6:$H$24,0)),VLOOKUP($P$2,$H$6:$M$24,MATCH(T4,$I$5:$M$5,0)+1,TRUE)+($P$2-VLOOKUP($P$2,$H$6:$H$24,1,TRUE))*(INDEX($I$6:$M$24,MATCH($P$2,$H$6:$H$24,1)+1,MATCH(T4,$I$5:$M$5,0))-INDEX($I$6:$M$24,MATCH($P$2,$H$6:$H$24,1),MATCH(T4,$I$5:$M$5,0)))/(INDEX($H$6:$H$24,MATCH($P$2,$H$6:$H$24,1)+1)-INDEX($H$6:$H$24,MATCH($P$2,$H$6:$H$24,1))),INDEX($I$6:$M$24,MATCH($P$2,$H$6:$H$24,0),MATCH(T4,$I$5:$M$5,0))) -> 
A7: 20 | B7: 221.2 | C7: 157.3 | D7: 112.5 | E7: 94.2 | F7: 76.5 | H7: =A7/100 -> 0.2 | I7: =+B7/1609.347 -> 0.1374470515 | J7: =+C7/1609.347 -> 0.09774150634 | K7: =+D7/1609.347 -> 0.06990412882 | L7: =+E7/1609.347 -> 0.0585330572 | M7: =+F7/1609.347 -> 0.0475348076
A8: 50 | B8: 387.2 | C8: 265.2 | D8: 184.6 | E8: 153.5 | F8: 123 | H8: 0.5 | I8: =+B8/1609.347 -> 0.2405944771 | J8: =+C8/1609.347 -> 0.164787333 | K8: =+D8/1609.347 -> 0.1147049083 | L8: =+E8/1609.347 -> 0.09538030021 | M8: =+F8/1609.347 -> 0.07642851417
A9: 100 | B9: 584 | C9: 394 | D9: 268.5 | E9: 221.1 | F9: 176 | H9: 1 | I9: 0.3628800998 | J9: 0.2448197934 | K9: 0.1668378541 | L9: 0.1373849145 | M9: 0.109361126
A10: 200 | B10: 884.1 | C10: 584.4 | D10: 389.4 | E10: 318.2 | F10: 249.4 | H10: 2 | I10: 0.549353247 | J10: 0.3631286478 | K10: 0.2419614912 | L10: 0.1977199448 | M10: 0.1549696865
A11: 300 | B11: 1123.1 | C11: 734.1 | D11: 485.2 | E11: 393.5 | F11: 304.8 | H11: 3 | I11: 0.6978606851 | J11: 0.4561477419 | K11: 0.3014887405 | L11: 0.2445091084 | M11: 0.1893935863
A12: 400 | B12: 1332.9 | C12: 865.2 | D12: 567.8 | E12: 456 | F12: 351.1 | H12: 4 | I12: 0.8282241182 | J12: 0.5376093534 | K12: 0.3528139053 | L12: 0.2833447355 | M12: 0.2181630189
A13: 500 | B13: 1522.6 | C13: 988.9 | D13: 642.9 | E13: 511.9 | F13: 391.7 | H13: 5 | I13: 0.9460980137 | J13: 0.6144728266 | K13: 0.3994787948 | L13: 0.3180793204 | M13: 0.2433906423
A14: 600 | B14: 1702.5 | C14: 1098 | D14: 704.8 | E14: 562.8 | F14: 427.4 | H14: 6 | I14: 1.057882483 | J14: 0.6822642973 | K14: 0.4379415999 | L14: 0.3497070551 | M14: 0.2655735525
A15: 700 | B15: 1867.3 | C15: 1198.6 | D15: 767.5 | E15: 609.3 | F15: 460.4 | H15: 7 | I15: 1.160284264 | J15: 0.7447741227 | K15: 0.476901501 | L15: 0.3786007617 | M15: 0.2860787636
A16: 800 | B16: 2013.2 | C16: 1286.2 | D16: 822.8 | E16: 654.4 | F16: 489.7 | H16: 8 | I16: 1.250942152 | J16: 0.7992061376 | K16: 0.5112632639 | L16: 0.4066245502 | M16: 0.3042849056
A17: 900 | B17: 2155.5 | C17: 1383.5 | D17: 872.5 | E17: 693.3 | F17: 517.9 | H17: 9 | I17: 1.339363108 | J17: 0.8596654419 | K17: 0.5421453546 | L17: 0.4307958445 | M17: 0.3218075406
A18: 1000 | B18: 2283.7 | C18: 1463.6 | D18: 923.4 | E18: 733.8 | F18: 543.8 | H18: 10 | I18: 1.419022746 | J18: 0.9094371817 | K18: 0.5737730893 | L18: 0.4559613309 | M18: 0.3379010245
A19: 1500 | B19: 2903 | C19: 1860.5 | D19: 1140.6 | E19: 897.7 | F19: 654.9 | H19: 15 | I19: 1.803837209 | J19: 1.156058948 | K19: 0.7087346607 | L19: 0.5578038795 | M19: 0.4069352352
A20: 2000 | B20: 3357.5 | C20: 2175 | D20: 1326.9 | E20: 1036.9 | F20: 746.4 | H20: 20 | I20: 2.086249889 | J20: 1.351479824 | K20: 0.824495898 | L20: 0.6442985882 | M20: 0.4637905933
A21: 2500 | B21: 3846.9 | C21: 2480.1 | D21: 1487.1 | E21: 1158.9 | F21: 819.6 | H21: 25 | I21: 2.390348384 | J21: 1.541059821 | K21: 0.9240393775 | L21: 0.7201057323 | M21: 0.5092748798
A22: 3000 | B22: 4364.4 | C22: 2753.7 | D22: 1641.8 | E22: 1272.8 | F22: 887.3 | H22: 30 | I22: 2.711907376 | J22: 1.711066662 | K22: 1.020165322 | L22: 0.7908797792 | M22: 0.5513416311
A23: 3500 | B23: 4801.7 | C23: 3002.6 | D23: 1775.4 | E23: 1371.8 | F23: 944.7 | H23: 35 | I23: 2.983632492 | J23: 1.865725664 | K23: 1.103180358 | L23: 0.8523954125 | M23: 0.5870082711
A24: 4000 | B24: 5206.5 | C24: 3229.4 | D24: 1908.9 | E24: 1462.6 | F24: 997.7 | H24: 40 | I24: 3.235163082 | J24: 2.006652388 | K24: 1.186133258 | L24: 0.9088158116 | M24: 0.6199408829
A27: Alliance, NE-AERMOD setback distances (E) as reported in the Odor Footprint Tool
A29: Setback Distances (m) E Direction | H29: Setback Distances (mi) E Direction
A30: x 104 | B30: Annoyance Free Percentage | H30: x 106 | I30: Annoyance Free Percentage
A31: OU/s | B31: 99 | C31: 98 | D31: 96 | E31: 94 | F31: 90 | H31: OU/s | I31: 99 | J31: 98 | K31: 96 | L31: 94 | M31: 90 | O31: Separation distance | P31: =IF(ISERROR(MATCH($P$1,$H$32:$H$50,0)),VLOOKUP($P$1,$H$32:$M$50,MATCH(P$4,$I$31:$M$31,0)+1,TRUE)+($P$1-VLOOKUP($P$1,$H$32:$H$50,1,TRUE))*(INDEX($I$32:$M$50,MATCH($P$1,$H$32:$H$50,1)+1,MATCH(P$4,$I$31:$M$31,0))-INDEX($I$32:$M$50,MATCH($P$1,$H$32:$H$50,1),MATCH(P$4,$I$31:$M$31,0)))/(INDEX($H$32:$H$50,MATCH($P$1,$H$32:$H$50,1)+1)-INDEX($H$32:$H$50,MATCH($P$1,$H$32:$H$50,1))),INDEX($I$32:$M$50,MATCH($P$1,$H$32:$H$50,0),MATCH(P4,$I$31:$M$31,0))) ->  | Q31: =IF(ISERROR(MATCH($P$1,$H$32:$H$50,0)),VLOOKUP($P$1,$H$32:$M$50,MATCH(Q$4,$I$31:$M$31,0)+1,TRUE)+($P$1-VLOOKUP($P$1,$H$32:$H$50,1,TRUE))*(INDEX($I$32:$M$50,MATCH($P$1,$H$32:$H$50,1)+1,MATCH(Q$4,$I$31:$M$31,0))-INDEX($I$32:$M$50,MATCH($P$1,$H$32:$H$50,1),MATCH(Q$4,$I$31:$M$31,0)))/(INDEX($H$32:$H$50,MATCH($P$1,$H$32:$H$50,1)+1)-INDEX($H$32:$H$50,MATCH($P$1,$H$32:$H$50,1))),INDEX($I$32:$M$50,MATCH($P$1,$H$32:$H$50,0),MATCH(Q4,$I$31:$M$31,0))) ->  | R31: =IF(ISERROR(MATCH($P$1,$H$32:$H$50,0)),VLOOKUP($P$1,$H$32:$M$50,MATCH(R$4,$I$31:$M$31,0)+1,TRUE)+($P$1-VLOOKUP($P$1,$H$32:$H$50,1,TRUE))*(INDEX($I$32:$M$50,MATCH($P$1,$H$32:$H$50,1)+1,MATCH(R$4,$I$31:$M$31,0))-INDEX($I$32:$M$50,MATCH($P$1,$H$32:$H$50,1),MATCH(R$4,$I$31:$M$31,0)))/(INDEX($H$32:$H$50,MATCH($P$1,$H$32:$H$50,1)+1)-INDEX($H$32:$H$50,MATCH($P$1,$H$32:$H$50,1))),INDEX($I$32:$M$50,MATCH($P$1,$H$32:$H$50,0),MATCH(R4,$I$31:$M$31,0))) ->  | S31: =IF(ISERROR(MATCH($P$1,$H$32:$H$50,0)),VLOOKUP($P$1,$H$32:$M$50,MATCH(S$4,$I$31:$M$31,0)+1,TRUE)+($P$1-VLOOKUP($P$1,$H$32:$H$50,1,TRUE))*(INDEX($I$32:$M$50,MATCH($P$1,$H$32:$H$50,1)+1,MATCH(S$4,$I$31:$M$31,0))-INDEX($I$32:$M$50,MATCH($P$1,$H$32:$H$50,1),MATCH(S$4,$I$31:$M$31,0)))/(INDEX($H$32:$H$50,MATCH($P$1,$H$32:$H$50,1)+1)-INDEX($H$32:$H$50,MATCH($P$1,$H$32:$H$50,1))),INDEX($I$32:$M$50,MATCH($P$1,$H$32:$H$50,0),MATCH(S4,$I$31:$M$31,0))) ->  | T31: =IF(ISERROR(MATCH($P$1,$H$32:$H$50,0)),VLOOKUP($P$1,$H$32:$M$50,MATCH(T$4,$I$31:$M$31,0)+1,TRUE)+($P$1-VLOOKUP($P$1,$H$32:$H$50,1,TRUE))*(INDEX($I$32:$M$50,MATCH($P$1,$H$32:$H$50,1)+1,MATCH(T$4,$I$31:$M$31,0))-INDEX($I$32:$M$50,MATCH($P$1,$H$32:$H$50,1),MATCH(T$4,$I$31:$M$31,0)))/(INDEX($H$32:$H$50,MATCH($P$1,$H$32:$H$50,1)+1)-INDEX($H$32:$H$50,MATCH($P$1,$H$32:$H$50,1))),INDEX($I$32:$M$50,MATCH($P$1,$H$32:$H$50,0),MATCH(T4,$I$31:$M$31,0))) -> 
A32: 0 | B32: 0 | C32: 0 | D32: 0 | E32: 0 | F32: 0 | H32: =A32/100 -> 0 | I32: 0 | J32: 0 | K32: 0 | L32: 0 | M32: 0 | O32: New Separation distance | P32: =IF(ISERROR(MATCH($P$2,$H$32:$H$50,0)),VLOOKUP($P$2,$H$32:$M$50,MATCH(P$4,$I$31:$M$31,0)+1,TRUE)+($P$2-VLOOKUP($P$2,$H$32:$H$50,1,TRUE))*(INDEX($I$32:$M$50,MATCH($P$2,$H$32:$H$50,1)+1,MATCH(P$4,$I$31:$M$31,0))-INDEX($I$32:$M$50,MATCH($P$2,$H$32:$H$50,1),MATCH(P$4,$I$31:$M$31,0)))/(INDEX($H$32:$H$50,MATCH($P$2,$H$32:$H$50,1)+1)-INDEX($H$32:$H$50,MATCH($P$2,$H$32:$H$50,1))),INDEX($I$32:$M$50,MATCH($P$2,$H$32:$H$50,0),MATCH(P4,$I$31:$M$31,0))) ->  | Q32: =IF(ISERROR(MATCH($P$2,$H$32:$H$50,0)),VLOOKUP($P$2,$H$32:$M$50,MATCH(Q$4,$I$31:$M$31,0)+1,TRUE)+($P$2-VLOOKUP($P$2,$H$32:$H$50,1,TRUE))*(INDEX($I$32:$M$50,MATCH($P$2,$H$32:$H$50,1)+1,MATCH(Q$4,$I$31:$M$31,0))-INDEX($I$32:$M$50,MATCH($P$2,$H$32:$H$50,1),MATCH(Q$4,$I$31:$M$31,0)))/(INDEX($H$32:$H$50,MATCH($P$2,$H$32:$H$50,1)+1)-INDEX($H$32:$H$50,MATCH($P$2,$H$32:$H$50,1))),INDEX($I$32:$M$50,MATCH($P$2,$H$32:$H$50,0),MATCH(Q4,$I$31:$M$31,0))) ->  | R32: =IF(ISERROR(MATCH($P$2,$H$32:$H$50,0)),VLOOKUP($P$2,$H$32:$M$50,MATCH(R$4,$I$31:$M$31,0)+1,TRUE)+($P$2-VLOOKUP($P$2,$H$32:$H$50,1,TRUE))*(INDEX($I$32:$M$50,MATCH($P$2,$H$32:$H$50,1)+1,MATCH(R$4,$I$31:$M$31,0))-INDEX($I$32:$M$50,MATCH($P$2,$H$32:$H$50,1),MATCH(R$4,$I$31:$M$31,0)))/(INDEX($H$32:$H$50,MATCH($P$2,$H$32:$H$50,1)+1)-INDEX($H$32:$H$50,MATCH($P$2,$H$32:$H$50,1))),INDEX($I$32:$M$50,MATCH($P$2,$H$32:$H$50,0),MATCH(R4,$I$31:$M$31,0))) ->  | S32: =IF(ISERROR(MATCH($P$2,$H$32:$H$50,0)),VLOOKUP($P$2,$H$32:$M$50,MATCH(S$4,$I$31:$M$31,0)+1,TRUE)+($P$2-VLOOKUP($P$2,$H$32:$H$50,1,TRUE))*(INDEX($I$32:$M$50,MATCH($P$2,$H$32:$H$50,1)+1,MATCH(S$4,$I$31:$M$31,0))-INDEX($I$32:$M$50,MATCH($P$2,$H$32:$H$50,1),MATCH(S$4,$I$31:$M$31,0)))/(INDEX($H$32:$H$50,MATCH($P$2,$H$32:$H$50,1)+1)-INDEX($H$32:$H$50,MATCH($P$2,$H$32:$H$50,1))),INDEX($I$32:$M$50,MATCH($P$2,$H$32:$H$50,0),MATCH(S4,$I$31:$M$31,0))) ->  | T32: =IF(ISERROR(MATCH($P$2,$H$32:$H$50,0)),VLOOKUP($P$2,$H$32:$M$50,MATCH(T$4,$I$31:$M$31,0)+1,TRUE)+($P$2-VLOOKUP($P$2,$H$32:$H$50,1,TRUE))*(INDEX($I$32:$M$50,MATCH($P$2,$H$32:$H$50,1)+1,MATCH(T$4,$I$31:$M$31,0))-INDEX($I$32:$M$50,MATCH($P$2,$H$32:$H$50,1),MATCH(T$4,$I$31:$M$31,0)))/(INDEX($H$32:$H$50,MATCH($P$2,$H$32:$H$50,1)+1)-INDEX($H$32:$H$50,MATCH($P$2,$H$32:$H$50,1))),INDEX($I$32:$M$50,MATCH($P$2,$H$32:$H$50,0),MATCH(T4,$I$31:$M$31,0))) -> 
A33: 20 | B33: 206.1 | C33: 135.8 | D33: 93.8 | E33: 78.1 | F33: 56.9 | H33: =A33/100 -> 0.2 | I33: =+B33/1609.347 -> 0.128064364 | J33: =+C33/1609.347 -> 0.08438205061 | K33: =+D33/1609.347 -> 0.05828450918 | L33: =+E33/1609.347 -> 0.04852899965 | M33: =+F33/1609.347 -> 0.03535595493
A34: 50 | B34: 350.7 | C34: 223.2 | D34: 150.3 | E34: 124.5 | F34: 86.5 | H34: 0.5 | I34: =+B34/1609.347 -> 0.2179144709 | J34: =+C34/1609.347 -> 0.1386897916 | K34: =+D34/1609.347 -> 0.0933919161 | L34: =+E34/1609.347 -> 0.07736056922 | M34: =+F34/1609.347 -> 0.05374850794
A35: 100 | B35: 519.4 | C35: 325.6 | D35: 214.3 | E35: 174.6 | F35: 119.1 | H35: 1 | I35: 0.3227395956 | J35: 0.202318083 | K35: 0.1331595983 | L35: 0.1084912079 | M35: 0.07400517104
A36: 200 | B36: 768.2 | C36: 468.7 | D36: 304.6 | E36: 243.7 | F36: 158.2 | H36: 2 | I36: 0.4773364601 | J36: 0.2912361349 | K36: 0.1892693123 | L36: 0.1514278773 | M36: 0.09830073937
A37: 300 | B37: 981.5 | C37: 584.4 | D37: 376 | E37: 290.4 | F37: 179.2 | H37: 3 | I37: 0.6098746883 | J37: 0.3631286478 | K37: 0.2336351328 | L37: 0.1804458579 | M37: 0.1113495101
A38: 400 | B38: 1149.3 | C38: 681 | D38: 435.8 | E38: 332.6 | F38: 202.2 | H38: 4 | I38: 0.71414058 | J38: 0.4231529931 | K38: 0.2707930608 | L38: 0.2066676733 | M38: 0.1256410209
A39: 500 | B39: 1316.2 | C39: 757.2 | D39: 477.3 | E39: 372.9 | F39: 205.8 | H39: 5 | I39: 0.8178472387 | J39: 0.4705013897 | K39: 0.2965799172 | L39: 0.2317088857 | M39: 0.127877953
A40: 600 | B40: 1447.1 | C40: 839.2 | D40: 531.6 | E40: 402.2 | F40: 219 | H40: 6 | I40: 0.8991845761 | J40: 0.5214537325 | K40: 0.33032031 | L40: 0.2499150276 | M40: 0.1360800374
A41: 700 | B41: 1581.8 | C41: 908.1 | D41: 571.4 | E41: 425 | F41: 240.3 | H41: 7 | I41: 0.9828831197 | J41: 0.5642661278 | K41: 0.3550508374 | L41: 0.2640822644 | M41: 0.1493152192
A42: 800 | B42: 1702.6 | C42: 961.2 | D42: 598.3 | E42: 455.7 | F42: 255.4 | H42: 8 | I42: 1.05794462 | J42: 0.5972608766 | K42: 0.3717656913 | L42: 0.2831583245 | M42: 0.1586979067
A43: 900 | B43: 1817.8 | C43: 1020.9 | D43: 643.9 | E43: 477.5 | F43: 267.9 | H43: 9 | I43: 1.129526448 | J43: 0.6343566676 | K43: 0.4001001648 | L43: 0.2967041912 | M43: 0.1664650321
A44: 1000 | B44: 1946 | C44: 1081 | D44: 670.7 | E44: 509.8 | F44: 252.4 | H44: 10 | I44: 1.209186086 | J44: 0.6717010067 | K44: 0.4167528818 | L44: 0.3167744433 | M44: 0.1568337966
A45: 1500 | B45: 2403.9 | C45: 1320 | D45: 810.7 | E45: 605.1 | F45: 292.1 | H45: 15 | I45: 1.493711425 | J45: 0.8202084448 | K45: 0.5037446865 | L45: 0.3759910075 | M45: 0.1815021869
A46: 2000 | B46: 2797.5 | C46: 1532.2 | D46: 948.1 | E46: 674.6 | F46: 318.9 | H46: 20 | I46: 1.73828267 | J46: 0.952063166 | K46: 0.5891209292 | L46: 0.4191762249 | M46: 0.1981549038
A47: 2500 | B47: 3142.2 | C47: 1730 | D47: 1050 | E47: 753.8 | F47: 351.6 | H47: 25 | I47: 1.952468921 | J47: 1.074970159 | K47: 0.6524385356 | L47: 0.4683887316 | M47: 0.2184737039
A48: 3000 | B48: 3499.2 | C48: 1910 | D48: 1152.9 | E48: 787.2 | F48: 360 | H48: 30 | I48: 2.174298023 | J48: 1.186816765 | K48: 0.7163775121 | L48: 0.4891424907 | M48: 0.2236932122
A49: 3500 | B49: 3880 | C49: 2032.1 | D49: 1204.2 | E49: 815 | F49: 370 | H49: 35 | I49: 2.410915732 | J49: 1.262686046 | K49: 0.7482537949 | L49: 0.5064165777 | M49: 0.2299069126
A50: 4000 | B50: 4231.1 | C50: 2182.4 | D50: 1288.1 | E50: 842.2 | F50: 374.6 | H50: 40 | I50: 2.629078751 | J50: 1.356077962 | K50: 0.8003867407 | L50: 0.5233178426 | M50: 0.2327652147
A53: Alliance, NE - AERMOD setback distances (S) as reported in the Odor Footprint Tool
A55: Setback Distances (m) S Direction | H55: Setback Distances (mi) S Direction
A56: x 104 | B56: Annoyance Free Percentage | H56: x 106 | I56: Annoyance Free Percentage
A57: OU/s | B57: 99 | C57: 98 | D57: 96 | E57: 94 | F57: 90 | H57: OU/s | I57: 99 | J57: 98 | K57: 96 | L57: 94 | M57: 90 | O57: Separation distance | P57: =IF(ISERROR(MATCH($P$1,$H$58:$H$76,0)),VLOOKUP($P$1,$H$58:$M$76,MATCH(P$4,$I$57:$M$57,0)+1,TRUE)+($P$1-VLOOKUP($P$1,$H$58:$H$76,1,TRUE))*(INDEX($I$58:$M$76,MATCH($P$1,$H$58:$H$76,1)+1,MATCH(P$4,$I$57:$M$57,0))-INDEX($I$58:$M$76,MATCH($P$1,$H$58:$H$76,1),MATCH(P$4,$I$57:$M$57,0)))/(INDEX($H$58:$H$76,MATCH($P$1,$H$58:$H$76,1)+1)-INDEX($H$58:$H$76,MATCH($P$1,$H$58:$H$76,1))),INDEX($I$58:$M$76,MATCH($P$1,$H$58:$H$76,0),MATCH(P$4,$I$57:$M$57,0))) ->  | Q57: =IF(ISERROR(MATCH($P$1,$H$58:$H$76,0)),VLOOKUP($P$1,$H$58:$M$76,MATCH(Q$4,$I$57:$M$57,0)+1,TRUE)+($P$1-VLOOKUP($P$1,$H$58:$H$76,1,TRUE))*(INDEX($I$58:$M$76,MATCH($P$1,$H$58:$H$76,1)+1,MATCH(Q$4,$I$57:$M$57,0))-INDEX($I$58:$M$76,MATCH($P$1,$H$58:$H$76,1),MATCH(Q$4,$I$57:$M$57,0)))/(INDEX($H$58:$H$76,MATCH($P$1,$H$58:$H$76,1)+1)-INDEX($H$58:$H$76,MATCH($P$1,$H$58:$H$76,1))),INDEX($I$58:$M$76,MATCH($P$1,$H$58:$H$76,0),MATCH(Q$4,$I$57:$M$57,0))) ->  | R57: =IF(ISERROR(MATCH($P$1,$H$58:$H$76,0)),VLOOKUP($P$1,$H$58:$M$76,MATCH(R$4,$I$57:$M$57,0)+1,TRUE)+($P$1-VLOOKUP($P$1,$H$58:$H$76,1,TRUE))*(INDEX($I$58:$M$76,MATCH($P$1,$H$58:$H$76,1)+1,MATCH(R$4,$I$57:$M$57,0))-INDEX($I$58:$M$76,MATCH($P$1,$H$58:$H$76,1),MATCH(R$4,$I$57:$M$57,0)))/(INDEX($H$58:$H$76,MATCH($P$1,$H$58:$H$76,1)+1)-INDEX($H$58:$H$76,MATCH($P$1,$H$58:$H$76,1))),INDEX($I$58:$M$76,MATCH($P$1,$H$58:$H$76,0),MATCH(R$4,$I$57:$M$57,0))) ->  | S57: =IF(ISERROR(MATCH($P$1,$H$58:$H$76,0)),VLOOKUP($P$1,$H$58:$M$76,MATCH(S$4,$I$57:$M$57,0)+1,TRUE)+($P$1-VLOOKUP($P$1,$H$58:$H$76,1,TRUE))*(INDEX($I$58:$M$76,MATCH($P$1,$H$58:$H$76,1)+1,MATCH(S$4,$I$57:$M$57,0))-INDEX($I$58:$M$76,MATCH($P$1,$H$58:$H$76,1),MATCH(S$4,$I$57:$M$57,0)))/(INDEX($H$58:$H$76,MATCH($P$1,$H$58:$H$76,1)+1)-INDEX($H$58:$H$76,MATCH($P$1,$H$58:$H$76,1))),INDEX($I$58:$M$76,MATCH($P$1,$H$58:$H$76,0),MATCH(S$4,$I$57:$M$57,0))) ->  | T57: =IF(ISERROR(MATCH($P$1,$H$58:$H$76,0)),VLOOKUP($P$1,$H$58:$M$76,MATCH(T$4,$I$57:$M$57,0)+1,TRUE)+($P$1-VLOOKUP($P$1,$H$58:$H$76,1,TRUE))*(INDEX($I$58:$M$76,MATCH($P$1,$H$58:$H$76,1)+1,MATCH(T$4,$I$57:$M$57,0))-INDEX($I$58:$M$76,MATCH($P$1,$H$58:$H$76,1),MATCH(T$4,$I$57:$M$57,0)))/(INDEX($H$58:$H$76,MATCH($P$1,$H$58:$H$76,1)+1)-INDEX($H$58:$H$76,MATCH($P$1,$H$58:$H$76,1))),INDEX($I$58:$M$76,MATCH($P$1,$H$58:$H$76,0),MATCH(T$4,$I$57:$M$57,0))) -> 
A58: 0 | B58: 0 | C58: 0 | D58: 0 | E58: 0 | F58: 0 | H58: =A58/100 -> 0 | I58: 0 | J58: 0 | K58: 0 | L58: 0 | M58: 0 | O58: New Separation distance | P58: =IF(ISERROR(MATCH($P$2,$H$58:$H$76,0)),VLOOKUP($P$2,$H$58:$M$76,MATCH(P$4,$I$57:$M$57,0)+1,TRUE)+($P$2-VLOOKUP($P$2,$H$58:$H$76,1,TRUE))*(INDEX($I$58:$M$76,MATCH($P$2,$H$58:$H$76,1)+1,MATCH(P$4,$I$57:$M$57,0))-INDEX($I$58:$M$76,MATCH($P$2,$H$58:$H$76,1),MATCH(P$4,$I$57:$M$57,0)))/(INDEX($H$58:$H$76,MATCH($P$2,$H$58:$H$76,1)+1)-INDEX($H$58:$H$76,MATCH($P$2,$H$58:$H$76,1))),INDEX($I$58:$M$76,MATCH($P$2,$H$58:$H$76,0),MATCH(P4,$I$57:$M$57,0))) ->  | Q58: =IF(ISERROR(MATCH($P$2,$H$58:$H$76,0)),VLOOKUP($P$2,$H$58:$M$76,MATCH(Q$4,$I$57:$M$57,0)+1,TRUE)+($P$2-VLOOKUP($P$2,$H$58:$H$76,1,TRUE))*(INDEX($I$58:$M$76,MATCH($P$2,$H$58:$H$76,1)+1,MATCH(Q$4,$I$57:$M$57,0))-INDEX($I$58:$M$76,MATCH($P$2,$H$58:$H$76,1),MATCH(Q$4,$I$57:$M$57,0)))/(INDEX($H$58:$H$76,MATCH($P$2,$H$58:$H$76,1)+1)-INDEX($H$58:$H$76,MATCH($P$2,$H$58:$H$76,1))),INDEX($I$58:$M$76,MATCH($P$2,$H$58:$H$76,0),MATCH(Q4,$I$57:$M$57,0))) ->  | R58: =IF(ISERROR(MATCH($P$2,$H$58:$H$76,0)),VLOOKUP($P$2,$H$58:$M$76,MATCH(R$4,$I$57:$M$57,0)+1,TRUE)+($P$2-VLOOKUP($P$2,$H$58:$H$76,1,TRUE))*(INDEX($I$58:$M$76,MATCH($P$2,$H$58:$H$76,1)+1,MATCH(R$4,$I$57:$M$57,0))-INDEX($I$58:$M$76,MATCH($P$2,$H$58:$H$76,1),MATCH(R$4,$I$57:$M$57,0)))/(INDEX($H$58:$H$76,MATCH($P$2,$H$58:$H$76,1)+1)-INDEX($H$58:$H$76,MATCH($P$2,$H$58:$H$76,1))),INDEX($I$58:$M$76,MATCH($P$2,$H$58:$H$76,0),MATCH(R4,$I$57:$M$57,0))) ->  | S58: =IF(ISERROR(MATCH($P$2,$H$58:$H$76,0)),VLOOKUP($P$2,$H$58:$M$76,MATCH(S$4,$I$57:$M$57,0)+1,TRUE)+($P$2-VLOOKUP($P$2,$H$58:$H$76,1,TRUE))*(INDEX($I$58:$M$76,MATCH($P$2,$H$58:$H$76,1)+1,MATCH(S$4,$I$57:$M$57,0))-INDEX($I$58:$M$76,MATCH($P$2,$H$58:$H$76,1),MATCH(S$4,$I$57:$M$57,0)))/(INDEX($H$58:$H$76,MATCH($P$2,$H$58:$H$76,1)+1)-INDEX($H$58:$H$76,MATCH($P$2,$H$58:$H$76,1))),INDEX($I$58:$M$76,MATCH($P$2,$H$58:$H$76,0),MATCH(S4,$I$57:$M$57,0))) ->  | T58: =IF(ISERROR(MATCH($P$2,$H$58:$H$76,0)),VLOOKUP($P$2,$H$58:$M$76,MATCH(T$4,$I$57:$M$57,0)+1,TRUE)+($P$2-VLOOKUP($P$2,$H$58:$H$76,1,TRUE))*(INDEX($I$58:$M$76,MATCH($P$2,$H$58:$H$76,1)+1,MATCH(T$4,$I$57:$M$57,0))-INDEX($I$58:$M$76,MATCH($P$2,$H$58:$H$76,1),MATCH(T$4,$I$57:$M$57,0)))/(INDEX($H$58:$H$76,MATCH($P$2,$H$58:$H$76,1)+1)-INDEX($H$58:$H$76,MATCH($P$2,$H$58:$H$76,1))),INDEX($I$58:$M$76,MATCH($P$2,$H$58:$H$76,0),MATCH(T4,$I$57:$M$57,0))) -> 
A59: 20 | B59: 211.6 | C59: 142.8 | D59: 95.9 | E59: 79.1 | F59: 59.8 | H59: =A59/100 -> 0.2 | I59: =+B59/1609.347 -> 0.1314818992 | J59: =+C59/1609.347 -> 0.08873164085 | K59: =+D59/1609.347 -> 0.05958938625 | L59: =+E59/1609.347 -> 0.04915036968 | M59: =+F59/1609.347 -> 0.03715792803
A60: 50 | B60: 357.9 | C60: 234.2 | D60: 154.6 | E60: 126.7 | F60: 92.7 | H60: 0.5 | I60: =+B60/1609.347 -> 0.2223883351 | J60: =+C60/1609.347 -> 0.1455248619 | K60: =+D60/1609.347 -> 0.09606380725 | L60: =+E60/1609.347 -> 0.0787275833 | M60: =+F60/1609.347 -> 0.05760100215
A61: 100 | B61: 532.4 | C61: 339 | D61: 221.4 | E61: 180.2 | F61: 126.1 | H61: 1 | I61: 0.3308174061 | J61: 0.2106444415 | K61: 0.1375713255 | L61: 0.1119708801 | M61: 0.07835476128
A62: 200 | B62: 786.6 | C62: 487.3 | D62: 316 | E62: 253.1 | F62: 169.8 | H62: 2 | I62: 0.4887696687 | J62: 0.3027936175 | K62: 0.1963529307 | L62: 0.1572687556 | M62: 0.1055086318
A63: 300 | B63: 987.7 | C63: 601.2 | D63: 387.6 | E63: 307.8 | F63: 199.8 | H63: 3 | I63: 0.6137271825 | J63: 0.3735676644 | K63: 0.2408430252 | L63: 0.1912576964 | M63: 0.1241497328
A64: 400 | B64: 1169.8 | C64: 696.8 | D64: 448.2 | E64: 353.8 | F64: 222.7 | H64: 4 | I64: 0.7268786657 | J64: 0.4329706396 | K64: 0.2784980492 | L64: 0.219840718 | M64: 0.1383791066
A65: 500 | B65: 1326.8 | C65: 781.3 | D65: 500.3 | E65: 393.3 | F65: 240.4 | H65: 5 | I65: 0.824433761 | J65: 0.4854764075 | K65: 0.310871428 | L65: 0.2443848343 | M65: 0.1493773562
A66: 600 | B66: 1465.6 | C66: 858 | D66: 547.9 | E66: 427.6 | F66: 256.4 | H66: 6 | I66: 0.9106799217 | J66: 0.5331354891 | K66: 0.3404486416 | L66: 0.2656978265 | M66: 0.1593192767
A67: 700 | B67: 1585.1 | C67: 927.7 | D67: 590.2 | E67: 462.1 | F67: 275.3 | H67: 7 | I67: 0.9849336408 | J67: 0.5764449805 | K67: 0.366732594 | L67: 0.2871350927 | M67: 0.1710631703
A68: 800 | B68: 1711.5 | C68: 990.7 | D68: 633 | E68: 488.7 | F68: 287 | H68: 8 | I68: 1.063474813 | J68: 0.6155912926 | K68: 0.3933272315 | L68: 0.3036635356 | M68: 0.1783331997
A69: 900 | B69: 1840 | C69: 1062.7 | D69: 670 | E69: 516.7 | F69: 296.5 | H69: 9 | I69: 1.143320862 | J69: 0.6603299351 | K69: 0.4163179227 | L69: 0.3210618965 | M69: 0.1842362151
A70: 1000 | B70: 1953 | C70: 1117.2 | D70: 708 | E70: 536.6 | F70: 309.9 | H70: 10 | I70: 1.213535676 | J70: 0.6941946019 | K70: 0.439929984 | L70: 0.3334271602 | M70: 0.1925625735
A71: 1500 | B71: 2434.6 | C71: 1378.1 | D71: 857 | E71: 650 | F71: 357.9 | H71: 15 | I71: 1.512787485 | J71: 0.8563100438 | K71: 0.5325141191 | L71: 0.4038905221 | M71: 0.2223883351
A72: 2000 | B72: 2889.3 | C72: 1609.1 | D72: 987.8 | E72: 735.6 | F72: 390.6 | H72: 20 | I72: 1.795324439 | J72: 0.9998465216 | K72: 0.6137893195 | L72: 0.457079797 | M72: 0.2427071353
A73: 2500 | B73: 3219.7 | C73: 1788.2 | D73: 1095.1 | E73: 810.7 | F73: 409.4 | H73: 25 | I73: 2.000625098 | J73: 1.111133895 | K73: 0.6804623242 | L73: 0.5037446865 | M73: 0.2543888919
A74: 3000 | B74: 3566 | C74: 1960.4 | D74: 1194.3 | E74: 865.4 | F74: 440.9 | H74: 30 | I74: 2.215805541 | J74: 1.218133815 | K74: 0.7421022315 | L74: 0.5377336274 | M74: 0.273962048
A75: 3500 | B75: 3907.4 | C75: 2117.7 | D75: 1294 | E75: 920 | F75: 464.5 | H75: 35 | I75: 2.427941271 | J75: 1.315875321 | K75: 0.8040528239 | L75: 0.5716604312 | M75: 0.2886263808
A76: 4000 | B76: 4190 | C76: 2273.5 | D76: 1378.2 | E76: 979.8 | F76: 484.8 | H76: 40 | I76: 2.603540442 | J76: 1.412684772 | K76: 0.8563721808 | L76: 0.6088183592 | M76: 0.3012401925
A79: Alliance, NE - AERMOD setback distances (W) as reported in the Odor Footprint Tool
A81: Setback Distances (m) W Direction | H81: Setback Distances (mi) W Direction
A82: x 104 | B82: Annoyance Free Percentage | H82: x 106 | I82: Annoyance Free Percentage
A83: OU/s | B83: 99 | C83: 98 | D83: 96 | E83: 94 | F83: 90 | H83: OU/s | I83: 99 | J83: 98 | K83: 96 | L83: 94 | M83: 90 | O83: Separation distance | P83: =IF(ISERROR(MATCH($P$1,$H$84:$H$102,0)),VLOOKUP($P$1,$H$84:$M$102,MATCH(P$4,$I$83:$M$83,0)+1,TRUE)+($P$1-VLOOKUP($P$1,$H$84:$H$102,1,TRUE))*(INDEX($I$84:$M$102,MATCH($P$1,$H$84:$H$102,1)+1,MATCH(P$4,$I$83:$M$83,0))-INDEX($I$84:$M$102,MATCH($P$1,$H$84:$H$102,1),MATCH(P$4,$I$83:$M$83,0)))/(INDEX($H$84:$H$102,MATCH($P$1,$H$84:$H$102,1)+1)-INDEX($H$84:$H$102,MATCH($P$1,$H$84:$H$102,1))),INDEX($I$84:$M$102,MATCH($P$1,$H$84:$H$102,0),MATCH(P4,$I$83:$M$83,0))) ->  | Q83: =IF(ISERROR(MATCH($P$1,$H$84:$H$102,0)),VLOOKUP($P$1,$H$84:$M$102,MATCH(Q$4,$I$83:$M$83,0)+1,TRUE)+($P$1-VLOOKUP($P$1,$H$84:$H$102,1,TRUE))*(INDEX($I$84:$M$102,MATCH($P$1,$H$84:$H$102,1)+1,MATCH(Q$4,$I$83:$M$83,0))-INDEX($I$84:$M$102,MATCH($P$1,$H$84:$H$102,1),MATCH(Q$4,$I$83:$M$83,0)))/(INDEX($H$84:$H$102,MATCH($P$1,$H$84:$H$102,1)+1)-INDEX($H$84:$H$102,MATCH($P$1,$H$84:$H$102,1))),INDEX($I$84:$M$102,MATCH($P$1,$H$84:$H$102,0),MATCH(Q4,$I$83:$M$83,0))) ->  | R83: =IF(ISERROR(MATCH($P$1,$H$84:$H$102,0)),VLOOKUP($P$1,$H$84:$M$102,MATCH(R$4,$I$83:$M$83,0)+1,TRUE)+($P$1-VLOOKUP($P$1,$H$84:$H$102,1,TRUE))*(INDEX($I$84:$M$102,MATCH($P$1,$H$84:$H$102,1)+1,MATCH(R$4,$I$83:$M$83,0))-INDEX($I$84:$M$102,MATCH($P$1,$H$84:$H$102,1),MATCH(R$4,$I$83:$M$83,0)))/(INDEX($H$84:$H$102,MATCH($P$1,$H$84:$H$102,1)+1)-INDEX($H$84:$H$102,MATCH($P$1,$H$84:$H$102,1))),INDEX($I$84:$M$102,MATCH($P$1,$H$84:$H$102,0),MATCH(R4,$I$83:$M$83,0))) ->  | S83: =IF(ISERROR(MATCH($P$1,$H$84:$H$102,0)),VLOOKUP($P$1,$H$84:$M$102,MATCH(S$4,$I$83:$M$83,0)+1,TRUE)+($P$1-VLOOKUP($P$1,$H$84:$H$102,1,TRUE))*(INDEX($I$84:$M$102,MATCH($P$1,$H$84:$H$102,1)+1,MATCH(S$4,$I$83:$M$83,0))-INDEX($I$84:$M$102,MATCH($P$1,$H$84:$H$102,1),MATCH(S$4,$I$83:$M$83,0)))/(INDEX($H$84:$H$102,MATCH($P$1,$H$84:$H$102,1)+1)-INDEX($H$84:$H$102,MATCH($P$1,$H$84:$H$102,1))),INDEX($I$84:$M$102,MATCH($P$1,$H$84:$H$102,0),MATCH(S4,$I$83:$M$83,0))) ->  | T83: =IF(ISERROR(MATCH($P$1,$H$84:$H$102,0)),VLOOKUP($P$1,$H$84:$M$102,MATCH(T$4,$I$83:$M$83,0)+1,TRUE)+($P$1-VLOOKUP($P$1,$H$84:$H$102,1,TRUE))*(INDEX($I$84:$M$102,MATCH($P$1,$H$84:$H$102,1)+1,MATCH(T$4,$I$83:$M$83,0))-INDEX($I$84:$M$102,MATCH($P$1,$H$84:$H$102,1),MATCH(T$4,$I$83:$M$83,0)))/(INDEX($H$84:$H$102,MATCH($P$1,$H$84:$H$102,1)+1)-INDEX($H$84:$H$102,MATCH($P$1,$H$84:$H$102,1))),INDEX($I$84:$M$102,MATCH($P$1,$H$84:$H$102,0),MATCH(T4,$I$83:$M$83,0))) -> 
A84: 0 | B84: 0 | C84: 0 | D84: 0 | E84: 0 | F84: 0 | H84: =A84/100 -> 0 | I84: 0 | J84: 0 | K84: 0 | L84: 0 | M84: 0 | O84: New Separation distance | P84: =IF(ISERROR(MATCH($P$2,$H$84:$H$102,0)),VLOOKUP($P$2,$H$84:$M$102,MATCH(P$4,$I$83:$M$83,0)+1,TRUE)+($P$2-VLOOKUP($P$2,$H$84:$H$102,1,TRUE))*(INDEX($I$84:$M$102,MATCH($P$2,$H$84:$H$102,1)+1,MATCH(P$4,$I$83:$M$83,0))-INDEX($I$84:$M$102,MATCH($P$2,$H$84:$H$102,1),MATCH(P$4,$I$83:$M$83,0)))/(INDEX($H$84:$H$102,MATCH($P$2,$H$84:$H$102,1)+1)-INDEX($H$84:$H$102,MATCH($P$2,$H$84:$H$102,1))),INDEX($I$84:$M$102,MATCH($P$2,$H$84:$H$102,0),MATCH(P4,$I$83:$M$83,0))) ->  | Q84: =IF(ISERROR(MATCH($P$2,$H$84:$H$102,0)),VLOOKUP($P$2,$H$84:$M$102,MATCH(Q$4,$I$83:$M$83,0)+1,TRUE)+($P$2-VLOOKUP($P$2,$H$84:$H$102,1,TRUE))*(INDEX($I$84:$M$102,MATCH($P$2,$H$84:$H$102,1)+1,MATCH(Q$4,$I$83:$M$83,0))-INDEX($I$84:$M$102,MATCH($P$2,$H$84:$H$102,1),MATCH(Q$4,$I$83:$M$83,0)))/(INDEX($H$84:$H$102,MATCH($P$2,$H$84:$H$102,1)+1)-INDEX($H$84:$H$102,MATCH($P$2,$H$84:$H$102,1))),INDEX($I$84:$M$102,MATCH($P$2,$H$84:$H$102,0),MATCH(Q4,$I$83:$M$83,0))) ->  | R84: =IF(ISERROR(MATCH($P$2,$H$84:$H$102,0)),VLOOKUP($P$2,$H$84:$M$102,MATCH(R$4,$I$83:$M$83,0)+1,TRUE)+($P$2-VLOOKUP($P$2,$H$84:$H$102,1,TRUE))*(INDEX($I$84:$M$102,MATCH($P$2,$H$84:$H$102,1)+1,MATCH(R$4,$I$83:$M$83,0))-INDEX($I$84:$M$102,MATCH($P$2,$H$84:$H$102,1),MATCH(R$4,$I$83:$M$83,0)))/(INDEX($H$84:$H$102,MATCH($P$2,$H$84:$H$102,1)+1)-INDEX($H$84:$H$102,MATCH($P$2,$H$84:$H$102,1))),INDEX($I$84:$M$102,MATCH($P$2,$H$84:$H$102,0),MATCH(R4,$I$83:$M$83,0))) ->  | S84: =IF(ISERROR(MATCH($P$2,$H$84:$H$102,0)),VLOOKUP($P$2,$H$84:$M$102,MATCH(S$4,$I$83:$M$83,0)+1,TRUE)+($P$2-VLOOKUP($P$2,$H$84:$H$102,1,TRUE))*(INDEX($I$84:$M$102,MATCH($P$2,$H$84:$H$102,1)+1,MATCH(S$4,$I$83:$M$83,0))-INDEX($I$84:$M$102,MATCH($P$2,$H$84:$H$102,1),MATCH(S$4,$I$83:$M$83,0)))/(INDEX($H$84:$H$102,MATCH($P$2,$H$84:$H$102,1)+1)-INDEX($H$84:$H$102,MATCH($P$2,$H$84:$H$102,1))),INDEX($I$84:$M$102,MATCH($P$2,$H$84:$H$102,0),MATCH(S4,$I$83:$M$83,0))) ->  | T84: =IF(ISERROR(MATCH($P$2,$H$84:$H$102,0)),VLOOKUP($P$2,$H$84:$M$102,MATCH(T$4,$I$83:$M$83,0)+1,TRUE)+($P$2-VLOOKUP($P$2,$H$84:$H$102,1,TRUE))*(INDEX($I$84:$M$102,MATCH($P$2,$H$84:$H$102,1)+1,MATCH(T$4,$I$83:$M$83,0))-INDEX($I$84:$M$102,MATCH($P$2,$H$84:$H$102,1),MATCH(T$4,$I$83:$M$83,0)))/(INDEX($H$84:$H$102,MATCH($P$2,$H$84:$H$102,1)+1)-INDEX($H$84:$H$102,MATCH($P$2,$H$84:$H$102,1))),INDEX($I$84:$M$102,MATCH($P$2,$H$84:$H$102,0),MATCH(T4,$I$83:$M$83,0))) -> 
A85: 20 | B85: 186.8 | C85: 130.1 | D85: 94 | E85: 78.9 | F85: 59.1 | H85: =A85/100 -> 0.2 | I85: =+B85/1609.347 -> 0.1160719223 | J85: =+C85/1609.347 -> 0.08084024141 | K85: =+D85/1609.347 -> 0.05840878319 | L85: =+E85/1609.347 -> 0.04902609568 | M85: =+F85/1609.347 -> 0.03672296901
A86: 50 | B86: 320.7 | C86: 217.5 | D86: 151.7 | E86: 126.3 | F86: 92.7 | H86: 0.5 | I86: =+B86/1609.347 -> 0.1992733699 | J86: =+C86/1609.347 -> 0.1351479824 | K86: =+D86/1609.347 -> 0.09426183415 | L86: =+E86/1609.347 -> 0.07847903529 | M86: =+F86/1609.347 -> 0.05760100215
A87: 100 | B87: 478.7 | C87: 324.8 | D87: 221.5 | E87: 175.7 | F87: 123.3 | H87: 1 | I87: 0.2974498352 | J87: 0.201820987 | K87: 0.1376334625 | L87: 0.109174715 | M87: 0.07661492518
A88: 200 | B88: 720 | C88: 463.8 | D88: 314.3 | E88: 254.7 | F88: 171.3 | H88: 2 | I88: 0.4473864244 | J88: 0.2881914217 | K88: 0.1952966017 | L88: 0.1582629476 | M88: 0.1064406868
A89: 300 | B89: 903.4 | C89: 587.4 | D89: 381.8 | E89: 307 | F89: 191.5 | H89: 3 | I89: 0.5613456887 | J89: 0.3649927579 | K89: 0.237239079 | L89: 0.1907606004 | M89: 0.1189923615
A90: 400 | B90: 1081.8 | C90: 678.1 | D90: 444.2 | E90: 356.5 | F90: 209.3 | H90: 4 | I90: 0.6721981027 | J90: 0.42135102 | K90: 0.2760125691 | L90: 0.2215184171 | M90: 0.1300527481
A91: 500 | B91: 1230.4 | C91: 771.9 | D91: 501.1 | E91: 376.4 | F91: 234 | H91: 5 | I91: 0.7645336898 | J91: 0.4796355292 | K91: 0.311368524 | L91: 0.2338836808 | M91: 0.1454005879
A92: 600 | B92: 1361.6 | C92: 838.6 | D92: 541.2 | E92: 410.8 | F92: 249.5 | H92: 6 | I92: 0.8460574382 | J92: 0.5210809105 | K92: 0.3362854624 | L92: 0.2552588099 | M92: 0.1550318235
A93: 700 | B93: 1486.6 | C93: 915.6 | D93: 581.4 | E93: 457.4 | F93: 245.2 | H93: 7 | I93: 0.9237286924 | J93: 0.5689264031 | K93: 0.3612645377 | L93: 0.2842146535 | M93: 0.1523599323
A94: 800 | B94: 1598.5 | C94: 965.9 | D94: 629.1 | E94: 471.2 | F94: 265 | H94: 8 | I94: 0.9932599992 | J94: 0.6001813158 | K94: 0.3909038883 | L94: 0.29278956 | M94: 0.164663059
A95: 900 | B95: 1715.3 | C95: 1049.9 | D95: 663.8 | E95: 480.5 | F95: 288.7 | H95: 9 | I95: 1.065836019 | J95: 0.6523763986 | K95: 0.4124654285 | L95: 0.2985683013 | M95: 0.1793895288
A96: 1000 | B96: 1824.8 | C96: 1087.1 | D96: 709.5 | E96: 513.7 | F96: 304.6 | H96: 10 | I96: 1.133876038 | J96: 0.6754913639 | K96: 0.4408620391 | L96: 0.3191977864 | M96: 0.1892693123
A97: 1500 | B97: 2306.9 | C97: 1363.3 | D97: 858.4 | E97: 622.3 | F97: 348.1 | H97: 15 | I97: 1.433438531 | J97: 0.8471137673 | K97: 0.5333840371 | L97: 0.3866785721 | M97: 0.2162989088
A98: 2000 | B98: 2718.4 | C98: 1587.7 | D98: 963.5 | E98: 694.2 | F98: 390.7 | H98: 20 | I98: 1.6891323 | J98: 0.9865492029 | K98: 0.5986900277 | L98: 0.4313550776 | M98: 0.2427692723
A99: 2500 | B99: 3078.6 | C99: 1755.7 | D99: 1091 | E99: 781 | F99: 430.7 | H99: 25 | I99: 1.912949786 | J99: 1.090939369 | K99: 0.677914707 | L99: 0.4852899965 | M99: 0.2676240736
A100: 3000 | B100: 3419.6 | C100: 1935.6 | D100: 1173.2 | E100: 810 | F100: 420 | H100: 30 | I100: 2.124836968 | J100: 1.202723838 | K100: 0.7289913238 | L100: 0.5033097275 | M100: 0.2609754143
A101: 3500 | B101: 3763.2 | C101: 2124.1 | D101: 1285.1 | E101: 872.6 | F101: 442.7 | H101: 35 | I101: 2.338339712 | J101: 1.319852089 | K101: 0.7985226306 | L101: 0.5422074916 | M101: 0.275080514
A102: 4000 | B102: 4061.9 | C102: 2292.6 | D102: 1378.2 | E102: 939.3 | F102: 470.1 | H102: 40 | I102: 2.523942941 | J102: 1.42455294 | K102: 0.8563721808 | L102: 0.5836528729 | M102: 0.292106053

Sheet Scottsbluff (hidden)
A1: Scottsbluff, NE-AERMOD setback distances (NE) as reported in the Odor Footprint Tool | O1: Total Scaled Odor Emission Rate (x10^6) | P1: =Inputs!E33 -> 
O2: New Total Scaled Odor Emission Rate (x10^6) | P2: =Inputs!E42 -> 
A3: Setback Distances (m) for Scottsbluff, NE Direction | H3: Setback Distances (mi) for Scottsbluff, NE Direction
A4: x 104 | B4: Annoyance Free Percentage | H4: x 106 | I4: Annoyance Free Percentage | O4: Annoyance free percentage | P4: 99 | Q4: 98 | R4: 96 | S4: 94 | T4: 90
A5: OU/s | B5: 99 | C5: 98 | D5: 96 | E5: 94 | F5: 90 | H5: OU/s | I5: 99 | J5: 98 | K5: 96 | L5: 94 | M5: 90 | O5: Separation distance | P5: =IF(ISERROR(MATCH($P$1,$H$6:$H$24,0)),VLOOKUP($P$1,$H$6:$M$24,MATCH(P4,$I$5:$M$5,0)+1,TRUE)+($P$1-VLOOKUP($P$1,$H$6:$H$24,1,TRUE))*(INDEX($I$6:$M$24,MATCH($P$1,$H$6:$H$24,1)+1,MATCH(P4,$I$5:$M$5,0))-INDEX($I$6:$M$24,MATCH($P$1,$H$6:$H$24,1),MATCH(P4,$I$5:$M$5,0)))/(INDEX($H$6:$H$24,MATCH($P$1,$H$6:$H$24,1)+1)-INDEX($H$6:$H$24,MATCH($P$1,$H$6:$H$24,1))),INDEX($I$6:$M$24,MATCH($P$1,$H$6:$H$24,0),MATCH(P4,$I$5:$M$5,0))) ->  | Q5: =IF(ISERROR(MATCH($P$1,$H$6:$H$24,0)),VLOOKUP($P$1,$H$6:$M$24,MATCH(Q4,$I$5:$M$5,0)+1,TRUE)+($P$1-VLOOKUP($P$1,$H$6:$H$24,1,TRUE))*(INDEX($I$6:$M$24,MATCH($P$1,$H$6:$H$24,1)+1,MATCH(Q4,$I$5:$M$5,0))-INDEX($I$6:$M$24,MATCH($P$1,$H$6:$H$24,1),MATCH(Q4,$I$5:$M$5,0)))/(INDEX($H$6:$H$24,MATCH($P$1,$H$6:$H$24,1)+1)-INDEX($H$6:$H$24,MATCH($P$1,$H$6:$H$24,1))),INDEX($I$6:$M$24,MATCH($P$1,$H$6:$H$24,0),MATCH(Q4,$I$5:$M$5,0))) ->  | R5: =IF(ISERROR(MATCH($P$1,$H$6:$H$24,0)),VLOOKUP($P$1,$H$6:$M$24,MATCH(R4,$I$5:$M$5,0)+1,TRUE)+($P$1-VLOOKUP($P$1,$H$6:$H$24,1,TRUE))*(INDEX($I$6:$M$24,MATCH($P$1,$H$6:$H$24,1)+1,MATCH(R4,$I$5:$M$5,0))-INDEX($I$6:$M$24,MATCH($P$1,$H$6:$H$24,1),MATCH(R4,$I$5:$M$5,0)))/(INDEX($H$6:$H$24,MATCH($P$1,$H$6:$H$24,1)+1)-INDEX($H$6:$H$24,MATCH($P$1,$H$6:$H$24,1))),INDEX($I$6:$M$24,MATCH($P$1,$H$6:$H$24,0),MATCH(R4,$I$5:$M$5,0))) ->  | S5: =IF(ISERROR(MATCH($P$1,$H$6:$H$24,0)),VLOOKUP($P$1,$H$6:$M$24,MATCH(S4,$I$5:$M$5,0)+1,TRUE)+($P$1-VLOOKUP($P$1,$H$6:$H$24,1,TRUE))*(INDEX($I$6:$M$24,MATCH($P$1,$H$6:$H$24,1)+1,MATCH(S4,$I$5:$M$5,0))-INDEX($I$6:$M$24,MATCH($P$1,$H$6:$H$24,1),MATCH(S4,$I$5:$M$5,0)))/(INDEX($H$6:$H$24,MATCH($P$1,$H$6:$H$24,1)+1)-INDEX($H$6:$H$24,MATCH($P$1,$H$6:$H$24,1))),INDEX($I$6:$M$24,MATCH($P$1,$H$6:$H$24,0),MATCH(S4,$I$5:$M$5,0))) ->  | T5: =IF(ISERROR(MATCH($P$1,$H$6:$H$24,0)),VLOOKUP($P$1,$H$6:$M$24,MATCH(T4,$I$5:$M$5,0)+1,TRUE)+($P$1-VLOOKUP($P$1,$H$6:$H$24,1,TRUE))*(INDEX($I$6:$M$24,MATCH($P$1,$H$6:$H$24,1)+1,MATCH(T4,$I$5:$M$5,0))-INDEX($I$6:$M$24,MATCH($P$1,$H$6:$H$24,1),MATCH(T4,$I$5:$M$5,0)))/(INDEX($H$6:$H$24,MATCH($P$1,$H$6:$H$24,1)+1)-INDEX($H$6:$H$24,MATCH($P$1,$H$6:$H$24,1))),INDEX($I$6:$M$24,MATCH($P$1,$H$6:$H$24,0),MATCH(T4,$I$5:$M$5,0))) -> 
A6: 0 | B6: 0 | C6: 0 | D6: 0 | E6: 0 | F6: 0 | H6: =A6/100 -> 0 | I6: 0 | J6: 0 | K6: 0 | L6: 0 | M6: 0 | O6: New Separation distance | P6: =IF(ISERROR(MATCH($P$2,$H$6:$H$24,0)),VLOOKUP($P$2,$H$6:$M$24,MATCH(P4,$I$5:$M$5,0)+1,TRUE)+($P$2-VLOOKUP($P$2,$H$6:$H$24,1,TRUE))*(INDEX($I$6:$M$24,MATCH($P$2,$H$6:$H$24,1)+1,MATCH(P4,$I$5:$M$5,0))-INDEX($I$6:$M$24,MATCH($P$2,$H$6:$H$24,1),MATCH(P4,$I$5:$M$5,0)))/(INDEX($H$6:$H$24,MATCH($P$2,$H$6:$H$24,1)+1)-INDEX($H$6:$H$24,MATCH($P$2,$H$6:$H$24,1))),INDEX($I$6:$M$24,MATCH($P$2,$H$6:$H$24,0),MATCH(P4,$I$5:$M$5,0))) ->  | Q6: =IF(ISERROR(MATCH($P$2,$H$6:$H$24,0)),VLOOKUP($P$2,$H$6:$M$24,MATCH(Q4,$I$5:$M$5,0)+1,TRUE)+($P$2-VLOOKUP($P$2,$H$6:$H$24,1,TRUE))*(INDEX($I$6:$M$24,MATCH($P$2,$H$6:$H$24,1)+1,MATCH(Q4,$I$5:$M$5,0))-INDEX($I$6:$M$24,MATCH($P$2,$H$6:$H$24,1),MATCH(Q4,$I$5:$M$5,0)))/(INDEX($H$6:$H$24,MATCH($P$2,$H$6:$H$24,1)+1)-INDEX($H$6:$H$24,MATCH($P$2,$H$6:$H$24,1))),INDEX($I$6:$M$24,MATCH($P$2,$H$6:$H$24,0),MATCH(Q4,$I$5:$M$5,0))) ->  | R6: =IF(ISERROR(MATCH($P$2,$H$6:$H$24,0)),VLOOKUP($P$2,$H$6:$M$24,MATCH(R4,$I$5:$M$5,0)+1,TRUE)+($P$2-VLOOKUP($P$2,$H$6:$H$24,1,TRUE))*(INDEX($I$6:$M$24,MATCH($P$2,$H$6:$H$24,1)+1,MATCH(R4,$I$5:$M$5,0))-INDEX($I$6:$M$24,MATCH($P$2,$H$6:$H$24,1),MATCH(R4,$I$5:$M$5,0)))/(INDEX($H$6:$H$24,MATCH($P$2,$H$6:$H$24,1)+1)-INDEX($H$6:$H$24,MATCH($P$2,$H$6:$H$24,1))),INDEX($I$6:$M$24,MATCH($P$2,$H$6:$H$24,0),MATCH(R4,$I$5:$M$5,0))) ->  | S6: =IF(ISERROR(MATCH($P$2,$H$6:$H$24,0)),VLOOKUP($P$2,$H$6:$M$24,MATCH(S4,$I$5:$M$5,0)+1,TRUE)+($P$2-VLOOKUP($P$2,$H$6:$H$24,1,TRUE))*(INDEX($I$6:$M$24,MATCH($P$2,$H$6:$H$24,1)+1,MATCH(S4,$I$5:$M$5,0))-INDEX($I$6:$M$24,MATCH($P$2,$H$6:$H$24,1),MATCH(S4,$I$5:$M$5,0)))/(INDEX($H$6:$H$24,MATCH($P$2,$H$6:$H$24,1)+1)-INDEX($H$6:$H$24,MATCH($P$2,$H$6:$H$24,1))),INDEX($I$6:$M$24,MATCH($P$2,$H$6:$H$24,0),MATCH(S4,$I$5:$M$5,0))) ->  | T6: =IF(ISERROR(MATCH($P$2,$H$6:$H$24,0)),VLOOKUP($P$2,$H$6:$M$24,MATCH(T4,$I$5:$M$5,0)+1,TRUE)+($P$2-VLOOKUP($P$2,$H$6:$H$24,1,TRUE))*(INDEX($I$6:$M$24,MATCH($P$2,$H$6:$H$24,1)+1,MATCH(T4,$I$5:$M$5,0))-INDEX($I$6:$M$24,MATCH($P$2,$H$6:$H$24,1),MATCH(T4,$I$5:$M$5,0)))/(INDEX($H$6:$H$24,MATCH($P$2,$H$6:$H$24,1)+1)-INDEX($H$6:$H$24,MATCH($P$2,$H$6:$H$24,1))),INDEX($I$6:$M$24,MATCH($P$2,$H$6:$H$24,0),MATCH(T4,$I$5:$M$5,0))) -> 
A7: 100 | B7: 350 | C7: 213.5 | D7: 148.8 | E7: 110.5 | F7: 66.7 | H7: 1 | I7: =+B7/1609.347 -> 0.2174795119 | J7: =+C7/1609.347 -> 0.1326625022 | K7: =+D7/1609.347 -> 0.09245986105 | L7: =+E7/1609.347 -> 0.06866138875 | M7: =+F7/1609.347 -> 0.04144538126
A8: 200 | B8: 496.7 | C8: 320.4 | D8: 220.5 | E8: 146.3 | F8: 73 | H8: 2 | I8: 0.3086344959 | J8: 0.1990869589 | K8: 0.1370120925 | L8: 0.09090643596 | M8: 0.04536001248
A9: 300 | B9: 610.2 | C9: 385.6 | D9: 265 | E9: 180 | F9: 85 | H9: 3 | I9: 0.3791599947 | J9: 0.2396002851 | K9: 0.164663059 | L9: 0.1118466061 | M9: 0.05281645288
A10: 400 | B10: 705 | C10: 450 | D10: 296 | E10: 200 | F10: 90.4 | H10: 4 | I10: 0.4380658739 | J10: 0.2796165153 | K10: 0.18392553 | L10: 0.1242740068 | M10: 0.05617185107
A11: 500 | B11: 795 | C11: 500 | D11: 340.2 | E11: 220.1 | F11: 98 | H11: 5 | I11: 0.493989177 | J11: 0.310685017 | K11: 0.2113900855 | L11: 0.1367635445 | M11: 0.06089426333
A12: 1000 | B12: 1135.1 | C12: 700 | D12: 470.6 | E12: 281 | F12: 97.8 | H12: 10 | I12: 0.7053171255 | J12: 0.4349590238 | K12: 0.292416738 | L12: 0.1746049795 | M12: 0.06076998932
A13: 2000 | B13: 1505.5 | C13: 975.6 | D13: 579.5 | E13: 316.4 | F13: 142 | H13: 20 | I13: 0.9354725861 | J13: 0.6062086051 | K13: 0.3600839347 | L13: 0.1966014787 | M13: 0.08823454482
A14: 3000 | B14: 1736 | C14: 1063 | D14: 657.9 | E14: 318.7 | F14: 141.8 | H14: 30 | I14: 1.078698379 | J14: 0.6605163461 | K14: 0.4087993453 | L14: 0.1980306298 | M14: 0.08811027081
A15: 4000 | B15: 1965.3 | C15: 1149.4 | D15: 736.2 | E15: 335.7 | F15: 136.5 | H15: 40 | I15: 1.221178528 | J15: 0.714202717 | K15: 0.457452619 | L15: 0.2085939204 | M15: 0.08481700963
A27: Scottsbluff, NE-AERMOD setback distances (SE) as reported in the Odor Footprint Tool
A29: Setback Distances (m) for Scottsbluff, SE Direction | H29: Setback Distances (mi) for Scottsbluff, SE Direction
A30: x 104 | B30: Annoyance Free Percentage | H30: x 106 | I30: Annoyance Free Percentage
A31: OU/s | B31: 99 | C31: 98 | D31: 96 | E31: 94 | F31: 90 | H31: OU/s | I31: 99 | J31: 98 | K31: 96 | L31: 94 | M31: 90 | O31: Separation distance | P31: =IF(ISERROR(MATCH($P$1,$H$32:$H$50,0)),VLOOKUP($P$1,$H$32:$M$50,MATCH(P$4,$I$31:$M$31,0)+1,TRUE)+($P$1-VLOOKUP($P$1,$H$32:$H$50,1,TRUE))*(INDEX($I$32:$M$50,MATCH($P$1,$H$32:$H$50,1)+1,MATCH(P$4,$I$31:$M$31,0))-INDEX($I$32:$M$50,MATCH($P$1,$H$32:$H$50,1),MATCH(P$4,$I$31:$M$31,0)))/(INDEX($H$32:$H$50,MATCH($P$1,$H$32:$H$50,1)+1)-INDEX($H$32:$H$50,MATCH($P$1,$H$32:$H$50,1))),INDEX($I$32:$M$50,MATCH($P$1,$H$32:$H$50,0),MATCH(P4,$I$31:$M$31,0))) ->  | Q31: =IF(ISERROR(MATCH($P$1,$H$32:$H$50,0)),VLOOKUP($P$1,$H$32:$M$50,MATCH(Q$4,$I$31:$M$31,0)+1,TRUE)+($P$1-VLOOKUP($P$1,$H$32:$H$50,1,TRUE))*(INDEX($I$32:$M$50,MATCH($P$1,$H$32:$H$50,1)+1,MATCH(Q$4,$I$31:$M$31,0))-INDEX($I$32:$M$50,MATCH($P$1,$H$32:$H$50,1),MATCH(Q$4,$I$31:$M$31,0)))/(INDEX($H$32:$H$50,MATCH($P$1,$H$32:$H$50,1)+1)-INDEX($H$32:$H$50,MATCH($P$1,$H$32:$H$50,1))),INDEX($I$32:$M$50,MATCH($P$1,$H$32:$H$50,0),MATCH(Q4,$I$31:$M$31,0))) ->  | R31: =IF(ISERROR(MATCH($P$1,$H$32:$H$50,0)),VLOOKUP($P$1,$H$32:$M$50,MATCH(R$4,$I$31:$M$31,0)+1,TRUE)+($P$1-VLOOKUP($P$1,$H$32:$H$50,1,TRUE))*(INDEX($I$32:$M$50,MATCH($P$1,$H$32:$H$50,1)+1,MATCH(R$4,$I$31:$M$31,0))-INDEX($I$32:$M$50,MATCH($P$1,$H$32:$H$50,1),MATCH(R$4,$I$31:$M$31,0)))/(INDEX($H$32:$H$50,MATCH($P$1,$H$32:$H$50,1)+1)-INDEX($H$32:$H$50,MATCH($P$1,$H$32:$H$50,1))),INDEX($I$32:$M$50,MATCH($P$1,$H$32:$H$50,0),MATCH(R4,$I$31:$M$31,0))) ->  | S31: =IF(ISERROR(MATCH($P$1,$H$32:$H$50,0)),VLOOKUP($P$1,$H$32:$M$50,MATCH(S$4,$I$31:$M$31,0)+1,TRUE)+($P$1-VLOOKUP($P$1,$H$32:$H$50,1,TRUE))*(INDEX($I$32:$M$50,MATCH($P$1,$H$32:$H$50,1)+1,MATCH(S$4,$I$31:$M$31,0))-INDEX($I$32:$M$50,MATCH($P$1,$H$32:$H$50,1),MATCH(S$4,$I$31:$M$31,0)))/(INDEX($H$32:$H$50,MATCH($P$1,$H$32:$H$50,1)+1)-INDEX($H$32:$H$50,MATCH($P$1,$H$32:$H$50,1))),INDEX($I$32:$M$50,MATCH($P$1,$H$32:$H$50,0),MATCH(S4,$I$31:$M$31,0))) ->  | T31: =IF(ISERROR(MATCH($P$1,$H$32:$H$50,0)),VLOOKUP($P$1,$H$32:$M$50,MATCH(T$4,$I$31:$M$31,0)+1,TRUE)+($P$1-VLOOKUP($P$1,$H$32:$H$50,1,TRUE))*(INDEX($I$32:$M$50,MATCH($P$1,$H$32:$H$50,1)+1,MATCH(T$4,$I$31:$M$31,0))-INDEX($I$32:$M$50,MATCH($P$1,$H$32:$H$50,1),MATCH(T$4,$I$31:$M$31,0)))/(INDEX($H$32:$H$50,MATCH($P$1,$H$32:$H$50,1)+1)-INDEX($H$32:$H$50,MATCH($P$1,$H$32:$H$50,1))),INDEX($I$32:$M$50,MATCH($P$1,$H$32:$H$50,0),MATCH(T4,$I$31:$M$31,0))) -> 
A32: 0 | B32: 0 | C32: 0 | D32: 0 | E32: 0 | F32: 0 | H32: =A32/100 -> 0 | I32: 0 | J32: 0 | K32: 0 | L32: 0 | M32: 0 | O32: New Separation distance | P32: =IF(ISERROR(MATCH($P$2,$H$32:$H$50,0)),VLOOKUP($P$2,$H$32:$M$50,MATCH(P$4,$I$31:$M$31,0)+1,TRUE)+($P$2-VLOOKUP($P$2,$H$32:$H$50,1,TRUE))*(INDEX($I$32:$M$50,MATCH($P$2,$H$32:$H$50,1)+1,MATCH(P$4,$I$31:$M$31,0))-INDEX($I$32:$M$50,MATCH($P$2,$H$32:$H$50,1),MATCH(P$4,$I$31:$M$31,0)))/(INDEX($H$32:$H$50,MATCH($P$2,$H$32:$H$50,1)+1)-INDEX($H$32:$H$50,MATCH($P$2,$H$32:$H$50,1))),INDEX($I$32:$M$50,MATCH($P$2,$H$32:$H$50,0),MATCH(P4,$I$31:$M$31,0))) ->  | Q32: =IF(ISERROR(MATCH($P$2,$H$32:$H$50,0)),VLOOKUP($P$2,$H$32:$M$50,MATCH(Q$4,$I$31:$M$31,0)+1,TRUE)+($P$2-VLOOKUP($P$2,$H$32:$H$50,1,TRUE))*(INDEX($I$32:$M$50,MATCH($P$2,$H$32:$H$50,1)+1,MATCH(Q$4,$I$31:$M$31,0))-INDEX($I$32:$M$50,MATCH($P$2,$H$32:$H$50,1),MATCH(Q$4,$I$31:$M$31,0)))/(INDEX($H$32:$H$50,MATCH($P$2,$H$32:$H$50,1)+1)-INDEX($H$32:$H$50,MATCH($P$2,$H$32:$H$50,1))),INDEX($I$32:$M$50,MATCH($P$2,$H$32:$H$50,0),MATCH(Q4,$I$31:$M$31,0))) ->  | R32: =IF(ISERROR(MATCH($P$2,$H$32:$H$50,0)),VLOOKUP($P$2,$H$32:$M$50,MATCH(R$4,$I$31:$M$31,0)+1,TRUE)+($P$2-VLOOKUP($P$2,$H$32:$H$50,1,TRUE))*(INDEX($I$32:$M$50,MATCH($P$2,$H$32:$H$50,1)+1,MATCH(R$4,$I$31:$M$31,0))-INDEX($I$32:$M$50,MATCH($P$2,$H$32:$H$50,1),MATCH(R$4,$I$31:$M$31,0)))/(INDEX($H$32:$H$50,MATCH($P$2,$H$32:$H$50,1)+1)-INDEX($H$32:$H$50,MATCH($P$2,$H$32:$H$50,1))),INDEX($I$32:$M$50,MATCH($P$2,$H$32:$H$50,0),MATCH(R4,$I$31:$M$31,0))) ->  | S32: =IF(ISERROR(MATCH($P$2,$H$32:$H$50,0)),VLOOKUP($P$2,$H$32:$M$50,MATCH(S$4,$I$31:$M$31,0)+1,TRUE)+($P$2-VLOOKUP($P$2,$H$32:$H$50,1,TRUE))*(INDEX($I$32:$M$50,MATCH($P$2,$H$32:$H$50,1)+1,MATCH(S$4,$I$31:$M$31,0))-INDEX($I$32:$M$50,MATCH($P$2,$H$32:$H$50,1),MATCH(S$4,$I$31:$M$31,0)))/(INDEX($H$32:$H$50,MATCH($P$2,$H$32:$H$50,1)+1)-INDEX($H$32:$H$50,MATCH($P$2,$H$32:$H$50,1))),INDEX($I$32:$M$50,MATCH($P$2,$H$32:$H$50,0),MATCH(S4,$I$31:$M$31,0))) ->  | T32: =IF(ISERROR(MATCH($P$2,$H$32:$H$50,0)),VLOOKUP($P$2,$H$32:$M$50,MATCH(T$4,$I$31:$M$31,0)+1,TRUE)+($P$2-VLOOKUP($P$2,$H$32:$H$50,1,TRUE))*(INDEX($I$32:$M$50,MATCH($P$2,$H$32:$H$50,1)+1,MATCH(T$4,$I$31:$M$31,0))-INDEX($I$32:$M$50,MATCH($P$2,$H$32:$H$50,1),MATCH(T$4,$I$31:$M$31,0)))/(INDEX($H$32:$H$50,MATCH($P$2,$H$32:$H$50,1)+1)-INDEX($H$32:$H$50,MATCH($P$2,$H$32:$H$50,1))),INDEX($I$32:$M$50,MATCH($P$2,$H$32:$H$50,0),MATCH(T4,$I$31:$M$31,0))) -> 
A33: 100 | B33: 910.2 | C33: 555.9 | D33: 331.3 | E33: 260.3 | F33: 198.1 | H33: 1 | I33: =+B33/1609.347 -> 0.5655710049 | J33: =+C33/1609.347 -> 0.3454196019 | K33: =+D33/1609.347 -> 0.2058598922 | L33: =+E33/1609.347 -> 0.1617426198 | M33: =+F33/1609.347 -> 0.1230934037
A34: 200 | B34: 1356.8 | C34: 819.5 | D34: 492 | E34: 371.1 | F34: 277.5 | H34: 2 | I34: 0.843074862 | J34: 0.5092127428 | K34: 0.3057140567 | L34: 0.2305904196 | M34: 0.1724301844
A35: 300 | B35: 1728.5 | C35: 1038.5 | D35: 596.7 | E35: 467.4 | F35: 338.5 | H35: 3 | I35: 1.074038104 | J35: 0.6452927802 | K35: 0.3707714992 | L35: 0.2904283539 | M35: 0.2103337565
A36: 400 | B36: 2024.8 | C36: 1233.7 | D36: 708.1 | E36: 534.8 | F36: 392.2 | H36: 4 | I36: 1.258150045 | J36: 0.7665842109 | K36: 0.439992121 | L36: 0.3323086941 | M36: 0.2437013273
A37: 500 | B37: 2337.1 | C37: 1389.4 | D37: 807.1 | E37: 598.8 | F37: 437 | H37: 5 | I37: 1.452203906 | J37: 0.8633315251 | K37: 0.5015077544 | L37: 0.3720763763 | M37: 0.2715387048
A38: 1000 | B38: 3526 | C38: 2083.8 | D38: 1148.4 | E38: 847.1 | F38: 614.3 | H38: 10 | I38: 2.19095074 | J38: 1.294810877 | K38: 0.713581347 | L38: 0.5263625557 | M38: 0.3817076118
A39: 2000 | B39: 5352.9 | C39: 3072.9 | D39: 1671.3 | E39: 1199.1 | F39: 808.2 | H39: 20 | I39: 3.326131655 | J39: 1.909407977 | K39: 1.038495738 | L39: 0.7450848077 | M39: 0.5021912614
A40: 3000 | B40: 6300 | C40: 3600 | D40: 1870 | E40: 1300 | F40: 870 | H40: 30 | I40: 3.914631214 | J40: 2.236932122 | K40: 1.161961963 | L40: 0.8077810441 | M40: 0.5405919295
A41: 4000 | B41: 6826.8 | C41: 3934.1 | D41: 2070.3 | E41: 1470.3 | F41: 944.2 | H41: 40 | I41: 4.241968948 | J41: 2.44453185 | K41: 1.286422381 | L41: 0.9136003609 | M41: 0.586697586
A53: Scottsbluff, NE - AERMOD setback distances (SW) as reported in the Odor Footprint Tool
A55: Setback Distances (m) for Scottsbluff, SW Direction | H55: Setback Distances (mi) for Scottsbluff, SW Direction
A56: x 104 | B56: Annoyance Free Percentage | H56: x 106 | I56: Annoyance Free Percentage
A57: OU/s | B57: 99 | C57: 98 | D57: 96 | E57: 94 | F57: 90 | H57: OU/s | I57: 99 | J57: 98 | K57: 96 | L57: 94 | M57: 90 | O57: Separation distance | P57: =IF(ISERROR(MATCH($P$1,$H$58:$H$76,0)),VLOOKUP($P$1,$H$58:$M$76,MATCH(P$4,$I$57:$M$57,0)+1,TRUE)+($P$1-VLOOKUP($P$1,$H$58:$H$76,1,TRUE))*(INDEX($I$58:$M$76,MATCH($P$1,$H$58:$H$76,1)+1,MATCH(P$4,$I$57:$M$57,0))-INDEX($I$58:$M$76,MATCH($P$1,$H$58:$H$76,1),MATCH(P$4,$I$57:$M$57,0)))/(INDEX($H$58:$H$76,MATCH($P$1,$H$58:$H$76,1)+1)-INDEX($H$58:$H$76,MATCH($P$1,$H$58:$H$76,1))),INDEX($I$58:$M$76,MATCH($P$1,$H$58:$H$76,0),MATCH(P$4,$I$57:$M$57,0))) ->  | Q57: =IF(ISERROR(MATCH($P$1,$H$58:$H$76,0)),VLOOKUP($P$1,$H$58:$M$76,MATCH(Q$4,$I$57:$M$57,0)+1,TRUE)+($P$1-VLOOKUP($P$1,$H$58:$H$76,1,TRUE))*(INDEX($I$58:$M$76,MATCH($P$1,$H$58:$H$76,1)+1,MATCH(Q$4,$I$57:$M$57,0))-INDEX($I$58:$M$76,MATCH($P$1,$H$58:$H$76,1),MATCH(Q$4,$I$57:$M$57,0)))/(INDEX($H$58:$H$76,MATCH($P$1,$H$58:$H$76,1)+1)-INDEX($H$58:$H$76,MATCH($P$1,$H$58:$H$76,1))),INDEX($I$58:$M$76,MATCH($P$1,$H$58:$H$76,0),MATCH(Q$4,$I$57:$M$57,0))) ->  | R57: =IF(ISERROR(MATCH($P$1,$H$58:$H$76,0)),VLOOKUP($P$1,$H$58:$M$76,MATCH(R$4,$I$57:$M$57,0)+1,TRUE)+($P$1-VLOOKUP($P$1,$H$58:$H$76,1,TRUE))*(INDEX($I$58:$M$76,MATCH($P$1,$H$58:$H$76,1)+1,MATCH(R$4,$I$57:$M$57,0))-INDEX($I$58:$M$76,MATCH($P$1,$H$58:$H$76,1),MATCH(R$4,$I$57:$M$57,0)))/(INDEX($H$58:$H$76,MATCH($P$1,$H$58:$H$76,1)+1)-INDEX($H$58:$H$76,MATCH($P$1,$H$58:$H$76,1))),INDEX($I$58:$M$76,MATCH($P$1,$H$58:$H$76,0),MATCH(R$4,$I$57:$M$57,0))) ->  | S57: =IF(ISERROR(MATCH($P$1,$H$58:$H$76,0)),VLOOKUP($P$1,$H$58:$M$76,MATCH(S$4,$I$57:$M$57,0)+1,TRUE)+($P$1-VLOOKUP($P$1,$H$58:$H$76,1,TRUE))*(INDEX($I$58:$M$76,MATCH($P$1,$H$58:$H$76,1)+1,MATCH(S$4,$I$57:$M$57,0))-INDEX($I$58:$M$76,MATCH($P$1,$H$58:$H$76,1),MATCH(S$4,$I$57:$M$57,0)))/(INDEX($H$58:$H$76,MATCH($P$1,$H$58:$H$76,1)+1)-INDEX($H$58:$H$76,MATCH($P$1,$H$58:$H$76,1))),INDEX($I$58:$M$76,MATCH($P$1,$H$58:$H$76,0),MATCH(S$4,$I$57:$M$57,0))) ->  | T57: =IF(ISERROR(MATCH($P$1,$H$58:$H$76,0)),VLOOKUP($P$1,$H$58:$M$76,MATCH(T$4,$I$57:$M$57,0)+1,TRUE)+($P$1-VLOOKUP($P$1,$H$58:$H$76,1,TRUE))*(INDEX($I$58:$M$76,MATCH($P$1,$H$58:$H$76,1)+1,MATCH(T$4,$I$57:$M$57,0))-INDEX($I$58:$M$76,MATCH($P$1,$H$58:$H$76,1),MATCH(T$4,$I$57:$M$57,0)))/(INDEX($H$58:$H$76,MATCH($P$1,$H$58:$H$76,1)+1)-INDEX($H$58:$H$76,MATCH($P$1,$H$58:$H$76,1))),INDEX($I$58:$M$76,MATCH($P$1,$H$58:$H$76,0),MATCH(T$4,$I$57:$M$57,0))) -> 
A58: 0 | B58: 0 | C58: 0 | D58: 0 | E58: 0 | F58: 0 | H58: =A58/100 -> 0 | I58: 0 | J58: 0 | K58: 0 | L58: 0 | M58: 0 | O58: New Separation distance | P58: =IF(ISERROR(MATCH($P$2,$H$58:$H$76,0)),VLOOKUP($P$2,$H$58:$M$76,MATCH(P$4,$I$57:$M$57,0)+1,TRUE)+($P$2-VLOOKUP($P$2,$H$58:$H$76,1,TRUE))*(INDEX($I$58:$M$76,MATCH($P$2,$H$58:$H$76,1)+1,MATCH(P$4,$I$57:$M$57,0))-INDEX($I$58:$M$76,MATCH($P$2,$H$58:$H$76,1),MATCH(P$4,$I$57:$M$57,0)))/(INDEX($H$58:$H$76,MATCH($P$2,$H$58:$H$76,1)+1)-INDEX($H$58:$H$76,MATCH($P$2,$H$58:$H$76,1))),INDEX($I$58:$M$76,MATCH($P$2,$H$58:$H$76,0),MATCH(P4,$I$57:$M$57,0))) ->  | Q58: =IF(ISERROR(MATCH($P$2,$H$58:$H$76,0)),VLOOKUP($P$2,$H$58:$M$76,MATCH(Q$4,$I$57:$M$57,0)+1,TRUE)+($P$2-VLOOKUP($P$2,$H$58:$H$76,1,TRUE))*(INDEX($I$58:$M$76,MATCH($P$2,$H$58:$H$76,1)+1,MATCH(Q$4,$I$57:$M$57,0))-INDEX($I$58:$M$76,MATCH($P$2,$H$58:$H$76,1),MATCH(Q$4,$I$57:$M$57,0)))/(INDEX($H$58:$H$76,MATCH($P$2,$H$58:$H$76,1)+1)-INDEX($H$58:$H$76,MATCH($P$2,$H$58:$H$76,1))),INDEX($I$58:$M$76,MATCH($P$2,$H$58:$H$76,0),MATCH(Q4,$I$57:$M$57,0))) ->  | R58: =IF(ISERROR(MATCH($P$2,$H$58:$H$76,0)),VLOOKUP($P$2,$H$58:$M$76,MATCH(R$4,$I$57:$M$57,0)+1,TRUE)+($P$2-VLOOKUP($P$2,$H$58:$H$76,1,TRUE))*(INDEX($I$58:$M$76,MATCH($P$2,$H$58:$H$76,1)+1,MATCH(R$4,$I$57:$M$57,0))-INDEX($I$58:$M$76,MATCH($P$2,$H$58:$H$76,1),MATCH(R$4,$I$57:$M$57,0)))/(INDEX($H$58:$H$76,MATCH($P$2,$H$58:$H$76,1)+1)-INDEX($H$58:$H$76,MATCH($P$2,$H$58:$H$76,1))),INDEX($I$58:$M$76,MATCH($P$2,$H$58:$H$76,0),MATCH(R4,$I$57:$M$57,0))) ->  | S58: =IF(ISERROR(MATCH($P$2,$H$58:$H$76,0)),VLOOKUP($P$2,$H$58:$M$76,MATCH(S$4,$I$57:$M$57,0)+1,TRUE)+($P$2-VLOOKUP($P$2,$H$58:$H$76,1,TRUE))*(INDEX($I$58:$M$76,MATCH($P$2,$H$58:$H$76,1)+1,MATCH(S$4,$I$57:$M$57,0))-INDEX($I$58:$M$76,MATCH($P$2,$H$58:$H$76,1),MATCH(S$4,$I$57:$M$57,0)))/(INDEX($H$58:$H$76,MATCH($P$2,$H$58:$H$76,1)+1)-INDEX($H$58:$H$76,MATCH($P$2,$H$58:$H$76,1))),INDEX($I$58:$M$76,MATCH($P$2,$H$58:$H$76,0),MATCH(S4,$I$57:$M$57,0))) ->  | T58: =IF(ISERROR(MATCH($P$2,$H$58:$H$76,0)),VLOOKUP($P$2,$H$58:$M$76,MATCH(T$4,$I$57:$M$57,0)+1,TRUE)+($P$2-VLOOKUP($P$2,$H$58:$H$76,1,TRUE))*(INDEX($I$58:$M$76,MATCH($P$2,$H$58:$H$76,1)+1,MATCH(T$4,$I$57:$M$57,0))-INDEX($I$58:$M$76,MATCH($P$2,$H$58:$H$76,1),MATCH(T$4,$I$57:$M$57,0)))/(INDEX($H$58:$H$76,MATCH($P$2,$H$58:$H$76,1)+1)-INDEX($H$58:$H$76,MATCH($P$2,$H$58:$H$76,1))),INDEX($I$58:$M$76,MATCH($P$2,$H$58:$H$76,0),MATCH(T4,$I$57:$M$57,0))) -> 
A59: 100 | B59: 769.2 | C59: 467.2 | D59: 295.9 | E59: 233.5 | F59: 169.2 | H59: 1 | I59: =+B59/1609.347 -> 0.4779578301 | J59: =+C59/1609.347 -> 0.2903040799 | K59: =+D59/1609.347 -> 0.183863393 | L59: =+E59/1609.347 -> 0.1450899029 | M59: =+F59/1609.347 -> 0.1051358097
A60: 200 | B60: 1141.4 | C60: 703.2 | D60: 432.2 | E60: 334.5 | F60: 233 | H60: 2 | I60: 0.7092317567 | J60: 0.4369474079 | K60: 0.2685561287 | L60: 0.2078482764 | M60: 0.1447792179
A61: 300 | B61: 1444 | C61: 889.5 | D61: 533.1 | E61: 406.4 | F61: 280.7 | H61: 3 | I61: 0.897258329 | J61: 0.5527086452 | K61: 0.3312523651 | L61: 0.2525247818 | M61: 0.1744185685
A62: 400 | B62: 1726 | C62: 1044.2 | D62: 618.9 | E62: 460.6 | F62: 301.6 | H62: 4 | I62: 1.072484679 | J62: 0.6488345894 | K62: 0.384565914 | L62: 0.2862030376 | M62: 0.1874052022
A63: 500 | B63: 1955.9 | C63: 1185.2 | D63: 696.4 | E63: 528.9 | F63: 351.3 | H63: 5 | I63: 1.215337649 | J63: 0.7364477642 | K63: 0.4327220916 | L63: 0.3286426109 | M63: 0.2182872929
A64: 1000 | B64: 2907 | C64: 1730.4 | D64: 1016.6 | E64: 757.7 | F64: 486.5 | H64: 10 | I64: 1.806322689 | J64: 1.075218707 | K64: 0.6316847765 | L64: 0.4708120747 | M64: 0.3022965215
A65: 2000 | B65: 4302.9 | C65: 2566.2 | D65: 1431.3 | E65: 999.2 | F65: 550.4 | H65: 20 | I65: 2.673693119 | J65: 1.594559781 | K65: 0.8893669296 | L65: 0.6208729379 | M65: 0.3420020667
A66: 3000 | B66: 5000 | C66: 3100 | D66: 1600 | E66: 1070.7 | F66: 627.5 | H66: 30 | I66: 3.10685017 | J66: 1.926247105 | K66: 0.9941920543 | L66: 0.6653008953 | M66: 0.3899096963
A67: 4000 | B67: 5480.7 | C67: 3317.5 | D67: 1786.4 | E67: 1227.5 | F67: 663.8 | H67: 40 | I67: 3.405542745 | J67: 2.061395088 | K67: 1.110015429 | L67: 0.7627317167 | M67: 0.4124654285
A79: Scottsbluff, NE - AERMOD setback distances (NW) as reported in the Odor Footprint Tool
A81: Setback Distances (m) for Scottsbluff, NW Direction | H81: Setback Distances (mi) for Scottsbluff, NW Direction
A82: x 104 | B82: Annoyance Free Percentage | H82: x 106 | I82: Annoyance Free Percentage
A83: OU/s | B83: 99 | C83: 98 | D83: 96 | E83: 94 | F83: 90 | H83: OU/s | I83: 99 | J83: 98 | K83: 96 | L83: 94 | M83: 90 | O83: Separation distance | P83: =IF(ISERROR(MATCH($P$1,$H$84:$H$102,0)),VLOOKUP($P$1,$H$84:$M$102,MATCH(P$4,$I$83:$M$83,0)+1,TRUE)+($P$1-VLOOKUP($P$1,$H$84:$H$102,1,TRUE))*(INDEX($I$84:$M$102,MATCH($P$1,$H$84:$H$102,1)+1,MATCH(P$4,$I$83:$M$83,0))-INDEX($I$84:$M$102,MATCH($P$1,$H$84:$H$102,1),MATCH(P$4,$I$83:$M$83,0)))/(INDEX($H$84:$H$102,MATCH($P$1,$H$84:$H$102,1)+1)-INDEX($H$84:$H$102,MATCH($P$1,$H$84:$H$102,1))),INDEX($I$84:$M$102,MATCH($P$1,$H$84:$H$102,0),MATCH(P4,$I$83:$M$83,0))) ->  | Q83: =IF(ISERROR(MATCH($P$1,$H$84:$H$102,0)),VLOOKUP($P$1,$H$84:$M$102,MATCH(Q$4,$I$83:$M$83,0)+1,TRUE)+($P$1-VLOOKUP($P$1,$H$84:$H$102,1,TRUE))*(INDEX($I$84:$M$102,MATCH($P$1,$H$84:$H$102,1)+1,MATCH(Q$4,$I$83:$M$83,0))-INDEX($I$84:$M$102,MATCH($P$1,$H$84:$H$102,1),MATCH(Q$4,$I$83:$M$83,0)))/(INDEX($H$84:$H$102,MATCH($P$1,$H$84:$H$102,1)+1)-INDEX($H$84:$H$102,MATCH($P$1,$H$84:$H$102,1))),INDEX($I$84:$M$102,MATCH($P$1,$H$84:$H$102,0),MATCH(Q4,$I$83:$M$83,0))) ->  | R83: =IF(ISERROR(MATCH($P$1,$H$84:$H$102,0)),VLOOKUP($P$1,$H$84:$M$102,MATCH(R$4,$I$83:$M$83,0)+1,TRUE)+($P$1-VLOOKUP($P$1,$H$84:$H$102,1,TRUE))*(INDEX($I$84:$M$102,MATCH($P$1,$H$84:$H$102,1)+1,MATCH(R$4,$I$83:$M$83,0))-INDEX($I$84:$M$102,MATCH($P$1,$H$84:$H$102,1),MATCH(R$4,$I$83:$M$83,0)))/(INDEX($H$84:$H$102,MATCH($P$1,$H$84:$H$102,1)+1)-INDEX($H$84:$H$102,MATCH($P$1,$H$84:$H$102,1))),INDEX($I$84:$M$102,MATCH($P$1,$H$84:$H$102,0),MATCH(R4,$I$83:$M$83,0))) ->  | S83: =IF(ISERROR(MATCH($P$1,$H$84:$H$102,0)),VLOOKUP($P$1,$H$84:$M$102,MATCH(S$4,$I$83:$M$83,0)+1,TRUE)+($P$1-VLOOKUP($P$1,$H$84:$H$102,1,TRUE))*(INDEX($I$84:$M$102,MATCH($P$1,$H$84:$H$102,1)+1,MATCH(S$4,$I$83:$M$83,0))-INDEX($I$84:$M$102,MATCH($P$1,$H$84:$H$102,1),MATCH(S$4,$I$83:$M$83,0)))/(INDEX($H$84:$H$102,MATCH($P$1,$H$84:$H$102,1)+1)-INDEX($H$84:$H$102,MATCH($P$1,$H$84:$H$102,1))),INDEX($I$84:$M$102,MATCH($P$1,$H$84:$H$102,0),MATCH(S4,$I$83:$M$83,0))) ->  | T83: =IF(ISERROR(MATCH($P$1,$H$84:$H$102,0)),VLOOKUP($P$1,$H$84:$M$102,MATCH(T$4,$I$83:$M$83,0)+1,TRUE)+($P$1-VLOOKUP($P$1,$H$84:$H$102,1,TRUE))*(INDEX($I$84:$M$102,MATCH($P$1,$H$84:$H$102,1)+1,MATCH(T$4,$I$83:$M$83,0))-INDEX($I$84:$M$102,MATCH($P$1,$H$84:$H$102,1),MATCH(T$4,$I$83:$M$83,0)))/(INDEX($H$84:$H$102,MATCH($P$1,$H$84:$H$102,1)+1)-INDEX($H$84:$H$102,MATCH($P$1,$H$84:$H$102,1))),INDEX($I$84:$M$102,MATCH($P$1,$H$84:$H$102,0),MATCH(T4,$I$83:$M$83,0))) -> 
A84: 0 | B84: 0 | C84: 0 | D84: 0 | E84: 0 | F84: 0 | H84: =A84/100 -> 0 | I84: 0 | J84: 0 | K84: 0 | L84: 0 | M84: 0 | O84: New Separation distance | P84: =IF(ISERROR(MATCH($P$2,$H$84:$H$102,0)),VLOOKUP($P$2,$H$84:$M$102,MATCH(P$4,$I$83:$M$83,0)+1,TRUE)+($P$2-VLOOKUP($P$2,$H$84:$H$102,1,TRUE))*(INDEX($I$84:$M$102,MATCH($P$2,$H$84:$H$102,1)+1,MATCH(P$4,$I$83:$M$83,0))-INDEX($I$84:$M$102,MATCH($P$2,$H$84:$H$102,1),MATCH(P$4,$I$83:$M$83,0)))/(INDEX($H$84:$H$102,MATCH($P$2,$H$84:$H$102,1)+1)-INDEX($H$84:$H$102,MATCH($P$2,$H$84:$H$102,1))),INDEX($I$84:$M$102,MATCH($P$2,$H$84:$H$102,0),MATCH(P4,$I$83:$M$83,0))) ->  | Q84: =IF(ISERROR(MATCH($P$2,$H$84:$H$102,0)),VLOOKUP($P$2,$H$84:$M$102,MATCH(Q$4,$I$83:$M$83,0)+1,TRUE)+($P$2-VLOOKUP($P$2,$H$84:$H$102,1,TRUE))*(INDEX($I$84:$M$102,MATCH($P$2,$H$84:$H$102,1)+1,MATCH(Q$4,$I$83:$M$83,0))-INDEX($I$84:$M$102,MATCH($P$2,$H$84:$H$102,1),MATCH(Q$4,$I$83:$M$83,0)))/(INDEX($H$84:$H$102,MATCH($P$2,$H$84:$H$102,1)+1)-INDEX($H$84:$H$102,MATCH($P$2,$H$84:$H$102,1))),INDEX($I$84:$M$102,MATCH($P$2,$H$84:$H$102,0),MATCH(Q4,$I$83:$M$83,0))) ->  | R84: =IF(ISERROR(MATCH($P$2,$H$84:$H$102,0)),VLOOKUP($P$2,$H$84:$M$102,MATCH(R$4,$I$83:$M$83,0)+1,TRUE)+($P$2-VLOOKUP($P$2,$H$84:$H$102,1,TRUE))*(INDEX($I$84:$M$102,MATCH($P$2,$H$84:$H$102,1)+1,MATCH(R$4,$I$83:$M$83,0))-INDEX($I$84:$M$102,MATCH($P$2,$H$84:$H$102,1),MATCH(R$4,$I$83:$M$83,0)))/(INDEX($H$84:$H$102,MATCH($P$2,$H$84:$H$102,1)+1)-INDEX($H$84:$H$102,MATCH($P$2,$H$84:$H$102,1))),INDEX($I$84:$M$102,MATCH($P$2,$H$84:$H$102,0),MATCH(R4,$I$83:$M$83,0))) ->  | S84: =IF(ISERROR(MATCH($P$2,$H$84:$H$102,0)),VLOOKUP($P$2,$H$84:$M$102,MATCH(S$4,$I$83:$M$83,0)+1,TRUE)+($P$2-VLOOKUP($P$2,$H$84:$H$102,1,TRUE))*(INDEX($I$84:$M$102,MATCH($P$2,$H$84:$H$102,1)+1,MATCH(S$4,$I$83:$M$83,0))-INDEX($I$84:$M$102,MATCH($P$2,$H$84:$H$102,1),MATCH(S$4,$I$83:$M$83,0)))/(INDEX($H$84:$H$102,MATCH($P$2,$H$84:$H$102,1)+1)-INDEX($H$84:$H$102,MATCH($P$2,$H$84:$H$102,1))),INDEX($I$84:$M$102,MATCH($P$2,$H$84:$H$102,0),MATCH(S4,$I$83:$M$83,0))) ->  | T84: =IF(ISERROR(MATCH($P$2,$H$84:$H$102,0)),VLOOKUP($P$2,$H$84:$M$102,MATCH(T$4,$I$83:$M$83,0)+1,TRUE)+($P$2-VLOOKUP($P$2,$H$84:$H$102,1,TRUE))*(INDEX($I$84:$M$102,MATCH($P$2,$H$84:$H$102,1)+1,MATCH(T$4,$I$83:$M$83,0))-INDEX($I$84:$M$102,MATCH($P$2,$H$84:$H$102,1),MATCH(T$4,$I$83:$M$83,0)))/(INDEX($H$84:$H$102,MATCH($P$2,$H$84:$H$102,1)+1)-INDEX($H$84:$H$102,MATCH($P$2,$H$84:$H$102,1))),INDEX($I$84:$M$102,MATCH($P$2,$H$84:$H$102,0),MATCH(T4,$I$83:$M$83,0))) -> 
A85: 100 | B85: 739 | C85: 466.3 | D85: 303 | E85: 238.2 | F85: 176.1 | H85: 1 | I85: =+B85/1609.347 -> 0.4591924551 | J85: =+C85/1609.347 -> 0.2897448468 | K85: =+D85/1609.347 -> 0.1882751203 | L85: =+E85/1609.347 -> 0.1480103421 | M85: =+F85/1609.347 -> 0.109423263
A86: 200 | B86: 1120.3 | C86: 711.9 | D86: 444.3 | E86: 343.5 | F86: 246.8 | H86: 2 | I86: 0.696120849 | J86: 0.4423533272 | K86: 0.2760747061 | L86: 0.2134406067 | M86: 0.1533541244
A87: 300 | B87: 1451.7 | C87: 890.5 | D87: 548.1 | E87: 419.1 | F87: 297.7 | H87: 3 | I87: 0.9020428783 | J87: 0.5533300152 | K87: 0.3405729156 | L87: 0.2604161812 | M87: 0.1849818591
A88: 400 | B88: 1710 | C88: 1053.5 | D88: 632 | E88: 484 | F88: 341.9 | H88: 4 | I88: 1.062542758 | J88: 0.6546133307 | K88: 0.3927058614 | L88: 0.3007430964 | M88: 0.2124464146
A89: 500 | B89: 1953.7 | C89: 1180 | D89: 725.1 | E89: 547.3 | F89: 378.3 | H89: 5 | I89: 1.213970635 | J89: 0.73321664 | K89: 0.4505554116 | L89: 0.3400758196 | M89: 0.2350642838
A90: 1000 | B90: 2901 | C90: 1702.3 | D90: 1031.1 | E90: 769.4 | F90: 521.8 | H90: 10 | I90: 1.802594468 | J90: 1.057758209 | K90: 0.640694642 | L90: 0.4780821041 | M90: 0.3242308837
A91: 2000 | B91: 4170 | C91: 2503.1 | D91: 1494.9 | E91: 1078.7 | F91: 678.1 | H91: 20 | I91: 2.591113042 | J91: 1.555351332 | K91: 0.9288860637 | L91: 0.6702718556 | M91: 0.42135102
A92: 3000 | B92: 4900 | C92: 2975 | D92: 1750 | E92: 1225 | F92: 740 | H92: 30 | I92: 3.044713166 | J92: 1.848575851 | K92: 1.087397559 | L92: 0.7611782916 | M92: 0.4598138251
A93: 4000 | B93: 5320.3 | C93: 3250 | D93: 1884.9 | E93: 1311.8 | F93: 814.9 | H93: 40 | I93: 3.305874992 | J93: 2.01945261 | K93: 1.171220377 | L93: 0.8151132105 | M93: 0.5063544407

Sheet Beatrice (hidden)
A1: Lincoln, NE-AERMOD setback distances (North) as reported in the Odor Footprint Tool | O1: Total Scaled Odor Emission Rate (x10^6) | P1: =Inputs!E33 -> 
O2: New Total Scaled Odor Emission Rate (x10^6) | P2: =Inputs!E42 -> 
A3: Setback Distances (m) for Lincoln, North | H3: Setback Distances (mi) for Lincoln, North
A4: x 104 | B4: Annoyance Free Percentage | H4: x 106 | I4: Annoyance Free Percentage | O4: Annoyance free percentage | P4: 99 | Q4: 98 | R4: 96 | S4: 94 | T4: 90
A5: OU/s | B5: 99 | C5: 98 | D5: 96 | E5: 94 | F5: 90 | H5: OU/s | I5: =B5 -> 99 | J5: =C5 -> 98 | K5: =D5 -> 96 | L5: =E5 -> 94 | M5: =F5 -> 90 | O5: Separation distance | P5: =IF(ISERROR(MATCH($P$1,$H$6:$H$24,0)),VLOOKUP($P$1,$H$6:$M$24,MATCH(P4,$I$5:$M$5,0)+1,TRUE)+($P$1-VLOOKUP($P$1,$H$6:$H$24,1,TRUE))*(INDEX($I$6:$M$24,MATCH($P$1,$H$6:$H$24,1)+1,MATCH(P4,$I$5:$M$5,0))-INDEX($I$6:$M$24,MATCH($P$1,$H$6:$H$24,1),MATCH(P4,$I$5:$M$5,0)))/(INDEX($H$6:$H$24,MATCH($P$1,$H$6:$H$24,1)+1)-INDEX($H$6:$H$24,MATCH($P$1,$H$6:$H$24,1))),INDEX($I$6:$M$24,MATCH($P$1,$H$6:$H$24,0),MATCH(P4,$I$5:$M$5,0))) ->  | Q5: =IF(ISERROR(MATCH($P$1,$H$6:$H$24,0)),VLOOKUP($P$1,$H$6:$M$24,MATCH(Q4,$I$5:$M$5,0)+1,TRUE)+($P$1-VLOOKUP($P$1,$H$6:$H$24,1,TRUE))*(INDEX($I$6:$M$24,MATCH($P$1,$H$6:$H$24,1)+1,MATCH(Q4,$I$5:$M$5,0))-INDEX($I$6:$M$24,MATCH($P$1,$H$6:$H$24,1),MATCH(Q4,$I$5:$M$5,0)))/(INDEX($H$6:$H$24,MATCH($P$1,$H$6:$H$24,1)+1)-INDEX($H$6:$H$24,MATCH($P$1,$H$6:$H$24,1))),INDEX($I$6:$M$24,MATCH($P$1,$H$6:$H$24,0),MATCH(Q4,$I$5:$M$5,0))) ->  | R5: =IF(ISERROR(MATCH($P$1,$H$6:$H$24,0)),VLOOKUP($P$1,$H$6:$M$24,MATCH(R4,$I$5:$M$5,0)+1,TRUE)+($P$1-VLOOKUP($P$1,$H$6:$H$24,1,TRUE))*(INDEX($I$6:$M$24,MATCH($P$1,$H$6:$H$24,1)+1,MATCH(R4,$I$5:$M$5,0))-INDEX($I$6:$M$24,MATCH($P$1,$H$6:$H$24,1),MATCH(R4,$I$5:$M$5,0)))/(INDEX($H$6:$H$24,MATCH($P$1,$H$6:$H$24,1)+1)-INDEX($H$6:$H$24,MATCH($P$1,$H$6:$H$24,1))),INDEX($I$6:$M$24,MATCH($P$1,$H$6:$H$24,0),MATCH(R4,$I$5:$M$5,0))) ->  | S5: =IF(ISERROR(MATCH($P$1,$H$6:$H$24,0)),VLOOKUP($P$1,$H$6:$M$24,MATCH(S4,$I$5:$M$5,0)+1,TRUE)+($P$1-VLOOKUP($P$1,$H$6:$H$24,1,TRUE))*(INDEX($I$6:$M$24,MATCH($P$1,$H$6:$H$24,1)+1,MATCH(S4,$I$5:$M$5,0))-INDEX($I$6:$M$24,MATCH($P$1,$H$6:$H$24,1),MATCH(S4,$I$5:$M$5,0)))/(INDEX($H$6:$H$24,MATCH($P$1,$H$6:$H$24,1)+1)-INDEX($H$6:$H$24,MATCH($P$1,$H$6:$H$24,1))),INDEX($I$6:$M$24,MATCH($P$1,$H$6:$H$24,0),MATCH(S4,$I$5:$M$5,0))) ->  | T5: =IF(ISERROR(MATCH($P$1,$H$6:$H$24,0)),VLOOKUP($P$1,$H$6:$M$24,MATCH(T4,$I$5:$M$5,0)+1,TRUE)+($P$1-VLOOKUP($P$1,$H$6:$H$24,1,TRUE))*(INDEX($I$6:$M$24,MATCH($P$1,$H$6:$H$24,1)+1,MATCH(T4,$I$5:$M$5,0))-INDEX($I$6:$M$24,MATCH($P$1,$H$6:$H$24,1),MATCH(T4,$I$5:$M$5,0)))/(INDEX($H$6:$H$24,MATCH($P$1,$H$6:$H$24,1)+1)-INDEX($H$6:$H$24,MATCH($P$1,$H$6:$H$24,1))),INDEX($I$6:$M$24,MATCH($P$1,$H$6:$H$24,0),MATCH(T4,$I$5:$M$5,0))) -> 
A6: 0 | B6: 0 | C6: 0 | D6: 0 | E6: 0 | F6: 0 | H6: =A6/100 -> 0 | I6: 0 | J6: 0 | K6: 0 | L6: 0 | M6: 0 | O6: New Separation distance | P6: =IF(ISERROR(MATCH($P$2,$H$6:$H$24,0)),VLOOKUP($P$2,$H$6:$M$24,MATCH(P4,$I$5:$M$5,0)+1,TRUE)+($P$2-VLOOKUP($P$2,$H$6:$H$24,1,TRUE))*(INDEX($I$6:$M$24,MATCH($P$2,$H$6:$H$24,1)+1,MATCH(P4,$I$5:$M$5,0))-INDEX($I$6:$M$24,MATCH($P$2,$H$6:$H$24,1),MATCH(P4,$I$5:$M$5,0)))/(INDEX($H$6:$H$24,MATCH($P$2,$H$6:$H$24,1)+1)-INDEX($H$6:$H$24,MATCH($P$2,$H$6:$H$24,1))),INDEX($I$6:$M$24,MATCH($P$2,$H$6:$H$24,0),MATCH(P4,$I$5:$M$5,0))) ->  | Q6: =IF(ISERROR(MATCH($P$2,$H$6:$H$24,0)),VLOOKUP($P$2,$H$6:$M$24,MATCH(Q4,$I$5:$M$5,0)+1,TRUE)+($P$2-VLOOKUP($P$2,$H$6:$H$24,1,TRUE))*(INDEX($I$6:$M$24,MATCH($P$2,$H$6:$H$24,1)+1,MATCH(Q4,$I$5:$M$5,0))-INDEX($I$6:$M$24,MATCH($P$2,$H$6:$H$24,1),MATCH(Q4,$I$5:$M$5,0)))/(INDEX($H$6:$H$24,MATCH($P$2,$H$6:$H$24,1)+1)-INDEX($H$6:$H$24,MATCH($P$2,$H$6:$H$24,1))),INDEX($I$6:$M$24,MATCH($P$2,$H$6:$H$24,0),MATCH(Q4,$I$5:$M$5,0))) ->  | R6: =IF(ISERROR(MATCH($P$2,$H$6:$H$24,0)),VLOOKUP($P$2,$H$6:$M$24,MATCH(R4,$I$5:$M$5,0)+1,TRUE)+($P$2-VLOOKUP($P$2,$H$6:$H$24,1,TRUE))*(INDEX($I$6:$M$24,MATCH($P$2,$H$6:$H$24,1)+1,MATCH(R4,$I$5:$M$5,0))-INDEX($I$6:$M$24,MATCH($P$2,$H$6:$H$24,1),MATCH(R4,$I$5:$M$5,0)))/(INDEX($H$6:$H$24,MATCH($P$2,$H$6:$H$24,1)+1)-INDEX($H$6:$H$24,MATCH($P$2,$H$6:$H$24,1))),INDEX($I$6:$M$24,MATCH($P$2,$H$6:$H$24,0),MATCH(R4,$I$5:$M$5,0))) ->  | S6: =IF(ISERROR(MATCH($P$2,$H$6:$H$24,0)),VLOOKUP($P$2,$H$6:$M$24,MATCH(S4,$I$5:$M$5,0)+1,TRUE)+($P$2-VLOOKUP($P$2,$H$6:$H$24,1,TRUE))*(INDEX($I$6:$M$24,MATCH($P$2,$H$6:$H$24,1)+1,MATCH(S4,$I$5:$M$5,0))-INDEX($I$6:$M$24,MATCH($P$2,$H$6:$H$24,1),MATCH(S4,$I$5:$M$5,0)))/(INDEX($H$6:$H$24,MATCH($P$2,$H$6:$H$24,1)+1)-INDEX($H$6:$H$24,MATCH($P$2,$H$6:$H$24,1))),INDEX($I$6:$M$24,MATCH($P$2,$H$6:$H$24,0),MATCH(S4,$I$5:$M$5,0))) ->  | T6: =IF(ISERROR(MATCH($P$2,$H$6:$H$24,0)),VLOOKUP($P$2,$H$6:$M$24,MATCH(T4,$I$5:$M$5,0)+1,TRUE)+($P$2-VLOOKUP($P$2,$H$6:$H$24,1,TRUE))*(INDEX($I$6:$M$24,MATCH($P$2,$H$6:$H$24,1)+1,MATCH(T4,$I$5:$M$5,0))-INDEX($I$6:$M$24,MATCH($P$2,$H$6:$H$24,1),MATCH(T4,$I$5:$M$5,0)))/(INDEX($H$6:$H$24,MATCH($P$2,$H$6:$H$24,1)+1)-INDEX($H$6:$H$24,MATCH($P$2,$H$6:$H$24,1))),INDEX($I$6:$M$24,MATCH($P$2,$H$6:$H$24,0),MATCH(T4,$I$5:$M$5,0))) -> 
A7: 20 | B7: 323.6 | C7: 219.9 | D7: 148.2 | E7: 120 | F7: 93.6 | H7: 0.2 | I7: =+B7/1609.347 -> 0.201075343 | J7: =+C7/1609.347 -> 0.1366392705 | K7: =+D7/1609.347 -> 0.09208703903 | L7: =+E7/1609.347 -> 0.07456440407 | M7: =+F7/1609.347 -> 0.05816023518
A8: 50 | B8: 567.9 | C8: 379.9 | D8: 246.8 | E8: 194.8 | F8: 151.3 | H8: 0.5 | I8: 0.3528760423 | J8: 0.2360584759 | K8: 0.1533541244 | L8: 0.1210428826 | M8: 0.09401328613
A9: 100 | B9: 857.5 | C9: 563.1 | D9: 360.8 | E9: 281.7 | F9: 217 | H9: 1 | I9: 0.5328248041 | J9: 0.3498934661 | K9: 0.2241903082 | L9: 0.1750399386 | M9: 0.1348372974
A10: 200 | B10: 1291.6 | C10: 835.2 | D10: 528.6 | E10: 407.1 | F10: 309.9 | H10: 2 | I10: 0.8025615358 | J10: 0.5189682523 | K10: 0.3284561999 | L10: 0.2529597408 | M10: 0.1925625735
A11: 300 | B11: 1660.1 | C11: 1054.2 | D11: 654 | E11: 501.6 | F11: 381.1 | H11: 3 | I11: 1.031536393 | J11: 0.6550482898 | K11: 0.4063760022 | L11: 0.311679209 | M11: 0.2368041199
A12: 400 | B12: 1964.2 | C12: 1243.1 | D12: 765.9 | E12: 579.6 | F12: 440.3 | H12: 4 | I12: 1.220495021 | J12: 0.7724250892 | K12: 0.475907309 | L12: 0.3601460717 | M12: 0.2735892259
A13: 500 | B13: 2243.4 | C13: 1407.6 | D13: 865.2 | E13: 650.5 | F13: 492 | H13: 5 | I13: 1.393981534 | J13: 0.8746404598 | K13: 0.5376093534 | L13: 0.4042012071 | M13: 0.3057140567
A14: 600 | B14: 2490.9 | C14: 1565.2 | D14: 961.1 | E14: 715.5 | F14: 539.6 | H14: 6 | I14: 1.547770618 | J14: 0.9725683771 | K14: 0.5971987396 | L14: 0.4445902593 | M14: 0.3352912703
A15: 700 | B15: 2743.5 | C15: 1696.1 | D15: 1033.5 | E15: 770.2 | F15: 581.1 | H15: 7 | I15: 1.704728688 | J15: 1.053905715 | K15: 0.6421859301 | L15: 0.4785792001 | M15: 0.3610781267
A16: 800 | B16: 2958 | C16: 1825.3 | D16: 1106.2 | E16: 825.3 | F16: 622 | H16: 8 | I16: 1.83801256 | J16: 1.134186723 | K16: 0.6873595315 | L16: 0.512816689 | M16: 0.3864921611
A17: 900 | B17: 3179.3 | C17: 1952.5 | D17: 1169.1 | E17: 878.1 | F17: 661.3 | H17: 9 | I17: 1.975521749 | J17: 1.213224991 | K17: 0.7264437067 | L17: 0.5456250268 | M17: 0.4109120034
A18: 1000 | B18: 3405.4 | C18: 2063.6 | D18: 1239.9 | E18: 930.6 | F18: 693.4 | H18: 10 | I18: 2.116013514 | J18: 1.282259202 | K18: 0.7704367051 | L18: 0.5782469536 | M18: 0.4308579815
A19: 1500 | B19: 4284 | C19: 2609.7 | D19: 1530.6 | E19: 1146 | F19: 845.9 | H19: 15 | I19: 2.661949225 | J19: 1.621589378 | K19: 0.9510689739 | L19: 0.7120900589 | M19: 0.5256169117
A20: 2000 | B20: 5054.8 | C20: 3090.3 | D20: 1777.2 | E20: 1316.8 | F20: 971.6 | H20: 20 | I20: 3.140901248 | J20: 1.920219816 | K20: 1.104298824 | L20: 0.8182200607 | M20: 0.603723125
A21: 2500 | B21: 5874.8 | C21: 3506.7 | D21: 2009.7 | E21: 1471.1 | F21: 1077.6 | H21: 25 | I21: 3.650424675 | J21: 2.178958298 | K21: 1.248767357 | L21: 0.9140974569 | M21: 0.6695883486
A22: 3000 | B22: 6504.5 | C22: 3870.5 | D22: 2195.7 | E22: 1603.4 | F22: 1173.5 | H22: 30 | I22: 4.041701386 | J22: 2.405012716 | K22: 1.364342184 | L22: 0.9963047124 | M22: 0.7291777348
A23: 3500 | B23: 7079 | C23: 4226.9 | D23: 2381.3 | E23: 1730.4 | F23: 1261.4 | H23: 35 | I23: 4.39867847 | J23: 2.626468996 | K23: 1.479668462 | L23: 1.075218707 | M23: 0.7837961608
A24: 4000 | B24: 7423.6 | C24: 4569.3 | D24: 2543.5 | E24: 1854.6 | F24: 1343 | H24: 40 | I24: 4.612802584 | J24: 2.839226096 | K24: 1.580454681 | L24: 1.152392865 | M24: 0.8344999556
A27: Lincoln, NE-AERMOD setback distances (East) as reported in the Odor Footprint Tool
A29: Setback Distances (m) for Lincoln, East | H29: Setback Distances (mi) for Lincoln, East
A30: x 104 | B30: Annoyance Free Percentage | H30: x 106 | I30: Annoyance Free Percentage
A31: OU/s | B31: 99 | C31: 98 | D31: 96 | E31: 94 | F31: 90 | H31: OU/s | I31: 99 | J31: 98 | K31: 96 | L31: 94 | M31: 90 | O31: Separation distance | P31: =IF(ISERROR(MATCH($P$1,$H$32:$H$50,0)),VLOOKUP($P$1,$H$32:$M$50,MATCH(P$4,$I$31:$M$31,0)+1,TRUE)+($P$1-VLOOKUP($P$1,$H$32:$H$50,1,TRUE))*(INDEX($I$32:$M$50,MATCH($P$1,$H$32:$H$50,1)+1,MATCH(P$4,$I$31:$M$31,0))-INDEX($I$32:$M$50,MATCH($P$1,$H$32:$H$50,1),MATCH(P$4,$I$31:$M$31,0)))/(INDEX($H$32:$H$50,MATCH($P$1,$H$32:$H$50,1)+1)-INDEX($H$32:$H$50,MATCH($P$1,$H$32:$H$50,1))),INDEX($I$32:$M$50,MATCH($P$1,$H$32:$H$50,0),MATCH(P4,$I$31:$M$31,0))) ->  | Q31: =IF(ISERROR(MATCH($P$1,$H$32:$H$50,0)),VLOOKUP($P$1,$H$32:$M$50,MATCH(Q$4,$I$31:$M$31,0)+1,TRUE)+($P$1-VLOOKUP($P$1,$H$32:$H$50,1,TRUE))*(INDEX($I$32:$M$50,MATCH($P$1,$H$32:$H$50,1)+1,MATCH(Q$4,$I$31:$M$31,0))-INDEX($I$32:$M$50,MATCH($P$1,$H$32:$H$50,1),MATCH(Q$4,$I$31:$M$31,0)))/(INDEX($H$32:$H$50,MATCH($P$1,$H$32:$H$50,1)+1)-INDEX($H$32:$H$50,MATCH($P$1,$H$32:$H$50,1))),INDEX($I$32:$M$50,MATCH($P$1,$H$32:$H$50,0),MATCH(Q4,$I$31:$M$31,0))) ->  | R31: =IF(ISERROR(MATCH($P$1,$H$32:$H$50,0)),VLOOKUP($P$1,$H$32:$M$50,MATCH(R$4,$I$31:$M$31,0)+1,TRUE)+($P$1-VLOOKUP($P$1,$H$32:$H$50,1,TRUE))*(INDEX($I$32:$M$50,MATCH($P$1,$H$32:$H$50,1)+1,MATCH(R$4,$I$31:$M$31,0))-INDEX($I$32:$M$50,MATCH($P$1,$H$32:$H$50,1),MATCH(R$4,$I$31:$M$31,0)))/(INDEX($H$32:$H$50,MATCH($P$1,$H$32:$H$50,1)+1)-INDEX($H$32:$H$50,MATCH($P$1,$H$32:$H$50,1))),INDEX($I$32:$M$50,MATCH($P$1,$H$32:$H$50,0),MATCH(R4,$I$31:$M$31,0))) ->  | S31: =IF(ISERROR(MATCH($P$1,$H$32:$H$50,0)),VLOOKUP($P$1,$H$32:$M$50,MATCH(S$4,$I$31:$M$31,0)+1,TRUE)+($P$1-VLOOKUP($P$1,$H$32:$H$50,1,TRUE))*(INDEX($I$32:$M$50,MATCH($P$1,$H$32:$H$50,1)+1,MATCH(S$4,$I$31:$M$31,0))-INDEX($I$32:$M$50,MATCH($P$1,$H$32:$H$50,1),MATCH(S$4,$I$31:$M$31,0)))/(INDEX($H$32:$H$50,MATCH($P$1,$H$32:$H$50,1)+1)-INDEX($H$32:$H$50,MATCH($P$1,$H$32:$H$50,1))),INDEX($I$32:$M$50,MATCH($P$1,$H$32:$H$50,0),MATCH(S4,$I$31:$M$31,0))) ->  | T31: =IF(ISERROR(MATCH($P$1,$H$32:$H$50,0)),VLOOKUP($P$1,$H$32:$M$50,MATCH(T$4,$I$31:$M$31,0)+1,TRUE)+($P$1-VLOOKUP($P$1,$H$32:$H$50,1,TRUE))*(INDEX($I$32:$M$50,MATCH($P$1,$H$32:$H$50,1)+1,MATCH(T$4,$I$31:$M$31,0))-INDEX($I$32:$M$50,MATCH($P$1,$H$32:$H$50,1),MATCH(T$4,$I$31:$M$31,0)))/(INDEX($H$32:$H$50,MATCH($P$1,$H$32:$H$50,1)+1)-INDEX($H$32:$H$50,MATCH($P$1,$H$32:$H$50,1))),INDEX($I$32:$M$50,MATCH($P$1,$H$32:$H$50,0),MATCH(T4,$I$31:$M$31,0))) -> 
A32: 0 | B32: 0 | C32: 0 | D32: 0 | E32: 0 | F32: 0 | H32: =A32/100 -> 0 | I32: 0 | J32: 0 | K32: 0 | L32: 0 | M32: 0 | O32: New Separation distance | P32: =IF(ISERROR(MATCH($P$2,$H$32:$H$50,0)),VLOOKUP($P$2,$H$32:$M$50,MATCH(P$4,$I$31:$M$31,0)+1,TRUE)+($P$2-VLOOKUP($P$2,$H$32:$H$50,1,TRUE))*(INDEX($I$32:$M$50,MATCH($P$2,$H$32:$H$50,1)+1,MATCH(P$4,$I$31:$M$31,0))-INDEX($I$32:$M$50,MATCH($P$2,$H$32:$H$50,1),MATCH(P$4,$I$31:$M$31,0)))/(INDEX($H$32:$H$50,MATCH($P$2,$H$32:$H$50,1)+1)-INDEX($H$32:$H$50,MATCH($P$2,$H$32:$H$50,1))),INDEX($I$32:$M$50,MATCH($P$2,$H$32:$H$50,0),MATCH(P4,$I$31:$M$31,0))) ->  | Q32: =IF(ISERROR(MATCH($P$2,$H$32:$H$50,0)),VLOOKUP($P$2,$H$32:$M$50,MATCH(Q$4,$I$31:$M$31,0)+1,TRUE)+($P$2-VLOOKUP($P$2,$H$32:$H$50,1,TRUE))*(INDEX($I$32:$M$50,MATCH($P$2,$H$32:$H$50,1)+1,MATCH(Q$4,$I$31:$M$31,0))-INDEX($I$32:$M$50,MATCH($P$2,$H$32:$H$50,1),MATCH(Q$4,$I$31:$M$31,0)))/(INDEX($H$32:$H$50,MATCH($P$2,$H$32:$H$50,1)+1)-INDEX($H$32:$H$50,MATCH($P$2,$H$32:$H$50,1))),INDEX($I$32:$M$50,MATCH($P$2,$H$32:$H$50,0),MATCH(Q4,$I$31:$M$31,0))) ->  | R32: =IF(ISERROR(MATCH($P$2,$H$32:$H$50,0)),VLOOKUP($P$2,$H$32:$M$50,MATCH(R$4,$I$31:$M$31,0)+1,TRUE)+($P$2-VLOOKUP($P$2,$H$32:$H$50,1,TRUE))*(INDEX($I$32:$M$50,MATCH($P$2,$H$32:$H$50,1)+1,MATCH(R$4,$I$31:$M$31,0))-INDEX($I$32:$M$50,MATCH($P$2,$H$32:$H$50,1),MATCH(R$4,$I$31:$M$31,0)))/(INDEX($H$32:$H$50,MATCH($P$2,$H$32:$H$50,1)+1)-INDEX($H$32:$H$50,MATCH($P$2,$H$32:$H$50,1))),INDEX($I$32:$M$50,MATCH($P$2,$H$32:$H$50,0),MATCH(R4,$I$31:$M$31,0))) ->  | S32: =IF(ISERROR(MATCH($P$2,$H$32:$H$50,0)),VLOOKUP($P$2,$H$32:$M$50,MATCH(S$4,$I$31:$M$31,0)+1,TRUE)+($P$2-VLOOKUP($P$2,$H$32:$H$50,1,TRUE))*(INDEX($I$32:$M$50,MATCH($P$2,$H$32:$H$50,1)+1,MATCH(S$4,$I$31:$M$31,0))-INDEX($I$32:$M$50,MATCH($P$2,$H$32:$H$50,1),MATCH(S$4,$I$31:$M$31,0)))/(INDEX($H$32:$H$50,MATCH($P$2,$H$32:$H$50,1)+1)-INDEX($H$32:$H$50,MATCH($P$2,$H$32:$H$50,1))),INDEX($I$32:$M$50,MATCH($P$2,$H$32:$H$50,0),MATCH(S4,$I$31:$M$31,0))) ->  | T32: =IF(ISERROR(MATCH($P$2,$H$32:$H$50,0)),VLOOKUP($P$2,$H$32:$M$50,MATCH(T$4,$I$31:$M$31,0)+1,TRUE)+($P$2-VLOOKUP($P$2,$H$32:$H$50,1,TRUE))*(INDEX($I$32:$M$50,MATCH($P$2,$H$32:$H$50,1)+1,MATCH(T$4,$I$31:$M$31,0))-INDEX($I$32:$M$50,MATCH($P$2,$H$32:$H$50,1),MATCH(T$4,$I$31:$M$31,0)))/(INDEX($H$32:$H$50,MATCH($P$2,$H$32:$H$50,1)+1)-INDEX($H$32:$H$50,MATCH($P$2,$H$32:$H$50,1))),INDEX($I$32:$M$50,MATCH($P$2,$H$32:$H$50,0),MATCH(T4,$I$31:$M$31,0))) -> 
A33: 20 | B33: 295.4 | C33: 171.3 | D33: 98.3 | E33: 76.4 | F33: 48.3 | H33: 0.2 | I33: =+B33/1609.347 -> 0.183552708 | J33: =+C33/1609.347 -> 0.1064406868 | K33: =+D33/1609.347 -> 0.06108067434 | L33: =+E33/1609.347 -> 0.04747267059 | M33: =+F33/1609.347 -> 0.03001217264
A34: 50 | B34: 503.6 | C34: 276 | D34: 155.3 | E34: 120.9 | F34: 71.2 | H34: 0.5 | I34: 0.3129219491 | J34: 0.1714981294 | K34: 0.09649876627 | L34: 0.0751236371 | M34: 0.04424154642
A35: 100 | B35: 731.5 | C35: 392.9 | D35: 219.6 | E35: 166.3 | F35: 87.6 | H35: 1 | I35: 0.4545321798 | J35: 0.2441362863 | K35: 0.1364528595 | L35: 0.1033338366 | M35: 0.05443201497
A36: 200 | B36: 1079.1 | C36: 556.6 | D36: 306.5 | E36: 228.2 | F36: 116.7 | H36: 2 | I36: 0.6705204036 | J36: 0.3458545609 | K36: 0.1904499154 | L36: 0.1417966417 | M36: 0.07251388296
A37: 300 | B37: 1336.6 | C37: 679.1 | D37: 376 | E37: 264.6 | F37: 118.3 | H37: 3 | I37: 0.8305231874 | J37: 0.42197239 | K37: 0.2336351328 | L37: 0.164414511 | M37: 0.07350807501
A38: 400 | B38: 1578.2 | C38: 785.1 | D38: 430 | E38: 297.7 | F38: 132.7 | H38: 4 | I38: 0.9806461876 | J38: 0.4878376136 | K38: 0.2671891146 | L38: 0.1849818591 | M38: 0.0824558035
A39: 500 | B39: 1747.3 | C39: 866.3 | D39: 475.8 | E39: 331.8 | F39: 146.2 | H39: 5 | I39: 1.08571986 | J39: 0.5382928604 | K39: 0.2956478621 | L39: 0.2061705773 | M39: 0.09084429896
A40: 600 | B40: 1957.6 | C40: 952.3 | D40: 521 | E40: 357.7 | F40: 156.6 | H40: 6 | I40: 1.216393978 | J40: 0.5917306833 | K40: 0.3237337877 | L40: 0.2222640611 | M40: 0.09730654731
A41: 700 | B41: 2099.7 | C41: 1015.3 | D41: 555.8 | E41: 363.7 | F41: 170 | H41: 7 | I41: 1.30469066 | J41: 0.6308769955 | K41: 0.3453574649 | L41: 0.2259922813 | M41: 0.1056329058
A42: 800 | B42: 2241.8 | C42: 1085.6 | D42: 593.7 | E42: 388.8 | F42: 182.7 | H42: 8 | I42: 1.392987342 | J42: 0.6745593088 | K42: 0.3689073891 | L42: 0.2415886692 | M42: 0.1135243052
A43: 900 | B43: 2417.2 | C43: 1140.3 | D43: 624.6 | E43: 406.2 | F43: 187.7 | H43: 9 | I43: 1.501975646 | J43: 0.7085482497 | K43: 0.3881077232 | L43: 0.2524005078 | M43: 0.1166311554
A44: 1000 | B44: 2555.9 | C44: 1198.1 | D44: 655.8 | E44: 422 | F44: 195 | H44: 10 | I44: 1.58815967 | J44: 0.7444634377 | K44: 0.4074944683 | L44: 0.2622181543 | M44: 0.1211671566
A45: 1500 | B45: 3171.6 | C45: 1466.4 | D45: 779.3 | E45: 458.1 | F45: 200 | H45: 15 | I45: 1.9707372 | J45: 0.9111770178 | K45: 0.4842336674 | L45: 0.2846496125 | M45: 0.1242740068
A46: 2000 | B46: 3641.6 | C46: 1644.9 | D46: 885.5 | E46: 524.6 | F46: 205 | H46: 20 | I46: 2.262781116 | J46: 1.022091569 | K46: 0.550223165 | L46: 0.3259707198 | M46: 0.127380857
A47: 2500 | B47: 4163.7 | C47: 1823.1 | D47: 957 | E47: 567.2 | F47: 208.4 | H47: 25 | I47: 2.58719841 | J47: 1.132819709 | K47: 0.5946511225 | L47: 0.3524410832 | M47: 0.1294935151
A48: 3000 | B48: 4633.4 | C48: 1982.6 | D48: 1038.1 | E48: 608.2 | F48: 226 | H48: 30 | I48: 2.879055915 | J48: 1.231928229 | K48: 0.6450442322 | L48: 0.3779172546 | M48: 0.1404296277
A49: 3500 | B49: 4910.6 | C49: 2130.9 | D49: 1115.2 | E49: 638.3 | F49: 237.4 | H49: 35 | I49: 3.051299689 | J49: 1.324077405 | K49: 0.6929518618 | L49: 0.3966204927 | M49: 0.1475132461
A50: 4000 | B50: 5263.6 | C50: 2251.8 | D50: 1163.5 | E50: 672.1 | F50: 248.8 | H50: 40 | I50: 3.270643311 | J50: 1.399201042 | K50: 0.7229640345 | L50: 0.4176227998 | M50: 0.1545968644
A53: Lincoln, NE-AERMOD setback distances (South) as reported in the Odor Footprint Tool
A55: Setback Distances (m) for Lincoln, South | H55: Setback Distances (mi) for Lincoln, South
A56: x 104 | B56: Annoyance Free Percentage | H56: x 106 | I56: Annoyance Free Percentage
A57: OU/s | B57: 99 | C57: 98 | D57: 96 | E57: 94 | F57: 90 | H57: OU/s | I57: 99 | J57: 98 | K57: 96 | L57: 94 | M57: 90 | O57: Separation distance | P57: =IF(ISERROR(MATCH($P$1,$H$58:$H$76,0)),VLOOKUP($P$1,$H$58:$M$76,MATCH(P$4,$I$57:$M$57,0)+1,TRUE)+($P$1-VLOOKUP($P$1,$H$58:$H$76,1,TRUE))*(INDEX($I$58:$M$76,MATCH($P$1,$H$58:$H$76,1)+1,MATCH(P$4,$I$57:$M$57,0))-INDEX($I$58:$M$76,MATCH($P$1,$H$58:$H$76,1),MATCH(P$4,$I$57:$M$57,0)))/(INDEX($H$58:$H$76,MATCH($P$1,$H$58:$H$76,1)+1)-INDEX($H$58:$H$76,MATCH($P$1,$H$58:$H$76,1))),INDEX($I$58:$M$76,MATCH($P$1,$H$58:$H$76,0),MATCH(P$4,$I$57:$M$57,0))) ->  | Q57: =IF(ISERROR(MATCH($P$1,$H$58:$H$76,0)),VLOOKUP($P$1,$H$58:$M$76,MATCH(Q$4,$I$57:$M$57,0)+1,TRUE)+($P$1-VLOOKUP($P$1,$H$58:$H$76,1,TRUE))*(INDEX($I$58:$M$76,MATCH($P$1,$H$58:$H$76,1)+1,MATCH(Q$4,$I$57:$M$57,0))-INDEX($I$58:$M$76,MATCH($P$1,$H$58:$H$76,1),MATCH(Q$4,$I$57:$M$57,0)))/(INDEX($H$58:$H$76,MATCH($P$1,$H$58:$H$76,1)+1)-INDEX($H$58:$H$76,MATCH($P$1,$H$58:$H$76,1))),INDEX($I$58:$M$76,MATCH($P$1,$H$58:$H$76,0),MATCH(Q$4,$I$57:$M$57,0))) ->  | R57: =IF(ISERROR(MATCH($P$1,$H$58:$H$76,0)),VLOOKUP($P$1,$H$58:$M$76,MATCH(R$4,$I$57:$M$57,0)+1,TRUE)+($P$1-VLOOKUP($P$1,$H$58:$H$76,1,TRUE))*(INDEX($I$58:$M$76,MATCH($P$1,$H$58:$H$76,1)+1,MATCH(R$4,$I$57:$M$57,0))-INDEX($I$58:$M$76,MATCH($P$1,$H$58:$H$76,1),MATCH(R$4,$I$57:$M$57,0)))/(INDEX($H$58:$H$76,MATCH($P$1,$H$58:$H$76,1)+1)-INDEX($H$58:$H$76,MATCH($P$1,$H$58:$H$76,1))),INDEX($I$58:$M$76,MATCH($P$1,$H$58:$H$76,0),MATCH(R$4,$I$57:$M$57,0))) ->  | S57: =IF(ISERROR(MATCH($P$1,$H$58:$H$76,0)),VLOOKUP($P$1,$H$58:$M$76,MATCH(S$4,$I$57:$M$57,0)+1,TRUE)+($P$1-VLOOKUP($P$1,$H$58:$H$76,1,TRUE))*(INDEX($I$58:$M$76,MATCH($P$1,$H$58:$H$76,1)+1,MATCH(S$4,$I$57:$M$57,0))-INDEX($I$58:$M$76,MATCH($P$1,$H$58:$H$76,1),MATCH(S$4,$I$57:$M$57,0)))/(INDEX($H$58:$H$76,MATCH($P$1,$H$58:$H$76,1)+1)-INDEX($H$58:$H$76,MATCH($P$1,$H$58:$H$76,1))),INDEX($I$58:$M$76,MATCH($P$1,$H$58:$H$76,0),MATCH(S$4,$I$57:$M$57,0))) ->  | T57: =IF(ISERROR(MATCH($P$1,$H$58:$H$76,0)),VLOOKUP($P$1,$H$58:$M$76,MATCH(T$4,$I$57:$M$57,0)+1,TRUE)+($P$1-VLOOKUP($P$1,$H$58:$H$76,1,TRUE))*(INDEX($I$58:$M$76,MATCH($P$1,$H$58:$H$76,1)+1,MATCH(T$4,$I$57:$M$57,0))-INDEX($I$58:$M$76,MATCH($P$1,$H$58:$H$76,1),MATCH(T$4,$I$57:$M$57,0)))/(INDEX($H$58:$H$76,MATCH($P$1,$H$58:$H$76,1)+1)-INDEX($H$58:$H$76,MATCH($P$1,$H$58:$H$76,1))),INDEX($I$58:$M$76,MATCH($P$1,$H$58:$H$76,0),MATCH(T$4,$I$57:$M$57,0))) -> 
A58: 0 | B58: 0 | C58: 0 | D58: 0 | E58: 0 | F58: 0 | H58: =A58/100 -> 0 | I58: 0 | J58: 0 | K58: 0 | L58: 0 | M58: 0 | O58: New Separation distance | P58: =IF(ISERROR(MATCH($P$2,$H$58:$H$76,0)),VLOOKUP($P$2,$H$58:$M$76,MATCH(P$4,$I$57:$M$57,0)+1,TRUE)+($P$2-VLOOKUP($P$2,$H$58:$H$76,1,TRUE))*(INDEX($I$58:$M$76,MATCH($P$2,$H$58:$H$76,1)+1,MATCH(P$4,$I$57:$M$57,0))-INDEX($I$58:$M$76,MATCH($P$2,$H$58:$H$76,1),MATCH(P$4,$I$57:$M$57,0)))/(INDEX($H$58:$H$76,MATCH($P$2,$H$58:$H$76,1)+1)-INDEX($H$58:$H$76,MATCH($P$2,$H$58:$H$76,1))),INDEX($I$58:$M$76,MATCH($P$2,$H$58:$H$76,0),MATCH(P4,$I$57:$M$57,0))) ->  | Q58: =IF(ISERROR(MATCH($P$2,$H$58:$H$76,0)),VLOOKUP($P$2,$H$58:$M$76,MATCH(Q$4,$I$57:$M$57,0)+1,TRUE)+($P$2-VLOOKUP($P$2,$H$58:$H$76,1,TRUE))*(INDEX($I$58:$M$76,MATCH($P$2,$H$58:$H$76,1)+1,MATCH(Q$4,$I$57:$M$57,0))-INDEX($I$58:$M$76,MATCH($P$2,$H$58:$H$76,1),MATCH(Q$4,$I$57:$M$57,0)))/(INDEX($H$58:$H$76,MATCH($P$2,$H$58:$H$76,1)+1)-INDEX($H$58:$H$76,MATCH($P$2,$H$58:$H$76,1))),INDEX($I$58:$M$76,MATCH($P$2,$H$58:$H$76,0),MATCH(Q4,$I$57:$M$57,0))) ->  | R58: =IF(ISERROR(MATCH($P$2,$H$58:$H$76,0)),VLOOKUP($P$2,$H$58:$M$76,MATCH(R$4,$I$57:$M$57,0)+1,TRUE)+($P$2-VLOOKUP($P$2,$H$58:$H$76,1,TRUE))*(INDEX($I$58:$M$76,MATCH($P$2,$H$58:$H$76,1)+1,MATCH(R$4,$I$57:$M$57,0))-INDEX($I$58:$M$76,MATCH($P$2,$H$58:$H$76,1),MATCH(R$4,$I$57:$M$57,0)))/(INDEX($H$58:$H$76,MATCH($P$2,$H$58:$H$76,1)+1)-INDEX($H$58:$H$76,MATCH($P$2,$H$58:$H$76,1))),INDEX($I$58:$M$76,MATCH($P$2,$H$58:$H$76,0),MATCH(R4,$I$57:$M$57,0))) ->  | S58: =IF(ISERROR(MATCH($P$2,$H$58:$H$76,0)),VLOOKUP($P$2,$H$58:$M$76,MATCH(S$4,$I$57:$M$57,0)+1,TRUE)+($P$2-VLOOKUP($P$2,$H$58:$H$76,1,TRUE))*(INDEX($I$58:$M$76,MATCH($P$2,$H$58:$H$76,1)+1,MATCH(S$4,$I$57:$M$57,0))-INDEX($I$58:$M$76,MATCH($P$2,$H$58:$H$76,1),MATCH(S$4,$I$57:$M$57,0)))/(INDEX($H$58:$H$76,MATCH($P$2,$H$58:$H$76,1)+1)-INDEX($H$58:$H$76,MATCH($P$2,$H$58:$H$76,1))),INDEX($I$58:$M$76,MATCH($P$2,$H$58:$H$76,0),MATCH(S4,$I$57:$M$57,0))) ->  | T58: =IF(ISERROR(MATCH($P$2,$H$58:$H$76,0)),VLOOKUP($P$2,$H$58:$M$76,MATCH(T$4,$I$57:$M$57,0)+1,TRUE)+($P$2-VLOOKUP($P$2,$H$58:$H$76,1,TRUE))*(INDEX($I$58:$M$76,MATCH($P$2,$H$58:$H$76,1)+1,MATCH(T$4,$I$57:$M$57,0))-INDEX($I$58:$M$76,MATCH($P$2,$H$58:$H$76,1),MATCH(T$4,$I$57:$M$57,0)))/(INDEX($H$58:$H$76,MATCH($P$2,$H$58:$H$76,1)+1)-INDEX($H$58:$H$76,MATCH($P$2,$H$58:$H$76,1))),INDEX($I$58:$M$76,MATCH($P$2,$H$58:$H$76,0),MATCH(T4,$I$57:$M$57,0))) -> 
A59: 20 | B59: 282.8 | C59: 165.1 | D59: 96.7 | E59: 79.8 | F59: 58.7 | H59: 0.2 | I59: =+B59/1609.347 -> 0.1757234456 | J59: =+C59/1609.347 -> 0.1025881926 | K59: =+D59/1609.347 -> 0.06008648228 | L59: =+E59/1609.347 -> 0.04958532871 | M59: =+F59/1609.347 -> 0.03647442099
A60: 50 | B60: 481.2 | C60: 272.3 | D60: 153.4 | E60: 127.6 | F60: 88.6 | H60: 0.5 | I60: 0.2990032603 | J60: 0.1691990602 | K60: 0.09531816321 | L60: 0.07928681633 | M60: 0.05505338501
A61: 100 | B61: 697.4 | C61: 387 | D61: 218.2 | E61: 179.9 | F61: 117.7 | H61: 1 | I61: 0.4333434617 | J61: 0.2404702031 | K61: 0.1355829414 | L61: 0.1117844691 | M61: 0.07313525299
A62: 200 | B62: 1001 | C62: 552.1 | D62: 309.2 | E62: 250.5 | F62: 153.9 | H62: 2 | I62: 0.621991404 | J62: 0.3430583957 | K62: 0.1921276145 | L62: 0.1556531935 | M62: 0.09562884822
A63: 300 | B63: 1256.1 | C63: 674.7 | D63: 379.1 | E63: 302.6 | F63: 177.2 | H63: 3 | I63: 0.7805028996 | J63: 0.4192383619 | K63: 0.2355613799 | L63: 0.1880265723 | M63: 0.11010677
A64: 400 | B64: 1471.8 | C64: 777.5 | D64: 436.4 | E64: 344.7 | F64: 197 | H64: 4 | I64: 0.9145324159 | J64: 0.4831152014 | K64: 0.2711658828 | L64: 0.2141862507 | M64: 0.1224098967
A65: 500 | B65: 1680.8 | C65: 845.7 | D65: 487.8 | E65: 380.5 | F65: 214.4 | H65: 5 | I65: 1.044398753 | J65: 0.5254926377 | K65: 0.3031043026 | L65: 0.2364312979 | M65: 0.1332217353
A66: 600 | B66: 1837.9 | C66: 931.5 | D66: 532.9 | E66: 412.3 | F66: 228.3 | H66: 6 | I66: 1.142015985 | J66: 0.5788061866 | K66: 0.3311280911 | L66: 0.256190865 | M66: 0.1418587787
A67: 700 | B67: 1988 | C67: 1011.4 | D67: 575.6 | E67: 437.4 | F67: 237 | H67: 7 | I67: 1.235283627 | J67: 0.6284536523 | K67: 0.3576605915 | L67: 0.2717872528 | M67: 0.147264698
A68: 800 | B68: 2160.7 | C68: 1061.6 | D68: 613.4 | E68: 463.3 | F68: 248.1 | H68: 8 | I68: 1.342594232 | J68: 0.659646428 | K68: 0.3811483788 | L68: 0.2878807367 | M68: 0.1541619054
A69: 900 | B69: 2281.8 | C69: 1141.1 | D69: 649 | E69: 482.7 | F69: 258.4 | H69: 9 | I69: 1.417842143 | J69: 0.7090453457 | K69: 0.403269152 | L69: 0.2999353154 | M69: 0.1605620168
A70: 1000 | B70: 2445.8 | C70: 1174.3 | D70: 686.6 | E70: 506.2 | F70: 267.7 | H70: 10 | I70: 1.519746829 | J70: 0.7296748308 | K70: 0.4266326653 | L70: 0.3145375112 | M70: 0.1663407581
A71: 1500 | B71: 2990.2 | C71: 1414 | D71: 832.2 | E71: 600.7 | F71: 302.9 | H71: 15 | I71: 1.858020675 | J71: 0.878617228 | K71: 0.5171041422 | L71: 0.3732569794 | M71: 0.1882129833
A72: 2000 | B72: 3522.8 | C72: 1611.1 | D72: 944.9 | E72: 670.1 | F72: 331.2 | H72: 20 | I72: 2.188962356 | J72: 1.001089262 | K72: 0.5871325451 | L72: 0.4163800597 | M72: 0.2057977552
A73: 2500 | B73: 3963.2 | C73: 1782.8 | D73: 1053.2 | E73: 720.8 | F73: 351.7 | H73: 25 | I73: 2.462613718 | J73: 1.107778496 | K73: 0.6544269197 | L73: 0.4478835205 | M73: 0.2185358409
A74: 3000 | B74: 4373.7 | C74: 1937 | D74: 1146.9 | E74: 780.3 | F74: 369.6 | H74: 30 | I74: 2.717686117 | J74: 1.203593756 | K74: 0.7126492919 | L74: 0.4848550375 | M74: 0.2296583645
A75: 3500 | B75: 4811.3 | C75: 2057.3 | D75: 1217.7 | E75: 821.6 | F75: 385.7 | H75: 35 | I75: 2.989597644 | J75: 1.278344571 | K75: 0.7566422903 | L75: 0.5105176199 | M75: 0.2396624221
A76: 4000 | B76: 5088.5 | C76: 2184.4 | D76: 1295.5 | E76: 862.4 | F76: 397.8 | H76: 40 | I76: 3.161841418 | J76: 1.357320702 | K76: 0.804984879 | L76: 0.5358695173 | M76: 0.2471809995
A79: Lincoln, NE-AERMOD setback distances (West) as reported in the Odor Footprint Tool
A81: Setback Distances (m) for Lincoln, West | H81: Setback Distances (m) for Lincoln, West
A82: x 104 | B82: Annoyance Free Percentage | H82: x 106 | I82: Annoyance Free Percentage
A83: OU/s | B83: 99 | C83: 98 | D83: 96 | E83: 94 | F83: 90 | H83: OU/s | I83: 99 | J83: 98 | K83: 96 | L83: 94 | M83: 90 | O83: Separation distance | P83: =IF(ISERROR(MATCH($P$1,$H$84:$H$102,0)),VLOOKUP($P$1,$H$84:$M$102,MATCH(P$4,$I$83:$M$83,0)+1,TRUE)+($P$1-VLOOKUP($P$1,$H$84:$H$102,1,TRUE))*(INDEX($I$84:$M$102,MATCH($P$1,$H$84:$H$102,1)+1,MATCH(P$4,$I$83:$M$83,0))-INDEX($I$84:$M$102,MATCH($P$1,$H$84:$H$102,1),MATCH(P$4,$I$83:$M$83,0)))/(INDEX($H$84:$H$102,MATCH($P$1,$H$84:$H$102,1)+1)-INDEX($H$84:$H$102,MATCH($P$1,$H$84:$H$102,1))),INDEX($I$84:$M$102,MATCH($P$1,$H$84:$H$102,0),MATCH(P4,$I$83:$M$83,0))) ->  | Q83: =IF(ISERROR(MATCH($P$1,$H$84:$H$102,0)),VLOOKUP($P$1,$H$84:$M$102,MATCH(Q$4,$I$83:$M$83,0)+1,TRUE)+($P$1-VLOOKUP($P$1,$H$84:$H$102,1,TRUE))*(INDEX($I$84:$M$102,MATCH($P$1,$H$84:$H$102,1)+1,MATCH(Q$4,$I$83:$M$83,0))-INDEX($I$84:$M$102,MATCH($P$1,$H$84:$H$102,1),MATCH(Q$4,$I$83:$M$83,0)))/(INDEX($H$84:$H$102,MATCH($P$1,$H$84:$H$102,1)+1)-INDEX($H$84:$H$102,MATCH($P$1,$H$84:$H$102,1))),INDEX($I$84:$M$102,MATCH($P$1,$H$84:$H$102,0),MATCH(Q4,$I$83:$M$83,0))) ->  | R83: =IF(ISERROR(MATCH($P$1,$H$84:$H$102,0)),VLOOKUP($P$1,$H$84:$M$102,MATCH(R$4,$I$83:$M$83,0)+1,TRUE)+($P$1-VLOOKUP($P$1,$H$84:$H$102,1,TRUE))*(INDEX($I$84:$M$102,MATCH($P$1,$H$84:$H$102,1)+1,MATCH(R$4,$I$83:$M$83,0))-INDEX($I$84:$M$102,MATCH($P$1,$H$84:$H$102,1),MATCH(R$4,$I$83:$M$83,0)))/(INDEX($H$84:$H$102,MATCH($P$1,$H$84:$H$102,1)+1)-INDEX($H$84:$H$102,MATCH($P$1,$H$84:$H$102,1))),INDEX($I$84:$M$102,MATCH($P$1,$H$84:$H$102,0),MATCH(R4,$I$83:$M$83,0))) ->  | S83: =IF(ISERROR(MATCH($P$1,$H$84:$H$102,0)),VLOOKUP($P$1,$H$84:$M$102,MATCH(S$4,$I$83:$M$83,0)+1,TRUE)+($P$1-VLOOKUP($P$1,$H$84:$H$102,1,TRUE))*(INDEX($I$84:$M$102,MATCH($P$1,$H$84:$H$102,1)+1,MATCH(S$4,$I$83:$M$83,0))-INDEX($I$84:$M$102,MATCH($P$1,$H$84:$H$102,1),MATCH(S$4,$I$83:$M$83,0)))/(INDEX($H$84:$H$102,MATCH($P$1,$H$84:$H$102,1)+1)-INDEX($H$84:$H$102,MATCH($P$1,$H$84:$H$102,1))),INDEX($I$84:$M$102,MATCH($P$1,$H$84:$H$102,0),MATCH(S4,$I$83:$M$83,0))) ->  | T83: =IF(ISERROR(MATCH($P$1,$H$84:$H$102,0)),VLOOKUP($P$1,$H$84:$M$102,MATCH(T$4,$I$83:$M$83,0)+1,TRUE)+($P$1-VLOOKUP($P$1,$H$84:$H$102,1,TRUE))*(INDEX($I$84:$M$102,MATCH($P$1,$H$84:$H$102,1)+1,MATCH(T$4,$I$83:$M$83,0))-INDEX($I$84:$M$102,MATCH($P$1,$H$84:$H$102,1),MATCH(T$4,$I$83:$M$83,0)))/(INDEX($H$84:$H$102,MATCH($P$1,$H$84:$H$102,1)+1)-INDEX($H$84:$H$102,MATCH($P$1,$H$84:$H$102,1))),INDEX($I$84:$M$102,MATCH($P$1,$H$84:$H$102,0),MATCH(T4,$I$83:$M$83,0))) -> 
A84: 0 | B84: 0 | C84: 0 | D84: 0 | E84: 0 | F84: 0 | H84: =A84/100 -> 0 | I84: 0 | J84: 0 | K84: 0 | L84: 0 | M84: 0 | O84: New Separation distance | P84: =IF(ISERROR(MATCH($P$2,$H$84:$H$102,0)),VLOOKUP($P$2,$H$84:$M$102,MATCH(P$4,$I$83:$M$83,0)+1,TRUE)+($P$2-VLOOKUP($P$2,$H$84:$H$102,1,TRUE))*(INDEX($I$84:$M$102,MATCH($P$2,$H$84:$H$102,1)+1,MATCH(P$4,$I$83:$M$83,0))-INDEX($I$84:$M$102,MATCH($P$2,$H$84:$H$102,1),MATCH(P$4,$I$83:$M$83,0)))/(INDEX($H$84:$H$102,MATCH($P$2,$H$84:$H$102,1)+1)-INDEX($H$84:$H$102,MATCH($P$2,$H$84:$H$102,1))),INDEX($I$84:$M$102,MATCH($P$2,$H$84:$H$102,0),MATCH(P4,$I$83:$M$83,0))) ->  | Q84: =IF(ISERROR(MATCH($P$2,$H$84:$H$102,0)),VLOOKUP($P$2,$H$84:$M$102,MATCH(Q$4,$I$83:$M$83,0)+1,TRUE)+($P$2-VLOOKUP($P$2,$H$84:$H$102,1,TRUE))*(INDEX($I$84:$M$102,MATCH($P$2,$H$84:$H$102,1)+1,MATCH(Q$4,$I$83:$M$83,0))-INDEX($I$84:$M$102,MATCH($P$2,$H$84:$H$102,1),MATCH(Q$4,$I$83:$M$83,0)))/(INDEX($H$84:$H$102,MATCH($P$2,$H$84:$H$102,1)+1)-INDEX($H$84:$H$102,MATCH($P$2,$H$84:$H$102,1))),INDEX($I$84:$M$102,MATCH($P$2,$H$84:$H$102,0),MATCH(Q4,$I$83:$M$83,0))) ->  | R84: =IF(ISERROR(MATCH($P$2,$H$84:$H$102,0)),VLOOKUP($P$2,$H$84:$M$102,MATCH(R$4,$I$83:$M$83,0)+1,TRUE)+($P$2-VLOOKUP($P$2,$H$84:$H$102,1,TRUE))*(INDEX($I$84:$M$102,MATCH($P$2,$H$84:$H$102,1)+1,MATCH(R$4,$I$83:$M$83,0))-INDEX($I$84:$M$102,MATCH($P$2,$H$84:$H$102,1),MATCH(R$4,$I$83:$M$83,0)))/(INDEX($H$84:$H$102,MATCH($P$2,$H$84:$H$102,1)+1)-INDEX($H$84:$H$102,MATCH($P$2,$H$84:$H$102,1))),INDEX($I$84:$M$102,MATCH($P$2,$H$84:$H$102,0),MATCH(R4,$I$83:$M$83,0))) ->  | S84: =IF(ISERROR(MATCH($P$2,$H$84:$H$102,0)),VLOOKUP($P$2,$H$84:$M$102,MATCH(S$4,$I$83:$M$83,0)+1,TRUE)+($P$2-VLOOKUP($P$2,$H$84:$H$102,1,TRUE))*(INDEX($I$84:$M$102,MATCH($P$2,$H$84:$H$102,1)+1,MATCH(S$4,$I$83:$M$83,0))-INDEX($I$84:$M$102,MATCH($P$2,$H$84:$H$102,1),MATCH(S$4,$I$83:$M$83,0)))/(INDEX($H$84:$H$102,MATCH($P$2,$H$84:$H$102,1)+1)-INDEX($H$84:$H$102,MATCH($P$2,$H$84:$H$102,1))),INDEX($I$84:$M$102,MATCH($P$2,$H$84:$H$102,0),MATCH(S4,$I$83:$M$83,0))) ->  | T84: =IF(ISERROR(MATCH($P$2,$H$84:$H$102,0)),VLOOKUP($P$2,$H$84:$M$102,MATCH(T$4,$I$83:$M$83,0)+1,TRUE)+($P$2-VLOOKUP($P$2,$H$84:$H$102,1,TRUE))*(INDEX($I$84:$M$102,MATCH($P$2,$H$84:$H$102,1)+1,MATCH(T$4,$I$83:$M$83,0))-INDEX($I$84:$M$102,MATCH($P$2,$H$84:$H$102,1),MATCH(T$4,$I$83:$M$83,0)))/(INDEX($H$84:$H$102,MATCH($P$2,$H$84:$H$102,1)+1)-INDEX($H$84:$H$102,MATCH($P$2,$H$84:$H$102,1))),INDEX($I$84:$M$102,MATCH($P$2,$H$84:$H$102,0),MATCH(T4,$I$83:$M$83,0))) -> 
A85: 20 | B85: 334.6 | C85: 202.7 | D85: 128.1 | E85: 103.4 | F85: 75 | H85: 0.2 | I85: =+B85/1609.347 -> 0.2079104134 | J85: =+C85/1609.347 -> 0.1259517059 | K85: =+D85/1609.347 -> 0.07959750135 | L85: =+E85/1609.347 -> 0.06424966151 | M85: =+F85/1609.347 -> 0.04660275254
A86: 50 | B86: 574.3 | C86: 334.5 | D86: 207.7 | E86: 162.1 | F86: 121.4 | H86: 0.5 | I86: 0.3568528105 | J86: 0.2078482764 | K86: 0.129058556 | L86: 0.1007240825 | M86: 0.07543432212
A87: 100 | B87: 857.1 | C87: 489.6 | D87: 295.5 | E87: 235.8 | F87: 162.8 | H87: 1 | I87: 0.5325762561 | J87: 0.3042227686 | K87: 0.183614845 | L87: 0.146519054 | M87: 0.1011590415
A88: 200 | B88: 1282.1 | C88: 705.5 | D88: 424 | E88: 333.2 | F88: 226.3 | H88: 2 | I88: 0.7966585205 | J88: 0.4383765589 | K88: 0.2634608944 | L88: 0.2070404953 | M88: 0.1406160387
A89: 300 | B89: 1619.9 | C89: 879.2 | D89: 512 | E89: 399.6 | F89: 258.3 | H89: 3 | I89: 1.006557318 | J89: 0.5463085338 | K89: 0.3181414574 | L89: 0.2482994656 | M89: 0.1604998798
A90: 400 | B90: 1920.4 | C90: 1019.6 | D90: 595.7 | E90: 464.3 | F90: 295.9 | H90: 4 | I90: 1.193279013 | J90: 0.6335488866 | K90: 0.3701501292 | L90: 0.2885021068 | M90: 0.183863393
A91: 500 | B91: 2157.5 | C91: 1136.2 | D91: 671 | E91: 522.3 | F91: 332 | H91: 5 | I91: 1.340605848 | J91: 0.7060006326 | K91: 0.4169392928 | L91: 0.3245415687 | M91: 0.2062948513
A92: 600 | B92: 2429.2 | C92: 1278.1 | D92: 737.8 | E92: 568.1 | F92: 357.9 | H92: 6 | I92: 1.509432086 | J92: 0.7941730404 | K92: 0.458446811 | L92: 0.3530003163 | M92: 0.2223883351
A93: 700 | B93: 2624.8 | C93: 1377.7 | D93: 780.6 | E93: 596.8 | F93: 354.5 | H93: 7 | I93: 1.630972065 | J93: 0.8560614957 | K93: 0.4850414485 | L93: 0.3708336363 | M93: 0.220275677
A94: 800 | B94: 2819.1 | C94: 1489.8 | D94: 846.4 | E94: 646.8 | F94: 380.3 | H94: 8 | I94: 1.751704263 | J94: 0.9257170766 | K94: 0.5259275967 | L94: 0.4019021379 | M94: 0.2363070239
A95: 900 | B95: 2997.1 | C95: 1582.1 | D95: 906.1 | E95: 669.7 | F95: 422.8 | H95: 9 | I95: 1.862308129 | J95: 0.9830695307 | K95: 0.5630233877 | L95: 0.4161315117 | M95: 0.2627152503
A96: 1000 | B96: 3175.7 | C96: 1664.8 | D96: 936.6 | E96: 712 | F96: 417.8 | H96: 10 | I96: 1.973284817 | J96: 1.034456832 | K96: 0.5819751738 | L96: 0.4424154642 | M96: 0.2596084002
A97: 1500 | B97: 3998 | C97: 2104.8 | D97: 1159.7 | E97: 822.6 | F97: 490 | H97: 15 | I97: 2.484237396 | J97: 1.307859647 | K97: 0.7206028284 | L97: 0.5111389899 | M97: 0.3044713166
A98: 2000 | B98: 4687.7 | C98: 2410.3 | D98: 1315.1 | E98: 950.6 | F98: 520 | H98: 20 | I98: 2.912796308 | J98: 1.497688193 | K98: 0.8171637316 | L98: 0.5906743543 | M98: 0.3231124176
A99: 2500 | B99: 5222.6 | C99: 2695.4 | D99: 1433.8 | E99: 1059.6 | F99: 555 | H99: 25 | I99: 3.245167139 | J99: 1.674840789 | K99: 0.8909203547 | L99: 0.658403688 | M99: 0.3448603688
A100: 3000 | B100: 5804.7 | C100: 2948.9 | D100: 1562.1 | E100: 1157.8 | F100: 599.1 | H100: 30 | I100: 3.606866636 | J100: 1.832358093 | K100: 0.97064213 | L100: 0.7194222253 | M100: 0.3722627873
A101: 3500 | B101: 6284.3 | C101: 3225.3 | D101: 1694.4 | E101: 1232.6 | F101: 636.4 | H101: 35 | I101: 3.904875704 | J101: 2.00410477 | K101: 1.052849385 | L101: 0.7659007038 | M101: 0.3954398896
A102: 4000 | B102: 6780.5 | C102: 3466.7 | D102: 1789.6 | E102: 1301.8 | F102: 670 | H102: 40 | I102: 4.213199515 | J102: 2.154103497 | K102: 1.112003813 | L102: 0.8088995102 | M102: 0.4163179227

Sheet Base Setback (hidden)
A1: North/Northeast
A2: Annoyance free percentage | B2: 0.99 | C2: 0.98 | D2: 0.96 | E2: 0.94 | F2: 0.9 | H2: =INDEX(B3:F9,MATCH(Inputs!E10,'Base Setback'!A3:A9,0),MATCH(Inputs!D51,'Base Setback'!B2:F2,0)) -> 
A3: Grand Island, Neb. (South-central Neb.) | B3: ='Grand Island'!P5 ->  | C3: ='Grand Island'!Q5 ->  | D3: ='Grand Island'!R5 ->  | E3: ='Grand Island'!S5 ->  | F3: ='Grand Island'!T5 -> 
A4: Lincoln, Neb. (Airport salt flats) | B4: =Lincoln!P5 ->  | C4: =Lincoln!Q5 ->  | D4: =Lincoln!R5 ->  | E4: =Lincoln!S5 ->  | F4: =Lincoln!T5 -> 
A5: Norfolk, Neb. (Northeast Neb.) | B5: =Norfolk!P5 ->  | C5: =Norfolk!Q5 ->  | D5: =Norfolk!R5 ->  | E5: =Norfolk!S5 ->  | F5: =Norfolk!T5 -> 
A6: North Platte, Neb. (Southwest Neb.) | B6: ='North Platte'!P5 ->  | C6: ='North Platte'!Q5 ->  | D6: ='North Platte'!R5 ->  | E6: ='North Platte'!S5 ->  | F6: ='North Platte'!T5 -> 
A7: Alliance, Neb. (Neb. Panhandle) | B7: =Alliance!P5 ->  | C7: =Alliance!Q5 ->  | D7: =Alliance!R5 ->  | E7: =Alliance!S5 ->  | F7: =Alliance!T5 -> 
A8: Ainsworth, Neb. (North-central Neb.) | B8: =Ainsworth!P5 ->  | C8: =Ainsworth!Q5 ->  | D8: =Ainsworth!R5 ->  | E8: =Ainsworth!S5 ->  | F8: =Ainsworth!T5 -> 
A9: Scottsbluff, Neb. (N. Platte River Valley) | B9: =Scottsbluff!P5 ->  | C9: =Scottsbluff!Q5 ->  | D9: =Scottsbluff!R5 ->  | E9: =Scottsbluff!S5 ->  | F9: =Scottsbluff!T5 -> 
A10: Beatrice, Neb. (Southeast Neb.) | B10: =Beatrice!P5 ->  | C10: =Beatrice!Q5 ->  | D10: =Beatrice!R5 ->  | E10: =Beatrice!S5 ->  | F10: =Beatrice!T5 -> 
A12: East/Southeast
A13: Annoyance free percentage | B13: 0.99 | C13: 0.98 | D13: 0.96 | E13: 0.94 | F13: 0.9
A14: Grand Island, Neb. (South-central Neb.) | B14: ='Grand Island'!P31 ->  | C14: ='Grand Island'!Q31 ->  | D14: ='Grand Island'!R31 ->  | E14: ='Grand Island'!S31 ->  | F14: ='Grand Island'!T31 -> 
A15: Lincoln, Neb. (Airport salt flats) | B15: =Lincoln!P31 ->  | C15: =Lincoln!Q31 ->  | D15: =Lincoln!R31 ->  | E15: =Lincoln!S31 ->  | F15: =Lincoln!T31 -> 
A16: Norfolk, Neb. (Northeast Neb.) | B16: =Norfolk!P31 ->  | C16: =Norfolk!Q31 ->  | D16: =Norfolk!R31 ->  | E16: =Norfolk!S31 ->  | F16: =Norfolk!T31 -> 
A17: North Platte, Neb. (Southwest Neb.) | B17: ='North Platte'!P31 ->  | C17: ='North Platte'!Q31 ->  | D17: ='North Platte'!R31 ->  | E17: ='North Platte'!S31 ->  | F17: ='North Platte'!T31 -> 
A18: Alliance, Neb. (Neb. Panhandle) | B18: =Alliance!P31 ->  | C18: =Alliance!Q31 ->  | D18: =Alliance!R31 ->  | E18: =Alliance!S31 ->  | F18: =Alliance!T31 -> 
A19: Ainsworth, Neb. (North-central Neb.) | B19: =Ainsworth!P30 ->  | C19: =Ainsworth!Q30 ->  | D19: =Ainsworth!R30 ->  | E19: =Ainsworth!S30 ->  | F19: =Ainsworth!T30 -> 
A20: Scottsbluff, Neb. (N. Platte River Valley) | B20: =Scottsbluff!P31 ->  | C20: =Scottsbluff!Q31 ->  | D20: =Scottsbluff!R31 ->  | E20: =Scottsbluff!S31 ->  | F20: =Scottsbluff!T31 -> 
A21: Beatrice, Neb. (Southeast Neb.) | B21: =Beatrice!P31 ->  | C21: =Beatrice!Q31 ->  | D21: =Beatrice!R31 ->  | E21: =Beatrice!S31 ->  | F21: =Beatrice!T31 -> 
A23: South/Southwest
A24: Annoyance free percentage | B24: 0.99 | C24: 0.98 | D24: 0.96 | E24: 0.94 | F24: 0.9
A25: Grand Island, Neb. (South-central Neb.) | B25: ='Grand Island'!P57 ->  | C25: ='Grand Island'!Q57 ->  | D25: ='Grand Island'!R57 ->  | E25: ='Grand Island'!S57 ->  | F25: ='Grand Island'!T57 -> 
A26: Lincoln, Neb. (Airport salt flats) | B26: =Lincoln!P57 ->  | C26: =Lincoln!Q57 ->  | D26: =Lincoln!R57 ->  | E26: =Lincoln!S57 ->  | F26: =Lincoln!T57 -> 
A27: Norfolk, Neb. (Northeast Neb.) | B27: =Norfolk!P57 ->  | C27: =Norfolk!Q57 ->  | D27: =Norfolk!R57 ->  | E27: =Norfolk!S57 ->  | F27: =Norfolk!T57 -> 
A28: North Platte, Neb. (Southwest Neb.) | B28: ='North Platte'!P57 ->  | C28: ='North Platte'!Q57 ->  | D28: ='North Platte'!R57 ->  | E28: ='North Platte'!S57 ->  | F28: ='North Platte'!T57 -> 
A29: Alliance, Neb. (Neb. Panhandle) | B29: =Alliance!P57 ->  | C29: =Alliance!Q57 ->  | D29: =Alliance!R57 ->  | E29: =Alliance!S57 ->  | F29: =Alliance!T57 -> 
A30: Ainsworth, Neb. (North-central Neb.) | B30: =Ainsworth!P55 ->  | C30: =Ainsworth!Q55 ->  | D30: =Ainsworth!R55 ->  | E30: =Ainsworth!S55 ->  | F30: =Ainsworth!T55 -> 
A31: Scottsbluff, Neb. (N. Platte River Valley) | B31: =Scottsbluff!P57 ->  | C31: =Scottsbluff!Q57 ->  | D31: =Scottsbluff!R57 ->  | E31: =Scottsbluff!S57 ->  | F31: =Scottsbluff!T57 -> 
A32: Beatrice, Neb. (Southeast Neb.) | B32: =Beatrice!P57 ->  | C32: =Beatrice!Q57 ->  | D32: =Beatrice!R57 ->  | E32: =Beatrice!S57 ->  | F32: =Beatrice!T57 -> 
A34: West/Northwest
A35: Annoyance free percentage | B35: 0.99 | C35: 0.98 | D35: 0.96 | E35: 0.94 | F35: 0.9
A36: Grand Island, Neb. (South-central Neb.) | B36: ='Grand Island'!P83 ->  | C36: ='Grand Island'!Q83 ->  | D36: ='Grand Island'!R83 ->  | E36: ='Grand Island'!S83 ->  | F36: ='Grand Island'!T83 -> 
A37: Lincoln, Neb. (Airport salt flats) | B37: =Lincoln!P83 ->  | C37: =Lincoln!Q83 ->  | D37: =Lincoln!R83 ->  | E37: =Lincoln!S83 ->  | F37: =Lincoln!T83 -> 
A38: Norfolk, Neb. (Northeast Neb.) | B38: =Norfolk!P83 ->  | C38: =Norfolk!Q83 ->  | D38: =Norfolk!R83 ->  | E38: =Norfolk!S83 ->  | F38: =Norfolk!T83 -> 
A39: North Platte, Neb. (Southwest Neb.) | B39: ='North Platte'!P83 ->  | C39: ='North Platte'!Q83 ->  | D39: ='North Platte'!R83 ->  | E39: ='North Platte'!S83 ->  | F39: ='North Platte'!T83 -> 
A40: Alliance, Neb. (Neb. Panhandle) | B40: =Alliance!P83 ->  | C40: =Alliance!Q83 ->  | D40: =Alliance!R83 ->  | E40: =Alliance!S83 ->  | F40: =Alliance!T83 -> 
A41: Ainsworth, Neb. (North-central Neb.) | B41: =Ainsworth!P80 ->  | C41: =Ainsworth!Q80 ->  | D41: =Ainsworth!R80 ->  | E41: =Ainsworth!S80 ->  | F41: =Ainsworth!T80 -> 
A42: Scottsbluff, Neb. (N. Platte River Valley) | B42: =Scottsbluff!P83 ->  | C42: =Scottsbluff!Q83 ->  | D42: =Scottsbluff!R83 ->  | E42: =Scottsbluff!S83 ->  | F42: =Scottsbluff!T83 -> 
A43: Beatrice, Neb. (Southeast Neb.) | B43: =Beatrice!P83 ->  | C43: =Beatrice!Q83 ->  | D43: =Beatrice!R83 ->  | E43: =Beatrice!S83 ->  | F43: =Beatrice!T83 -> 

Sheet Alt setback (hidden)
A1: North/Northeast
A2: Annoyance free percentage | B2: 0.99 | C2: 0.98 | D2: 0.96 | E2: 0.94 | F2: 0.9
A3: Grand Island, Neb. (South-central Neb.) | B3: ='Grand Island'!P6 ->  | C3: ='Grand Island'!Q6 ->  | D3: ='Grand Island'!R6 ->  | E3: ='Grand Island'!S6 ->  | F3: ='Grand Island'!T6 -> 
A4: Lincoln, Neb. (Airport salt flats) | B4: =Lincoln!P6 ->  | C4: =Lincoln!Q6 ->  | D4: =Lincoln!R6 ->  | E4: =Lincoln!S6 ->  | F4: =Lincoln!T6 -> 
